Workbook

Sheet COVER (hidden)
C314: Global (excluding WWE)
H356: =+SUM(H345:H355) -> 0 | I356: =+SUM(I345:I355) -> 0 | J356: 0 | K356: 0 | L356: 0 | M356: 0 | N356: 0 | O356: 0 | P356: 0 | Q356: 0 | R356: 0 | S356: 0 | T356: 0 | U356: 0 | V356: 0 | W356: 0 | X356: 0 | Y356: 0 | Z356: 0 | AA356: 0 | AB356: 0 | AC356: 0 | AD356: 0 | AE356: 0 | AF356: 0 | AG356: 0 | AH356: 0 | AI356: 0 | AJ356: 0 | AK356: 0 | AL356: 0 | AM356: 0 | AN356: 0 | AO356: 0 | AP356: 0 | AQ356: 0 | AR356: 0 | AS356: 0 | AT356: 0 | AU356: 0 | AV356: 0 | AW356: 0 | AX356: 0 | AY356: 0
H373: =+SUM(H362:H372) -> 0 | I373: =+SUM(I362:I372) -> 0 | J373: 0 | K373: 0 | L373: 0 | M373: 0 | N373: 0 | O373: 0 | P373: 0 | Q373: 0 | R373: 0 | S373: 0 | T373: 0 | U373: 0 | V373: 0 | W373: 0 | X373: 0 | Y373: 0 | Z373: 0 | AA373: 0 | AB373: 0 | AC373: 0 | AD373: 0 | AE373: 0 | AF373: 0 | AG373: 0 | AH373: 0 | AI373: 0 | AJ373: 0 | AK373: 0 | AL373: 0 | AM373: 0 | AN373: 0 | AO373: 0 | AP373: 0 | AQ373: 0 | AR373: 0 | AS373: 0 | AT373: 0 | AU373: 0 | AV373: 0 | AW373: 0 | AX373: 0 | AY373: 0
I614: 16211.73813 | J614: 16211.73813 | K614: 16211.73813 | L614: 16211.73813 | M614: 16211.73813 | N614: 16211.73813 | O614: 16211.73813 | P614: 16211.73813 | Q614: 16211.73813 | R614: 16211.73813 | S614: 16211.73813 | T614: 16211.73813 | U614: 16211.73813 | V614: 16211.73813 | W614: 16211.73813 | X614: 16211.73813 | Y614: 16211.73813 | Z614: 16211.73813 | AA614: 16211.73813 | AB614: 16211.73813 | AC614: 16211.73813 | AD614: 16211.73813 | AE614: 16211.73813 | AF614: 16211.73813 | AG614: 16211.73813 | AH614: 16211.73813 | AI614: 16211.73813 | AJ614: 16211.73813 | AK614: 16211.73813 | AL614: 16211.73813 | AM614: 16211.73813 | AN614: 16211.73813 | AO614: 16211.73813 | AP614: 16211.73813 | AQ614: 16211.73813 | AR614: 16211.73813 | AS614: 16211.73813 | AT614: 16211.73813 | AU614: 16211.73813 | AV614: 16211.73813 | AW614: 16211.73813 | AX614: 16211.73813 | AY614: 16211.73813 | AZ614: 16211.73813 | BA614: 16211.73813

Sheet Instructions
A2: Instructions
B6: Sheet Description:
B8: 1) Valuation_Summary: Detailed report of Valuation under Sacyr's assumptions 2) Valuation_Sensitivities: Input selection (follow instructions) and graphical display of Valuation. 3) Valuation_Detail: Calculation details & Cash Flow data from each Country/Area. 4) Future Investment Valuation: Includes an analysis of value creation through asset management and the calculations for the Future Investment Valuation

Sheet Valuation_Summary
E2: ID 2024 Valuation
E3: =+K15 -> 3551.188208
B11: ID 2024 Valuation | J11: Valuation - Current Concessions Portfolio and Future Investments
K14: EqValue 2024 (Eur)
C15: Country | D15: Long-Term CPI | K15: =+'INPUT DATA'!J688 -> 3551.188208
C16: Scenario -> | D16: Base
C17: Spain | D17: 0.022 | K17: EqValue 2027 (Eur)
C18: Colombia | D18: 0.03 | K18: =+'INPUT DATA'!M688 -> 5122.612891
C19: Chile | D19: 0.03
C20: Italy | D20: 0.02 | K20: EqValue 2033 (Eur)
C21: Uruguay | D21: 0.05 | K21: =+'INPUT DATA'!S688 -> 9099.967742
C22: Paraguay | D22: 0.04
C23: Brazil | D23: 0.045
C24: Mexico | D24: 0.03
C25: USA | D25: 0.02 | J25: Valuation by Country/Area 2024
C26: Recent awards and other | D26: 0.03
C30: Country | D30: Ke | F30: EBITDA Multiple
C31: Spain | D31: 0.08195 | P31: Shareholder distributions & Equity Contributions - Current Infrastructure Portfolio
C32: Colombia | D32: 0.13805
C33: Chile | D33: 0.118555
C34: Italy | D34: 0.071955
C35: Uruguay | D35: 0.10995
C36: Paraguay | D36: 0.12195
C37: Brazil | D37: 0.16195
C38: Mexico | D38: 0.141
C39: Recent awards and other | D39: 0.11207
C40: USA | D40: 0.06949
C41: Water | D41: 0.135 | F41: 12.5
C42: Future investments | D42: 0.137
C45: Euro exchange rates as of 30/04/2024 | J45: Valuation by Asset Typology 2024 | P45: Shareholder distributions & Equity Contributions by Asset Typology - Current Infrastructure Portfolio
C46: Country | D46: FX | F46: Currency
C47: EEUU | D47: 1.072 | F47: USD
C48: Chile | D48: 1012.4 | F48: CLP
C49: Colombia | D49: 4143.27 | F49: COP
C50: Brasil | D50: 5.4887 | F50: BRL
C51: Europe | D51: 1 | F51: EUR
C52: Paraguay | D52: 7976.03376 | F52: PYG
C53: Mexico | D53: 18.1707 | F53: MXN
C54: Uruguay | D54: 38.3 | F54: UYU
C55: UK | D55: 0.8547 | F55: GBP

Sheet Valuation_Sensitivities
E2: Valuation | M2: CPI | N2: Ke | R2: CPI | S2: Ke | W2: CPI | X2: Ke | Y2: EBITDA multiple
E3: =+K15 -> 3551.188217 | L3: Spain | M3: =+Valuation_Detail!D21 -> 0.022 | N3: =+Valuation_Sensitivities!D31 -> 0.08195 | Q3: Uruguay | R3: =+Valuation_Detail!D25 -> 0.05 | S3: =+Valuation_Sensitivities!D35 -> 0.10995 | V3: Recent awards and other | W3: =+Valuation_Detail!D30 -> 0.03 | X3: =+Valuation_Sensitivities!D39 -> 0.11207
L4: Colombia | M4: =+Valuation_Detail!D22 -> 0.03 | N4: =+Valuation_Sensitivities!D32 -> 0.13805 | Q4: Paraguay | R4: =+Valuation_Detail!D26 -> 0.04 | S4: =+Valuation_Sensitivities!D36 -> 0.12195 | V4: USA | W4: =+Valuation_Detail!D29 -> 0.02 | X4: =+Valuation_Sensitivities!D40 -> 0.06949
L5: Italy | M5: =+Valuation_Detail!D24 -> 0.02 | N5: =+Valuation_Sensitivities!D34 -> 0.071955 | Q5: Brazil | R5: =+Valuation_Detail!D27 -> 0.045 | S5: =+Valuation_Sensitivities!D37 -> 0.16195 | V5: Water | X5: =+Valuation_Sensitivities!D41 -> 0.135 | Y5: =+E41 -> 12.5
E6: Impact Valuation | G6: =+ROUND(E3-'INPUT DATA'!$E$560/1000,4) -> 0 | L6: Chile | M6: =+Valuation_Detail!D23 -> 0.03 | N6: =+Valuation_Sensitivities!D33 -> 0.118555 | Q6: Mexico | R6: =+Valuation_Detail!D28 -> 0.03 | S6: =+Valuation_Sensitivities!D38 -> 0.141 | V6: Future Investments | X6: =+Valuation_Sensitivities!D42 -> 0.137
E8: 2810.600786
B11: Inputs: | J11: Valuation - Current Concessions Portfolio and Future Investments
C14: Country | D14: Long Term CPI | K14: EqValue 2024 (Eur)
C15: Scenario -> | D15: Base | E15: =+"+0.5%" -> +0.5% | F15: =+"-0.5%" -> -0.5% | K15: =+Valuation_Detail!F37/1000 -> 3551.188217
C16: Spain | D16: 0.022 | E16: =+D16+0.5% -> 0.027 | F16: =+D16-0.5% -> 0.017
C17: Colombia | D17: 0.03 | E17: 0.035 | F17: 0.025 | K17: EqValue 2027 (Eur)
C18: Chile | D18: 0.03 | E18: 0.035 | F18: 0.025 | K18: =+'INPUT DATA'!M519 -> 5122.612891
C19: Italy | D19: 0.02 | E19: 0.025 | F19: 0.015
C20: Uruguay | D20: 0.05 | E20: 0.055 | F20: 0.045 | K20: EqValue 2033 (Eur)
C21: Paraguay | D21: 0.04 | E21: 0.045 | F21: 0.035 | K21: =+'INPUT DATA'!S519 -> 9099.967742
C22: Brazil | D22: 0.045 | E22: 0.05 | F22: 0.04
C23: Mexico | D23: 0.03 | E23: 0.035 | F23: 0.025
C24: USA | D24: 0.02 | E24: 0.025 | F24: 0.015
C25: Recent awards and other | D25: 0.03 | E25: 0.035 | F25: 0.025 | J25: Valuation by Country/Area 2024
C30: Country | D30: Ke | E30: EBITDA Multiple
C31: Spain | D31: 0.08195 | P31: Shareholder distributions & Equity Contributions - Current Infrastructure Portfolio
C32: Colombia | D32: 0.13805
C33: Chile | D33: 0.118555
C34: Italy | D34: 0.071955
C35: Uruguay | D35: 0.10995
C36: Paraguay | D36: 0.12195
C37: Brazil | D37: 0.16195
C38: Mexico | D38: 0.141
C39: Recent awards and other | D39: 0.11207
C40: USA | D40: 0.06949
C41: Water | D41: 0.135 | E41: 12.5
C42: Future investments | D42: =13.7%+D43 -> 0.137
C43: +future growth sensitivity | D43: 0
K619: 16211.73813 | L619: 16211.73813 | M619: 16211.73813 | AG619: 16211.73813

Sheet Valuation_Detail
D2: Valuation | I2: CPI | J2: Ke | M2: CPI | N2: Ke | Q2: CPI | R2: Ke | S2: EBITDA multiple
D3: =+F37/1000 -> 3551.188217 | H3: Spain | I3: =+Valuation_Detail!D21 -> 0.022 | J3: =+Valuation_Sensitivities!D31 -> 0.08195 | L3: Uruguay | M3: =+Valuation_Detail!D25 -> 0.05 | N3: =+Valuation_Sensitivities!D35 -> 0.10995 | P3: Recent awards and other | Q3: =+Valuation_Detail!D30 -> 0.03 | R3: =+Valuation_Sensitivities!D39 -> 0.11207
H4: Colombia | I4: =+Valuation_Detail!D22 -> 0.03 | J4: =+Valuation_Sensitivities!D32 -> 0.13805 | L4: Paraguay | M4: =+Valuation_Detail!D26 -> 0.04 | N4: =+Valuation_Sensitivities!D36 -> 0.12195 | P4: USA | Q4: =+Valuation_Detail!D29 -> 0.02 | R4: =+Valuation_Sensitivities!D40 -> 0.06949
H5: Italy | I5: =+Valuation_Detail!D24 -> 0.02 | J5: =+Valuation_Sensitivities!D34 -> 0.071955 | L5: Brazil | M5: =+Valuation_Detail!D27 -> 0.045 | N5: =+Valuation_Sensitivities!D37 -> 0.16195 | P5: Water | R5: =+Valuation_Sensitivities!D41 -> 0.135 | S5: =+Valuation_Sensitivities!Y5 -> 12.5
D6: Impact Valuation | F6: =+ROUND(D3-'INPUT DATA'!$E$560/1000,4) -> 0 | H6: Chile | I6: =+Valuation_Detail!D23 -> 0.03 | J6: =+Valuation_Sensitivities!D33 -> 0.118555 | L6: Mexico | M6: =+Valuation_Detail!D28 -> 0.03 | N6: =+Valuation_Sensitivities!D38 -> 0.141 | P6: Future Investments | R6: =+Valuation_Sensitivities!D42 -> 0.137
D8: 2810.600786
C12: Year | I12: 2025 | J12: =+I12+1 -> 2026 | K12: 2027 | L12: 2028 | M12: 2029 | N12: 2030 | O12: 2031 | P12: 2032 | Q12: 2033 | R12: 2034 | S12: 2035 | T12: 2036 | U12: 2037 | V12: 2038 | W12: 2039 | X12: 2040 | Y12: 2041 | Z12: 2042 | AA12: 2043 | AB12: 2044 | AC12: 2045 | AD12: 2046 | AE12: 2047 | AF12: 2048 | AG12: 2049 | AH12: 2050 | AI12: 2051 | AJ12: 2052 | AK12: 2053 | AL12: 2054 | AM12: 2055 | AN12: 2056 | AO12: =+AN12+1 -> 2057 | AP12: 2058 | AQ12: 2059 | AR12: 2060 | AS12: 2061 | AT12: 2062 | AU12: 2063 | AV12: 2064 | AW12: 2065 | AX12: 2066 | AY12: 2067 | AZ12: 2068 | BA12: 2069 | BB12: 2070 | BC12: 2071 | BD12: 2072 | BE12: 2073 | BF12: 2074 | BG12: 2075 | BH12: 2076 | BI12: 2077 | BJ12: 2078 | BK12: 2079 | BL12: 2080 | BM12: 2081 | BN12: 2082 | BO12: 2083 | BP12: 2084 | BQ12: 2085 | BR12: Future Investments Perpetuity
C15: Valuation
A17: 1 | C17: Valuation @ 31/12/2024
C19: =C17&" - [000' EUR]" -> Valuation @ 31/12/2024 - [000' EUR] | I19: CF to Equity →
C20: Year | D20: CPI | E20: Discount rate | F20: Valuation | I20: =+I$12 -> 2025 | J20: 2026 | K20: 2027 | L20: 2028 | M20: 2029 | N20: 2030 | O20: 2031 | P20: 2032 | Q20: 2033 | R20: 2034 | S20: 2035 | T20: 2036 | U20: 2037 | V20: 2038 | W20: 2039 | X20: 2040 | Y20: 2041 | Z20: 2042 | AA20: 2043 | AB20: 2044 | AC20: 2045 | AD20: 2046 | AE20: 2047 | AF20: 2048 | AG20: 2049 | AH20: 2050 | AI20: 2051 | AJ20: 2052 | AK20: 2053 | AL20: 2054 | AM20: 2055 | AN20: 2056 | AO20: =+AO$12 -> 2057 | AP20: 2058 | AQ20: 2059 | AR20: 2060 | AS20: 2061 | AT20: 2062 | AU20: 2063 | AV20: 2064 | AW20: 2065 | AX20: 2066 | AY20: 2067 | AZ20: 2068 | BA20: 2069 | BB20: 2070 | BC20: 2071 | BD20: 2072 | BE20: 2073 | BF20: 2074 | BG20: 2075 | BH20: 2076 | BI20: 2077 | BJ20: 2078 | BK20: 2079 | BL20: 2080 | BM20: 2081 | BN20: 2082 | BO20: 2083 | BP20: 2084 | BQ20: 2085 | BR20: Perpetuity
C21: Spain | D21: =Valuation_Sensitivities!D16+('INPUT DATA'!G3=1)*0+('INPUT DATA'!G3=2)*0.5%+('INPUT DATA'!G3=3)*-0.5% -> 0.022 | E21: =+'INPUT DATA'!J486 -> 0.082 | F21: =+NPV(E21,I21:BQ21) -> 230039.3901 | I21: =+I46+I68 -> 23215.77775 | J21: 14710.49225 | K21: 6533.960336 | L21: 52034.19684 | M21: 11439.14363 | N21: 12131.70761 | O21: 12919.2807 | P21: 14565.96782 | Q21: 28079.07798 | R21: 41850.84385 | S21: 42592.61211 | T21: 28645.57079 | U21: 18597.89971 | V21: 21802.16872 | W21: 23764.69094 | X21: 25311.84414 | Y21: 37147.83009 | Z21: 49513.91294 | AA21: 24920.00449 | AB21: 2467.715675 | AC21: 1216.772569 | AD21: 2138.64232 | AE21: 1704.717235 | AF21: 4316.468377 | AG21: 7127.379147 | AH21: 8253.435062 | AI21: 4628.90843 | AJ21: 570.7311023 | AK21: 589.6374229 | AL21: 608.6113802 | AM21: 628.4825209 | AN21: 78.78441294 | AO21: =+AO46+AO68 -> 0 | AP21: 0 | AQ21: 0 | AR21: 0 | AS21: 0 | AT21: 0 | AU21: 0 | AV21: 0 | AW21: 0 | AX21: 0 | AY21: 0 | AZ21: 0 | BA21: 0 | BB21: 0 | BC21: 0 | BD21: 0 | BE21: 0 | BF21: 0 | BG21: 0 | BH21: 0 | BI21: 0 | BJ21: 0 | BK21: 0 | BL21: 0 | BM21: 0 | BN21: 0 | BO21: 0 | BP21: 0 | BQ21: 0
C22: Colombia | D22: =Valuation_Sensitivities!D17+('INPUT DATA'!G5=1)*0+('INPUT DATA'!G5=2)*0.5%+('INPUT DATA'!G5=3)*-0.5% -> 0.03 | E22: =+'INPUT DATA'!J488 -> 0.1380752072 | F22: =+NPV(E22,I22:BQ22) -> 629004.3617 | I22: =+I47+I69 -> -24597.63258 | J22: =+J47+J69 -> 41011.54343 | K22: 61416.84032 | L22: 84047.13532 | M22: 141301.2766 | N22: 135972.0536 | O22: 171262.1791 | P22: 210711.2655 | Q22: 187097.3501 | R22: 152797.0226 | S22: 88128.11798 | T22: 93158.19226 | U22: 61291.01579 | V22: 98969.49212 | W22: 111552.3482 | X22: 120475.0497 | Y22: 88036.14764 | Z22: 62854.56621 | AA22: 99597.1561 | AB22: 138444.6557 | AC22: 121071.387 | AD22: 59837.1362 | AE22: 0 | AF22: 0 | AG22: 0 | AH22: 0 | AI22: 0 | AJ22: 0 | AK22: 0 | AL22: 0 | AM22: 0 | AN22: 0 | AO22: =+AO47+AO69 -> 0 | AP22: 0 | AQ22: 0 | AR22: 0 | AS22: 0 | AT22: 0 | AU22: 0 | AV22: 0 | AW22: 0 | AX22: 0 | AY22: 0 | AZ22: 0 | BA22: 0 | BB22: 0 | BC22: 0 | BD22: 0 | BE22: 0 | BF22: 0 | BG22: 0 | BH22: 0 | BI22: 0 | BJ22: 0 | BK22: 0 | BL22: 0 | BM22: 0 | BN22: 0 | BO22: 0 | BP22: 0 | BQ22: 0
C23: Chile | D23: =Valuation_Sensitivities!D18+('INPUT DATA'!G4=1)*0+('INPUT DATA'!G4=2)*0.5%+('INPUT DATA'!G4=3)*-0.5% -> 0.03 | E23: =+'INPUT DATA'!J487 -> 0.1185610462 | F23: 598163.096 | I23: =+I48+I70 -> -119939.4999 | J23: -29489.91117 | K23: 107767.8439 | L23: 189963.9886 | M23: 126892.0956 | N23: 76630.00021 | O23: 114200.4652 | P23: 134303.7643 | Q23: 144161.1875 | R23: 169878.1249 | S23: 67192.18259 | T23: 66204.75298 | U23: 42599.64429 | V23: 55453.30803 | W23: 61725.50482 | X23: 50831.9999 | Y23: 67596.56531 | Z23: 82075.90079 | AA23: 71334.53801 | AB23: 46466.32612 | AC23: 57907.20891 | AD23: 59685.9889 | AE23: 48603.61141 | AF23: 88486.27843 | AG23: 121769.6866 | AH23: 133076.3502 | AI23: 125921.9979 | AJ23: 135424.5775 | AK23: 149088.966 | AL23: 196843.9172 | AM23: 213324.5894 | AN23: 217118.8806 | AO23: =+AO48+AO70 -> 163136.5893 | AP23: 114432.0237 | AQ23: 121840.6331 | AR23: 117034.3474 | AS23: 129673.3761 | AT23: 162665.5028 | AU23: 172576.3548 | AV23: 144181.3706 | AW23: 0 | AX23: 0.07008319056 | AY23: 0 | AZ23: 0 | BA23: 0 | BB23: 0 | BC23: 0 | BD23: 0 | BE23: 0 | BF23: 0 | BG23: 0 | BH23: 0 | BI23: 0 | BJ23: 0 | BK23: 0 | BL23: 0 | BM23: 0 | BN23: 0 | BO23: 0 | BP23: 0 | BQ23: 0
C24: Italy | D24: =Valuation_Sensitivities!D19+('INPUT DATA'!G6=1)*0+('INPUT DATA'!G6=2)*0.5%+('INPUT DATA'!G6=3)*-0.5% -> 0.02 | E24: =+'INPUT DATA'!J489 -> 0.071955 | F24: 817027.5642 | I24: =+I49+I71 -> 10938.33462 | J24: =+J49+J71 -> 111773.6258 | K24: 134734.8691 | L24: 20409.23496 | M24: 50075.28534 | N24: 52200.42333 | O24: 51109.04217 | P24: 51411.32269 | Q24: 50516.39976 | R24: 51141.08692 | S24: 80733.25228 | T24: 51488.89878 | U24: 33994.26222 | V24: 32310.98144 | W24: 37182.36838 | X24: 37898.84844 | Y24: 40663.66853 | Z24: 39524.54941 | AA24: 42635.76398 | AB24: 48369.83973 | AC24: 76173.0299 | AD24: 61561.40162 | AE24: 61317.65855 | AF24: 30113.824 | AG24: 32208.81727 | AH24: 32787.01649 | AI24: 33126.53536 | AJ24: 74872.37397 | AK24: 146190.2286 | AL24: 158077.2994 | AM24: 161917.6815 | AN24: 166753.7734 | AO24: =+AO49+AO71 -> 168329.1438 | AP24: 175426.6225 | AQ24: 164658.1208 | AR24: 203780.5252 | AS24: 168666.9018 | AT24: 184464.7817 | AU24: 0 | AV24: 0 | AW24: 0 | AX24: 0 | AY24: 0 | AZ24: 0 | BA24: 0 | BB24: 0 | BC24: 0 | BD24: 0 | BE24: 0 | BF24: 0 | BG24: 0 | BH24: 0 | BI24: 0 | BJ24: 0 | BK24: 0 | BL24: 0 | BM24: 0 | BN24: 0 | BO24: 0 | BP24: 0 | BQ24: 0
C25: Uruguay | D25: =Valuation_Sensitivities!D20+('INPUT DATA'!G7=1)*0+('INPUT DATA'!G7=2)*0.5%+('INPUT DATA'!G7=3)*-0.5% -> 0.05 | E25: =+'INPUT DATA'!J490 -> 0.10995 | F25: 85339.87419 | I25: =+I50+I72 -> 474.3350969 | J25: 6.575413869e-14 | K25: 9425.999665 | L25: 12619.90239 | M25: 11087.76931 | N25: 12410.32738 | O25: 12072.93236 | P25: 13384.33867 | Q25: 13314.7923 | R25: 13785.39168 | S25: 10195.38737 | T25: 9185.142006 | U25: 11996.18162 | V25: 41400.14955 | W25: 50852.02349 | X25: 11213.4344 | Y25: 14230.2879 | Z25: 6969.950633 | AA25: 0 | AB25: 0 | AC25: 0 | AD25: 0 | AE25: 0 | AF25: 0 | AG25: 0 | AH25: 0 | AI25: 0 | AJ25: 0 | AK25: 0 | AL25: 0 | AM25: 0 | AN25: 0 | AO25: =+AO50+AO72 -> 0 | AP25: 0 | AQ25: 0 | AR25: 0 | AS25: 0 | AT25: 0 | AU25: 0 | AV25: 0 | AW25: 0 | AX25: 0 | AY25: 0 | AZ25: 0 | BA25: 0 | BB25: 0 | BC25: 0 | BD25: 0 | BE25: 0 | BF25: 0 | BG25: 0 | BH25: 0 | BI25: 0 | BJ25: 0 | BK25: 0 | BL25: 0 | BM25: 0 | BN25: 0 | BO25: 0 | BP25: 0 | BQ25: 0
C26: Paraguay | D26: =Valuation_Sensitivities!D21+('INPUT DATA'!G9=1)*0+('INPUT DATA'!G9=2)*0.5%+('INPUT DATA'!G9=3)*-0.5% -> 0.04 | E26: =+'INPUT DATA'!J492 -> 0.122 | F26: 82269.59096 | I26: =+I51+I73 -> 9535.511237 | J26: 9916.931686 | K26: 10313.60895 | L26: 6442.43143 | M26: 6233.546359 | N26: 6844.780537 | O26: 10384.70027 | P26: 9645.994336 | Q26: 11406.96399 | R26: 13079.48728 | S26: 14114.88601 | T26: 16591.63119 | U26: 13491.56873 | V26: 14424.4945 | W26: 16400.70135 | X26: 19051.24903 | Y26: 20369.32533 | Z26: 6357.900847 | AA26: 7051.091372 | AB26: 9056.958305 | AC26: 22763.38587 | AD26: 28850.51636 | AE26: 17546.87182 | AF26: 0 | AG26: 0 | AH26: 0 | AI26: 0 | AJ26: 0 | AK26: 0 | AL26: 0 | AM26: 0 | AN26: 0 | AO26: =+AO51+AO73 -> 0 | AP26: 0 | AQ26: 0 | AR26: 0 | AS26: 0 | AT26: 0 | AU26: 0 | AV26: 0 | AW26: 0 | AX26: 0 | AY26: 0 | AZ26: 0 | BA26: 0 | BB26: 0 | BC26: 0 | BD26: 0 | BE26: 0 | BF26: 0 | BG26: 0 | BH26: 0 | BI26: 0 | BJ26: 0 | BK26: 0 | BL26: 0 | BM26: 0 | BN26: 0 | BO26: 0 | BP26: 0 | BQ26: 0
C27: Brazil | D27: =Valuation_Sensitivities!D22+('INPUT DATA'!G11)*0+('INPUT DATA'!G11=2)*0.5%+('INPUT DATA'!G11=3)*-0.5% -> 0.045 | E27: =+'INPUT DATA'!J494 -> 0.162 | F27: 57711.27263 | I27: =+I52+I74 -> -26941.67085 | J27: -12997.28842 | K27: 0 | L27: 11576.66431 | M27: 14832.1733 | N27: 12867.02101 | O27: 7978.868309 | P27: 13253.02394 | Q27: 10128.18375 | R27: 31944.50289 | S27: 18849.38311 | T27: 27588.35981 | U27: 29541.39994 | V27: 31399.95328 | W27: 17644.06382 | X27: 11886.39524 | Y27: 14332.04836 | Z27: 51249.84985 | AA27: 55819.11606 | AB27: 73920.52091 | AC27: 83811.84137 | AD27: 112836.4372 | AE27: 136103.1223 | AF27: 147917.7026 | AG27: 147202.3434 | AH27: 149851.351 | AI27: 133693.0624 | AJ27: 0 | AK27: 0 | AL27: 0 | AM27: 0 | AN27: 0 | AO27: =+AO52+AO74 -> 0 | AP27: 0 | AQ27: 0 | AR27: 0 | AS27: 0 | AT27: 0 | AU27: 0 | AV27: 0 | AW27: 0 | AX27: 0 | AY27: 0 | AZ27: 0 | BA27: 0 | BB27: 0 | BC27: 0 | BD27: 0 | BE27: 0 | BF27: 0 | BG27: 0 | BH27: 0 | BI27: 0 | BJ27: 0 | BK27: 0 | BL27: 0 | BM27: 0 | BN27: 0 | BO27: 0 | BP27: 0 | BQ27: =+BQ52+BQ74 -> 0
C28: Mexico | D28: =Valuation_Sensitivities!D23+('INPUT DATA'!G8=1)*0+('INPUT DATA'!G8=2)*0.5%+('INPUT DATA'!G8=3)*-0.5% -> 0.03 | E28: =+'INPUT DATA'!J491 -> 0.141 | F28: 64554.03773 | I28: =+I53+I75 -> 11455.1057 | J28: 9438.341158 | K28: 17839.60306 | L28: 12973.69984 | M28: 6512.24282 | N28: 6782.831176 | O28: 7327.586672 | P28: 6909.622806 | Q28: 6894.644131 | R28: 6786.252418 | S28: 6855.374766 | T28: 7737.651262 | U28: 7380.992973 | V28: 6397.371905 | W28: 6385.040863 | X28: 5984.740545 | Y28: 6315.151776 | Z28: 9249.01262 | AA28: 39864.25997 | AB28: 0 | AC28: 0 | AD28: 0 | AE28: 0 | AF28: 0 | AG28: 0 | AH28: 0 | AI28: 0 | AJ28: 0 | AK28: 0 | AL28: 0 | AM28: 0 | AN28: 0 | AO28: =+AO53+AO75 -> 0 | AP28: 0 | AQ28: 0 | AR28: 0 | AS28: 0 | AT28: 0 | AU28: 0 | AV28: 0 | AW28: 0 | AX28: 0 | AY28: 0 | AZ28: 0 | BA28: 0 | BB28: 0 | BC28: 0 | BD28: 0 | BE28: 0 | BF28: 0 | BG28: 0 | BH28: 0 | BI28: 0 | BJ28: 0 | BK28: 0 | BL28: 0 | BM28: 0 | BN28: 0 | BO28: 0 | BP28: 0 | BQ28: 0
C29: USA | D29: =Valuation_Sensitivities!D24+('INPUT DATA'!G12=1)*0+('INPUT DATA'!G12=2)*0.5%+('INPUT DATA'!G12=3)*-0.5% -> 0.02 | E29: =+'INPUT DATA'!J495 -> 0.0695 | F29: =+NPV(E29,I29:BQ29) -> 16225.94923 | I29: =+I55+I77 -> 1581.942624 | J29: 347.363569 | K29: 533.866455 | L29: 514.401892 | M29: 624.6304526 | N29: 598.9610427 | O29: 857.5022616 | P29: 1040.305729 | Q29: 1229.590665 | R29: 1312.824597 | S29: 1040.707537 | T29: 1306.215768 | U29: 1374.415483 | V29: 1440.653619 | W29: 1484.817268 | X29: 1202.886114 | Y29: 1502.055909 | Z29: 1538.762548 | AA29: 1570.557351 | AB29: 1590.354973 | AC29: 1365.091902 | AD29: 1562.711438 | AE29: 1586.571519 | AF29: 1602.373317 | AG29: 1609.395117 | AH29: 1359.608792 | AI29: 1554.421606 | AJ29: 1530.332181 | AK29: 1488.770538 | AL29: 1457.128138 | AM29: 1276.84773 | AN29: 1370.750088 | AO29: =+AO55+AO77 -> 1341.046103 | AP29: 1313.585848 | AQ29: 1312.020438 | AR29: 1231.476768 | AS29: 1326.157925 | AT29: 1324.787498 | AU29: 1320.001395 | AV29: 1296.310409 | AW29: 1235.488528 | AX29: 1232.618605 | AY29: 1214.191885 | AZ29: 4676.474884 | BA29: 9017.832951 | BB29: 9066.833881 | BC29: 0 | BD29: 0 | BE29: 0 | BF29: 0 | BG29: 0 | BH29: 0 | BI29: 0 | BJ29: 0 | BK29: 0 | BL29: 0 | BM29: 0 | BN29: 0 | BO29: 0 | BP29: 0 | BQ29: 0
C30: Recent awards and other | D30: =Valuation_Sensitivities!D25+('INPUT DATA'!G10=1)*0+('INPUT DATA'!G10=2)*0.5%+('INPUT DATA'!G10=3)*-0.5% -> 0.03 | E30: =+'INPUT DATA'!J493 -> 0.1120701041 | F30: 68230.39253 | I30: =+I54+I76 -> 18606.35654 | J30: =+J54+J76 -> -41875.93415 | K30: =+K54+K76 -> -61285.52951 | L30: -57064.8337 | M30: -25394.90949 | N30: -35538.13608 | O30: -63456.73359 | P30: 10155.93292 | Q30: 40090.7132 | R30: 32215.79419 | S30: 118114.8631 | T30: 26618.54772 | U30: 26260.19321 | V30: 26594.31926 | W30: -4744.318875 | X30: 76376.05472 | Y30: 65201.0847 | Z30: 131147.2771 | AA30: 65916.07127 | AB30: 47096.59329 | AC30: 71676.16688 | AD30: 88206.36046 | AE30: 94148.354 | AF30: 97888.98393 | AG30: 111747.8257 | AH30: 107806.5016 | AI30: 113029.6881 | AJ30: 111519.9202 | AK30: 119558.2831 | AL30: 123187.6857 | AM30: 125477.7662 | AN30: 81559.77252 | AO30: =+AO54+AO76 -> 16039.02086 | AP30: 15641.42729 | AQ30: 15636.82953 | AR30: 16274.47125 | AS30: 15621.66593 | AT30: 15659.59391 | AU30: 15445.28559 | AV30: 15223.11608 | AW30: 15142.21754 | AX30: 63502.85225 | AY30: 59322.07206 | AZ30: 62687.263 | BA30: 63872.03945 | BB30: 65194.80692 | BC30: 67657.98602 | BD30: 70294.32306 | BE30: 72112.48858 | BF30: 74405.44213 | BG30: 75751.59285 | BH30: 72970.23439 | BI30: 79795.85002 | BJ30: 84341.89323 | BK30: 86384.73361 | BL30: 86892.10212 | BM30: 11613.22574 | BN30: 0 | BO30: 150.0999106 | BP30: -4.197743846e-05 | BQ30: 0
C31: Valuation Current Infrastructure Portfolio | E31: =+IFERROR(IRR(H31:BQ31),) -> 0.1100243129 | F31: =+SUM(F21:F30) -> 2648565.529 | H31: =-F31 -> -2648565.529 | I31: =+SUM(I21:I30) -> -95671.43974 | J31: 102835.1641 | K31: 287281.0623 | L31: 333516.8218 | M31: 343603.2539 | N31: 280899.9699 | O31: 324655.8234 | P31: 465381.5388 | Q31: 492918.9034 | R31: 514791.3313 | S31: 447816.7669 | T31: 328524.9626 | U31: 246527.574 | V31: 330192.8924 | W31: 322247.2403 | X31: 360232.5023 | Y31: 355394.1655 | Z31: 440481.6829 | AA31: 408708.5586 | AB31: 367412.9647 | AC31: 435984.8844 | AD31: 414679.1945 | AE31: 361010.9069 | AF31: 370325.6307 | AG31: 421665.4472 | AH31: 433134.2631 | AI31: 411954.6138 | AJ31: 323917.935 | AK31: 416915.8858 | AL31: 480174.6418 | AM31: 502625.3673 | AN31: 466881.961 | AO31: =+SUM(AO21:AO30) -> 348845.8 | AP31: 306813.6593 | AQ31: 303447.6038 | AR31: 338320.8206 | AS31: 315288.1018 | AT31: 364114.6658 | AU31: 189341.6418 | AV31: 160700.7971 | AW31: 16377.70607 | AX31: 64735.54094 | AY31: 60536.26395 | AZ31: 67363.73788 | BA31: 72889.8724 | BB31: 74261.6408 | BC31: 67657.98602 | BD31: 70294.32306 | BE31: 72112.48858 | BF31: 74405.44213 | BG31: 75751.59285 | BH31: 72970.23439 | BI31: 79795.85002 | BJ31: 84341.89323 | BK31: 86384.73361 | BL31: 86892.10212 | BM31: 11613.22574 | BN31: 0 | BO31: 150.0999106 | BP31: -4.197743846e-05 | BQ31: 0
C32: Water - Long Term Plants Contracts | E32: =+'INPUT DATA'!J496 -> 0.135 | F32: =+NPV(E32,I32:BR32) -> 101386.4008 | I32: =+I57+I79 -> 17079.02024 | J32: 16946.66317 | K32: 10851.43238 | L32: 10604.33084 | M32: 9763.004804 | N32: 10249.44302 | O32: 10908.35297 | P32: 11337.83034 | Q32: 12380.967 | R32: 15792.09251 | S32: 12902.8358 | T32: 15683.32898 | U32: 44752.37047 | V32: 17751.02861 | W32: 58112.13169 | X32: 2965.666773 | Y32: 3362.523028 | Z32: 3699.462213 | AA32: 3710.771385 | AB32: 3714.20986 | AC32: 3685.243059 | AD32: 3667.401833 | AE32: 3907.897068 | AF32: 7178.949386 | AG32: 10244.33219 | AH32: 9832.032881 | AI32: 9996.985302 | AJ32: 9971.101601 | AK32: 10696.31991 | AL32: 10601.06608 | AM32: 10506.78375 | AN32: 10448.96662 | AO32: =+AO57+AO79 -> 10350.52273 | AP32: 1801.102609 | AQ32: 6077.269334 | AR32: 0 | AS32: 0 | AT32: 0 | AU32: 0 | AV32: 0 | AW32: 0 | AX32: 0 | AY32: 0 | AZ32: 0 | BA32: 0 | BB32: 0 | BC32: 0 | BD32: 0 | BE32: 0 | BF32: 0 | BG32: 0 | BH32: 0 | BI32: 0 | BJ32: 0 | BK32: 0 | BL32: 0 | BM32: 0 | BN32: 0 | BO32: 0 | BP32: 0 | BQ32: 0
E33: EBITDA multiple | F33: Valuation
C34: Water - Integrated Cycle + O&M Contracts | E34: =+Valuation_Sensitivities!$E$41 -> 12.5 | F34: =+(H380*E34-H381) -> 294493.3183
C35: Valuation current Water Portfolio | F35: =+F34+F32 -> 395879.7191
C36: Future investments | E36: =+'INPUT DATA'!J497 -> 0.1369999996 | F36: =+NPV(E36,I36:BR36) -> 506742.9688 | I36: =+I58+I80 -> 0 | J36: -131307.8604 | K36: -171980.0892 | L36: -324598.7948 | M36: -365743.2015 | N36: -344118.4759 | O36: 11056.89449 | P36: -250334.0783 | Q36: 243340.8081 | R36: 82757.11905 | S36: 163444.3264 | T36: 223182.0621 | U36: 440437.1838 | V36: 342382.6899 | W36: 383479.5209 | X36: 515141.6917 | Y36: 503248.7368 | Z36: 601408.9306 | AA36: 649716.6681 | AB36: 706466.8754 | AC36: 777806.3226 | AD36: 834284.7386 | AE36: 902765.4616 | AF36: 968162.5759 | AG36: 1196730.653 | AH36: 1332318.381 | AI36: 1450251.356 | AJ36: 1620363.862 | AK36: 1444985.006 | AL36: 1485058.493 | AM36: 1579144.326 | AN36: 1589384.797 | AO36: =+AO58+AO80 -> 1463355.361 | AP36: 1500790.049 | AQ36: 1513769.2 | AR36: 1485818.28 | AS36: 1508579.688 | AT36: 1497000.839 | AU36: 1499477.36 | AV36: 1501634.659 | AW36: 1498489.077 | AX36: 1500774.111 | AY36: 1500023.437 | AZ36: 1499919.5 | BA36: 1499919.5 | BB36: 1499919.5 | BC36: 1499919.5 | BD36: 1499919.5 | BE36: 1499919.5 | BF36: 1499919.5 | BG36: 1499919.5 | BH36: 1499919.5 | BI36: 1499919.5 | BJ36: 1499919.5 | BK36: 1499919.5 | BL36: 1499919.5 | BM36: 1499919.5 | BN36: 1499919.5 | BO36: 1499919.5 | BP36: 1499919.5 | BQ36: =+BQ58+BQ80 -> 1499919.5 | BR36: =+BR58+BR80 -> 12448237.05
C37: Total valuation @ 31/12/2024 | F37: =+F36+F35+F31 -> 3551188.217
C38: Recent awards and other include: I10 Louisiana, Anillo Vial Periferico, Longitudinal de la Sierra and New Velindre cancer center
C39: CALCULATION Ke
A42: 1 | C42: Global Equity Distributions
C44: =C42&" - [000' EUR]" -> Global Equity Distributions - [000' EUR]
C45: Year | I45: =+I$12 -> 2025 | J45: 2026 | K45: 2027 | L45: 2028 | M45: 2029 | N45: 2030 | O45: 2031 | P45: 2032 | Q45: 2033 | R45: 2034 | S45: 2035 | T45: 2036 | U45: 2037 | V45: 2038 | W45: 2039 | X45: 2040 | Y45: 2041 | Z45: 2042 | AA45: 2043 | AB45: 2044 | AC45: 2045 | AD45: 2046 | AE45: 2047 | AF45: 2048 | AG45: 2049 | AH45: 2050 | AI45: 2051 | AJ45: 2052 | AK45: 2053 | AL45: 2054 | AM45: 2055 | AN45: =+AN$12 -> 2056 | AO45: 2057 | AP45: 2058 | AQ45: 2059 | AR45: 2060 | AS45: 2061 | AT45: 2062 | AU45: 2063 | AV45: 2064 | AW45: 2065 | AX45: 2066 | AY45: 2067 | AZ45: 2068 | BA45: 2069 | BB45: 2070 | BC45: 2071 | BD45: 2072 | BE45: 2073 | BF45: 2074 | BG45: 2075 | BH45: 2076 | BI45: 2077 | BJ45: 2078 | BK45: 2079 | BL45: 2080 | BM45: 2081 | BN45: 2082 | BO45: 2083 | BP45: 2084 | BQ45: 2085 | BR45: Perpetuity
B46: España | C46: Spain | H46: =-H134 -> 0 | I46: 23915.77775 | J46: 14710.49248 | K46: 6533.960336 | L46: 52034.19684 | M46: 11439.14363 | N46: 12131.70761 | O46: 12919.28096 | P46: 14565.96809 | Q46: 28079.07798 | R46: 41850.84385 | S46: 42592.61211 | T46: 28645.57079 | U46: 18597.89971 | V46: 21802.16872 | W46: 23764.69094 | X46: 25311.84414 | Y46: 37147.83009 | Z46: 49513.91294 | AA46: 24920.00449 | AB46: 2467.715675 | AC46: 1216.772569 | AD46: 2138.64232 | AE46: 1704.717235 | AF46: 4316.468377 | AG46: 7127.379147 | AH46: 8253.435062 | AI46: 4628.90843 | AJ46: 570.7311023 | AK46: 589.6374229 | AL46: 608.6113802 | AM46: 628.4825209 | AN46: 78.78441294 | AO46: 0 | AP46: 0 | AQ46: 0 | AR46: 0 | AS46: 0 | AT46: 0 | AU46: 0 | AV46: 0 | AW46: 0 | AX46: 0 | AY46: 0 | AZ46: =-AZ134 -> 0 | BA46: 0 | BB46: 0 | BC46: 0 | BD46: 0 | BE46: 0 | BF46: 0 | BG46: 0 | BH46: 0 | BI46: 0 | BJ46: 0 | BK46: 0 | BL46: 0 | BM46: 0 | BN46: 0 | BO46: 0 | BP46: 0 | BQ46: 0
B47: Colombia | C47: Colombia | H47: =-H159 -> 0 | I47: 74722.40928 | J47: 76146.42788 | K47: 67558.20883 | L47: 84047.13532 | M47: 141301.2766 | N47: 135972.0536 | O47: 171262.1791 | P47: 210711.2655 | Q47: 187097.3501 | R47: 152797.0226 | S47: 88128.11798 | T47: 93158.19226 | U47: 61291.01579 | V47: 98969.49212 | W47: 111552.3482 | X47: 120475.0497 | Y47: 88036.14764 | Z47: 62854.56621 | AA47: 99597.1561 | AB47: 138444.6557 | AC47: 121071.387 | AD47: 59837.1362 | AE47: 0 | AF47: 0 | AG47: 0 | AH47: 0 | AI47: 0 | AJ47: 0 | AK47: 0 | AL47: 0 | AM47: 0 | AN47: 0 | AO47: 0 | AP47: 0 | AQ47: 0 | AR47: 0 | AS47: 0 | AT47: 0 | AU47: 0 | AV47: 0 | AW47: 0 | AX47: 0 | AY47: 0 | AZ47: =-AZ159 -> 0 | BA47: 0 | BB47: 0 | BC47: 0 | BD47: 0 | BE47: 0 | BF47: 0 | BG47: 0 | BH47: 0 | BI47: 0 | BJ47: 0 | BK47: 0 | BL47: 0 | BM47: 0 | BN47: 0 | BO47: 0 | BP47: 0 | BQ47: 0
B48: Chile | C48: Chile | H48: =-H184 -> 0 | I48: 18343.40744 | J48: 7361.008559 | K48: 120058.9684 | L48: 200363.8342 | M48: 126892.0956 | N48: 76630.14381 | O48: 114200.5358 | P48: 134304.1207 | Q48: 144161.1875 | R48: 169878.1249 | S48: 67192.18259 | T48: 66204.75298 | U48: 42599.64429 | V48: 55453.30803 | W48: 61725.50482 | X48: 50831.9999 | Y48: 67596.56531 | Z48: 82075.90079 | AA48: 71334.53801 | AB48: 46466.32612 | AC48: 57907.20891 | AD48: 59685.9889 | AE48: 48603.61141 | AF48: 88486.27843 | AG48: 121769.6866 | AH48: 133076.3502 | AI48: 125921.9979 | AJ48: 135424.5775 | AK48: 149088.966 | AL48: 196843.9172 | AM48: 213324.5894 | AN48: 217118.8806 | AO48: 163136.5893 | AP48: 114432.0237 | AQ48: 121840.6331 | AR48: 117034.3474 | AS48: 129673.3761 | AT48: 162665.5028 | AU48: 172576.3548 | AV48: 144181.3706 | AW48: 0 | AX48: 0.07008319056 | AY48: 0 | AZ48: =-AZ184 -> 0 | BA48: 0 | BB48: 0 | BC48: 0 | BD48: 0 | BE48: 0 | BF48: 0 | BG48: 0 | BH48: 0 | BI48: 0 | BJ48: 0 | BK48: 0 | BL48: 0 | BM48: 0 | BN48: 0 | BO48: 0 | BP48: 0 | BQ48: 0
B49: Italia | C49: Italy | H49: =-H209 -> 0 | I49: 18024.37427 | J49: 125213.1046 | K49: 151208.6108 | L49: 20409.23496 | M49: 50075.28534 | N49: 52200.42333 | O49: 51109.04217 | P49: 51411.32269 | Q49: 50516.39976 | R49: 51141.08692 | S49: 80733.25228 | T49: 51488.89878 | U49: 33994.26222 | V49: 32310.98144 | W49: 37182.36838 | X49: 37898.84844 | Y49: 40663.66853 | Z49: 39524.54941 | AA49: 42635.76398 | AB49: 48369.83973 | AC49: 76173.0299 | AD49: 61561.40162 | AE49: 61317.65855 | AF49: 30113.824 | AG49: 32208.81727 | AH49: 32787.01649 | AI49: 33126.53536 | AJ49: 74872.37397 | AK49: 146190.2286 | AL49: 158077.2994 | AM49: 161917.6815 | AN49: 166753.7734 | AO49: 168329.1438 | AP49: 175426.6225 | AQ49: 164658.1208 | AR49: 203780.5252 | AS49: 168666.9018 | AT49: 184464.7817 | AU49: 0 | AV49: 0 | AW49: 0 | AX49: 0 | AY49: 0 | AZ49: =-AZ209 -> 0 | BA49: 0 | BB49: 0 | BC49: 0 | BD49: 0 | BE49: 0 | BF49: 0 | BG49: 0 | BH49: 0 | BI49: 0 | BJ49: 0 | BK49: 0 | BL49: 0 | BM49: 0 | BN49: 0 | BO49: 0 | BP49: 0 | BQ49: 0
B50: Uruguay | C50: Uruguay | H50: =-H235 -> 0 | I50: 474.3350969 | J50: 6.575413869e-14 | K50: 9425.999665 | L50: 12619.90239 | M50: 11087.76931 | N50: 12410.32738 | O50: 12072.93236 | P50: 13384.33867 | Q50: 13314.7923 | R50: 13785.39168 | S50: 10195.38737 | T50: 9185.142006 | U50: 11996.18162 | V50: 41400.14955 | W50: 50852.02349 | X50: 11213.4344 | Y50: 14230.2879 | Z50: 6969.950633 | AA50: 0 | AB50: 0 | AC50: 0 | AD50: 0 | AE50: 0 | AF50: 0 | AG50: 0 | AH50: 0 | AI50: 0 | AJ50: 0 | AK50: 0 | AL50: 0 | AM50: 0 | AN50: 0 | AO50: 0 | AP50: 0 | AQ50: 0 | AR50: 0 | AS50: 0 | AT50: 0 | AU50: 0 | AV50: 0 | AW50: 0 | AX50: 0 | AY50: 0 | AZ50: =-AZ235 -> 0 | BA50: 0 | BB50: 0 | BC50: 0 | BD50: 0 | BE50: 0 | BF50: 0 | BG50: 0 | BH50: 0 | BI50: 0 | BJ50: 0 | BK50: 0 | BL50: 0 | BM50: 0 | BN50: 0 | BO50: 0 | BP50: 0 | BQ50: 0
B51: Paraguay | C51: Paraguay | H51: =-H260 -> 0 | I51: 9535.511237 | J51: 9916.931686 | K51: 10313.60895 | L51: 6442.43143 | M51: 6233.546359 | N51: 6844.780537 | O51: 10384.70027 | P51: 9645.994336 | Q51: 11406.96399 | R51: 13079.48728 | S51: 14114.88601 | T51: 16591.63119 | U51: 13491.56873 | V51: 14424.4945 | W51: 16400.70135 | X51: 19051.24903 | Y51: 20369.32533 | Z51: 6357.900847 | AA51: 7051.091372 | AB51: 9056.958305 | AC51: 22763.38587 | AD51: 28850.51636 | AE51: 17546.87182 | AF51: 0 | AG51: 0 | AH51: 0 | AI51: 0 | AJ51: 0 | AK51: 0 | AL51: 0 | AM51: 0 | AN51: 0 | AO51: 0 | AP51: 0 | AQ51: 0 | AR51: 0 | AS51: 0 | AT51: 0 | AU51: 0 | AV51: 0 | AW51: 0 | AX51: 0 | AY51: 0 | AZ51: =-AZ260 -> 0 | BA51: 0 | BB51: 0 | BC51: 0 | BD51: 0 | BE51: 0 | BF51: 0 | BG51: 0 | BH51: 0 | BI51: 0 | BJ51: 0 | BK51: 0 | BL51: 0 | BM51: 0 | BN51: 0 | BO51: 0 | BP51: 0 | BQ51: 0
B52: Brazil | C52: Brazil | H52: =-H285 -> 0 | I52: 0 | J52: 0 | K52: 0 | L52: 11576.66431 | M52: 14832.1733 | N52: 12867.02101 | O52: 7978.868309 | P52: 13253.02394 | Q52: 10128.18375 | R52: 31944.50289 | S52: 18849.38311 | T52: 27588.35981 | U52: 29541.39994 | V52: 31399.95328 | W52: 17644.06382 | X52: 11886.39524 | Y52: 14332.04836 | Z52: 51249.84985 | AA52: 55819.11606 | AB52: 73920.52091 | AC52: 83811.84137 | AD52: 112836.4372 | AE52: 136103.1223 | AF52: 147917.7026 | AG52: 147202.3434 | AH52: 149851.351 | AI52: 133693.0624 | AJ52: 0 | AK52: 0 | AL52: 0 | AM52: 0 | AN52: 0 | AO52: 0 | AP52: 0 | AQ52: 0 | AR52: 0 | AS52: 0 | AT52: 0 | AU52: 0 | AV52: 0 | AW52: 0 | AX52: 0 | AY52: 0 | AZ52: =-AZ285 -> 0 | BA52: 0 | BB52: 0 | BC52: 0 | BD52: 0 | BE52: 0 | BF52: 0 | BG52: 0 | BH52: 0 | BI52: 0 | BJ52: 0 | BK52: 0 | BL52: 0 | BM52: 0 | BN52: 0 | BO52: 0 | BP52: 0 | BQ52: 0
B53: México | C53: Mexico | H53: =-H310 -> 0 | I53: 11455.1057 | J53: 9438.341158 | K53: 17839.60306 | L53: 12973.69984 | M53: 6512.24282 | N53: 6782.831176 | O53: 7327.586672 | P53: 6909.622806 | Q53: 6894.644131 | R53: 6786.252418 | S53: 6855.374766 | T53: 7737.651262 | U53: 7380.992973 | V53: 6397.371905 | W53: 6385.040863 | X53: 5984.740545 | Y53: 6315.151776 | Z53: 9249.01262 | AA53: 39864.25997 | AB53: 0 | AC53: 0 | AD53: 0 | AE53: 0 | AF53: 0 | AG53: 0 | AH53: 0 | AI53: 0 | AJ53: 0 | AK53: 0 | AL53: 0 | AM53: 0 | AN53: 0 | AO53: 0 | AP53: 0 | AQ53: 0 | AR53: 0 | AS53: 0 | AT53: 0 | AU53: 0 | AV53: 0 | AW53: 0 | AX53: 0 | AY53: 0 | AZ53: =-AZ310 -> 0 | BA53: 0 | BB53: 0 | BC53: 0 | BD53: 0 | BE53: 0 | BF53: 0 | BG53: 0 | BH53: 0 | BI53: 0 | BJ53: 0 | BK53: 0 | BL53: 0 | BM53: 0 | BN53: 0 | BO53: 0 | BP53: 0 | BQ53: 0
B54: Perú | C54: Recent Awards and others | H54: =-H335 -> 0 | I54: 33150.82074 | J54: -1092.633746 | K54: 2630.66846 | L54: 4676.134213 | M54: 5255.596493 | N54: 16898.33095 | O54: 14379.09326 | P54: 10155.93292 | Q54: 40090.7132 | R54: 32215.79419 | S54: 118114.8631 | T54: 26618.54772 | U54: 26260.19321 | V54: 26594.31926 | W54: -4744.318875 | X54: 76376.05472 | Y54: 65201.0847 | Z54: 131147.2771 | AA54: 65916.07127 | AB54: 47096.59329 | AC54: 71676.16688 | AD54: 88206.36046 | AE54: 94148.354 | AF54: 97888.98393 | AG54: 111747.8257 | AH54: 107806.5016 | AI54: 113029.6881 | AJ54: 111519.9202 | AK54: 119558.2831 | AL54: 123187.6857 | AM54: 125477.7662 | AN54: 81559.77252 | AO54: 16039.02086 | AP54: 15641.42729 | AQ54: 15636.82953 | AR54: 16274.47125 | AS54: 15621.66593 | AT54: 15659.59391 | AU54: 15445.28559 | AV54: 15223.11608 | AW54: 15142.21754 | AX54: 63502.85225 | AY54: 59322.07206 | AZ54: =-AZ335 -> 62687.263 | BA54: 63872.03945 | BB54: 65194.80692 | BC54: 67657.98602 | BD54: 70294.32306 | BE54: 72112.48858 | BF54: 74405.44213 | BG54: 75751.59285 | BH54: 72970.23439 | BI54: 79795.85002 | BJ54: 84341.89323 | BK54: 86384.73361 | BL54: 86892.10212 | BM54: 11613.22574 | BN54: 0 | BO54: 150.0999106 | BP54: 0 | BQ54: 0
B55: EEUU | C55: USA | H55: =-H360 -> 0 | I55: 1581.942624 | J55: 347.363569 | K55: 533.866455 | L55: 514.401892 | M55: 624.6304526 | N55: 598.9610427 | O55: 857.5022616 | P55: 1040.305729 | Q55: 1229.590665 | R55: 1312.824597 | S55: 1040.707537 | T55: 1306.215768 | U55: 1374.415483 | V55: 1440.653619 | W55: 1484.817268 | X55: 1202.886114 | Y55: 1502.055909 | Z55: 1538.762548 | AA55: 1570.557351 | AB55: 1590.354973 | AC55: 1365.091902 | AD55: 1562.711438 | AE55: 1586.571519 | AF55: 1602.373317 | AG55: 1609.395117 | AH55: 1359.608792 | AI55: 1554.421606 | AJ55: 1530.332181 | AK55: 1488.770538 | AL55: 1457.128138 | AM55: 1276.84773 | AN55: 1370.750088 | AO55: 1341.046103 | AP55: 1313.585848 | AQ55: 1312.020438 | AR55: 1231.476768 | AS55: 1326.157925 | AT55: 1324.787498 | AU55: 1320.001395 | AV55: 1296.310409 | AW55: 1235.488528 | AX55: 1232.618605 | AY55: 1214.191885 | AZ55: =-AZ360 -> 4676.474884 | BA55: 9017.832951 | BB55: 9066.833881 | BC55: 0 | BD55: 0 | BE55: 0 | BF55: 0 | BG55: 0 | BH55: 0 | BI55: 0 | BJ55: 0 | BK55: 0 | BL55: 0 | BM55: 0 | BN55: 0 | BO55: 0 | BP55: 0 | BQ55: 0
C56: Total - Current Infrastructure portfolio | H56: =+SUM(H46:H55) -> 0 | I56: 191203.6841 | J56: 242041.0362 | K56: 386103.495 | L56: 405657.6354 | M56: 374253.7599 | N56: 333336.5805 | O56: 402491.7212 | P56: 465381.8954 | Q56: 492918.9034 | R56: 514791.3313 | S56: 447816.7669 | T56: 328524.9626 | U56: 246527.574 | V56: 330192.8924 | W56: 322247.2403 | X56: 360232.5023 | Y56: 355394.1655 | Z56: 440481.6829 | AA56: 408708.5586 | AB56: 367412.9647 | AC56: 435984.8844 | AD56: 414679.1945 | AE56: 361010.9069 | AF56: 370325.6307 | AG56: 421665.4472 | AH56: 433134.2631 | AI56: 411954.6138 | AJ56: 323917.935 | AK56: 416915.8858 | AL56: 480174.6418 | AM56: 502625.3673 | AN56: =+SUM(AN46:AN55) -> 466881.961 | AO56: 348845.8 | AP56: 306813.6593 | AQ56: 303447.6038 | AR56: 338320.8206 | AS56: 315288.1018 | AT56: 364114.6658 | AU56: 189341.6418 | AV56: 160700.7971 | AW56: 16377.70607 | AX56: 64735.54094 | AY56: 60536.26395 | AZ56: 67363.73788 | BA56: 72889.8724 | BB56: 74261.6408 | BC56: 67657.98602 | BD56: 70294.32306 | BE56: 72112.48858 | BF56: 74405.44213 | BG56: 75751.59285 | BH56: 72970.23439 | BI56: 79795.85002 | BJ56: 84341.89323 | BK56: 86384.73361 | BL56: 86892.10212 | BM56: 11613.22574 | BN56: 0 | BO56: 150.0999106 | BP56: 0 | BQ56: 0
C57: Water - Long Term Plants Contracts | H57: =+H374 -> 0 | I57: 17079.02024 | J57: 16946.66317 | K57: 10851.43238 | L57: 10604.33084 | M57: 9763.004804 | N57: 10249.44302 | O57: 10908.35297 | P57: 11337.83034 | Q57: 12380.967 | R57: 15792.09251 | S57: 12902.8358 | T57: 15683.32898 | U57: 44752.37047 | V57: 17751.02861 | W57: 58112.13169 | X57: 2965.666773 | Y57: 3362.523028 | Z57: 3699.462213 | AA57: 3710.771385 | AB57: 3714.20986 | AC57: 3685.243059 | AD57: 3667.401833 | AE57: 3907.897068 | AF57: 7178.949386 | AG57: 10244.33219 | AH57: 9832.032881 | AI57: 9996.985302 | AJ57: 9971.101601 | AK57: 10696.31991 | AL57: 10601.06608 | AM57: 10506.78375 | AN57: 10448.96662 | AO57: 10350.52273 | AP57: 1801.102609 | AQ57: 6077.269334 | AR57: 0 | AS57: 0 | AT57: 0 | AU57: 0 | AV57: 0 | AW57: 0 | AX57: 0 | AY57: 0 | AZ57: =+AZ374 -> 0 | BA57: 0 | BB57: 0 | BC57: 0 | BD57: 0 | BE57: 0 | BF57: 0 | BG57: 0 | BH57: 0 | BI57: 0 | BJ57: 0 | BK57: 0 | BL57: 0 | BM57: 0 | BN57: 0 | BO57: 0 | BP57: 0 | BQ57: 0
C58: Future investments | H58: =+SUMIF(H393:H441,">0") -> 0 | I58: =+SUMIF(I393:I441,">0") -> 0 | J58: 0 | K58: 0 | L58: 0 | M58: 0 | N58: 0 | O58: 329964.2259 | P58: 145832.2357 | Q58: 639507.4748 | R58: 432757.1191 | S58: 513444.3264 | T58: 573182.0621 | U58: 790437.1838 | V58: 692382.6899 | W58: 733479.5209 | X58: 865141.6917 | Y58: 853248.7368 | Z58: 951408.9306 | AA58: 999716.6681 | AB58: 1056689.817 | AC58: 1127829.437 | AD58: 1184285.139 | AE58: 1252765.862 | AF58: 1318162.976 | AG58: 1546731.053 | AH58: 1682318.781 | AI58: 1800251.756 | AJ58: 1970364.262 | AK58: 1794985.406 | AL58: 1835058.893 | AM58: 1929144.726 | AN58: 1939385.197 | AO58: 1813355.761 | AP58: 1850790.449 | AQ58: 1863769.6 | AR58: 1835818.68 | AS58: 1858580.088 | AT58: 1847001.239 | AU58: 1849477.76 | AV58: 1851635.059 | AW58: 1848489.477 | AX58: 1850774.511 | AY58: 1850023.837 | AZ58: 1849919.9 | BA58: 1849919.9 | BB58: 1849919.9 | BC58: 1849919.9 | BD58: 1849919.9 | BE58: 1849919.9 | BF58: 1849919.9 | BG58: 1849919.9 | BH58: 1849919.9 | BI58: 1849919.9 | BJ58: 1849919.9 | BK58: 1849919.9 | BL58: 1849919.9 | BM58: 1849919.9 | BN58: 1849919.9 | BO58: 1849919.9 | BP58: 1849919.9 | BQ58: 1849919.9 | BR58: 15352984.9
C59: Total | H59: =+SUM(H56:H58) -> 0 | I59: 208282.7044 | J59: 258987.6994 | K59: 396954.9273 | L59: 416261.9663 | M59: 384016.7647 | N59: 343586.0235 | O59: 743364.3 | P59: 622551.9614 | Q59: 1144807.345 | R59: 963340.5429 | S59: 974163.9291 | T59: 917390.3537 | U59: 1081717.128 | V59: 1040326.611 | W59: 1113838.893 | X59: 1228339.861 | Y59: 1212005.425 | Z59: 1395590.076 | AA59: 1412135.998 | AB59: 1427816.992 | AC59: 1567499.564 | AD59: 1602631.735 | AE59: 1617684.665 | AF59: 1695667.556 | AG59: 1978640.832 | AH59: 2125285.077 | AI59: 2222203.355 | AJ59: 2304253.299 | AK59: 2222597.611 | AL59: 2325834.601 | AM59: 2442276.877 | AN59: =+SUM(AN56:AN58) -> 2416716.124 | AO59: 2172552.084 | AP59: 2159405.211 | AQ59: 2173294.474 | AR59: 2174139.501 | AS59: 2173868.19 | AT59: 2211115.905 | AU59: 2038819.402 | AV59: 2012335.856 | AW59: 1864867.183 | AX59: 1915510.052 | AY59: 1910560.101 | AZ59: 1917283.638 | BA59: 1922809.773 | BB59: 1924181.541 | BC59: 1917577.886 | BD59: 1920214.223 | BE59: 1922032.389 | BF59: 1924325.343 | BG59: 1925671.493 | BH59: 1922890.135 | BI59: 1929715.75 | BJ59: 1934261.794 | BK59: 1936304.634 | BL59: 1936812.003 | BM59: 1861533.126 | BN59: 1849919.9 | BO59: 1850070 | BP59: 1849919.9 | BQ59: 1849919.9 | BR59: 15352984.9
C64: Global Equity Contributions
C66: =C64&" - [000' EUR]" -> Global Equity Contributions - [000' EUR]
C67: Year | I67: =+I$12 -> 2025 | J67: 2026 | K67: 2027 | L67: 2028 | M67: 2029 | N67: 2030 | O67: 2031 | P67: 2032 | Q67: 2033 | R67: 2034 | S67: 2035 | T67: 2036 | U67: 2037 | V67: 2038 | W67: 2039 | X67: 2040 | Y67: 2041 | Z67: 2042 | AA67: 2043 | AB67: 2044 | AC67: 2045 | AD67: 2046 | AE67: 2047 | AF67: 2048 | AG67: 2049 | AH67: 2050 | AI67: 2051 | AJ67: 2052 | AK67: 2053 | AL67: 2054 | AM67: 2055 | AN67: =+AN$12 -> 2056 | AO67: 2057 | AP67: 2058 | AQ67: 2059 | AR67: 2060 | AS67: 2061 | AT67: 2062 | AU67: 2063 | AV67: 2064 | AW67: 2065 | AX67: 2066 | AY67: 2067 | AZ67: 2068 | BA67: 2069 | BB67: 2070 | BC67: 2071 | BD67: 2072 | BE67: 2073 | BF67: 2074 | BG67: 2075 | BH67: 2076 | BI67: 2077 | BJ67: 2078 | BK67: 2079 | BL67: 2080 | BM67: 2081 | BN67: 2082 | BO67: 2083 | BP67: 2084 | BQ67: 2085 | BR67: Perpetuity
C68: Spain | H68: =-H135 -> 0 | I68: -700 | J68: -0.0002349613601 | K68: 0 | L68: 0 | M68: 0 | N68: 0 | O68: -0.000263579153 | P68: -0.0002738427819 | Q68: 0 | R68: 0 | S68: 0 | T68: 0 | U68: 3.552713679e-12 | V68: 0 | W68: 0 | X68: 0 | Y68: 0 | Z68: 0 | AA68: 0 | AB68: 0 | AC68: 0 | AD68: 0 | AE68: 0 | AF68: 0 | AG68: 0 | AH68: 0 | AI68: 0 | AJ68: 0 | AK68: 0 | AL68: 0 | AM68: 0 | AN68: 0 | AO68: 0 | AP68: 0 | AQ68: 0 | AR68: 0 | AS68: 0 | AT68: 0 | AU68: 0 | AV68: 0 | AW68: 0 | AX68: 0 | AY68: 0 | AZ68: =-AZ135 -> 0 | BA68: 0 | BB68: 0 | BC68: 0 | BD68: 0 | BE68: 0 | BF68: 0 | BG68: 0 | BH68: 0 | BI68: 0 | BJ68: 0 | BK68: 0 | BL68: 0 | BM68: 0 | BN68: 0 | BO68: 0 | BP68: 0 | BQ68: 0
C69: Colombia | H69: =-H160 -> 0 | I69: -99320.04186 | J69: -35134.88445 | K69: -6141.368514 | L69: 0 | M69: 0 | N69: 0 | O69: 0 | P69: 0 | Q69: 0 | R69: 0 | S69: 0 | T69: 0 | U69: 0 | V69: 0 | W69: 0 | X69: 0 | Y69: 0 | Z69: 0 | AA69: 0 | AB69: 0 | AC69: 0 | AD69: 0 | AE69: 0 | AF69: 0 | AG69: 0 | AH69: 0 | AI69: 0 | AJ69: 0 | AK69: 0 | AL69: 0 | AM69: 0 | AN69: 0 | AO69: 0 | AP69: 0 | AQ69: 0 | AR69: 0 | AS69: 0 | AT69: 0 | AU69: 0 | AV69: 0 | AW69: 0 | AX69: 0 | AY69: 0 | AZ69: =-AZ160 -> 0 | BA69: 0 | BB69: 0 | BC69: 0 | BD69: 0 | BE69: 0 | BF69: 0 | BG69: 0 | BH69: 0 | BI69: 0 | BJ69: 0 | BK69: 0 | BL69: 0 | BM69: 0 | BN69: 0 | BO69: 0 | BP69: 0 | BQ69: 0
C70: Chile | H70: =-H185 -> 0 | I70: -138282.9073 | J70: -36850.91973 | K70: -12291.12447 | L70: -10399.84567 | M70: 0 | N70: -0.1435944545 | O70: -0.0706111381 | P70: -0.3563276972 | Q70: 0 | R70: 0 | S70: 0 | T70: 0 | U70: -4.671446512e-13 | V70: 0 | W70: 0 | X70: 0 | Y70: 0 | Z70: 0 | AA70: 0 | AB70: 0 | AC70: 0 | AD70: 0 | AE70: 0 | AF70: 0 | AG70: 0 | AH70: 0 | AI70: 0 | AJ70: 0 | AK70: 0 | AL70: 0 | AM70: 0 | AN70: 0 | AO70: 0 | AP70: 0 | AQ70: 0 | AR70: 0 | AS70: 0 | AT70: 0 | AU70: 0 | AV70: 0 | AW70: 0 | AX70: 0 | AY70: 0 | AZ70: =-AZ185 -> 0 | BA70: 0 | BB70: 0 | BC70: 0 | BD70: 0 | BE70: 0 | BF70: 0 | BG70: 0 | BH70: 0 | BI70: 0 | BJ70: 0 | BK70: 0 | BL70: 0 | BM70: 0 | BN70: 0 | BO70: 0 | BP70: 0 | BQ70: 0
C71: Italy | H71: =-H210 -> 0 | I71: -7086.039643 | J71: -13439.47886 | K71: -16473.74175 | L71: 0 | M71: 0 | N71: 0 | O71: 0 | P71: 0 | Q71: 0 | R71: 0 | S71: 0 | T71: 0 | U71: 0 | V71: 0 | W71: 0 | X71: 0 | Y71: 0 | Z71: 0 | AA71: 0 | AB71: 0 | AC71: 0 | AD71: 0 | AE71: 0 | AF71: 0 | AG71: 0 | AH71: 0 | AI71: 0 | AJ71: 0 | AK71: 0 | AL71: 0 | AM71: 0 | AN71: 0 | AO71: 0 | AP71: 0 | AQ71: 0 | AR71: 0 | AS71: 0 | AT71: 0 | AU71: 0 | AV71: 0 | AW71: 0 | AX71: 0 | AY71: 0 | AZ71: =-AZ210 -> 0 | BA71: 0 | BB71: 0 | BC71: 0 | BD71: 0 | BE71: 0 | BF71: 0 | BG71: 0 | BH71: 0 | BI71: 0 | BJ71: 0 | BK71: 0 | BL71: 0 | BM71: 0 | BN71: 0 | BO71: 0 | BP71: 0 | BQ71: 0
C72: Uruguay | H72: =-H236 -> 0 | I72: 0 | J72: 0 | K72: 0 | L72: 0 | M72: 0 | N72: 0 | O72: 0 | P72: 0 | Q72: 0 | R72: 0 | S72: 0 | T72: 0 | U72: 0 | V72: 0 | W72: 0 | X72: 0 | Y72: 0 | Z72: 0 | AA72: 0 | AB72: 0 | AC72: 0 | AD72: 0 | AE72: 0 | AF72: 0 | AG72: 0 | AH72: 0 | AI72: 0 | AJ72: 0 | AK72: 0 | AL72: 0 | AM72: 0 | AN72: 0 | AO72: 0 | AP72: 0 | AQ72: 0 | AR72: 0 | AS72: 0 | AT72: 0 | AU72: 0 | AV72: 0 | AW72: 0 | AX72: 0 | AY72: 0 | AZ72: =-AZ236 -> 0 | BA72: 0 | BB72: 0 | BC72: 0 | BD72: 0 | BE72: 0 | BF72: 0 | BG72: 0 | BH72: 0 | BI72: 0 | BJ72: 0 | BK72: 0 | BL72: 0 | BM72: 0 | BN72: 0 | BO72: 0 | BP72: 0 | BQ72: 0
C73: Paraguay | H73: =-H261 -> 0 | I73: 0 | J73: 0 | K73: 0 | L73: 0 | M73: 0 | N73: 0 | O73: 0 | P73: 0 | Q73: 0 | R73: 0 | S73: 0 | T73: 0 | U73: 0 | V73: 0 | W73: 0 | X73: 0 | Y73: 0 | Z73: 0 | AA73: 0 | AB73: 0 | AC73: 0 | AD73: 0 | AE73: 0 | AF73: 0 | AG73: 0 | AH73: 0 | AI73: 0 | AJ73: 0 | AK73: 0 | AL73: 0 | AM73: 0 | AN73: 0 | AO73: 0 | AP73: 0 | AQ73: 0 | AR73: 0 | AS73: 0 | AT73: 0 | AU73: 0 | AV73: 0 | AW73: 0 | AX73: 0 | AY73: 0 | AZ73: =-AZ261 -> 0 | BA73: 0 | BB73: 0 | BC73: 0 | BD73: 0 | BE73: 0 | BF73: 0 | BG73: 0 | BH73: 0 | BI73: 0 | BJ73: 0 | BK73: 0 | BL73: 0 | BM73: 0 | BN73: 0 | BO73: 0 | BP73: 0 | BQ73: 0
C74: Brazil | H74: =-H286 -> 0 | I74: -26941.67085 | J74: -12997.28842 | K74: 0 | L74: 0 | M74: 0 | N74: 0 | O74: 0 | P74: 0 | Q74: 0 | R74: 0 | S74: 0 | T74: 0 | U74: 0 | V74: 0 | W74: 0 | X74: 0 | Y74: 0 | Z74: 0 | AA74: 0 | AB74: 0 | AC74: 0 | AD74: 0 | AE74: 0 | AF74: 0 | AG74: 0 | AH74: 0 | AI74: 0 | AJ74: 0 | AK74: 0 | AL74: 0 | AM74: 0 | AN74: 0 | AO74: 0 | AP74: 0 | AQ74: 0 | AR74: 0 | AS74: 0 | AT74: 0 | AU74: 0 | AV74: 0 | AW74: 0 | AX74: 0 | AY74: 0 | AZ74: =-AZ286 -> 0 | BA74: 0 | BB74: 0 | BC74: 0 | BD74: 0 | BE74: 0 | BF74: 0 | BG74: 0 | BH74: 0 | BI74: 0 | BJ74: 0 | BK74: 0 | BL74: 0 | BM74: 0 | BN74: 0 | BO74: 0 | BP74: 0 | BQ74: 0
C75: Mexico | H75: =-H311 -> 0 | I75: 0 | J75: 0 | K75: 0 | L75: 0 | M75: 0 | N75: 0 | O75: 0 | P75: 0 | Q75: 0 | R75: 0 | S75: 0 | T75: 0 | U75: 0 | V75: 0 | W75: 0 | X75: 0 | Y75: 0 | Z75: 0 | AA75: 0 | AB75: 0 | AC75: 0 | AD75: 0 | AE75: 0 | AF75: 0 | AG75: 0 | AH75: 0 | AI75: 0 | AJ75: 0 | AK75: 0 | AL75: 0 | AM75: 0 | AN75: 0 | AO75: 0 | AP75: 0 | AQ75: 0 | AR75: 0 | AS75: 0 | AT75: 0 | AU75: 0 | AV75: 0 | AW75: 0 | AX75: 0 | AY75: 0 | AZ75: =-AZ311 -> 0 | BA75: 0 | BB75: 0 | BC75: 0 | BD75: 0 | BE75: 0 | BF75: 0 | BG75: 0 | BH75: 0 | BI75: 0 | BJ75: 0 | BK75: 0 | BL75: 0 | BM75: 0 | BN75: 0 | BO75: 0 | BP75: 0 | BQ75: 0
C76: Recent awards and others | H76: =-H336 -> 0 | I76: -14544.4642 | J76: -40783.3004 | K76: -63916.19797 | L76: -61740.96791 | M76: -30650.50598 | N76: -52436.46703 | O76: -77835.82685 | P76: 0 | Q76: 0 | R76: 0 | S76: 0 | T76: 0 | U76: 0 | V76: 0 | W76: 0 | X76: 0 | Y76: 0 | Z76: 0 | AA76: 0 | AB76: 0 | AC76: 0 | AD76: 0 | AE76: 0 | AF76: 0 | AG76: 0 | AH76: 0 | AI76: 0 | AJ76: 0 | AK76: 0 | AL76: 0 | AM76: 0 | AN76: 0 | AO76: 0 | AP76: 0 | AQ76: 0 | AR76: 0 | AS76: 0 | AT76: 0 | AU76: 0 | AV76: 0 | AW76: 0 | AX76: 0 | AY76: 0 | AZ76: =-AZ336 -> 0 | BA76: 0 | BB76: 0 | BC76: 0 | BD76: 0 | BE76: 0 | BF76: 0 | BG76: 0 | BH76: 0 | BI76: 0 | BJ76: 0 | BK76: 0 | BL76: 0 | BM76: 0 | BN76: 0 | BO76: 0 | BP76: -4.197743846e-05 | BQ76: 0
C77: USA | H77: =-H361 -> 0 | I77: 0 | J77: 0 | K77: 0 | L77: 0 | M77: 0 | N77: 0 | O77: 0 | P77: 0 | Q77: 0 | R77: 0 | S77: 0 | T77: 0 | U77: 0 | V77: 0 | W77: 0 | X77: 0 | Y77: 0 | Z77: 0 | AA77: 0 | AB77: 0 | AC77: 0 | AD77: 0 | AE77: 0 | AF77: 0 | AG77: 0 | AH77: 0 | AI77: 0 | AJ77: 0 | AK77: 0 | AL77: 0 | AM77: 0 | AN77: 0 | AO77: 0 | AP77: 0 | AQ77: 0 | AR77: 0 | AS77: 0 | AT77: 0 | AU77: 0 | AV77: 0 | AW77: 0 | AX77: 0 | AY77: 0 | AZ77: =-AZ361 -> 0 | BA77: 0 | BB77: 0 | BC77: 0 | BD77: 0 | BE77: 0 | BF77: 0 | BG77: 0 | BH77: 0 | BI77: 0 | BJ77: 0 | BK77: 0 | BL77: 0 | BM77: 0 | BN77: 0 | BO77: 0 | BP77: 0 | BQ77: 0
C78: Total - Current Infrastructure portfolio | H78: =+SUM(H68:H77) -> 0 | I78: -286875.1239 | J78: -139205.8721 | K78: -98822.4327 | L78: -72140.81358 | M78: -30650.50598 | N78: -52436.61062 | O78: -77835.89772 | P78: -0.35660154 | Q78: 0 | R78: 0 | S78: 0 | T78: 0 | U78: 3.085569028e-12 | V78: 0 | W78: 0 | X78: 0 | Y78: 0 | Z78: 0 | AA78: 0 | AB78: 0 | AC78: 0 | AD78: 0 | AE78: 0 | AF78: 0 | AG78: 0 | AH78: 0 | AI78: 0 | AJ78: 0 | AK78: 0 | AL78: 0 | AM78: 0 | AN78: =+SUM(AN68:AN77) -> 0 | AO78: 0 | AP78: 0 | AQ78: 0 | AR78: 0 | AS78: 0 | AT78: 0 | AU78: 0 | AV78: 0 | AW78: 0 | AX78: 0 | AY78: 0 | AZ78: 0 | BA78: 0 | BB78: 0 | BC78: 0 | BD78: 0 | BE78: 0 | BF78: 0 | BG78: 0 | BH78: 0 | BI78: 0 | BJ78: 0 | BK78: 0 | BL78: 0 | BM78: 0 | BN78: 0 | BO78: 0 | BP78: -4.197743846e-05 | BQ78: 0
C79: Water - Long Term Plants Contracts | H79: 0 | I79: 0 | J79: 0 | K79: 0 | L79: 0 | M79: 0 | N79: 0 | O79: 0 | P79: 0 | Q79: 0 | R79: 0 | S79: 0 | T79: 0 | U79: 0 | V79: 0 | W79: 0 | X79: 0 | Y79: 0 | Z79: 0 | AA79: 0 | AB79: 0 | AC79: 0 | AD79: 0 | AE79: 0 | AF79: 0 | AG79: 0 | AH79: 0 | AI79: 0 | AJ79: 0 | AK79: 0 | AL79: 0 | AM79: 0 | AN79: 0 | AO79: 0 | AP79: 0 | AQ79: 0 | AR79: 0 | AS79: 0 | AT79: 0 | AU79: 0 | AV79: 0 | AW79: 0 | AX79: 0 | AY79: 0 | AZ79: 0 | BA79: 0 | BB79: 0 | BC79: 0 | BD79: 0 | BE79: 0 | BF79: 0 | BG79: 0 | BH79: 0 | BI79: 0 | BJ79: 0 | BK79: 0 | BL79: 0 | BM79: 0 | BN79: 0 | BO79: 0 | BP79: 0 | BQ79: 0
C80: Future investments | H80: =+SUMIF(H393:H441,"<0") -> 0 | I80: =+SUMIF(I393:I441,"<0") -> 0 | J80: -131307.8604 | K80: -171980.0892 | L80: -324598.7948 | M80: -365743.2015 | N80: -344118.4759 | O80: -318907.3314 | P80: -396166.314 | Q80: -396166.6667 | R80: -350000 | S80: -350000 | T80: -350000 | U80: -350000 | V80: -350000 | W80: -350000 | X80: -350000 | Y80: -350000 | Z80: -350000 | AA80: -350000 | AB80: -350222.942 | AC80: -350023.1142 | AD80: -350000.4 | AE80: -350000.4 | AF80: -350000.4 | AG80: -350000.4 | AH80: -350000.4 | AI80: -350000.4 | AJ80: -350000.4 | AK80: -350000.4 | AL80: -350000.4 | AM80: -350000.4 | AN80: -350000.4 | AO80: -350000.4 | AP80: -350000.4 | AQ80: -350000.4 | AR80: -350000.4 | AS80: -350000.4 | AT80: -350000.4 | AU80: -350000.4 | AV80: -350000.4 | AW80: -350000.4 | AX80: -350000.4 | AY80: -350000.4 | AZ80: -350000.4 | BA80: -350000.4 | BB80: -350000.4 | BC80: -350000.4 | BD80: -350000.4 | BE80: -350000.4 | BF80: -350000.4 | BG80: -350000.4 | BH80: -350000.4 | BI80: -350000.4 | BJ80: -350000.4 | BK80: -350000.4 | BL80: -350000.4 | BM80: -350000.4 | BN80: -350000.4 | BO80: -350000.4 | BP80: -350000.4 | BQ80: -350000.4 | BR80: -2904747.852
C81: Total | H81: =+SUM(H78:H80) -> 0 | I81: -286875.1239 | J81: -270513.7325 | K81: -270802.5219 | L81: -396739.6084 | M81: -396393.7075 | N81: -396555.0865 | O81: -396743.2291 | P81: -396166.6706 | Q81: -396166.6667 | R81: -350000 | S81: -350000 | T81: -350000 | U81: -350000 | V81: -350000 | W81: -350000 | X81: -350000 | Y81: -350000 | Z81: -350000 | AA81: -350000 | AB81: -350222.942 | AC81: -350023.1142 | AD81: -350000.4 | AE81: -350000.4 | AF81: -350000.4 | AG81: -350000.4 | AH81: -350000.4 | AI81: -350000.4 | AJ81: -350000.4 | AK81: -350000.4 | AL81: -350000.4 | AM81: -350000.4 | AN81: =+SUM(AN78:AN80) -> -350000.4 | AO81: -350000.4 | AP81: -350000.4 | AQ81: -350000.4 | AR81: -350000.4 | AS81: -350000.4 | AT81: -350000.4 | AU81: -350000.4 | AV81: -350000.4 | AW81: -350000.4 | AX81: -350000.4 | AY81: -350000.4 | AZ81: -350000.4 | BA81: -350000.4 | BB81: -350000.4 | BC81: -350000.4 | BD81: -350000.4 | BE81: -350000.4 | BF81: -350000.4 | BG81: -350000.4 | BH81: -350000.4 | BI81: -350000.4 | BJ81: -350000.4 | BK81: -350000.4 | BL81: -350000.4 | BM81: -350000.4 | BN81: -350000.4 | BO81: -350000.4 | BP81: -350000.4 | BQ81: -350000.4 | BR81: -2904747.852
C87: Cash Flows
C90: Global
C92: =+"Cash Flow "&C90&" - [000' EUR]" -> Cash Flow Global - [000' EUR]
C93: Year | I93: =+I$12 -> 2025 | J93: 2026 | K93: 2027 | L93: 2028 | M93: 2029 | N93: 2030 | O93: 2031 | P93: 2032 | Q93: 2033 | R93: 2034 | S93: 2035 | T93: 2036 | U93: 2037 | V93: 2038 | W93: 2039 | X93: 2040 | Y93: 2041 | Z93: 2042 | AA93: 2043 | AB93: 2044 | AC93: 2045 | AD93: 2046 | AE93: 2047 | AF93: 2048 | AG93: 2049 | AH93: 2050 | AI93: 2051 | AJ93: 2052 | AK93: 2053 | AL93: 2054 | AM93: 2055 | AN93: 2056 | AO93: =+AO$12 -> 2057 | AP93: 2058 | AQ93: 2059 | AR93: 2060 | AS93: 2061 | AT93: 2062 | AU93: 2063 | AV93: 2064 | AW93: 2065 | AX93: 2066 | AY93: 2067 | AZ93: 2068 | BA93: 2069 | BB93: 2070 | BC93: 2071 | BD93: 2072 | BE93: 2073 | BF93: 2074 | BG93: 2075 | BH93: 2076 | BI93: 2077 | BJ93: 2078 | BK93: 2079 | BL93: 2080 | BM93: 2081 | BN93: 2082 | BO93: 2083 | BP93: 2084 | BQ93: 2085
C94: Income | I94: =+SUM(I95:I97) -> 1352586.999 | J94: 1568495.771 | K94: 1774269.519 | L94: 1796635.657 | M94: 1897515.507 | N94: 1727904.015 | O94: 1999620.363 | P94: 2047787.272 | Q94: 2813944.316 | R94: 1986024.087 | S94: 1672240.033 | T94: 1496479.243 | U94: 1507451.133 | V94: 1455851.993 | W94: 1520337.302 | X94: 1479579.531 | Y94: 1424315.887 | Z94: 1272959.596 | AA94: 1276556.764 | AB94: 1176162.3 | AC94: 1174205.097 | AD94: 1143595.239 | AE94: 990319.6277 | AF94: 1004896.924 | AG94: 1057824.478 | AH94: 1115943.393 | AI94: 952588.4954 | AJ94: 787515.6324 | AK94: 809450.0163 | AL94: 840276.5137 | AM94: 872684.3896 | AN94: 846949.9631 | AO94: =+SUM(AO95:AO97) -> 715789.3706 | AP94: 560010.4324 | AQ94: 550309.7062 | AR94: 568685.8228 | AS94: 588667.2779 | AT94: 611389.2555 | AU94: 377413.5102 | AV94: 419020.2016 | AW94: 125868.7447 | AX94: 129008.2414 | AY94: 132349.5892 | AZ94: 136166.4274 | BA94: 139412.4523 | BB94: 143305.5102 | BC94: 129243.723 | BD94: 133407.7634 | BE94: 136967.7301 | BF94: 141020.1947 | BG94: 145173.1823 | BH94: 149870.2702 | BI94: 153914.3835 | BJ94: 158480.1353 | BK94: 163181.9046 | BL94: 168492.4861 | BM94: 61887.95979 | BN94: 0 | BO94: 0 | BP94: 0 | BQ94: 0
C95: Income with mitigated demand risk | I95: =+I122+I147+I172+I197+I223+I248+I273+I298+I323+I348 -> 679930.2555 | J95: 809915.0765 | K95: 1036312.905 | L95: 996739.702 | M95: 1037751.377 | N95: 872318.5105 | O95: 1072827.63 | P95: 1047871.555 | Q95: 1734176.039 | R95: 890754.4482 | S95: 690232.2303 | T95: 705914.3678 | U95: 754652.1742 | V95: 625049.7425 | W95: 641312.6804 | X95: 563770.8785 | Y95: 525211.6705 | Z95: 351769.7618 | AA95: 353982.8519 | AB95: 279654.1293 | AC95: 254312.749 | AD95: 259507.505 | AE95: 247064.7008 | AF95: 233645.2466 | AG95: 237680.3868 | AH95: 241559.8564 | AI95: 245151.256 | AJ95: 235727.3018 | AK95: 239736.6059 | AL95: 243955.5775 | AM95: 248204.8854 | AN95: 252762.0189 | AO95: =+AO122+AO147+AO172+AO197+AO223+AO248+AO273+AO298+AO323+AO348 -> 257303.5836 | AP95: 260957.4136 | AQ95: 265860.4829 | AR95: 268450.2735 | AS95: 271112.9958 | AT95: 273753.5482 | AU95: 17243.83643 | AV95: 17237.59795 | AW95: 17180.22742 | AX95: 17172.67308 | AY95: 17228.72978 | AZ95: 17345.16259 | BA95: 17451.05411 | BB95: 17762.63527 | BC95: 0 | BD95: 0 | BE95: 0 | BF95: 0 | BG95: 0 | BH95: 0 | BI95: 0 | BJ95: 0 | BK95: 0 | BL95: 0 | BM95: 0 | BN95: 0 | BO95: 0 | BP95: 0 | BQ95: 0
C96: Income with low demand risk | I96: =+I123+I148+I173+I198+I224+I249+I274+I299+I324+I349 -> 319522.0797 | J96: =+J123+J148+J173+J198+J224+J249+J274+J299+J324+J349 -> 307312.6205 | K96: 340037.4639 | L96: 373862.3746 | M96: 424723.7875 | N96: 401253.3567 | O96: 429633.933 | P96: 462368.1759 | Q96: 515409.931 | R96: 497508.1711 | S96: 363711.1722 | T96: 275314.0198 | U96: 286329.3884 | V96: 335501.8507 | W96: 352781.4353 | X96: 356140.0227 | Y96: 294854.6649 | Z96: 270089.7441 | AA96: 261315.7901 | AB96: 255104.5633 | AC96: 241281.0617 | AD96: 253009.6396 | AE96: 250160.8504 | AF96: 258792.9231 | AG96: 271146.8248 | AH96: 284570.0064 | AI96: 298368.1419 | AJ96: 305242.8186 | AK96: 313252.0328 | AL96: 328883.5419 | AM96: 345604.4924 | AN96: 363001.1151 | AO96: =+AO123+AO148+AO173+AO198+AO224+AO249+AO274+AO299+AO324+AO349 -> 341717.8958 | AP96: 178836.4729 | AQ96: 191666.4252 | AR96: 205783.1121 | AS96: 220649.1216 | AT96: 237900.9485 | AU96: 257558.1187 | AV96: 295900 | AW96: 0 | AX96: 0 | AY96: 0 | AZ96: 0 | BA96: 0 | BB96: 0 | BC96: 0 | BD96: 0 | BE96: 0 | BF96: 0 | BG96: 0 | BH96: 0 | BI96: 0 | BJ96: 0 | BK96: 0 | BL96: 0 | BM96: 0 | BN96: 0 | BO96: 0 | BP96: 0 | BQ96: 0
C97: Income with demand risk | I97: =+I124+I149+I174+I199+I225+I250+I275+I300+I325+I350 -> 353134.6634 | J97: 451268.0736 | K97: 397919.1511 | L97: 426033.5808 | M97: 435040.3426 | N97: 454332.1473 | O97: 497158.7994 | P97: 537547.5404 | Q97: 564358.3466 | R97: 597761.4677 | S97: 618296.6301 | T97: 515250.8558 | U97: 466469.57 | V97: 495300.3998 | W97: 526243.186 | X97: 559668.6296 | Y97: 604249.5517 | Z97: 651100.0906 | AA97: 661258.1225 | AB97: 641403.6073 | AC97: 678611.286 | AD97: 631078.0945 | AE97: 493094.0764 | AF97: 512458.7541 | AG97: 548997.266 | AH97: 589813.5304 | AI97: 409069.0975 | AJ97: 246545.5119 | AK97: 256461.3777 | AL97: 267437.3942 | AM97: 278875.0119 | AN97: 231186.829 | AO97: =+AO124+AO149+AO174+AO199+AO225+AO250+AO275+AO300+AO325+AO350 -> 116767.8912 | AP97: 120216.546 | AQ97: 92782.79805 | AR97: 94452.43714 | AS97: 96905.16053 | AT97: 99734.75882 | AU97: 102611.555 | AV97: 105882.6037 | AW97: 108688.5173 | AX97: 111835.5684 | AY97: 115120.8594 | AZ97: 118821.2648 | BA97: 121961.3982 | BB97: 125542.8749 | BC97: 129243.723 | BD97: 133407.7634 | BE97: 136967.7301 | BF97: 141020.1947 | BG97: 145173.1823 | BH97: 149870.2702 | BI97: 153914.3835 | BJ97: 158480.1353 | BK97: 163181.9046 | BL97: 168492.4861 | BM97: 61887.95979 | BN97: 0 | BO97: 0 | BP97: 0 | BQ97: 0
C98: Operating Costs | I98: =+I125+I150+I175+I200+I226+I251+I276+I301+I326+I351 -> -377183.0213 | J98: -413014.4811 | K98: -407246.7895 | L98: -415992.4169 | M98: -428601.1765 | N98: -437788.8901 | O98: -462192.9944 | P98: -477109.6795 | Q98: -573526.2322 | R98: -487032.4112 | S98: -442629.5378 | T98: -361434.9915 | U98: -315047.8679 | V98: -306940.6075 | W98: -278618.2125 | X98: -251008.4243 | Y98: -260034.6672 | Z98: -247186.8112 | AA98: -257511.5716 | AB98: -201519.9258 | AC98: -197535.4866 | AD98: -186767.7562 | AE98: -142771.9339 | AF98: -141604.1843 | AG98: -141691.9174 | AH98: -148817.2167 | AI98: -130300.4582 | AJ98: -116181.2226 | AK98: -107485.1385 | AL98: -121394.2486 | AM98: -124678.6146 | AN98: -123347.0258 | AO98: =+AO125+AO150+AO175+AO200+AO226+AO251+AO276+AO301+AO326+AO351 -> -103625.1646 | AP98: -82927.12577 | AQ98: -79045.40895 | AR98: -79317.26364 | AS98: -80377.62201 | AT98: -76710.82314 | AU98: -55420.92043 | AV98: -54210.66755 | AW98: -32321.47672 | AX98: -46808.19724 | AY98: -43180.72982 | AZ98: -41690.27987 | BA98: -42817.93678 | BB98: -44778.16774 | BC98: -36947.20239 | BD98: -37617.46848 | BE98: -38519.57873 | BF98: -39565.40458 | BG98: -41660.61106 | BH98: -48998.7832 | BI98: -46344.33763 | BJ98: -44293.19999 | BK98: -45607.58019 | BL98: -49704.04002 | BM98: -19008.63223 | BN98: 0 | BO98: 0 | BP98: 0 | BQ98: 0
C99: Investment & Capex | I99: =+I126+I151+I176+I201+I227+I252+I277+I302+I327+I352 -> -1123320 | J99: -1208284.482 | K99: -1126684.554 | L99: -767583.6973 | M99: -377428.8875 | N99: -310219.9698 | O99: -332793.8667 | P99: -245647.1444 | Q99: -169935.9637 | R99: -114540.2699 | S99: -109475.4783 | T99: -79922.5536 | U99: -63020.46988 | V99: -91476.92659 | W99: -100217.9649 | X99: -143912.4133 | Y99: -140410.4341 | Z99: -74121.65414 | AA99: -80071.35414 | AB99: -43051.46571 | AC99: -83576.25878 | AD99: -51918.03707 | AE99: -40256.98439 | AF99: -61431.54819 | AG99: -48856.65612 | AH99: -51972.76568 | AI99: -67229.12704 | AJ99: -16164.74032 | AK99: -15666.64626 | AL99: -18307.76852 | AM99: -20217.64505 | AN99: -26925.55682 | AO99: =+AO126+AO151+AO176+AO201+AO227+AO252+AO277+AO302+AO327+AO352 -> -16559.37399 | AP99: -14768.75746 | AQ99: -16899.26984 | AR99: -32340.66395 | AS99: -34133.83636 | AT99: -14020.80118 | AU99: -2680.509089 | AV99: -3159.675491 | AW99: -230.1014427 | AX99: -281.4229586 | AY99: -313.6579362 | AZ99: -231.3071003 | BA99: -160.5564776 | BB99: -176.1717825 | BC99: 0 | BD99: 0 | BE99: 0 | BF99: 0 | BG99: 0 | BH99: 0 | BI99: 0 | BJ99: 0 | BK99: 0 | BL99: 0 | BM99: 0 | BN99: 0 | BO99: 0 | BP99: 0 | BQ99: 0
C100: Into / Out Operating Reserve Accounts | I100: =+I127+I152+I177+I202+I228+I253+I278+I303+I328+I353 -> 4458.040537 | J100: -11089.41608 | K100: 903.23013 | L100: -33750.1778 | M100: -30410.22941 | N100: -7407.790167 | O100: -12525.7788 | P100: -2753.398758 | Q100: 23389.67346 | R100: 52307.95856 | S100: 56911.57863 | T100: 13443.2622 | U100: -22815.78261 | V100: 6412.474627 | W100: -19712.48052 | X100: 45893.08058 | Y100: 51651.70425 | Z100: 4846.001013 | AA100: 52248.70885 | AB100: -15102.35155 | AC100: 54373.28322 | AD100: 13262.93731 | AE100: -93.42569018 | AF100: 13638.5724 | AG100: -386.2919376 | AH100: -3355.261716 | AI100: 13645.34413 | AJ100: 449.8660681 | AK100: 1165.410456 | AL100: 5926.358129 | AM100: 0 | AN100: 0 | AO100: =+AO127+AO152+AO177+AO202+AO228+AO253+AO278+AO303+AO328+AO353 -> 0 | AP100: 0 | AQ100: 0 | AR100: 0 | AS100: 0 | AT100: 0 | AU100: 0 | AV100: 0 | AW100: 0 | AX100: 0 | AY100: 0 | AZ100: 0 | BA100: 0 | BB100: 0 | BC100: 0 | BD100: 0 | BE100: 0 | BF100: 0 | BG100: 0 | BH100: 0 | BI100: 0 | BJ100: 0 | BK100: 0 | BL100: 0 | BM100: 0 | BN100: 0 | BO100: 0 | BP100: 0 | BQ100: 0
C101: Operating Cash Flow | I101: =+I94+I98+I99+I100 -> -143457.9819 | J101: -63892.60859 | K101: 241241.4059 | L101: 579309.3653 | M101: 1061075.213 | N101: 972487.3645 | O101: 1192107.723 | P101: 1322277.049 | Q101: 2093871.794 | R101: 1436759.365 | S101: 1177046.595 | T101: 1068564.96 | U101: 1106567.012 | V101: 1063846.933 | W101: 1121788.644 | X101: 1130551.774 | Y101: 1075522.49 | Z101: 956497.1322 | AA101: 991222.5476 | AB101: 916488.5569 | AC101: 947466.6346 | AD101: 918172.383 | AE101: 807197.2837 | AF101: 815499.7637 | AG101: 866889.6121 | AH101: 911798.1491 | AI101: 768704.2542 | AJ101: 655619.5355 | AK101: 687463.642 | AL101: 706500.8547 | AM101: 727788.13 | AN101: 696677.3804 | AO101: =+AO94+AO98+AO99+AO100 -> 595604.832 | AP101: 462314.5491 | AQ101: 454365.0274 | AR101: 457027.8952 | AS101: 474155.8196 | AT101: 520657.6312 | AU101: 319312.0807 | AV101: 361649.8586 | AW101: 93317.16656 | AX101: 81918.62125 | AY101: 88855.2014 | AZ101: 94244.84041 | BA101: 96433.95909 | BB101: 98351.17068 | BC101: 92296.52061 | BD101: 95790.29493 | BE101: 98448.15136 | BF101: 101454.7901 | BG101: 103512.5712 | BH101: 100871.487 | BI101: 107570.0459 | BJ101: 114186.9353 | BK101: 117574.3244 | BL101: 118788.4461 | BM101: 42879.32756 | BN101: 0 | BO101: 0 | BP101: 0 | BQ101: 0
C102: Taxes | I102: =+I129+I154+I179+I204+I230+I255+I280+I305+I330+I355 -> -15890.79794 | J102: -76593.95696 | K102: -68028.7847 | L102: -35275.34311 | M102: -122446.6172 | N102: -56828.96375 | O102: -78820.68892 | P102: -89339.79809 | Q102: -164843.3392 | R102: -120761.8716 | S102: -94608.67127 | T102: -159918.1918 | U102: -125053.2903 | V102: -115357.3293 | W102: -177925.2449 | X102: -228213.783 | Y102: -225064.765 | Z102: -189892.5215 | AA102: -187574.2894 | AB102: -213987.7168 | AC102: -218650.5952 | AD102: -199860.0227 | AE102: -181714.5807 | AF102: -189893.4611 | AG102: -207669.1413 | AH102: -226760.06 | AI102: -177083.5826 | AJ102: -149454.936 | AK102: -165391.0327 | AL102: -173945.348 | AM102: -180163.9716 | AN102: -181492.5983 | AO102: =+AO129+AO154+AO179+AO204+AO230+AO255+AO280+AO305+AO330+AO355 -> -197894.3754 | AP102: -103862.8669 | AQ102: -107070.2153 | AR102: -109677.0622 | AS102: -109018.7182 | AT102: -106011.9276 | AU102: -77053.00778 | AV102: -146877.9178 | AW102: -21582.16203 | AX102: -21856.96464 | AY102: -20412.99929 | AZ102: -22472.51197 | BA102: -23541.07577 | BB102: -24087.64364 | BC102: -24638.53459 | BD102: -25495.97186 | BE102: -26335.66278 | BF102: -27049.34795 | BG102: -27760.97837 | BH102: -27901.25266 | BI102: -27774.19588 | BJ102: -29845.04206 | BK102: -31189.59081 | BL102: -31896.344 | BM102: -31116.00191 | BN102: 0 | BO102: 0 | BP102: -4.197743846e-05 | BQ102: 0
C103: Operating Cash Flow After Tax | I103: =+I101+I102 -> -159348.7799 | J103: -140486.5655 | K103: 173212.6212 | L103: 544034.0222 | M103: 938628.5961 | N103: 915658.4008 | O103: 1113287.034 | P103: 1232937.251 | Q103: 1929028.455 | R103: 1315997.493 | S103: 1082437.924 | T103: 908646.7685 | U103: 981513.7219 | V103: 948489.6041 | W103: 943863.3988 | X103: 902337.9907 | Y103: 850457.725 | Z103: 766604.6107 | AA103: 803648.2582 | AB103: 702500.8401 | AC103: 728816.0393 | AD103: 718312.3602 | AE103: 625482.703 | AF103: 625606.3026 | AG103: 659220.4708 | AH103: 685038.0891 | AI103: 591620.6716 | AJ103: 506164.5995 | AK103: 522072.6093 | AL103: 532555.5067 | AM103: 547624.1584 | AN103: 515184.7822 | AO103: =+AO101+AO102 -> 397710.4566 | AP103: 358451.6823 | AQ103: 347294.8121 | AR103: 347350.833 | AS103: 365137.1014 | AT103: 414645.7037 | AU103: 242259.0729 | AV103: 214771.9408 | AW103: 71735.00453 | AX103: 60061.65661 | AY103: 68442.20211 | AZ103: 71772.32843 | BA103: 72892.88332 | BB103: 74263.52704 | BC103: 67657.98602 | BD103: 70294.32306 | BE103: 72112.48858 | BF103: 74405.44213 | BG103: 75751.59285 | BH103: 72970.23439 | BI103: 79795.85002 | BJ103: 84341.89323 | BK103: 86384.73361 | BL103: 86892.10212 | BM103: 11763.32565 | BN103: 0 | BO103: 0 | BP103: -4.197743846e-05 | BQ103: 0
C104: Debt Service | I104: =+I131+I156+I181+I206+I232+I257+I282+I307+I332+I357 -> 586703.0265 | J104: 720610.948 | K104: 456710.3435 | L104: 306565.6977 | M104: -372516.8848 | N104: -318349.7936 | O104: -417839.4001 | P104: -372198.2159 | Q104: -1019288.772 | R104: -589291.4888 | S104: -312552.4665 | T104: -394201.636 | U104: -443547.887 | V104: -376714.7006 | W104: -411954.7418 | X104: -420074.4428 | Y104: -386886.0517 | Z104: -192492.8131 | AA104: -240720.1672 | AB104: -245124.8626 | AC104: -217601.0917 | AD104: -204897.7696 | AE104: -204935.6896 | AF104: -189104.446 | AG104: -167247.8912 | AH104: -171009.4978 | AI104: -185834.0765 | AJ104: -144515.2068 | AK104: -64450.39013 | AL104: -31324.01463 | AM104: -18153.61556 | AN104: -23625.88114 | AO104: =+AO131+AO156+AO181+AO206+AO232+AO257+AO282+AO307+AO332+AO357 -> -26567.13323 | AP104: -28329.97179 | AQ104: -31002.26854 | AR104: -33183.46949 | AS104: -36159.45926 | AT104: -39991.77463 | AU104: -43488.98885 | AV104: -47820.71508 | AW104: -50987.51274 | AX104: -16886.66201 | AY104: -7618.463176 | AZ104: -4342.59913 | BA104: -1.656132222 | BB104: -0.4099823156 | BC104: -3.000518043e-12 | BD104: -3.001214323e-12 | BE104: -3.000518043e-12 | BF104: -3.000518043e-12 | BG104: -3.000518043e-12 | BH104: -3.001214323e-12 | BI104: -3.000518043e-12 | BJ104: -3.000518043e-12 | BK104: -3.000518043e-12 | BL104: -3.001214323e-12 | BM104: -3.000518043e-12 | BN104: -3.000518043e-12 | BO104: -3.000518043e-12 | BP104: -3.001214323e-12 | BQ104: -3.000518043e-12
C105: Interest income | I105: =+I132+I157+I182+I207+I233+I258+I283+I308+I333+I358 -> -386814.2419 | J105: -476808.7395 | K105: -405977.4409 | L105: -422036.9527 | M105: -408969.9891 | N105: -390894.1656 | O105: -368115.9671 | P105: -337497.5261 | Q105: -337635.9229 | R105: -304340.6514 | S105: -284385.1155 | T105: -269916.1154 | U105: -248428.6175 | V105: -225485.5947 | W105: -202153.1228 | X105: -177014.2432 | Y105: -149551.8793 | Z105: -135160.5258 | AA105: -124192.9929 | AB105: -107446.5984 | AC105: -94722.49509 | AD105: -83901.0971 | AE105: -73963.79385 | AF105: -64204.15724 | AG105: -54747.34869 | AH105: -47044.82204 | AI105: -38514.07115 | AJ105: -29884.60966 | AK105: -25205.71719 | AL105: -22726.06107 | AM105: -21091.8762 | AN105: -19991.21332 | AO105: =+AO132+AO157+AO182+AO207+AO233+AO258+AO283+AO308+AO333+AO358 -> -18820.2353 | AP105: -17513.97889 | AQ105: -16110.23602 | AR105: -14562.77569 | AS105: -12737.25055 | AT105: -10875.67922 | AU105: -8824.985731 | AV105: -6570.051678 | AW105: -4022.791974 | AX105: -1175.580353 | AY105: -287.4749863 | AZ105: -65.99142134 | BA105: -1.354787274 | BB105: -1.476254289 | BC105: 0 | BD105: 0 | BE105: 0 | BF105: 0 | BG105: 0 | BH105: 0 | BI105: 0 | BJ105: 0 | BK105: 0 | BL105: 0 | BM105: 0 | BN105: 0 | BO105: 0 | BP105: 0 | BQ105: 0
C106: Free Cash Flow To Equity | I106: =+I103+I104+I105 -> 40540.00475 | J106: 103315.643 | K106: 223945.5238 | L106: 428562.7672 | M106: 157141.7222 | N106: 206414.4416 | O106: 327331.6667 | P106: 523241.5089 | Q106: 572103.7593 | R106: 422365.3528 | S106: 485500.3418 | T106: 244529.0171 | U106: 289537.2174 | V106: 346289.3088 | W106: 329755.5342 | X106: 305249.3047 | Y106: 314019.794 | Z106: 438951.2718 | AA106: 438735.0981 | AB106: 349929.3791 | AC106: 416492.4525 | AD106: 429513.4936 | AE106: 346583.2195 | AF106: 372297.6994 | AG106: 437225.2309 | AH106: 466983.7692 | AI106: 367272.5239 | AJ106: 331764.7831 | AK106: 432416.502 | AL106: 478505.431 | AM106: 508378.6667 | AN106: 471567.6877 | AO106: =+AO103+AO104+AO105 -> 352323.0881 | AP106: 312607.7316 | AQ106: 300182.3075 | AR106: 299604.5878 | AS106: 316240.3916 | AT106: 363778.2498 | AU106: 189945.0983 | AV106: 160381.174 | AW106: 16724.69982 | AX106: 41999.41425 | AY106: 60536.26395 | AZ106: 67363.73788 | BA106: 72889.8724 | BB106: 74261.6408 | BC106: 67657.98602 | BD106: 70294.32306 | BE106: 72112.48858 | BF106: 74405.44213 | BG106: 75751.59285 | BH106: 72970.23439 | BI106: 79795.85002 | BJ106: 84341.89323 | BK106: 86384.73361 | BL106: 86892.10212 | BM106: 11763.32565 | BN106: -3.000518043e-12 | BO106: -3.000518043e-12 | BP106: -4.197744147e-05 | BQ106: -3.000518043e-12
C107: Distributions to Shareholders | I107: =+I134+I159+I184+I209+I235+I260+I285+I310+I335+I360 -> -191203.6841 | J107: -242041.0362 | K107: -386103.495 | L107: -405657.6354 | M107: -374253.7599 | N107: -333336.5805 | O107: -402491.7212 | P107: -465381.8954 | Q107: -492918.9034 | R107: -514791.3313 | S107: -447816.7669 | T107: -328524.9626 | U107: -246527.574 | V107: -330192.8924 | W107: -322247.2403 | X107: -360232.5023 | Y107: -355394.1655 | Z107: -440481.6829 | AA107: -408708.5586 | AB107: -367412.9647 | AC107: -435984.8844 | AD107: -414679.1945 | AE107: -361010.9069 | AF107: -370325.6307 | AG107: -421665.4472 | AH107: -433134.2631 | AI107: -411954.6138 | AJ107: -323917.935 | AK107: -416915.8858 | AL107: -480174.6418 | AM107: -502625.3673 | AN107: -466881.961 | AO107: =+AO134+AO159+AO184+AO209+AO235+AO260+AO285+AO310+AO335+AO360 -> -348845.8 | AP107: -306813.6593 | AQ107: -303447.6038 | AR107: -338320.8206 | AS107: -315288.1018 | AT107: -364114.6658 | AU107: -189341.6418 | AV107: -160700.7971 | AW107: -16377.70607 | AX107: -64735.54094 | AY107: -60536.26395 | AZ107: -67363.73788 | BA107: -72889.8724 | BB107: -74261.6408 | BC107: -67657.98602 | BD107: -70294.32306 | BE107: -72112.48858 | BF107: -74405.44213 | BG107: -75751.59285 | BH107: -72970.23439 | BI107: -79795.85002 | BJ107: -84341.89323 | BK107: -86384.73361 | BL107: -86892.10212 | BM107: -11613.22574 | BN107: 0 | BO107: -150.0999106 | BP107: 0 | BQ107: 0
C108: Equity | I108: =+I135+I160+I185+I210+I236+I261+I286+I311+I336+I361 -> 286875.1239 | J108: 139205.8721 | K108: 98822.4327 | L108: 72140.81358 | M108: 30650.50598 | N108: 52436.61062 | O108: 77835.89772 | P108: 0.35660154 | Q108: 0 | R108: 0 | S108: 0 | T108: 0 | U108: -3.085569028e-12 | V108: 0 | W108: 0 | X108: 0 | Y108: 0 | Z108: 0 | AA108: 0 | AB108: 0 | AC108: 0 | AD108: 0 | AE108: 0 | AF108: 0 | AG108: 0 | AH108: 0 | AI108: 0 | AJ108: 0 | AK108: 0 | AL108: 0 | AM108: 0 | AN108: 0 | AO108: =+AO135+AO160+AO185+AO210+AO236+AO261+AO286+AO311+AO336+AO361 -> 0 | AP108: 0 | AQ108: 0 | AR108: 0 | AS108: 0 | AT108: 0 | AU108: 0 | AV108: 0 | AW108: 0 | AX108: 0 | AY108: 0 | AZ108: 0 | BA108: 0 | BB108: 0 | BC108: 0 | BD108: 0 | BE108: 0 | BF108: =+BF135+BF160+BF185+BF210+BF236+BF261+BF286+BF311+BF336+BF361 -> 0 | BG108: 0 | BH108: 0 | BI108: 0 | BJ108: 0 | BK108: 0 | BL108: 0 | BM108: 0 | BN108: 0 | BO108: 0 | BP108: 4.197743846e-05 | BQ108: 0
C109: Other | I109: =+I211 -> 0 | J109: 0 | K109: 0 | L109: 0 | M109: 0 | N109: 0 | O109: 0 | P109: 0 | Q109: -545.3398338 | R109: -1141.131473 | S109: -1161.574869 | T109: -1085.466058 | U109: -1142.098906 | V109: -1168.821902 | W109: -1185.649125 | X109: -1208.034143 | Y109: -1212.529433 | Z109: -1233.155582 | AA109: -1249.467051 | AB109: -1278.697659 | AC109: -1322.013853 | AD109: -1360.679498 | AE109: -1657.133665 | AF109: -1334.708682 | AG109: -1346.432841 | AH109: -1360.681013 | AI109: -1360.029042 | AJ109: -3899.475464 | AK109: -8230.293899 | AL109: 0 | AM109: 0 | AN109: 0 | AO109: =+AO211 -> 0 | AP109: 0 | AQ109: 0 | AR109: 0 | AS109: 0 | AT109: 0 | AU109: 0 | AV109: 0 | AW109: 0 | AX109: 0 | AY109: 0 | AZ109: 0 | BA109: 0 | BB109: 0 | BC109: 0 | BD109: 0 | BE109: 0 | BF109: 0 | BG109: 0 | BH109: 0 | BI109: 0 | BJ109: 0 | BK109: 0 | BL109: 0 | BM109: 0 | BN109: 0 | BO109: 0 | BP109: 0 | BQ109: 0
C110: Net Cash Flow | I110: =+I106+I107+I108+I109 -> 136211.4445 | J110: 480.4788521 | K110: -63335.53845 | L110: 95045.94537 | M110: -186461.5317 | N110: -74485.52827 | O110: 2675.843272 | P110: 57859.97017 | Q110: 78639.51609 | R110: -93567.11 | S110: 36522.00011 | T110: -85081.41157 | U110: 41867.54453 | V110: 14927.59446 | W110: 6322.644821 | X110: -56191.23168 | Y110: -42586.90098 | Z110: -2763.566703 | AA110: 28777.07249 | AB110: -18762.28323 | AC110: -20814.44572 | AD110: 13473.61956 | AE110: -16084.82098 | AF110: 637.3600429 | AG110: 14213.35089 | AH110: 32488.82509 | AI110: -46042.11888 | AJ110: 3947.372619 | AK110: 7270.322314 | AL110: -1669.210804 | AM110: 5753.299386 | AN110: 4685.72669 | AO110: =+AO106+AO107+AO108+AO109 -> 3477.288021 | AP110: 5794.072236 | AQ110: -3265.296315 | AR110: -38716.23277 | AS110: 952.2897914 | AT110: -336.4160305 | AU110: 603.4565078 | AV110: -319.6230758 | AW110: 346.9937466 | AX110: -22736.12669 | AY110: 0 | AZ110: 1.455191523e-11 | BA110: -2.910383046e-11 | BB110: -5.820766091e-11 | BC110: 0 | BD110: 4.365574569e-11 | BE110: -2.910383046e-11 | BF110: 0 | BG110: 1.455191523e-11 | BH110: 1.455191523e-11 | BI110: 8.731149137e-11 | BJ110: 7.275957614e-11 | BK110: 1.455191523e-11 | BL110: 0 | BM110: 150.0999106 | BN110: -3.000518043e-12 | BO110: -150.0999106 | BP110: -3.001214322e-12 | BQ110: -3.000518043e-12
C111: Cash EoP | H111: =+H137+H162+H187+H213+H238+H263+H288+H313+H338+H363 -> 197030.8303 | I111: 333242.2748 | J111: 333722.7537 | K111: 270387.2152 | L111: 365433.1606 | M111: 178971.6288 | N111: 104486.1006 | O111: 107161.9438 | P111: 165021.914 | Q111: 243661.4301 | R111: 150094.3201 | S111: 186616.3202 | T111: 101534.9086 | U111: 143402.4532 | V111: 158330.0476 | W111: 164652.6924 | X111: 108461.4608 | Y111: 65874.55978 | Z111: 63110.99307 | AA111: 91888.06556 | AB111: 73125.78234 | AC111: 52311.33662 | AD111: 65784.95618 | AE111: 49700.1352 | AF111: 50337.49524 | AG111: 64550.84613 | AH111: 97039.67123 | AI111: 50997.55234 | AJ111: 54944.92496 | AK111: 62215.24727 | AL111: 60546.03647 | AM111: 66299.33586 | AN111: =+AN137+AN162+AN187+AN213+AN238+AN263+AN288+AN313+AN338+AN363 -> 70985.06255 | AO111: 74462.35057 | AP111: 80256.4228 | AQ111: 76991.12649 | AR111: 38274.89372 | AS111: 39227.18351 | AT111: 38890.76748 | AU111: 39494.22399 | AV111: 39174.60091 | AW111: 39521.59466 | AX111: 16785.46796 | AY111: 16785.46796 | AZ111: 16785.46796 | BA111: 16785.46796 | BB111: 16785.46796 | BC111: 16785.46796 | BD111: 16785.46796 | BE111: 16785.46796 | BF111: 16785.46796 | BG111: 16785.46796 | BH111: 16785.46796 | BI111: 16785.46796 | BJ111: 16785.46796 | BK111: 16785.46796 | BL111: 16785.46796 | BM111: 16935.56787 | BN111: 16935.56787 | BO111: 16785.46796 | BP111: 16785.46796 | BQ111: 16785.46796
A117: 1 | C117: Spain
C119: =+"Cash Flow "&C117&" - [000' EUR]" -> Cash Flow Spain - [000' EUR]
C120: Year | I120: =+I$12 -> 2025 | J120: 2026 | K120: 2027 | L120: 2028 | M120: 2029 | N120: 2030 | O120: 2031 | P120: 2032 | Q120: 2033 | R120: 2034 | S120: 2035 | T120: 2036 | U120: 2037 | V120: 2038 | W120: 2039 | X120: 2040 | Y120: 2041 | Z120: 2042 | AA120: 2043 | AB120: 2044 | AC120: 2045 | AD120: 2046 | AE120: 2047 | AF120: 2048 | AG120: 2049 | AH120: 2050 | AI120: 2051 | AJ120: 2052 | AK120: 2053 | AL120: 2054 | AM120: 2055 | AN120: 2056 | AO120: =+AO$12 -> 2057 | AP120: 2058 | AQ120: 2059 | AR120: 2060 | AS120: 2061 | AT120: 2062 | AU120: 2063 | AV120: 2064 | AW120: 2065 | AX120: 2066 | AY120: 2067 | AZ120: 2068 | BA120: 2069 | BB120: 2070 | BC120: 2071 | BD120: 2072 | BE120: 2073 | BF120: 2074 | BG120: 2075 | BH120: 2076 | BI120: 2077 | BJ120: 2078 | BK120: 2079 | BL120: 2080 | BM120: 2081 | BN120: 2082 | BO120: 2083 | BP120: 2084 | BQ120: 2085
C121: Income | I121: =+I122+I123+I124 -> 68210.28703 | J121: 73925.98597 | K121: 60418.76817 | L121: 60470.96218 | M121: 65249.40837 | N121: 67048.05858 | O121: 69478.11037 | P121: 70104.2946 | Q121: 74458.69234 | R121: 76178.93656 | S121: 66696.90478 | T121: 32800.20243 | U121: 30156.72334 | V121: 33362.58365 | W121: 35988.98216 | X121: 37493.38761 | Y121: 50037.48835 | Z121: 62050.2154 | AA121: 38374.11311 | AB121: 15298.44194 | AC121: 15662.28557 | AD121: 16034.90869 | AE121: 16416.52669 | AF121: 16807.36036 | AG121: 16941.6304 | AH121: 16906.435 | AI121: 6378.677448 | AJ121: 1183.217216 | AK121: 1218.095172 | AL121: 1254.059782 | AM121: 1291.145675 | AN121: 341.4276723 | AO121: 0 | AP121: 0 | AQ121: 0 | AR121: 0 | AS121: 0 | AT121: 0 | AU121: 0 | AV121: 0 | AW121: 0 | AX121: 0 | AY121: 0 | AZ121: =+AZ122+AZ123+AZ124 -> 0 | BA121: 0 | BB121: 0 | BC121: 0 | BD121: 0 | BE121: 0 | BF121: 0 | BG121: 0 | BH121: 0 | BI121: 0 | BJ121: 0 | BK121: 0 | BL121: 0 | BM121: 0 | BN121: 0 | BO121: 0 | BP121: 0 | BQ121: 0
C122: Income with mitigated demand risk | I122: =+'INPUT DATA'!K27 -> 27223.12215 | J122: =+'INPUT DATA'!L27 -> 27865.27817 | K122: =+'INPUT DATA'!M27 -> 21295.02986 | L122: =+'INPUT DATA'!N27 -> 21691.32933 | M122: =+'INPUT DATA'!O27 -> 22104.64839 | N122: =+'INPUT DATA'!P27 -> 22551.25029 | O122: =+'INPUT DATA'!Q27 -> 23009.15291 | P122: =+'INPUT DATA'!R27 -> 23476.45929 | Q122: =+'INPUT DATA'!S27 -> 23978.1653 | R122: =+'INPUT DATA'!T27 -> 24443.72104 | S122: =+'INPUT DATA'!U27 -> 13628.76804 | T122: =+'INPUT DATA'!V27 -> 0 | U122: =+'INPUT DATA'!W27 -> 0 | V122: =+'INPUT DATA'!X27 -> 0 | W122: =+'INPUT DATA'!Y27 -> 0 | X122: =+'INPUT DATA'!Z27 -> 0 | Y122: =+'INPUT DATA'!AA27 -> 0 | Z122: =+'INPUT DATA'!AB27 -> 0 | AA122: =+'INPUT DATA'!AC27 -> 0 | AB122: =+'INPUT DATA'!AD27 -> 0 | AC122: =+'INPUT DATA'!AE27 -> 0 | AD122: =+'INPUT DATA'!AF27 -> 0 | AE122: =+'INPUT DATA'!AG27 -> 0 | AF122: =+'INPUT DATA'!AH27 -> 0 | AG122: =+'INPUT DATA'!AI27 -> 0 | AH122: =+'INPUT DATA'!AJ27 -> 0 | AI122: =+'INPUT DATA'!AK27 -> 0 | AJ122: =+'INPUT DATA'!AL27 -> 0 | AK122: =+'INPUT DATA'!AM27 -> 0 | AL122: =+'INPUT DATA'!AN27 -> 0 | AM122: =+'INPUT DATA'!AO27 -> 0 | AN122: =+'INPUT DATA'!AP27 -> 0 | AO122: =+'INPUT DATA'!AQ27 -> 0 | AP122: =+'INPUT DATA'!AR27 -> 0 | AQ122: =+'INPUT DATA'!AS27 -> 0 | AR122: =+'INPUT DATA'!AT27 -> 0 | AS122: =+'INPUT DATA'!AU27 -> 0 | AT122: =+'INPUT DATA'!AV27 -> 0 | AU122: =+'INPUT DATA'!AW27 -> 0 | AV122: =+'INPUT DATA'!AX27 -> 0 | AW122: =+'INPUT DATA'!AY27 -> 0 | AX122: =+'INPUT DATA'!AZ27 -> 0 | AY122: =+'INPUT DATA'!BA27 -> 0 | AZ122: =+'INPUT DATA'!BB27 -> 0 | BA122: =+'INPUT DATA'!BC27 -> 0 | BB122: =+'INPUT DATA'!BD27 -> 0 | BC122: =+'INPUT DATA'!BE27 -> 0 | BD122: =+'INPUT DATA'!BF27 -> 0 | BE122: =+'INPUT DATA'!BG27 -> 0 | BF122: =+'INPUT DATA'!BH27 -> 0 | BG122: =+'INPUT DATA'!BI27 -> 0 | BH122: =+'INPUT DATA'!BJ27 -> 0 | BI122: =+'INPUT DATA'!BK27 -> 0 | BJ122: =+'INPUT DATA'!BL27 -> 0 | BK122: =+'INPUT DATA'!BM27 -> 0 | BL122: =+'INPUT DATA'!BN27 -> 0 | BM122: =+'INPUT DATA'!BO27 -> 0 | BN122: =+'INPUT DATA'!BP27 -> 0 | BO122: =+'INPUT DATA'!BQ27 -> 0 | BP122: =+'INPUT DATA'!BR27 -> 0 | BQ122: =+'INPUT DATA'!BS27 -> 0
C123: Income with low demand risk | I123: =+'INPUT DATA'!K28 -> 49.65710859 | J123: =+'INPUT DATA'!L28 -> 34.91007329 | K123: =+'INPUT DATA'!M28 -> 0 | L123: =+'INPUT DATA'!N28 -> 0 | M123: =+'INPUT DATA'!O28 -> 0 | N123: =+'INPUT DATA'!P28 -> 0 | O123: =+'INPUT DATA'!Q28 -> 0 | P123: =+'INPUT DATA'!R28 -> 0 | Q123: =+'INPUT DATA'!S28 -> 0 | R123: =+'INPUT DATA'!T28 -> 0 | S123: =+'INPUT DATA'!U28 -> 0 | T123: =+'INPUT DATA'!V28 -> 0 | U123: =+'INPUT DATA'!W28 -> 0 | V123: =+'INPUT DATA'!X28 -> 0 | W123: =+'INPUT DATA'!Y28 -> 0 | X123: =+'INPUT DATA'!Z28 -> 0 | Y123: =+'INPUT DATA'!AA28 -> 0 | Z123: =+'INPUT DATA'!AB28 -> 0 | AA123: =+'INPUT DATA'!AC28 -> 0 | AB123: =+'INPUT DATA'!AD28 -> 0 | AC123: =+'INPUT DATA'!AE28 -> 0 | AD123: =+'INPUT DATA'!AF28 -> 0 | AE123: =+'INPUT DATA'!AG28 -> 0 | AF123: =+'INPUT DATA'!AH28 -> 0 | AG123: =+'INPUT DATA'!AI28 -> 0 | AH123: =+'INPUT DATA'!AJ28 -> 0 | AI123: =+'INPUT DATA'!AK28 -> 0 | AJ123: =+'INPUT DATA'!AL28 -> 0 | AK123: =+'INPUT DATA'!AM28 -> 0 | AL123: =+'INPUT DATA'!AN28 -> 0 | AM123: =+'INPUT DATA'!AO28 -> 0 | AN123: =+'INPUT DATA'!AP28 -> 0 | AO123: =+'INPUT DATA'!AQ28 -> 0 | AP123: =+'INPUT DATA'!AR28 -> 0 | AQ123: =+'INPUT DATA'!AS28 -> 0 | AR123: =+'INPUT DATA'!AT28 -> 0 | AS123: =+'INPUT DATA'!AU28 -> 0 | AT123: =+'INPUT DATA'!AV28 -> 0 | AU123: =+'INPUT DATA'!AW28 -> 0 | AV123: =+'INPUT DATA'!AX28 -> 0 | AW123: =+'INPUT DATA'!AY28 -> 0 | AX123: =+'INPUT DATA'!AZ28 -> 0 | AY123: =+'INPUT DATA'!BA28 -> 0 | AZ123: =+'INPUT DATA'!BB28 -> 0 | BA123: =+'INPUT DATA'!BC28 -> 0 | BB123: =+'INPUT DATA'!BD28 -> 0 | BC123: =+'INPUT DATA'!BE28 -> 0 | BD123: =+'INPUT DATA'!BF28 -> 0 | BE123: =+'INPUT DATA'!BG28 -> 0 | BF123: =+'INPUT DATA'!BH28 -> 0 | BG123: =+'INPUT DATA'!BI28 -> 0 | BH123: =+'INPUT DATA'!BJ28 -> 0 | BI123: =+'INPUT DATA'!BK28 -> 0 | BJ123: =+'INPUT DATA'!BL28 -> 0 | BK123: =+'INPUT DATA'!BM28 -> 0 | BL123: =+'INPUT DATA'!BN28 -> 0 | BM123: =+'INPUT DATA'!BO28 -> 0 | BN123: =+'INPUT DATA'!BP28 -> 0 | BO123: =+'INPUT DATA'!BQ28 -> 0 | BP123: =+'INPUT DATA'!BR28 -> 0 | BQ123: =+'INPUT DATA'!BS28 -> 0
C124: Income with demand risk | I124: =+'INPUT DATA'!K29 -> 40937.50777 | J124: =+'INPUT DATA'!L29 -> 46025.79772 | K124: =+'INPUT DATA'!M29 -> 39123.73831 | L124: =+'INPUT DATA'!N29 -> 38779.63285 | M124: =+'INPUT DATA'!O29 -> 43144.75998 | N124: =+'INPUT DATA'!P29 -> 44496.80829 | O124: =+'INPUT DATA'!Q29 -> 46468.95746 | P124: =+'INPUT DATA'!R29 -> 46627.83531 | Q124: =+'INPUT DATA'!S29 -> 50480.52705 | R124: =+'INPUT DATA'!T29 -> 51735.21552 | S124: =+'INPUT DATA'!U29 -> 53068.13674 | T124: =+'INPUT DATA'!V29 -> 32800.20243 | U124: =+'INPUT DATA'!W29 -> 30156.72334 | V124: =+'INPUT DATA'!X29 -> 33362.58365 | W124: =+'INPUT DATA'!Y29 -> 35988.98216 | X124: =+'INPUT DATA'!Z29 -> 37493.38761 | Y124: =+'INPUT DATA'!AA29 -> 50037.48835 | Z124: =+'INPUT DATA'!AB29 -> 62050.2154 | AA124: =+'INPUT DATA'!AC29 -> 38374.11311 | AB124: =+'INPUT DATA'!AD29 -> 15298.44194 | AC124: =+'INPUT DATA'!AE29 -> 15662.28557 | AD124: =+'INPUT DATA'!AF29 -> 16034.90869 | AE124: =+'INPUT DATA'!AG29 -> 16416.52669 | AF124: =+'INPUT DATA'!AH29 -> 16807.36036 | AG124: =+'INPUT DATA'!AI29 -> 16941.6304 | AH124: =+'INPUT DATA'!AJ29 -> 16906.435 | AI124: =+'INPUT DATA'!AK29 -> 6378.677448 | AJ124: =+'INPUT DATA'!AL29 -> 1183.217216 | AK124: =+'INPUT DATA'!AM29 -> 1218.095172 | AL124: =+'INPUT DATA'!AN29 -> 1254.059782 | AM124: =+'INPUT DATA'!AO29 -> 1291.145675 | AN124: =+'INPUT DATA'!AP29 -> 341.4276723 | AO124: =+'INPUT DATA'!AQ29 -> 0 | AP124: =+'INPUT DATA'!AR29 -> 0 | AQ124: =+'INPUT DATA'!AS29 -> 0 | AR124: =+'INPUT DATA'!AT29 -> 0 | AS124: =+'INPUT DATA'!AU29 -> 0 | AT124: =+'INPUT DATA'!AV29 -> 0 | AU124: =+'INPUT DATA'!AW29 -> 0 | AV124: =+'INPUT DATA'!AX29 -> 0 | AW124: =+'INPUT DATA'!AY29 -> 0 | AX124: =+'INPUT DATA'!AZ29 -> 0 | AY124: =+'INPUT DATA'!BA29 -> 0 | AZ124: =+'INPUT DATA'!BB29 -> 0 | BA124: =+'INPUT DATA'!BC29 -> 0 | BB124: =+'INPUT DATA'!BD29 -> 0 | BC124: =+'INPUT DATA'!BE29 -> 0 | BD124: =+'INPUT DATA'!BF29 -> 0 | BE124: =+'INPUT DATA'!BG29 -> 0 | BF124: =+'INPUT DATA'!BH29 -> 0 | BG124: =+'INPUT DATA'!BI29 -> 0 | BH124: =+'INPUT DATA'!BJ29 -> 0 | BI124: =+'INPUT DATA'!BK29 -> 0 | BJ124: =+'INPUT DATA'!BL29 -> 0 | BK124: =+'INPUT DATA'!BM29 -> 0 | BL124: =+'INPUT DATA'!BN29 -> 0 | BM124: =+'INPUT DATA'!BO29 -> 0 | BN124: =+'INPUT DATA'!BP29 -> 0 | BO124: =+'INPUT DATA'!BQ29 -> 0 | BP124: =+'INPUT DATA'!BR29 -> 0 | BQ124: =+'INPUT DATA'!BS29 -> 0
C125: Operating Costs | I125: =+'INPUT DATA'!K30 -> -19188.39919 | J125: =+'INPUT DATA'!L30 -> -19675.21407 | K125: =+'INPUT DATA'!M30 -> -19286.98508 | L125: =+'INPUT DATA'!N30 -> -19467.88676 | M125: =+'INPUT DATA'!O30 -> -19804.62127 | N125: =+'INPUT DATA'!P30 -> -20264.26751 | O125: =+'INPUT DATA'!Q30 -> -20670.59152 | P125: =+'INPUT DATA'!R30 -> -21247.99934 | Q125: =+'INPUT DATA'!S30 -> -21286.80211 | R125: =+'INPUT DATA'!T30 -> -21868.07898 | S125: =+'INPUT DATA'!U30 -> -16514.31019 | T125: =+'INPUT DATA'!V30 -> -7620.671155 | U125: =+'INPUT DATA'!W30 -> -4453.4585 | V125: =+'INPUT DATA'!X30 -> -4554.389327 | W125: =+'INPUT DATA'!Y30 -> -4655.332579 | X125: =+'INPUT DATA'!Z30 -> -4761.0608 | Y125: =+'INPUT DATA'!AA30 -> -4861.773966 | Z125: =+'INPUT DATA'!AB30 -> -4972.306858 | AA125: =+'INPUT DATA'!AC30 -> -5082.861935 | AB125: =+'INPUT DATA'!AD30 -> -5146.369605 | AC125: =+'INPUT DATA'!AE30 -> -6304.765228 | AD125: =+'INPUT DATA'!AF30 -> -5377.739816 | AE125: =+'INPUT DATA'!AG30 -> -5498.822152 | AF125: =+'INPUT DATA'!AH30 -> -5625.624656 | AG125: =+'INPUT DATA'!AI30 -> -5631.591498 | AH125: =+'INPUT DATA'!AJ30 -> -5545.188316 | AI125: =+'INPUT DATA'!AK30 -> -2091.551689 | AJ125: =+'INPUT DATA'!AL30 -> -496.2315248 | AK125: =+'INPUT DATA'!AM30 -> -506.8571572 | AL125: =+'INPUT DATA'!AN30 -> -518.4007082 | AM125: =+'INPUT DATA'!AO30 -> -529.9733869 | AN125: =+'INPUT DATA'!AP30 -> -227.0859989 | AO125: =+'INPUT DATA'!AQ30 -> 0 | AP125: =+'INPUT DATA'!AR30 -> 0 | AQ125: =+'INPUT DATA'!AS30 -> 0 | AR125: =+'INPUT DATA'!AT30 -> 0 | AS125: =+'INPUT DATA'!AU30 -> 0 | AT125: =+'INPUT DATA'!AV30 -> 0 | AU125: =+'INPUT DATA'!AW30 -> 0 | AV125: =+'INPUT DATA'!AX30 -> 0 | AW125: =+'INPUT DATA'!AY30 -> 0 | AX125: =+'INPUT DATA'!AZ30 -> 0 | AY125: =+'INPUT DATA'!BA30 -> 0 | AZ125: =+'INPUT DATA'!BB30 -> 0 | BA125: =+'INPUT DATA'!BC30 -> 0 | BB125: =+'INPUT DATA'!BD30 -> 0 | BC125: =+'INPUT DATA'!BE30 -> 0 | BD125: =+'INPUT DATA'!BF30 -> 0 | BE125: =+'INPUT DATA'!BG30 -> 0 | BF125: =+'INPUT DATA'!BH30 -> 0 | BG125: =+'INPUT DATA'!BI30 -> 0 | BH125: =+'INPUT DATA'!BJ30 -> 0 | BI125: =+'INPUT DATA'!BK30 -> 0 | BJ125: =+'INPUT DATA'!BL30 -> 0 | BK125: =+'INPUT DATA'!BM30 -> 0 | BL125: =+'INPUT DATA'!BN30 -> 0 | BM125: =+'INPUT DATA'!BO30 -> 0 | BN125: =+'INPUT DATA'!BP30 -> 0 | BO125: =+'INPUT DATA'!BQ30 -> 0 | BP125: =+'INPUT DATA'!BR30 -> 0 | BQ125: =+'INPUT DATA'!BS30 -> 0
C126: Investment & Capex | I126: =+'INPUT DATA'!K31 -> -4325.669614 | J126: =+'INPUT DATA'!L31 -> -2295.47449 | K126: =+'INPUT DATA'!M31 -> -2089.222683 | L126: =+'INPUT DATA'!N31 -> -2849.356023 | M126: =+'INPUT DATA'!O31 -> -2453.871389 | N126: =+'INPUT DATA'!P31 -> -1854.029243 | O126: =+'INPUT DATA'!Q31 -> -2267.641271 | P126: =+'INPUT DATA'!R31 -> -2293.837005 | Q126: =+'INPUT DATA'!S31 -> -3668.910834 | R126: =+'INPUT DATA'!T31 -> -2281.767953 | S126: =+'INPUT DATA'!U31 -> -1681.750224 | T126: =+'INPUT DATA'!V31 -> -2405.904213 | U126: =+'INPUT DATA'!W31 -> -396.8571663 | V126: =+'INPUT DATA'!X31 -> -314.2478918 | W126: =+'INPUT DATA'!Y31 -> -857.3553544 | X126: =+'INPUT DATA'!Z31 -> -392.0767496 | Y126: =+'INPUT DATA'!AA31 -> -815.4421521 | Z126: =+'INPUT DATA'!AB31 -> -98.75461479 | AA126: =+'INPUT DATA'!AC31 -> -804.1591582 | AB126: =+'INPUT DATA'!AD31 -> -249.1413229 | AC126: =+'INPUT DATA'!AE31 -> -605.3447357 | AD126: =+'INPUT DATA'!AF31 -> -506.4687721 | AE126: =+'INPUT DATA'!AG31 -> -1018.474774 | AF126: =+'INPUT DATA'!AH31 -> -392.783404 | AG126: =+'INPUT DATA'!AI31 -> -897.041427 | AH126: =+'INPUT DATA'!AJ31 -> -918.2028108 | AI126: =+'INPUT DATA'!AK31 -> -928.7638684 | AJ126: =+'INPUT DATA'!AL31 -> 0 | AK126: =+'INPUT DATA'!AM31 -> 0 | AL126: =+'INPUT DATA'!AN31 -> 0 | AM126: =+'INPUT DATA'!AO31 -> 0 | AN126: =+'INPUT DATA'!AP31 -> 0 | AO126: =+'INPUT DATA'!AQ31 -> 0 | AP126: =+'INPUT DATA'!AR31 -> 0 | AQ126: =+'INPUT DATA'!AS31 -> 0 | AR126: =+'INPUT DATA'!AT31 -> 0 | AS126: =+'INPUT DATA'!AU31 -> 0 | AT126: =+'INPUT DATA'!AV31 -> 0 | AU126: =+'INPUT DATA'!AW31 -> 0 | AV126: =+'INPUT DATA'!AX31 -> 0 | AW126: =+'INPUT DATA'!AY31 -> 0 | AX126: =+'INPUT DATA'!AZ31 -> 0 | AY126: =+'INPUT DATA'!BA31 -> 0 | AZ126: =+'INPUT DATA'!BB31 -> 0 | BA126: =+'INPUT DATA'!BC31 -> 0 | BB126: =+'INPUT DATA'!BD31 -> 0 | BC126: =+'INPUT DATA'!BE31 -> 0 | BD126: =+'INPUT DATA'!BF31 -> 0 | BE126: =+'INPUT DATA'!BG31 -> 0 | BF126: =+'INPUT DATA'!BH31 -> 0 | BG126: =+'INPUT DATA'!BI31 -> 0 | BH126: =+'INPUT DATA'!BJ31 -> 0 | BI126: =+'INPUT DATA'!BK31 -> 0 | BJ126: =+'INPUT DATA'!BL31 -> 0 | BK126: =+'INPUT DATA'!BM31 -> 0 | BL126: =+'INPUT DATA'!BN31 -> 0 | BM126: =+'INPUT DATA'!BO31 -> 0 | BN126: =+'INPUT DATA'!BP31 -> 0 | BO126: =+'INPUT DATA'!BQ31 -> 0 | BP126: =+'INPUT DATA'!BR31 -> 0 | BQ126: =+'INPUT DATA'!BS31 -> 0
C127: Into / Out Operating Reserve Accounts | I127: =+'INPUT DATA'!K32 -> 2538.382983 | J127: =+'INPUT DATA'!L32 -> -194.547274 | K127: =+'INPUT DATA'!M32 -> -257.2396598 | L127: =+'INPUT DATA'!N32 -> 712.5946712 | M127: =+'INPUT DATA'!O32 -> 162.3061486 | N127: =+'INPUT DATA'!P32 -> -821.6094673 | O127: =+'INPUT DATA'!Q32 -> -959.0603332 | P127: =+'INPUT DATA'!R32 -> -11.59822888 | Q127: =+'INPUT DATA'!S32 -> 1634.02254 | R127: =+'INPUT DATA'!T32 -> 1054.780453 | S127: =+'INPUT DATA'!U32 -> 418.8512134 | T127: =+'INPUT DATA'!V32 -> 2395.1629 | U127: =+'INPUT DATA'!W32 -> 0 | V127: =+'INPUT DATA'!X32 -> 0 | W127: =+'INPUT DATA'!Y32 -> 0 | X127: =+'INPUT DATA'!Z32 -> 0 | Y127: =+'INPUT DATA'!AA32 -> 0 | Z127: =+'INPUT DATA'!AB32 -> 0 | AA127: =+'INPUT DATA'!AC32 -> 0 | AB127: =+'INPUT DATA'!AD32 -> 0 | AC127: =+'INPUT DATA'!AE32 -> 0 | AD127: =+'INPUT DATA'!AF32 -> 0 | AE127: =+'INPUT DATA'!AG32 -> 0 | AF127: =+'INPUT DATA'!AH32 -> 0 | AG127: =+'INPUT DATA'!AI32 -> 0 | AH127: =+'INPUT DATA'!AJ32 -> 0 | AI127: =+'INPUT DATA'!AK32 -> 0 | AJ127: =+'INPUT DATA'!AL32 -> 0 | AK127: =+'INPUT DATA'!AM32 -> 0 | AL127: =+'INPUT DATA'!AN32 -> 0 | AM127: =+'INPUT DATA'!AO32 -> 0 | AN127: =+'INPUT DATA'!AP32 -> 0 | AO127: =+'INPUT DATA'!AQ32 -> 0 | AP127: =+'INPUT DATA'!AR32 -> 0 | AQ127: =+'INPUT DATA'!AS32 -> 0 | AR127: =+'INPUT DATA'!AT32 -> 0 | AS127: =+'INPUT DATA'!AU32 -> 0 | AT127: =+'INPUT DATA'!AV32 -> 0 | AU127: =+'INPUT DATA'!AW32 -> 0 | AV127: =+'INPUT DATA'!AX32 -> 0 | AW127: =+'INPUT DATA'!AY32 -> 0 | AX127: =+'INPUT DATA'!AZ32 -> 0 | AY127: =+'INPUT DATA'!BA32 -> 0 | AZ127: =+'INPUT DATA'!BB32 -> 0 | BA127: =+'INPUT DATA'!BC32 -> 0 | BB127: =+'INPUT DATA'!BD32 -> 0 | BC127: =+'INPUT DATA'!BE32 -> 0 | BD127: =+'INPUT DATA'!BF32 -> 0 | BE127: =+'INPUT DATA'!BG32 -> 0 | BF127: =+'INPUT DATA'!BH32 -> 0 | BG127: =+'INPUT DATA'!BI32 -> 0 | BH127: =+'INPUT DATA'!BJ32 -> 0 | BI127: =+'INPUT DATA'!BK32 -> 0 | BJ127: =+'INPUT DATA'!BL32 -> 0 | BK127: =+'INPUT DATA'!BM32 -> 0 | BL127: =+'INPUT DATA'!BN32 -> 0 | BM127: =+'INPUT DATA'!BO32 -> 0 | BN127: =+'INPUT DATA'!BP32 -> 0 | BO127: =+'INPUT DATA'!BQ32 -> 0 | BP127: =+'INPUT DATA'!BR32 -> 0 | BQ127: =+'INPUT DATA'!BS32 -> 0
C128: Operating Cash Flow | I128: =+I121+I125+I126+I127 -> 47234.60121 | J128: 51760.75014 | K128: 38785.32075 | L128: 38866.31406 | M128: 43153.22186 | N128: 44108.15236 | O128: 45580.81725 | P128: 46550.86003 | Q128: 51137.00194 | R128: 53083.87008 | S128: 48919.69558 | T128: 25168.78996 | U128: 25306.40768 | V128: 28493.94643 | W128: 30476.29423 | X128: 32340.25006 | Y128: 44360.27223 | Z128: 56979.15393 | AA128: 32487.09201 | AB128: 9902.931014 | AC128: 8752.175609 | AD128: 10150.7001 | AE128: 9899.229762 | AF128: 10788.9523 | AG128: 10412.99748 | AH128: 10443.04387 | AI128: 3358.36189 | AJ128: 686.9856909 | AK128: 711.2380151 | AL128: 735.6590736 | AM128: 761.1722879 | AN128: 114.3416735 | AO128: 0 | AP128: 0 | AQ128: 0 | AR128: 0 | AS128: 0 | AT128: 0 | AU128: 0 | AV128: 0 | AW128: 0 | AX128: 0 | AY128: 0 | AZ128: =+AZ121+AZ125+AZ126+AZ127 -> 0 | BA128: 0 | BB128: 0 | BC128: 0 | BD128: 0 | BE128: 0 | BF128: 0 | BG128: 0 | BH128: 0 | BI128: 0 | BJ128: 0 | BK128: 0 | BL128: 0 | BM128: 0 | BN128: 0 | BO128: 0 | BP128: 0 | BQ128: 0
C129: Taxes | I129: =+'INPUT DATA'!K34 -> -3337.864896 | J129: =+'INPUT DATA'!L34 -> -3068.253499 | K129: =+'INPUT DATA'!M34 -> -2632.132725 | L129: =+'INPUT DATA'!N34 -> -3365.191455 | M129: =+'INPUT DATA'!O34 -> -2897.319926 | N129: =+'INPUT DATA'!P34 -> -3169.030946 | O129: =+'INPUT DATA'!Q34 -> -3753.946405 | P129: =+'INPUT DATA'!R34 -> -4335.090242 | Q129: =+'INPUT DATA'!S34 -> -4212.997947 | R129: =+'INPUT DATA'!T34 -> -4325.287536 | S129: =+'INPUT DATA'!U34 -> -4291.880597 | T129: =+'INPUT DATA'!V34 -> -4605.823651 | U129: =+'INPUT DATA'!W34 -> -1910.626675 | V129: =+'INPUT DATA'!X34 -> -1893.65086 | W129: =+'INPUT DATA'!Y34 -> -1828.032823 | X129: =+'INPUT DATA'!Z34 -> -1997.864444 | Y129: =+'INPUT DATA'!AA34 -> -1918.064275 | Z129: =+'INPUT DATA'!AB34 -> -2068.322864 | AA129: =+'INPUT DATA'!AC34 -> -2098.588984 | AB129: =+'INPUT DATA'!AD34 -> -2033.498713 | AC129: =+'INPUT DATA'!AE34 -> -2097.836667 | AD129: =+'INPUT DATA'!AF34 -> -2140.421049 | AE129: =+'INPUT DATA'!AG34 -> -2146.809756 | AF129: =+'INPUT DATA'!AH34 -> -2297.759487 | AG129: =+'INPUT DATA'!AI34 -> -2257.928877 | AH129: =+'INPUT DATA'!AJ34 -> -2214.168745 | AI129: =+'INPUT DATA'!AK34 -> -741.8585501 | AJ129: =+'INPUT DATA'!AL34 -> -116.2545886 | AK129: =+'INPUT DATA'!AM34 -> -121.6005922 | AL129: =+'INPUT DATA'!AN34 -> -127.0476934 | AM129: =+'INPUT DATA'!AO34 -> -132.6897669 | AN129: =+'INPUT DATA'!AP34 -> -35.55726053 | AO129: =+'INPUT DATA'!AQ34 -> 0 | AP129: =+'INPUT DATA'!AR34 -> 0 | AQ129: =+'INPUT DATA'!AS34 -> 0 | AR129: =+'INPUT DATA'!AT34 -> 0 | AS129: =+'INPUT DATA'!AU34 -> 0 | AT129: =+'INPUT DATA'!AV34 -> 0 | AU129: =+'INPUT DATA'!AW34 -> 0 | AV129: =+'INPUT DATA'!AX34 -> 0 | AW129: =+'INPUT DATA'!AY34 -> 0 | AX129: =+'INPUT DATA'!AZ34 -> 0 | AY129: =+'INPUT DATA'!BA34 -> 0 | AZ129: =+'INPUT DATA'!BB34 -> 0 | BA129: =+'INPUT DATA'!BC34 -> 0 | BB129: =+'INPUT DATA'!BD34 -> 0 | BC129: =+'INPUT DATA'!BE34 -> 0 | BD129: =+'INPUT DATA'!BF34 -> 0 | BE129: =+'INPUT DATA'!BG34 -> 0 | BF129: =+'INPUT DATA'!BH34 -> 0 | BG129: =+'INPUT DATA'!BI34 -> 0 | BH129: =+'INPUT DATA'!BJ34 -> 0 | BI129: =+'INPUT DATA'!BK34 -> 0 | BJ129: =+'INPUT DATA'!BL34 -> 0 | BK129: =+'INPUT DATA'!BM34 -> 0 | BL129: =+'INPUT DATA'!BN34 -> 0 | BM129: =+'INPUT DATA'!BO34 -> 0 | BN129: =+'INPUT DATA'!BP34 -> 0 | BO129: =+'INPUT DATA'!BQ34 -> 0 | BP129: =+'INPUT DATA'!BR34 -> 0 | BQ129: =+'INPUT DATA'!BS34 -> 0
C130: Operating Cash Flow After Tax | I130: =+I128+I129 -> 43896.73631 | J130: 48692.49664 | K130: 36153.18802 | L130: 35501.12261 | M130: 40255.90193 | N130: 40939.12141 | O130: 41826.87084 | P130: 42215.76979 | Q130: 46924.00399 | R130: 48758.58254 | S130: 44627.81499 | T130: 20562.96631 | U130: 23395.781 | V130: 26600.29557 | W130: 28648.2614 | X130: 30342.38561 | Y130: 42442.20795 | Z130: 54910.83106 | AA130: 30388.50303 | AB130: 7869.432301 | AC130: 6654.338942 | AD130: 8010.279052 | AE130: 7752.420006 | AF130: 8491.192817 | AG130: 8155.068601 | AH130: 8228.875126 | AI130: 2616.50334 | AJ130: 570.7311023 | AK130: 589.6374229 | AL130: 608.6113802 | AM130: 628.4825209 | AN130: 78.78441294 | AO130: 0 | AP130: 0 | AQ130: 0 | AR130: 0 | AS130: 0 | AT130: 0 | AU130: 0 | AV130: 0 | AW130: 0 | AX130: 0 | AY130: 0 | AZ130: =+AZ128+AZ129 -> 0 | BA130: 0 | BB130: 0 | BC130: 0 | BD130: 0 | BE130: 0 | BF130: 0 | BG130: 0 | BH130: 0 | BI130: 0 | BJ130: 0 | BK130: 0 | BL130: 0 | BM130: 0 | BN130: 0 | BO130: 0 | BP130: 0 | BQ130: 0
C131: Debt Service | I131: =+'INPUT DATA'!K36 -> -17867.87285 | J131: =+'INPUT DATA'!L36 -> -25274.42875 | K131: =+'INPUT DATA'!M36 -> 26030.98492 | L131: =+'INPUT DATA'!N36 -> -21585.37365 | M131: =+'INPUT DATA'!O36 -> -20400.07909 | N131: =+'INPUT DATA'!P36 -> -26328.96342 | O131: =+'INPUT DATA'!Q36 -> -24014.76704 | P131: =+'INPUT DATA'!R36 -> -23839.85004 | Q131: =+'INPUT DATA'!S36 -> -8500.057868 | R131: =+'INPUT DATA'!T36 -> -1469.491171 | S131: =+'INPUT DATA'!U36 -> -1689.885397 | T131: =+'INPUT DATA'!V36 -> -2057.203655 | U131: =+'INPUT DATA'!W36 -> -2364.448086 | V131: =+'INPUT DATA'!X36 -> -2485.003637 | W131: =+'INPUT DATA'!Y36 -> -2708.67297 | X131: =+'INPUT DATA'!Z36 -> -2988.905318 | Y131: =+'INPUT DATA'!AA36 -> -3413.086131 | Z131: =+'INPUT DATA'!AB36 -> -3678.265109 | AA131: =+'INPUT DATA'!AC36 -> -3952.722755 | AB131: =+'INPUT DATA'!AD36 -> -4077.109386 | AC131: =+'INPUT DATA'!AE36 -> -4342.696687 | AD131: =+'INPUT DATA'!AF36 -> -4966.227308 | AE131: =+'INPUT DATA'!AG36 -> -5396.575767 | AF131: =+'INPUT DATA'!AH36 -> -3778.651868 | AG131: =+'INPUT DATA'!AI36 -> -971.2046253 | AH131: =+'INPUT DATA'!AJ36 -> 0 | AI131: =+'INPUT DATA'!AK36 -> 12.40509 | AJ131: =+'INPUT DATA'!AL36 -> 0 | AK131: =+'INPUT DATA'!AM36 -> 0 | AL131: =+'INPUT DATA'!AN36 -> 0 | AM131: =+'INPUT DATA'!AO36 -> 0 | AN131: =+'INPUT DATA'!AP36 -> 0 | AO131: =+'INPUT DATA'!AQ36 -> 0 | AP131: =+'INPUT DATA'!AR36 -> 0 | AQ131: =+'INPUT DATA'!AS36 -> 0 | AR131: =+'INPUT DATA'!AT36 -> 0 | AS131: =+'INPUT DATA'!AU36 -> 0 | AT131: =+'INPUT DATA'!AV36 -> 0 | AU131: =+'INPUT DATA'!AW36 -> 0 | AV131: =+'INPUT DATA'!AX36 -> 0 | AW131: =+'INPUT DATA'!AY36 -> 0 | AX131: =+'INPUT DATA'!AZ36 -> 0 | AY131: =+'INPUT DATA'!BA36 -> 0 | AZ131: =+'INPUT DATA'!BB36 -> 0 | BA131: =+'INPUT DATA'!BC36 -> 0 | BB131: =+'INPUT DATA'!BD36 -> 0 | BC131: =+'INPUT DATA'!BE36 -> 0 | BD131: =+'INPUT DATA'!BF36 -> 0 | BE131: =+'INPUT DATA'!BG36 -> 0 | BF131: =+'INPUT DATA'!BH36 -> 0 | BG131: =+'INPUT DATA'!BI36 -> 0 | BH131: =+'INPUT DATA'!BJ36 -> 0 | BI131: =+'INPUT DATA'!BK36 -> 0 | BJ131: =+'INPUT DATA'!BL36 -> 0 | BK131: =+'INPUT DATA'!BM36 -> 0 | BL131: =+'INPUT DATA'!BN36 -> 0 | BM131: =+'INPUT DATA'!BO36 -> 0 | BN131: =+'INPUT DATA'!BP36 -> 0 | BO131: =+'INPUT DATA'!BQ36 -> 0 | BP131: =+'INPUT DATA'!BR36 -> 0 | BQ131: =+'INPUT DATA'!BS36 -> 0
C132: Interest income | I132: =+'INPUT DATA'!K37 -> -8905.173866 | J132: =+'INPUT DATA'!L37 -> -8047.891008 | K132: =+'INPUT DATA'!M37 -> -6337.102357 | L132: =+'INPUT DATA'!N37 -> -8193.20995 | M132: =+'INPUT DATA'!O37 -> -7033.240555 | N132: =+'INPUT DATA'!P37 -> -6039.710401 | O132: =+'INPUT DATA'!Q37 -> -4890.966143 | P132: =+'INPUT DATA'!R37 -> -3682.209731 | Q132: =+'INPUT DATA'!S37 -> -2766.013265 | R132: =+'INPUT DATA'!T37 -> -2326.840069 | S132: =+'INPUT DATA'!U37 -> -2160.340537 | T132: =+'INPUT DATA'!V37 -> -2329.54024 | U132: =+'INPUT DATA'!W37 -> -2433.433202 | V132: =+'INPUT DATA'!X37 -> -2313.123209 | W132: =+'INPUT DATA'!Y37 -> -2174.897496 | X132: =+'INPUT DATA'!Z37 -> -2041.636161 | Y132: =+'INPUT DATA'!AA37 -> -1881.291734 | Z132: =+'INPUT DATA'!AB37 -> -1718.65301 | AA132: =+'INPUT DATA'!AC37 -> -1515.775787 | AB132: =+'INPUT DATA'!AD37 -> -1324.60724 | AC132: =+'INPUT DATA'!AE37 -> -1094.869686 | AD132: =+'INPUT DATA'!AF37 -> -905.4094237 | AE132: =+'INPUT DATA'!AG37 -> -651.1270043 | AF132: =+'INPUT DATA'!AH37 -> -396.0725719 | AG132: =+'INPUT DATA'!AI37 -> -31.92487023 | AH132: =+'INPUT DATA'!AJ37 -> 0 | AI132: =+'INPUT DATA'!AK37 -> 0 | AJ132: =+'INPUT DATA'!AL37 -> 0 | AK132: =+'INPUT DATA'!AM37 -> 0 | AL132: =+'INPUT DATA'!AN37 -> 0 | AM132: =+'INPUT DATA'!AO37 -> 0 | AN132: =+'INPUT DATA'!AP37 -> 0 | AO132: =+'INPUT DATA'!AQ37 -> 0 | AP132: =+'INPUT DATA'!AR37 -> 0 | AQ132: =+'INPUT DATA'!AS37 -> 0 | AR132: =+'INPUT DATA'!AT37 -> 0 | AS132: =+'INPUT DATA'!AU37 -> 0 | AT132: =+'INPUT DATA'!AV37 -> 0 | AU132: =+'INPUT DATA'!AW37 -> 0 | AV132: =+'INPUT DATA'!AX37 -> 0 | AW132: =+'INPUT DATA'!AY37 -> 0 | AX132: =+'INPUT DATA'!AZ37 -> 0 | AY132: =+'INPUT DATA'!BA37 -> 0 | AZ132: =+'INPUT DATA'!BB37 -> 0 | BA132: =+'INPUT DATA'!BC37 -> 0 | BB132: =+'INPUT DATA'!BD37 -> 0 | BC132: =+'INPUT DATA'!BE37 -> 0 | BD132: =+'INPUT DATA'!BF37 -> 0 | BE132: =+'INPUT DATA'!BG37 -> 0 | BF132: =+'INPUT DATA'!BH37 -> 0 | BG132: =+'INPUT DATA'!BI37 -> 0 | BH132: =+'INPUT DATA'!BJ37 -> 0 | BI132: =+'INPUT DATA'!BK37 -> 0 | BJ132: =+'INPUT DATA'!BL37 -> 0 | BK132: =+'INPUT DATA'!BM37 -> 0 | BL132: =+'INPUT DATA'!BN37 -> 0 | BM132: =+'INPUT DATA'!BO37 -> 0 | BN132: =+'INPUT DATA'!BP37 -> 0 | BO132: =+'INPUT DATA'!BQ37 -> 0 | BP132: =+'INPUT DATA'!BR37 -> 0 | BQ132: =+'INPUT DATA'!BS37 -> 0
C133: Free Cash Flow To Equity | I133: =+I130+I131+I132 -> 17123.6896 | J133: 15370.17688 | K133: 55847.07058 | L133: 5722.539012 | M133: 12822.58229 | N133: 8570.44759 | O133: 12921.13766 | P133: 14693.71001 | Q133: 35657.93286 | R133: 44962.2513 | S133: 40777.58905 | T133: 16176.22241 | U133: 18597.89971 | V133: 21802.16872 | W133: 23764.69094 | X133: 25311.84414 | Y133: 37147.83009 | Z133: 49513.91294 | AA133: 24920.00449 | AB133: 2467.715675 | AC133: 1216.772569 | AD133: 2138.64232 | AE133: 1704.717235 | AF133: 4316.468377 | AG133: 7151.939105 | AH133: 8228.875126 | AI133: 2628.90843 | AJ133: 570.7311023 | AK133: 589.6374229 | AL133: 608.6113802 | AM133: 628.4825209 | AN133: 78.78441294 | AO133: 0 | AP133: 0 | AQ133: 0 | AR133: 0 | AS133: 0 | AT133: 0 | AU133: 0 | AV133: 0 | AW133: 0 | AX133: 0 | AY133: 0 | AZ133: =+AZ130+AZ131+AZ132 -> 0 | BA133: 0 | BB133: 0 | BC133: 0 | BD133: 0 | BE133: 0 | BF133: 0 | BG133: 0 | BH133: 0 | BI133: 0 | BJ133: 0 | BK133: 0 | BL133: 0 | BM133: 0 | BN133: 0 | BO133: 0 | BP133: 0 | BQ133: 0
C134: Distributions to Shareholders | I134: =+'INPUT DATA'!K39 -> -23915.77775 | J134: =+'INPUT DATA'!L39 -> -14710.49248 | K134: =+'INPUT DATA'!M39 -> -6533.960336 | L134: =+'INPUT DATA'!N39 -> -52034.19684 | M134: =+'INPUT DATA'!O39 -> -11439.14363 | N134: =+'INPUT DATA'!P39 -> -12131.70761 | O134: =+'INPUT DATA'!Q39 -> -12919.28096 | P134: =+'INPUT DATA'!R39 -> -14565.96809 | Q134: =+'INPUT DATA'!S39 -> -28079.07798 | R134: =+'INPUT DATA'!T39 -> -41850.84385 | S134: =+'INPUT DATA'!U39 -> -42592.61211 | T134: =+'INPUT DATA'!V39 -> -28645.57079 | U134: =+'INPUT DATA'!W39 -> -18597.89971 | V134: =+'INPUT DATA'!X39 -> -21802.16872 | W134: =+'INPUT DATA'!Y39 -> -23764.69094 | X134: =+'INPUT DATA'!Z39 -> -25311.84414 | Y134: =+'INPUT DATA'!AA39 -> -37147.83009 | Z134: =+'INPUT DATA'!AB39 -> -49513.91294 | AA134: =+'INPUT DATA'!AC39 -> -24920.00449 | AB134: =+'INPUT DATA'!AD39 -> -2467.715675 | AC134: =+'INPUT DATA'!AE39 -> -1216.772569 | AD134: =+'INPUT DATA'!AF39 -> -2138.64232 | AE134: =+'INPUT DATA'!AG39 -> -1704.717235 | AF134: =+'INPUT DATA'!AH39 -> -4316.468377 | AG134: =+'INPUT DATA'!AI39 -> -7127.379147 | AH134: =+'INPUT DATA'!AJ39 -> -8253.435062 | AI134: =+'INPUT DATA'!AK39 -> -4628.90843 | AJ134: =+'INPUT DATA'!AL39 -> -570.7311023 | AK134: =+'INPUT DATA'!AM39 -> -589.6374229 | AL134: =+'INPUT DATA'!AN39 -> -608.6113802 | AM134: =+'INPUT DATA'!AO39 -> -628.4825209 | AN134: =+'INPUT DATA'!AP39 -> -78.78441294 | AO134: =+'INPUT DATA'!AQ39 -> 0 | AP134: =+'INPUT DATA'!AR39 -> 0 | AQ134: =+'INPUT DATA'!AS39 -> 0 | AR134: =+'INPUT DATA'!AT39 -> 0 | AS134: =+'INPUT DATA'!AU39 -> 0 | AT134: =+'INPUT DATA'!AV39 -> 0 | AU134: =+'INPUT DATA'!AW39 -> 0 | AV134: =+'INPUT DATA'!AX39 -> 0 | AW134: =+'INPUT DATA'!AY39 -> 0 | AX134: =+'INPUT DATA'!AZ39 -> 0 | AY134: =+'INPUT DATA'!BA39 -> 0 | AZ134: =+'INPUT DATA'!BB39 -> 0 | BA134: =+'INPUT DATA'!BC39 -> 0 | BB134: =+'INPUT DATA'!BD39 -> 0 | BC134: =+'INPUT DATA'!BE39 -> 0 | BD134: =+'INPUT DATA'!BF39 -> 0 | BE134: =+'INPUT DATA'!BG39 -> 0 | BF134: =+'INPUT DATA'!BH39 -> 0 | BG134: =+'INPUT DATA'!BI39 -> 0 | BH134: =+'INPUT DATA'!BJ39 -> 0 | BI134: =+'INPUT DATA'!BK39 -> 0 | BJ134: =+'INPUT DATA'!BL39 -> 0 | BK134: =+'INPUT DATA'!BM39 -> 0 | BL134: =+'INPUT DATA'!BN39 -> 0 | BM134: =+'INPUT DATA'!BO39 -> 0 | BN134: =+'INPUT DATA'!BP39 -> 0 | BO134: =+'INPUT DATA'!BQ39 -> 0 | BP134: =+'INPUT DATA'!BR39 -> 0 | BQ134: =+'INPUT DATA'!BS39 -> 0
C135: Equity | I135: =+'INPUT DATA'!K40 -> 700 | J135: =+'INPUT DATA'!L40 -> 0.0002349613601 | K135: =+'INPUT DATA'!M40 -> 0 | L135: =+'INPUT DATA'!N40 -> 0 | M135: =+'INPUT DATA'!O40 -> 0 | N135: =+'INPUT DATA'!P40 -> 0 | O135: =+'INPUT DATA'!Q40 -> 0.000263579153 | P135: =+'INPUT DATA'!R40 -> 0.0002738427819 | Q135: =+'INPUT DATA'!S40 -> 0 | R135: =+'INPUT DATA'!T40 -> 0 | S135: =+'INPUT DATA'!U40 -> 0 | T135: =+'INPUT DATA'!V40 -> 0 | U135: =+'INPUT DATA'!W40 -> -3.552713679e-12 | V135: =+'INPUT DATA'!X40 -> 0 | W135: =+'INPUT DATA'!Y40 -> 0 | X135: =+'INPUT DATA'!Z40 -> 0 | Y135: =+'INPUT DATA'!AA40 -> 0 | Z135: =+'INPUT DATA'!AB40 -> 0 | AA135: =+'INPUT DATA'!AC40 -> 0 | AB135: =+'INPUT DATA'!AD40 -> 0 | AC135: =+'INPUT DATA'!AE40 -> 0 | AD135: =+'INPUT DATA'!AF40 -> 0 | AE135: =+'INPUT DATA'!AG40 -> 0 | AF135: =+'INPUT DATA'!AH40 -> 0 | AG135: =+'INPUT DATA'!AI40 -> 0 | AH135: =+'INPUT DATA'!AJ40 -> 0 | AI135: =+'INPUT DATA'!AK40 -> 0 | AJ135: =+'INPUT DATA'!AL40 -> 0 | AK135: =+'INPUT DATA'!AM40 -> 0 | AL135: =+'INPUT DATA'!AN40 -> 0 | AM135: =+'INPUT DATA'!AO40 -> 0 | AN135: =+'INPUT DATA'!AP40 -> 0 | AO135: =+'INPUT DATA'!AQ40 -> 0 | AP135: =+'INPUT DATA'!AR40 -> 0 | AQ135: =+'INPUT DATA'!AS40 -> 0 | AR135: =+'INPUT DATA'!AT40 -> 0 | AS135: =+'INPUT DATA'!AU40 -> 0 | AT135: =+'INPUT DATA'!AV40 -> 0 | AU135: =+'INPUT DATA'!AW40 -> 0 | AV135: =+'INPUT DATA'!AX40 -> 0 | AW135: =+'INPUT DATA'!AY40 -> 0 | AX135: =+'INPUT DATA'!AZ40 -> 0 | AY135: =+'INPUT DATA'!BA40 -> 0 | AZ135: =+'INPUT DATA'!BB40 -> 0 | BA135: =+'INPUT DATA'!BC40 -> 0 | BB135: =+'INPUT DATA'!BD40 -> 0 | BC135: =+'INPUT DATA'!BE40 -> 0 | BD135: =+'INPUT DATA'!BF40 -> 0 | BE135: =+'INPUT DATA'!BG40 -> 0 | BF135: =+'INPUT DATA'!BH40 -> 0 | BG135: =+'INPUT DATA'!BI40 -> 0 | BH135: =+'INPUT DATA'!BJ40 -> 0 | BI135: =+'INPUT DATA'!BK40 -> 0 | BJ135: =+'INPUT DATA'!BL40 -> 0 | BK135: =+'INPUT DATA'!BM40 -> 0 | BL135: =+'INPUT DATA'!BN40 -> 0 | BM135: =+'INPUT DATA'!BO40 -> 0 | BN135: =+'INPUT DATA'!BP40 -> 0 | BO135: =+'INPUT DATA'!BQ40 -> 0 | BP135: =+'INPUT DATA'!BR40 -> 0 | BQ135: =+'INPUT DATA'!BS40 -> 0
C136: Net Cash Flow | I136: =+I133+I134+I135 -> -6092.088156 | J136: 659.6846318 | K136: 49313.11024 | L136: -46311.65783 | M136: 1383.438652 | N136: -3561.260018 | O136: 1.856965254 | P136: 127.7421932 | Q136: 7578.854885 | R136: 3111.407451 | S136: -1815.023059 | T136: -12469.34837 | U136: -1.082867129e-11 | V136: 0 | W136: 3.637978807e-12 | X136: 7.275957614e-12 | Y136: -1.455191523e-11 | Z136: 0 | AA136: -7.275957614e-12 | AB136: 0 | AC136: 1.364242053e-12 | AD136: 9.094947018e-13 | AE136: -1.364242053e-12 | AF136: 9.094947018e-13 | AG136: 24.55995829 | AH136: -24.55993599 | AI136: -2000 | AJ136: 0 | AK136: -1.136868377e-13 | AL136: -1.136868377e-13 | AM136: -1.136868377e-13 | AN136: 2.842170943e-14 | AO136: =+AO133+AO134+AO135 -> 0 | AP136: 0 | AQ136: 0 | AR136: 0 | AS136: 0 | AT136: 0 | AU136: 0 | AV136: 0 | AW136: 0 | AX136: 0 | AY136: 0 | AZ136: 0 | BA136: 0 | BB136: 0 | BC136: 0 | BD136: 0 | BE136: 0 | BF136: 0 | BG136: 0 | BH136: 0 | BI136: 0 | BJ136: 0 | BK136: 0 | BL136: 0 | BM136: 0 | BN136: 0 | BO136: 0 | BP136: 0 | BQ136: 0
C137: Cash EoP | H137: =+'INPUT DATA'!J42 -> 10073.28239 | I137: =+I136+H137 -> 3981.194236 | J137: 4640.878868 | K137: 53953.98911 | L137: 7642.331283 | M137: 9025.769935 | N137: 5464.509917 | O137: 5466.366882 | P137: 5594.109075 | Q137: 13172.96396 | R137: 16284.37141 | S137: 14469.34835 | T137: 1999.999978 | U137: 1999.999978 | V137: 1999.999978 | W137: 1999.999978 | X137: 1999.999978 | Y137: 1999.999978 | Z137: 1999.999978 | AA137: 1999.999978 | AB137: 1999.999978 | AC137: 1999.999978 | AD137: 1999.999978 | AE137: 1999.999978 | AF137: 1999.999978 | AG137: 2024.559936 | AH137: 2000 | AI137: 0 | AJ137: 0 | AK137: -1.136868377e-13 | AL137: -2.273736754e-13 | AM137: -3.410605132e-13 | AN137: -3.126388037e-13 | AO137: -3.126388037e-13 | AP137: -3.126388037e-13 | AQ137: -3.126388037e-13 | AR137: -3.126388037e-13 | AS137: -3.126388037e-13 | AT137: -3.126388037e-13 | AU137: -3.126388037e-13 | AV137: -3.126388037e-13 | AW137: -3.126388037e-13 | AX137: -3.126388037e-13 | AY137: -3.126388037e-13 | AZ137: =+AZ136+AY137 -> -3.126388037e-13 | BA137: =+BA136+AZ137 -> -3.126388037e-13 | BB137: =+BB136+BA137 -> -3.126388037e-13 | BC137: =+BC136+BB137 -> -3.126388037e-13 | BD137: =+BD136+BC137 -> -3.126388037e-13 | BE137: =+BE136+BD137 -> -3.126388037e-13 | BF137: =+BF136+BE137 -> -3.126388037e-13 | BG137: =+BG136+BF137 -> -3.126388037e-13 | BH137: =+BH136+BG137 -> -3.126388037e-13 | BI137: =+BI136+BH137 -> -3.126388037e-13 | BJ137: =+BJ136+BI137 -> -3.126388037e-13 | BK137: =+BK136+BJ137 -> -3.126388037e-13 | BL137: =+BL136+BK137 -> -3.126388037e-13 | BM137: =+BM136+BL137 -> -3.126388037e-13 | BN137: =+BN136+BM137 -> -3.126388037e-13 | BO137: =+BO136+BN137 -> -3.126388037e-13 | BP137: =+BP136+BO137 -> -3.126388037e-13 | BQ137: =+BQ136+BP137 -> -3.126388037e-13
A142: 1 | C142: Colombia
C144: =+"Cash Flow "&C142&" - [000' EUR]" -> Cash Flow Colombia - [000' EUR]
C145: Year | I145: =+I$12 -> 2025 | J145: 2026 | K145: 2027 | L145: 2028 | M145: 2029 | N145: 2030 | O145: 2031 | P145: 2032 | Q145: 2033 | R145: 2034 | S145: 2035 | T145: 2036 | U145: 2037 | V145: 2038 | W145: 2039 | X145: 2040 | Y145: 2041 | Z145: 2042 | AA145: 2043 | AB145: 2044 | AC145: 2045 | AD145: 2046 | AE145: 2047 | AF145: 2048 | AG145: 2049 | AH145: 2050 | AI145: 2051 | AJ145: 2052 | AK145: 2053 | AL145: 2054 | AM145: 2055 | AN145: 2056 | AO145: =+AO$12 -> 2057 | AP145: 2058 | AQ145: 2059 | AR145: 2060 | AS145: 2061 | AT145: 2062 | AU145: 2063 | AV145: 2064 | AW145: 2065 | AX145: 2066 | AY145: 2067 | AZ145: 2068 | BA145: 2069 | BB145: 2070 | BC145: 2071 | BD145: 2072 | BE145: 2073 | BF145: 2074 | BG145: 2075 | BH145: 2076 | BI145: 2077 | BJ145: 2078 | BK145: 2079 | BL145: 2080 | BM145: 2081 | BN145: 2082 | BO145: 2083 | BP145: 2084 | BQ145: 2085
C146: Income | I146: =+I147+I148+I149 -> 497731.6024 | J146: 581408.2754 | K146: 570094.5981 | L146: 686997.0268 | M146: 826584.9238 | N146: 610366.6044 | O146: 786575.3568 | P146: 781076.2611 | Q146: 826335.0687 | R146: 710152.7495 | S146: 495136.0788 | T146: 537335.1331 | U146: 599262.8089 | V146: 506485.8835 | W146: 545117.6916 | X146: 539796.466 | Y146: 433452.9492 | Z146: 251479.3335 | AA146: 264036.1864 | AB146: 234734.2375 | AC146: 187940.5433 | AD146: 113508.0925 | AE146: 0 | AF146: 0 | AG146: 0 | AH146: 0 | AI146: 0 | AJ146: 0 | AK146: 0 | AL146: 0 | AM146: 0 | AN146: 0 | AO146: 0 | AP146: 0 | AQ146: 0 | AR146: 0 | AS146: 0 | AT146: 0 | AU146: 0 | AV146: 0 | AW146: 0 | AX146: 0 | AY146: 0 | AZ146: =+AZ147+AZ148+AZ149 -> 0 | BA146: 0 | BB146: 0 | BC146: 0 | BD146: 0 | BE146: 0 | BF146: 0 | BG146: 0 | BH146: 0 | BI146: 0 | BJ146: 0 | BK146: 0 | BL146: 0 | BM146: 0 | BN146: 0 | BO146: 0 | BP146: 0 | BQ146: 0
C147: Income with mitigated demand risk | I147: =+'INPUT DATA'!K52 -> 326851.4184 | J147: =+'INPUT DATA'!L52 -> 359488.154 | K147: =+'INPUT DATA'!M52 -> 397899.4469 | L147: =+'INPUT DATA'!N52 -> 504412.124 | M147: =+'INPUT DATA'!O52 -> 623111.8834 | N147: =+'INPUT DATA'!P52 -> 447085.5783 | O147: =+'INPUT DATA'!Q52 -> 617252.3175 | P147: =+'INPUT DATA'!R52 -> 600577.8824 | Q147: =+'INPUT DATA'!S52 -> 617214.3555 | R147: =+'INPUT DATA'!T52 -> 441603.8786 | S147: =+'INPUT DATA'!U52 -> 293062.2512 | T147: =+'INPUT DATA'!V52 -> 323246.7341 | U147: =+'INPUT DATA'!W52 -> 373320.9772 | V147: =+'INPUT DATA'!X52 -> 234628.2046 | W147: =+'INPUT DATA'!Y52 -> 259304.2635 | X147: =+'INPUT DATA'!Z52 -> 253956.182 | Y147: =+'INPUT DATA'!AA52 -> 212893.5066 | Z147: =+'INPUT DATA'!AB52 -> 55147.7276 | AA147: =+'INPUT DATA'!AC52 -> 57679.43787 | AB147: =+'INPUT DATA'!AD52 -> 30099.69004 | AC147: =+'INPUT DATA'!AE52 -> 0 | AD147: =+'INPUT DATA'!AF52 -> 0 | AE147: =+'INPUT DATA'!AG52 -> 0 | AF147: =+'INPUT DATA'!AH52 -> 0 | AG147: =+'INPUT DATA'!AI52 -> 0 | AH147: =+'INPUT DATA'!AJ52 -> 0 | AI147: =+'INPUT DATA'!AK52 -> 0 | AJ147: =+'INPUT DATA'!AL52 -> 0 | AK147: =+'INPUT DATA'!AM52 -> 0 | AL147: =+'INPUT DATA'!AN52 -> 0 | AM147: =+'INPUT DATA'!AO52 -> 0 | AN147: =+'INPUT DATA'!AP52 -> 0 | AO147: =+'INPUT DATA'!AQ52 -> 0 | AP147: =+'INPUT DATA'!AR52 -> 0 | AQ147: =+'INPUT DATA'!AS52 -> 0 | AR147: =+'INPUT DATA'!AT52 -> 0 | AS147: =+'INPUT DATA'!AU52 -> 0 | AT147: =+'INPUT DATA'!AV52 -> 0 | AU147: =+'INPUT DATA'!AW52 -> 0 | AV147: =+'INPUT DATA'!AX52 -> 0 | AW147: =+'INPUT DATA'!AY52 -> 0 | AX147: =+'INPUT DATA'!AZ52 -> 0 | AY147: =+'INPUT DATA'!BA52 -> 0 | AZ147: =+'INPUT DATA'!BB52 -> 0 | BA147: =+'INPUT DATA'!BC52 -> 0 | BB147: =+'INPUT DATA'!BD52 -> 0 | BC147: =+'INPUT DATA'!BE52 -> 0 | BD147: =+'INPUT DATA'!BF52 -> 0 | BE147: =+'INPUT DATA'!BG52 -> 0 | BF147: =+'INPUT DATA'!BH52 -> 0 | BG147: =+'INPUT DATA'!BI52 -> 0 | BH147: =+'INPUT DATA'!BJ52 -> 0 | BI147: =+'INPUT DATA'!BK52 -> 0 | BJ147: =+'INPUT DATA'!BL52 -> 0 | BK147: =+'INPUT DATA'!BM52 -> 0 | BL147: =+'INPUT DATA'!BN52 -> 0 | BM147: =+'INPUT DATA'!BO52 -> 0 | BN147: =+'INPUT DATA'!BP52 -> 0 | BO147: =+'INPUT DATA'!BQ52 -> 0 | BP147: =+'INPUT DATA'!BR52 -> 0 | BQ147: =+'INPUT DATA'!BS52 -> 0
C148: Income with low demand risk | I148: =+'INPUT DATA'!K53 -> 115733.8727 | J148: =+'INPUT DATA'!L53 -> 88590.62012 | K148: =+'INPUT DATA'!M53 -> 93645.81554 | L148: =+'INPUT DATA'!N53 -> 99398.95147 | M148: =+'INPUT DATA'!O53 -> 125581.0685 | N148: =+'INPUT DATA'!P53 -> 80186.01585 | O148: =+'INPUT DATA'!Q53 -> 83818.76712 | P148: =+'INPUT DATA'!R53 -> 89173.99086 | Q148: =+'INPUT DATA'!S53 -> 112178.9398 | R148: =+'INPUT DATA'!T53 -> 165487.5205 | S148: =+'INPUT DATA'!U53 -> 92393.20078 | T148: =+'INPUT DATA'!V53 -> 97014.02568 | U148: =+'INPUT DATA'!W53 -> 101878.6792 | V148: =+'INPUT DATA'!X53 -> 140440.0646 | W148: =+'INPUT DATA'!Y53 -> 146813.8024 | X148: =+'INPUT DATA'!Z53 -> 138680.1924 | Y148: =+'INPUT DATA'!AA53 -> 65882.45565 | Z148: =+'INPUT DATA'!AB53 -> 33722.76552 | AA148: =+'INPUT DATA'!AC53 -> 35557.36055 | AB148: =+'INPUT DATA'!AD53 -> 25035.49307 | AC148: =+'INPUT DATA'!AE53 -> 0 | AD148: =+'INPUT DATA'!AF53 -> 0 | AE148: =+'INPUT DATA'!AG53 -> 0 | AF148: =+'INPUT DATA'!AH53 -> 0 | AG148: =+'INPUT DATA'!AI53 -> 0 | AH148: =+'INPUT DATA'!AJ53 -> 0 | AI148: =+'INPUT DATA'!AK53 -> 0 | AJ148: =+'INPUT DATA'!AL53 -> 0 | AK148: =+'INPUT DATA'!AM53 -> 0 | AL148: =+'INPUT DATA'!AN53 -> 0 | AM148: =+'INPUT DATA'!AO53 -> 0 | AN148: =+'INPUT DATA'!AP53 -> 0 | AO148: =+'INPUT DATA'!AQ53 -> 0 | AP148: =+'INPUT DATA'!AR53 -> 0 | AQ148: =+'INPUT DATA'!AS53 -> 0 | AR148: =+'INPUT DATA'!AT53 -> 0 | AS148: =+'INPUT DATA'!AU53 -> 0 | AT148: =+'INPUT DATA'!AV53 -> 0 | AU148: =+'INPUT DATA'!AW53 -> 0 | AV148: =+'INPUT DATA'!AX53 -> 0 | AW148: =+'INPUT DATA'!AY53 -> 0 | AX148: =+'INPUT DATA'!AZ53 -> 0 | AY148: =+'INPUT DATA'!BA53 -> 0 | AZ148: =+'INPUT DATA'!BB53 -> 0 | BA148: =+'INPUT DATA'!BC53 -> 0 | BB148: =+'INPUT DATA'!BD53 -> 0 | BC148: =+'INPUT DATA'!BE53 -> 0 | BD148: =+'INPUT DATA'!BF53 -> 0 | BE148: =+'INPUT DATA'!BG53 -> 0 | BF148: =+'INPUT DATA'!BH53 -> 0 | BG148: =+'INPUT DATA'!BI53 -> 0 | BH148: =+'INPUT DATA'!BJ53 -> 0 | BI148: =+'INPUT DATA'!BK53 -> 0 | BJ148: =+'INPUT DATA'!BL53 -> 0 | BK148: =+'INPUT DATA'!BM53 -> 0 | BL148: =+'INPUT DATA'!BN53 -> 0 | BM148: =+'INPUT DATA'!BO53 -> 0 | BN148: =+'INPUT DATA'!BP53 -> 0 | BO148: =+'INPUT DATA'!BQ53 -> 0 | BP148: =+'INPUT DATA'!BR53 -> 0 | BQ148: =+'INPUT DATA'!BS53 -> 0
C149: Income with demand risk | I149: =+'INPUT DATA'!K54 -> 55146.3113 | J149: =+'INPUT DATA'!L54 -> 133329.5013 | K149: =+'INPUT DATA'!M54 -> 78549.33573 | L149: =+'INPUT DATA'!N54 -> 83185.95129 | M149: =+'INPUT DATA'!O54 -> 77891.97187 | N149: =+'INPUT DATA'!P54 -> 83095.01031 | O149: =+'INPUT DATA'!Q54 -> 85504.27212 | P149: =+'INPUT DATA'!R54 -> 91324.38786 | Q149: =+'INPUT DATA'!S54 -> 96941.77343 | R149: =+'INPUT DATA'!T54 -> 103061.3504 | S149: =+'INPUT DATA'!U54 -> 109680.6268 | T149: =+'INPUT DATA'!V54 -> 117074.3734 | U149: =+'INPUT DATA'!W54 -> 124063.1524 | V149: =+'INPUT DATA'!X54 -> 131417.6143 | W149: =+'INPUT DATA'!Y54 -> 138999.6257 | X149: =+'INPUT DATA'!Z54 -> 147160.0916 | Y149: =+'INPUT DATA'!AA54 -> 154676.987 | Z149: =+'INPUT DATA'!AB54 -> 162608.8404 | AA149: =+'INPUT DATA'!AC54 -> 170799.388 | AB149: =+'INPUT DATA'!AD54 -> 179599.0544 | AC149: =+'INPUT DATA'!AE54 -> 187940.5433 | AD149: =+'INPUT DATA'!AF54 -> 113508.0925 | AE149: =+'INPUT DATA'!AG54 -> 0 | AF149: =+'INPUT DATA'!AH54 -> 0 | AG149: =+'INPUT DATA'!AI54 -> 0 | AH149: =+'INPUT DATA'!AJ54 -> 0 | AI149: =+'INPUT DATA'!AK54 -> 0 | AJ149: =+'INPUT DATA'!AL54 -> 0 | AK149: =+'INPUT DATA'!AM54 -> 0 | AL149: =+'INPUT DATA'!AN54 -> 0 | AM149: =+'INPUT DATA'!AO54 -> 0 | AN149: =+'INPUT DATA'!AP54 -> 0 | AO149: =+'INPUT DATA'!AQ54 -> 0 | AP149: =+'INPUT DATA'!AR54 -> 0 | AQ149: =+'INPUT DATA'!AS54 -> 0 | AR149: =+'INPUT DATA'!AT54 -> 0 | AS149: =+'INPUT DATA'!AU54 -> 0 | AT149: =+'INPUT DATA'!AV54 -> 0 | AU149: =+'INPUT DATA'!AW54 -> 0 | AV149: =+'INPUT DATA'!AX54 -> 0 | AW149: =+'INPUT DATA'!AY54 -> 0 | AX149: =+'INPUT DATA'!AZ54 -> 0 | AY149: =+'INPUT DATA'!BA54 -> 0 | AZ149: =+'INPUT DATA'!BB54 -> 0 | BA149: =+'INPUT DATA'!BC54 -> 0 | BB149: =+'INPUT DATA'!BD54 -> 0 | BC149: =+'INPUT DATA'!BE54 -> 0 | BD149: =+'INPUT DATA'!BF54 -> 0 | BE149: =+'INPUT DATA'!BG54 -> 0 | BF149: =+'INPUT DATA'!BH54 -> 0 | BG149: =+'INPUT DATA'!BI54 -> 0 | BH149: =+'INPUT DATA'!BJ54 -> 0 | BI149: =+'INPUT DATA'!BK54 -> 0 | BJ149: =+'INPUT DATA'!BL54 -> 0 | BK149: =+'INPUT DATA'!BM54 -> 0 | BL149: =+'INPUT DATA'!BN54 -> 0 | BM149: =+'INPUT DATA'!BO54 -> 0 | BN149: =+'INPUT DATA'!BP54 -> 0 | BO149: =+'INPUT DATA'!BQ54 -> 0 | BP149: =+'INPUT DATA'!BR54 -> 0 | BQ149: =+'INPUT DATA'!BS54 -> 0
C150: Operating Costs | I150: =+'INPUT DATA'!K55 -> -110875.2642 | J150: =+'INPUT DATA'!L55 -> -110017.8644 | K150: =+'INPUT DATA'!M55 -> -101069.224 | L150: =+'INPUT DATA'!N55 -> -97597.19825 | M150: =+'INPUT DATA'!O55 -> -103233.1225 | N150: =+'INPUT DATA'!P55 -> -93152.94447 | O150: =+'INPUT DATA'!Q55 -> -90167.64586 | P150: =+'INPUT DATA'!R55 -> -92892.32891 | Q150: =+'INPUT DATA'!S55 -> -91289.44443 | R150: =+'INPUT DATA'!T55 -> -100458.9504 | S150: =+'INPUT DATA'!U55 -> -97059.95624 | T150: =+'INPUT DATA'!V55 -> -99507.08184 | U150: =+'INPUT DATA'!W55 -> -104132.7965 | V150: =+'INPUT DATA'!X55 -> -89301.07181 | W150: =+'INPUT DATA'!Y55 -> -70780.44375 | X150: =+'INPUT DATA'!Z55 -> -61500.81726 | Y150: =+'INPUT DATA'!AA55 -> -79196.11968 | Z150: =+'INPUT DATA'!AB55 -> -46155.53043 | AA150: =+'INPUT DATA'!AC55 -> -51358.93373 | AB150: =+'INPUT DATA'!AD55 -> -42014.55492 | AC150: =+'INPUT DATA'!AE55 -> -32519.77736 | AD150: =+'INPUT DATA'!AF55 -> -19554.27225 | AE150: =+'INPUT DATA'!AG55 -> 0 | AF150: =+'INPUT DATA'!AH55 -> 0 | AG150: =+'INPUT DATA'!AI55 -> 0 | AH150: =+'INPUT DATA'!AJ55 -> 0 | AI150: =+'INPUT DATA'!AK55 -> 0 | AJ150: =+'INPUT DATA'!AL55 -> 0 | AK150: =+'INPUT DATA'!AM55 -> 0 | AL150: =+'INPUT DATA'!AN55 -> 0 | AM150: =+'INPUT DATA'!AO55 -> 0 | AN150: =+'INPUT DATA'!AP55 -> 0 | AO150: =+'INPUT DATA'!AQ55 -> 0 | AP150: =+'INPUT DATA'!AR55 -> 0 | AQ150: =+'INPUT DATA'!AS55 -> 0 | AR150: =+'INPUT DATA'!AT55 -> 0 | AS150: =+'INPUT DATA'!AU55 -> 0 | AT150: =+'INPUT DATA'!AV55 -> 0 | AU150: =+'INPUT DATA'!AW55 -> 0 | AV150: =+'INPUT DATA'!AX55 -> 0 | AW150: =+'INPUT DATA'!AY55 -> 0 | AX150: =+'INPUT DATA'!AZ55 -> 0 | AY150: =+'INPUT DATA'!BA55 -> 0 | AZ150: =+'INPUT DATA'!BB55 -> 0 | BA150: =+'INPUT DATA'!BC55 -> 0 | BB150: =+'INPUT DATA'!BD55 -> 0 | BC150: =+'INPUT DATA'!BE55 -> 0 | BD150: =+'INPUT DATA'!BF55 -> 0 | BE150: =+'INPUT DATA'!BG55 -> 0 | BF150: =+'INPUT DATA'!BH55 -> 0 | BG150: =+'INPUT DATA'!BI55 -> 0 | BH150: =+'INPUT DATA'!BJ55 -> 0 | BI150: =+'INPUT DATA'!BK55 -> 0 | BJ150: =+'INPUT DATA'!BL55 -> 0 | BK150: =+'INPUT DATA'!BM55 -> 0 | BL150: =+'INPUT DATA'!BN55 -> 0 | BM150: =+'INPUT DATA'!BO55 -> 0 | BN150: =+'INPUT DATA'!BP55 -> 0 | BO150: =+'INPUT DATA'!BQ55 -> 0 | BP150: =+'INPUT DATA'!BR55 -> 0 | BQ150: =+'INPUT DATA'!BS55 -> 0
C151: Investment & Capex | I151: =+'INPUT DATA'!K56 -> -552192.1325 | J151: =+'INPUT DATA'!L56 -> -389548.4186 | K151: =+'INPUT DATA'!M56 -> -224756.4603 | L151: =+'INPUT DATA'!N56 -> -154090.2205 | M151: =+'INPUT DATA'!O56 -> -21449.34366 | N151: =+'INPUT DATA'!P56 -> -28953.71316 | O151: =+'INPUT DATA'!Q56 -> -16983.51599 | P151: =+'INPUT DATA'!R56 -> -14852.56445 | Q151: =+'INPUT DATA'!S56 -> -16506.25072 | R151: =+'INPUT DATA'!T56 -> -21316.56316 | S151: =+'INPUT DATA'!U56 -> -13892.11382 | T151: =+'INPUT DATA'!V56 -> -16357.95596 | U151: =+'INPUT DATA'!W56 -> -25771.47065 | V151: =+'INPUT DATA'!X56 -> -34385.29893 | W151: =+'INPUT DATA'!Y56 -> -30358.09781 | X151: =+'INPUT DATA'!Z56 -> -38279.09813 | Y151: =+'INPUT DATA'!AA56 -> -50848.6276 | Z151: =+'INPUT DATA'!AB56 -> -10108.36846 | AA151: =+'INPUT DATA'!AC56 -> -12902.03064 | AB151: =+'INPUT DATA'!AD56 -> -8254.817731 | AC151: =+'INPUT DATA'!AE56 -> -2286.909542 | AD151: =+'INPUT DATA'!AF56 -> -9513.754033 | AE151: =+'INPUT DATA'!AG56 -> 0 | AF151: =+'INPUT DATA'!AH56 -> 0 | AG151: =+'INPUT DATA'!AI56 -> 0 | AH151: =+'INPUT DATA'!AJ56 -> 0 | AI151: =+'INPUT DATA'!AK56 -> 0 | AJ151: =+'INPUT DATA'!AL56 -> 0 | AK151: =+'INPUT DATA'!AM56 -> 0 | AL151: =+'INPUT DATA'!AN56 -> 0 | AM151: =+'INPUT DATA'!AO56 -> 0 | AN151: =+'INPUT DATA'!AP56 -> 0 | AO151: =+'INPUT DATA'!AQ56 -> 0 | AP151: =+'INPUT DATA'!AR56 -> 0 | AQ151: =+'INPUT DATA'!AS56 -> 0 | AR151: =+'INPUT DATA'!AT56 -> 0 | AS151: =+'INPUT DATA'!AU56 -> 0 | AT151: =+'INPUT DATA'!AV56 -> 0 | AU151: =+'INPUT DATA'!AW56 -> 0 | AV151: =+'INPUT DATA'!AX56 -> 0 | AW151: =+'INPUT DATA'!AY56 -> 0 | AX151: =+'INPUT DATA'!AZ56 -> 0 | AY151: =+'INPUT DATA'!BA56 -> 0 | AZ151: =+'INPUT DATA'!BB56 -> 0 | BA151: =+'INPUT DATA'!BC56 -> 0 | BB151: =+'INPUT DATA'!BD56 -> 0 | BC151: =+'INPUT DATA'!BE56 -> 0 | BD151: =+'INPUT DATA'!BF56 -> 0 | BE151: =+'INPUT DATA'!BG56 -> 0 | BF151: =+'INPUT DATA'!BH56 -> 0 | BG151: =+'INPUT DATA'!BI56 -> 0 | BH151: =+'INPUT DATA'!BJ56 -> 0 | BI151: =+'INPUT DATA'!BK56 -> 0 | BJ151: =+'INPUT DATA'!BL56 -> 0 | BK151: =+'INPUT DATA'!BM56 -> 0 | BL151: =+'INPUT DATA'!BN56 -> 0 | BM151: =+'INPUT DATA'!BO56 -> 0 | BN151: =+'INPUT DATA'!BP56 -> 0 | BO151: =+'INPUT DATA'!BQ56 -> 0 | BP151: =+'INPUT DATA'!BR56 -> 0 | BQ151: =+'INPUT DATA'!BS56 -> 0
C152: Into / Out Operating Reserve Accounts | I152: =+'INPUT DATA'!K57 -> 7367.694019 | J152: =+'INPUT DATA'!L57 -> -3093.259498 | K152: =+'INPUT DATA'!M57 -> 2550.956265 | L152: =+'INPUT DATA'!N57 -> -23508.37119 | M152: =+'INPUT DATA'!O57 -> -25555.20645 | N152: =+'INPUT DATA'!P57 -> 5127.026216 | O152: =+'INPUT DATA'!Q57 -> -5916.588329 | P152: =+'INPUT DATA'!R57 -> 3468.733975 | Q152: =+'INPUT DATA'!S57 -> 27391.78588 | R152: =+'INPUT DATA'!T57 -> 33603.772 | S152: =+'INPUT DATA'!U57 -> 17200.05378 | T152: =+'INPUT DATA'!V57 -> 634.3459803 | U152: =+'INPUT DATA'!W57 -> 5553.817862 | V152: =+'INPUT DATA'!X57 -> 11631.77611 | W152: =+'INPUT DATA'!Y57 -> -6368.546772 | X152: =+'INPUT DATA'!Z57 -> 20227.18517 | Y152: =+'INPUT DATA'!AA57 -> 46494.61556 | Z152: =+'INPUT DATA'!AB57 -> 10069.44953 | AA152: =+'INPUT DATA'!AC57 -> 28520.62166 | AB152: =+'INPUT DATA'!AD57 -> 11.13273836 | AC152: =+'INPUT DATA'!AE57 -> 404.4912181 | AD152: =+'INPUT DATA'!AF57 -> 0 | AE152: =+'INPUT DATA'!AG57 -> 0 | AF152: =+'INPUT DATA'!AH57 -> 0 | AG152: =+'INPUT DATA'!AI57 -> 0 | AH152: =+'INPUT DATA'!AJ57 -> 0 | AI152: =+'INPUT DATA'!AK57 -> 0 | AJ152: =+'INPUT DATA'!AL57 -> 0 | AK152: =+'INPUT DATA'!AM57 -> 0 | AL152: =+'INPUT DATA'!AN57 -> 0 | AM152: =+'INPUT DATA'!AO57 -> 0 | AN152: =+'INPUT DATA'!AP57 -> 0 | AO152: =+'INPUT DATA'!AQ57 -> 0 | AP152: =+'INPUT DATA'!AR57 -> 0 | AQ152: =+'INPUT DATA'!AS57 -> 0 | AR152: =+'INPUT DATA'!AT57 -> 0 | AS152: =+'INPUT DATA'!AU57 -> 0 | AT152: =+'INPUT DATA'!AV57 -> 0 | AU152: =+'INPUT DATA'!AW57 -> 0 | AV152: =+'INPUT DATA'!AX57 -> 0 | AW152: =+'INPUT DATA'!AY57 -> 0 | AX152: =+'INPUT DATA'!AZ57 -> 0 | AY152: =+'INPUT DATA'!BA57 -> 0 | AZ152: =+'INPUT DATA'!BB57 -> 0 | BA152: =+'INPUT DATA'!BC57 -> 0 | BB152: =+'INPUT DATA'!BD57 -> 0 | BC152: =+'INPUT DATA'!BE57 -> 0 | BD152: =+'INPUT DATA'!BF57 -> 0 | BE152: =+'INPUT DATA'!BG57 -> 0 | BF152: =+'INPUT DATA'!BH57 -> 0 | BG152: =+'INPUT DATA'!BI57 -> 0 | BH152: =+'INPUT DATA'!BJ57 -> 0 | BI152: =+'INPUT DATA'!BK57 -> 0 | BJ152: =+'INPUT DATA'!BL57 -> 0 | BK152: =+'INPUT DATA'!BM57 -> 0 | BL152: =+'INPUT DATA'!BN57 -> 0 | BM152: =+'INPUT DATA'!BO57 -> 0 | BN152: =+'INPUT DATA'!BP57 -> 0 | BO152: =+'INPUT DATA'!BQ57 -> 0 | BP152: =+'INPUT DATA'!BR57 -> 0 | BQ152: =+'INPUT DATA'!BS57 -> 0
C153: Operating Cash Flow | I153: =+I146+I150+I151+I152 -> -157968.1003 | J153: 78748.73294 | K153: 246819.8701 | L153: 411801.2368 | M153: 676347.2511 | N153: 493386.973 | O153: 673507.6066 | P153: 676800.1018 | Q153: 745931.1594 | R153: 621981.0079 | S153: 401384.0625 | T153: 422104.4413 | U153: 474912.3596 | V153: 394431.2889 | W153: 437610.6033 | X153: 460243.7358 | Y153: 349902.8175 | Z153: 205284.8841 | AA153: 228295.8437 | AB153: 184475.9976 | AC153: 153538.3476 | AD153: 84440.06624 | AE153: 0 | AF153: 0 | AG153: 0 | AH153: 0 | AI153: 0 | AJ153: 0 | AK153: 0 | AL153: 0 | AM153: 0 | AN153: 0 | AO153: 0 | AP153: 0 | AQ153: 0 | AR153: 0 | AS153: 0 | AT153: 0 | AU153: 0 | AV153: 0 | AW153: 0 | AX153: 0 | AY153: 0 | AZ153: =+AZ146+AZ150+AZ151+AZ152 -> 0 | BA153: 0 | BB153: 0 | BC153: 0 | BD153: 0 | BE153: 0 | BF153: 0 | BG153: 0 | BH153: 0 | BI153: 0 | BJ153: 0 | BK153: 0 | BL153: 0 | BM153: 0 | BN153: 0 | BO153: 0 | BP153: 0 | BQ153: 0
C154: Taxes | I154: =+'INPUT DATA'!K59 -> -15878.87666 | J154: =+'INPUT DATA'!L59 -> -22241.43461 | K154: =+'INPUT DATA'!M59 -> -24685.51218 | L154: =+'INPUT DATA'!N59 -> -26708.37682 | M154: =+'INPUT DATA'!O59 -> -89643.92773 | N154: =+'INPUT DATA'!P59 -> -24840.24448 | O154: =+'INPUT DATA'!Q59 -> -43319.2273 | P154: =+'INPUT DATA'!R59 -> -56747.75138 | Q154: =+'INPUT DATA'!S59 -> -136007.6801 | R154: =+'INPUT DATA'!T59 -> -27908.67493 | S154: =+'INPUT DATA'!U59 -> -29610.41343 | T154: =+'INPUT DATA'!V59 -> -73390.65848 | U154: =+'INPUT DATA'!W59 -> -53416.15823 | V154: =+'INPUT DATA'!X59 -> -34650.99575 | W154: =+'INPUT DATA'!Y59 -> -80574.18758 | X154: =+'INPUT DATA'!Z59 -> -115628.1451 | Y154: =+'INPUT DATA'!AA59 -> -98743.92357 | Z154: =+'INPUT DATA'!AB59 -> -58175.63596 | AA154: =+'INPUT DATA'!AC59 -> -53553.67436 | AB154: =+'INPUT DATA'!AD59 -> -63064.83329 | AC154: =+'INPUT DATA'!AE59 -> -51707.38528 | AD154: =+'INPUT DATA'!AF59 -> -24602.93005 | AE154: =+'INPUT DATA'!AG59 -> 0 | AF154: =+'INPUT DATA'!AH59 -> 0 | AG154: =+'INPUT DATA'!AI59 -> 0 | AH154: =+'INPUT DATA'!AJ59 -> 0 | AI154: =+'INPUT DATA'!AK59 -> 0 | AJ154: =+'INPUT DATA'!AL59 -> 0 | AK154: =+'INPUT DATA'!AM59 -> 0 | AL154: =+'INPUT DATA'!AN59 -> 0 | AM154: =+'INPUT DATA'!AO59 -> 0 | AN154: =+'INPUT DATA'!AP59 -> 0 | AO154: =+'INPUT DATA'!AQ59 -> 0 | AP154: =+'INPUT DATA'!AR59 -> 0 | AQ154: =+'INPUT DATA'!AS59 -> 0 | AR154: =+'INPUT DATA'!AT59 -> 0 | AS154: =+'INPUT DATA'!AU59 -> 0 | AT154: =+'INPUT DATA'!AV59 -> 0 | AU154: =+'INPUT DATA'!AW59 -> 0 | AV154: =+'INPUT DATA'!AX59 -> 0 | AW154: =+'INPUT DATA'!AY59 -> 0 | AX154: =+'INPUT DATA'!AZ59 -> 0 | AY154: =+'INPUT DATA'!BA59 -> 0 | AZ154: =+'INPUT DATA'!BB59 -> 0 | BA154: =+'INPUT DATA'!BC59 -> 0 | BB154: =+'INPUT DATA'!BD59 -> 0 | BC154: =+'INPUT DATA'!BE59 -> 0 | BD154: =+'INPUT DATA'!BF59 -> 0 | BE154: =+'INPUT DATA'!BG59 -> 0 | BF154: =+'INPUT DATA'!BH59 -> 0 | BG154: =+'INPUT DATA'!BI59 -> 0 | BH154: =+'INPUT DATA'!BJ59 -> 0 | BI154: =+'INPUT DATA'!BK59 -> 0 | BJ154: =+'INPUT DATA'!BL59 -> 0 | BK154: =+'INPUT DATA'!BM59 -> 0 | BL154: =+'INPUT DATA'!BN59 -> 0 | BM154: =+'INPUT DATA'!BO59 -> 0 | BN154: =+'INPUT DATA'!BP59 -> 0 | BO154: =+'INPUT DATA'!BQ59 -> 0 | BP154: =+'INPUT DATA'!BR59 -> 0 | BQ154: =+'INPUT DATA'!BS59 -> 0
C155: Operating Cash Flow After Tax | I155: =+I153+I154 -> -173846.977 | J155: 56507.29834 | K155: 222134.3579 | L155: 385092.86 | M155: 586703.3234 | N155: 468546.7285 | O155: 630188.3793 | P155: 620052.3504 | Q155: 609923.4793 | R155: 594072.333 | S155: 371773.6491 | T155: 348713.7828 | U155: 421496.2013 | V155: 359780.2931 | W155: 357036.4157 | X155: 344615.5908 | Y155: 251158.894 | Z155: 147109.2482 | AA155: 174742.1693 | AB155: 121411.1643 | AC155: 101830.9623 | AD155: 59837.1362 | AE155: 0 | AF155: 0 | AG155: 0 | AH155: 0 | AI155: 0 | AJ155: 0 | AK155: 0 | AL155: 0 | AM155: 0 | AN155: 0 | AO155: 0 | AP155: 0 | AQ155: 0 | AR155: 0 | AS155: 0 | AT155: 0 | AU155: 0 | AV155: 0 | AW155: 0 | AX155: 0 | AY155: 0 | AZ155: =+AZ153+AZ154 -> 0 | BA155: 0 | BB155: 0 | BC155: 0 | BD155: 0 | BE155: 0 | BF155: 0 | BG155: 0 | BH155: 0 | BI155: 0 | BJ155: 0 | BK155: 0 | BL155: 0 | BM155: 0 | BN155: 0 | BO155: 0 | BP155: 0 | BQ155: 0
C156: Debt Service | I156: =+'INPUT DATA'!K61 -> 410848.6536 | J156: =+'INPUT DATA'!L61 -> 135987.9557 | K156: =+'INPUT DATA'!M61 -> -34198.36157 | L156: =+'INPUT DATA'!N61 -> 13801.69526 | M156: =+'INPUT DATA'!O61 -> -344121.566 | N156: =+'INPUT DATA'!P61 -> -218815.7037 | O156: =+'INPUT DATA'!Q61 -> -307547.1663 | P156: =+'INPUT DATA'!R61 -> -231961.8229 | Q156: =+'INPUT DATA'!S61 -> -221772.7686 | R156: =+'INPUT DATA'!T61 -> -380686.9531 | S156: =+'INPUT DATA'!U61 -> -193266.8137 | T156: =+'INPUT DATA'!V61 -> -186787.3086 | U156: =+'INPUT DATA'!W61 -> -230543.7996 | V156: =+'INPUT DATA'!X61 -> -178025.294 | W156: =+'INPUT DATA'!Y61 -> -214006.1064 | X156: =+'INPUT DATA'!Z61 -> -212842.2883 | Y156: =+'INPUT DATA'!AA61 -> -192781.2877 | Z156: =+'INPUT DATA'!AB61 -> -68587.46027 | AA156: =+'INPUT DATA'!AC61 -> -38535.35941 | AB156: =+'INPUT DATA'!AD61 -> 0 | AC156: =+'INPUT DATA'!AE61 -> 0 | AD156: =+'INPUT DATA'!AF61 -> 0 | AE156: =+'INPUT DATA'!AG61 -> 0 | AF156: =+'INPUT DATA'!AH61 -> 0 | AG156: =+'INPUT DATA'!AI61 -> 0 | AH156: =+'INPUT DATA'!AJ61 -> 0 | AI156: =+'INPUT DATA'!AK61 -> 0 | AJ156: =+'INPUT DATA'!AL61 -> 0 | AK156: =+'INPUT DATA'!AM61 -> 0 | AL156: =+'INPUT DATA'!AN61 -> 0 | AM156: =+'INPUT DATA'!AO61 -> 0 | AN156: =+'INPUT DATA'!AP61 -> 0 | AO156: =+'INPUT DATA'!AQ61 -> 0 | AP156: =+'INPUT DATA'!AR61 -> 0 | AQ156: =+'INPUT DATA'!AS61 -> 0 | AR156: =+'INPUT DATA'!AT61 -> 0 | AS156: =+'INPUT DATA'!AU61 -> 0 | AT156: =+'INPUT DATA'!AV61 -> 0 | AU156: =+'INPUT DATA'!AW61 -> 0 | AV156: =+'INPUT DATA'!AX61 -> 0 | AW156: =+'INPUT DATA'!AY61 -> 0 | AX156: =+'INPUT DATA'!AZ61 -> 0 | AY156: =+'INPUT DATA'!BA61 -> 0 | AZ156: =+'INPUT DATA'!BB61 -> 0 | BA156: =+'INPUT DATA'!BC61 -> 0 | BB156: =+'INPUT DATA'!BD61 -> 0 | BC156: =+'INPUT DATA'!BE61 -> 0 | BD156: =+'INPUT DATA'!BF61 -> 0 | BE156: =+'INPUT DATA'!BG61 -> 0 | BF156: =+'INPUT DATA'!BH61 -> 0 | BG156: =+'INPUT DATA'!BI61 -> 0 | BH156: =+'INPUT DATA'!BJ61 -> 0 | BI156: =+'INPUT DATA'!BK61 -> 0 | BJ156: =+'INPUT DATA'!BL61 -> 0 | BK156: =+'INPUT DATA'!BM61 -> 0 | BL156: =+'INPUT DATA'!BN61 -> 0 | BM156: =+'INPUT DATA'!BO61 -> 0 | BN156: =+'INPUT DATA'!BP61 -> 0 | BO156: =+'INPUT DATA'!BQ61 -> 0 | BP156: =+'INPUT DATA'!BR61 -> 0 | BQ156: =+'INPUT DATA'!BS61 -> 0
C157: Interest income | I157: =+'INPUT DATA'!K62 -> -196657.2112 | J157: =+'INPUT DATA'!L62 -> -171127.3237 | K157: =+'INPUT DATA'!M62 -> -179553.2259 | L157: =+'INPUT DATA'!N62 -> -187554.0385 | M157: =+'INPUT DATA'!O62 -> -182040.8943 | N157: =+'INPUT DATA'!P62 -> -171344.7595 | O157: =+'INPUT DATA'!Q62 -> -157468.3368 | P157: =+'INPUT DATA'!R62 -> -134283.1466 | Q157: =+'INPUT DATA'!S62 -> -143771.5039 | R157: =+'INPUT DATA'!T62 -> -121106.2932 | S157: =+'INPUT DATA'!U62 -> -104942.3538 | T157: =+'INPUT DATA'!V62 -> -94142.2335 | U157: =+'INPUT DATA'!W62 -> -81441.56067 | V157: =+'INPUT DATA'!X62 -> -68442.3091 | W157: =+'INPUT DATA'!Y62 -> -54767.59517 | X157: =+'INPUT DATA'!Z62 -> -39001.48797 | Y157: =+'INPUT DATA'!AA62 -> -21250.75908 | Z157: =+'INPUT DATA'!AB62 -> -10695.79203 | AA157: =+'INPUT DATA'!AC62 -> -5307.167444 | AB157: =+'INPUT DATA'!AD62 -> -3.04839644e-12 | AC157: =+'INPUT DATA'!AE62 -> -3.107735881e-12 | AD157: =+'INPUT DATA'!AF62 -> -3.168230411e-12 | AE157: =+'INPUT DATA'!AG62 -> 0 | AF157: =+'INPUT DATA'!AH62 -> 0 | AG157: =+'INPUT DATA'!AI62 -> 0 | AH157: =+'INPUT DATA'!AJ62 -> 0 | AI157: =+'INPUT DATA'!AK62 -> 0 | AJ157: =+'INPUT DATA'!AL62 -> 0 | AK157: =+'INPUT DATA'!AM62 -> 0 | AL157: =+'INPUT DATA'!AN62 -> 0 | AM157: =+'INPUT DATA'!AO62 -> 0 | AN157: =+'INPUT DATA'!AP62 -> 0 | AO157: =+'INPUT DATA'!AQ62 -> 0 | AP157: =+'INPUT DATA'!AR62 -> 0 | AQ157: =+'INPUT DATA'!AS62 -> 0 | AR157: =+'INPUT DATA'!AT62 -> 0 | AS157: =+'INPUT DATA'!AU62 -> 0 | AT157: =+'INPUT DATA'!AV62 -> 0 | AU157: =+'INPUT DATA'!AW62 -> 0 | AV157: =+'INPUT DATA'!AX62 -> 0 | AW157: =+'INPUT DATA'!AY62 -> 0 | AX157: =+'INPUT DATA'!AZ62 -> 0 | AY157: =+'INPUT DATA'!BA62 -> 0 | AZ157: =+'INPUT DATA'!BB62 -> 0 | BA157: =+'INPUT DATA'!BC62 -> 0 | BB157: =+'INPUT DATA'!BD62 -> 0 | BC157: =+'INPUT DATA'!BE62 -> 0 | BD157: =+'INPUT DATA'!BF62 -> 0 | BE157: =+'INPUT DATA'!BG62 -> 0 | BF157: =+'INPUT DATA'!BH62 -> 0 | BG157: =+'INPUT DATA'!BI62 -> 0 | BH157: =+'INPUT DATA'!BJ62 -> 0 | BI157: =+'INPUT DATA'!BK62 -> 0 | BJ157: =+'INPUT DATA'!BL62 -> 0 | BK157: =+'INPUT DATA'!BM62 -> 0 | BL157: =+'INPUT DATA'!BN62 -> 0 | BM157: =+'INPUT DATA'!BO62 -> 0 | BN157: =+'INPUT DATA'!BP62 -> 0 | BO157: =+'INPUT DATA'!BQ62 -> 0 | BP157: =+'INPUT DATA'!BR62 -> 0 | BQ157: =+'INPUT DATA'!BS62 -> 0
C158: Free Cash Flow To Equity | I158: =+I155+I156+I157 -> 40344.46544 | J158: 21367.93028 | K158: 8382.770455 | L158: 211340.5168 | M158: 60540.86308 | N158: 78386.26527 | O158: 165172.8761 | P158: 253807.3808 | Q158: 244379.2067 | R158: 92279.08665 | S158: 73564.48163 | T158: 67784.24069 | U158: 109510.841 | V158: 113312.69 | W158: 88262.71406 | X158: 92771.81449 | Y158: 37126.84722 | Z158: 67825.99587 | AA158: 130899.6425 | AB158: 121411.1643 | AC158: 101830.9623 | AD158: 59837.1362 | AE158: 0 | AF158: 0 | AG158: 0 | AH158: 0 | AI158: 0 | AJ158: 0 | AK158: 0 | AL158: 0 | AM158: 0 | AN158: 0 | AO158: 0 | AP158: 0 | AQ158: 0 | AR158: 0 | AS158: 0 | AT158: 0 | AU158: 0 | AV158: 0 | AW158: 0 | AX158: 0 | AY158: 0 | AZ158: =+AZ155+AZ156+AZ157 -> 0 | BA158: 0 | BB158: 0 | BC158: 0 | BD158: 0 | BE158: 0 | BF158: 0 | BG158: 0 | BH158: 0 | BI158: 0 | BJ158: 0 | BK158: 0 | BL158: 0 | BM158: 0 | BN158: 0 | BO158: 0 | BP158: 0 | BQ158: 0
C159: Distributions to Shareholders | I159: =+'INPUT DATA'!K64 -> -74722.40928 | J159: =+'INPUT DATA'!L64 -> -76146.42788 | K159: =+'INPUT DATA'!M64 -> -67558.20883 | L159: =+'INPUT DATA'!N64 -> -84047.13532 | M159: =+'INPUT DATA'!O64 -> -141301.2766 | N159: =+'INPUT DATA'!P64 -> -135972.0536 | O159: =+'INPUT DATA'!Q64 -> -171262.1791 | P159: =+'INPUT DATA'!R64 -> -210711.2655 | Q159: =+'INPUT DATA'!S64 -> -187097.3501 | R159: =+'INPUT DATA'!T64 -> -152797.0226 | S159: =+'INPUT DATA'!U64 -> -88128.11798 | T159: =+'INPUT DATA'!V64 -> -93158.19226 | U159: =+'INPUT DATA'!W64 -> -61291.01579 | V159: =+'INPUT DATA'!X64 -> -98969.49212 | W159: =+'INPUT DATA'!Y64 -> -111552.3482 | X159: =+'INPUT DATA'!Z64 -> -120475.0497 | Y159: =+'INPUT DATA'!AA64 -> -88036.14764 | Z159: =+'INPUT DATA'!AB64 -> -62854.56621 | AA159: =+'INPUT DATA'!AC64 -> -99597.1561 | AB159: =+'INPUT DATA'!AD64 -> -138444.6557 | AC159: =+'INPUT DATA'!AE64 -> -121071.387 | AD159: =+'INPUT DATA'!AF64 -> -59837.1362 | AE159: =+'INPUT DATA'!AG64 -> 0 | AF159: =+'INPUT DATA'!AH64 -> 0 | AG159: =+'INPUT DATA'!AI64 -> 0 | AH159: =+'INPUT DATA'!AJ64 -> 0 | AI159: =+'INPUT DATA'!AK64 -> 0 | AJ159: =+'INPUT DATA'!AL64 -> 0 | AK159: =+'INPUT DATA'!AM64 -> 0 | AL159: =+'INPUT DATA'!AN64 -> 0 | AM159: =+'INPUT DATA'!AO64 -> 0 | AN159: =+'INPUT DATA'!AP64 -> 0 | AO159: =+'INPUT DATA'!AQ64 -> 0 | AP159: =+'INPUT DATA'!AR64 -> 0 | AQ159: =+'INPUT DATA'!AS64 -> 0 | AR159: =+'INPUT DATA'!AT64 -> 0 | AS159: =+'INPUT DATA'!AU64 -> 0 | AT159: =+'INPUT DATA'!AV64 -> 0 | AU159: =+'INPUT DATA'!AW64 -> 0 | AV159: =+'INPUT DATA'!AX64 -> 0 | AW159: =+'INPUT DATA'!AY64 -> 0 | AX159: =+'INPUT DATA'!AZ64 -> 0 | AY159: =+'INPUT DATA'!BA64 -> 0 | AZ159: =+'INPUT DATA'!BB64 -> 0 | BA159: =+'INPUT DATA'!BC64 -> 0 | BB159: =+'INPUT DATA'!BD64 -> 0 | BC159: =+'INPUT DATA'!BE64 -> 0 | BD159: =+'INPUT DATA'!BF64 -> 0 | BE159: =+'INPUT DATA'!BG64 -> 0 | BF159: =+'INPUT DATA'!BH64 -> 0 | BG159: =+'INPUT DATA'!BI64 -> 0 | BH159: =+'INPUT DATA'!BJ64 -> 0 | BI159: =+'INPUT DATA'!BK64 -> 0 | BJ159: =+'INPUT DATA'!BL64 -> 0 | BK159: =+'INPUT DATA'!BM64 -> 0 | BL159: =+'INPUT DATA'!BN64 -> 0 | BM159: =+'INPUT DATA'!BO64 -> 0 | BN159: =+'INPUT DATA'!BP64 -> 0 | BO159: =+'INPUT DATA'!BQ64 -> 0 | BP159: =+'INPUT DATA'!BR64 -> 0 | BQ159: =+'INPUT DATA'!BS64 -> 0
C160: Equity | I160: =+'INPUT DATA'!K65 -> 99320.04186 | J160: =+'INPUT DATA'!L65 -> 35134.88445 | K160: =+'INPUT DATA'!M65 -> 6141.368514 | L160: =+'INPUT DATA'!N65 -> 0 | M160: =+'INPUT DATA'!O65 -> 0 | N160: =+'INPUT DATA'!P65 -> 0 | O160: =+'INPUT DATA'!Q65 -> 0 | P160: =+'INPUT DATA'!R65 -> 0 | Q160: =+'INPUT DATA'!S65 -> 0 | R160: =+'INPUT DATA'!T65 -> 0 | S160: =+'INPUT DATA'!U65 -> 0 | T160: =+'INPUT DATA'!V65 -> 0 | U160: =+'INPUT DATA'!W65 -> 0 | V160: =+'INPUT DATA'!X65 -> 0 | W160: =+'INPUT DATA'!Y65 -> 0 | X160: =+'INPUT DATA'!Z65 -> 0 | Y160: =+'INPUT DATA'!AA65 -> 0 | Z160: =+'INPUT DATA'!AB65 -> 0 | AA160: =+'INPUT DATA'!AC65 -> 0 | AB160: =+'INPUT DATA'!AD65 -> 0 | AC160: =+'INPUT DATA'!AE65 -> 0 | AD160: =+'INPUT DATA'!AF65 -> 0 | AE160: =+'INPUT DATA'!AG65 -> 0 | AF160: =+'INPUT DATA'!AH65 -> 0 | AG160: =+'INPUT DATA'!AI65 -> 0 | AH160: =+'INPUT DATA'!AJ65 -> 0 | AI160: =+'INPUT DATA'!AK65 -> 0 | AJ160: =+'INPUT DATA'!AL65 -> 0 | AK160: =+'INPUT DATA'!AM65 -> 0 | AL160: =+'INPUT DATA'!AN65 -> 0 | AM160: =+'INPUT DATA'!AO65 -> 0 | AN160: =+'INPUT DATA'!AP65 -> 0 | AO160: =+'INPUT DATA'!AQ65 -> 0 | AP160: =+'INPUT DATA'!AR65 -> 0 | AQ160: =+'INPUT DATA'!AS65 -> 0 | AR160: =+'INPUT DATA'!AT65 -> 0 | AS160: =+'INPUT DATA'!AU65 -> 0 | AT160: =+'INPUT DATA'!AV65 -> 0 | AU160: =+'INPUT DATA'!AW65 -> 0 | AV160: =+'INPUT DATA'!AX65 -> 0 | AW160: =+'INPUT DATA'!AY65 -> 0 | AX160: =+'INPUT DATA'!AZ65 -> 0 | AY160: =+'INPUT DATA'!BA65 -> 0 | AZ160: =+'INPUT DATA'!BB65 -> 0 | BA160: =+'INPUT DATA'!BC65 -> 0 | BB160: =+'INPUT DATA'!BD65 -> 0 | BC160: =+'INPUT DATA'!BE65 -> 0 | BD160: =+'INPUT DATA'!BF65 -> 0 | BE160: =+'INPUT DATA'!BG65 -> 0 | BF160: =+'INPUT DATA'!BH65 -> 0 | BG160: =+'INPUT DATA'!BI65 -> 0 | BH160: =+'INPUT DATA'!BJ65 -> 0 | BI160: =+'INPUT DATA'!BK65 -> 0 | BJ160: =+'INPUT DATA'!BL65 -> 0 | BK160: =+'INPUT DATA'!BM65 -> 0 | BL160: =+'INPUT DATA'!BN65 -> 0 | BM160: =+'INPUT DATA'!BO65 -> 0 | BN160: =+'INPUT DATA'!BP65 -> 0 | BO160: =+'INPUT DATA'!BQ65 -> 0 | BP160: =+'INPUT DATA'!BR65 -> 0 | BQ160: =+'INPUT DATA'!BS65 -> 0
C161: Net Cash Flow | I161: =+I158+I159+I160 -> 64942.09802 | J161: -19643.61315 | K161: -53034.06986 | L161: 127293.3815 | M161: -80760.41349 | N161: -57585.78837 | O161: -6089.302968 | P161: 43096.11533 | Q161: 57281.85666 | R161: -60517.93593 | S161: -14563.63634 | T161: -25373.95157 | U161: 48219.82523 | V161: 14343.19792 | W161: -23289.63414 | X161: -27703.23525 | Y161: -50909.30042 | Z161: 4971.429658 | AA161: 31302.48638 | AB161: -17033.49137 | AC161: -19240.42467 | AD161: 1.455191523e-11 | AE161: 0 | AF161: 0 | AG161: 0 | AH161: 0 | AI161: 0 | AJ161: 0 | AK161: 0 | AL161: 0 | AM161: 0 | AN161: 0 | AO161: 0 | AP161: 0 | AQ161: 0 | AR161: 0 | AS161: 0 | AT161: 0 | AU161: 0 | AV161: 0 | AW161: 0 | AX161: 0 | AY161: 0 | AZ161: =+AZ158+AZ159+AZ160 -> 0 | BA161: 0 | BB161: 0 | BC161: 0 | BD161: 0 | BE161: 0 | BF161: 0 | BG161: 0 | BH161: 0 | BI161: 0 | BJ161: 0 | BK161: 0 | BL161: 0 | BM161: 0 | BN161: 0 | BO161: 0 | BP161: 0 | BQ161: 0
C162: Cash EoP | H162: =+'INPUT DATA'!J67 -> 64294.40677 | I162: =+I161+H162 -> 129236.5048 | J162: 109592.8916 | K162: 56558.82178 | L162: 183852.2032 | M162: 103091.7897 | N162: 45506.00138 | O162: 39416.69841 | P162: 82512.81373 | Q162: 139794.6704 | R162: 79276.73446 | S162: 64713.09812 | T162: 39339.14655 | U162: 87558.97178 | V162: 101902.1697 | W162: 78612.53556 | X162: 50909.3003 | Y162: -0.000121895675 | Z162: 4971.429537 | AA162: 36273.91592 | AB162: 19240.42455 | AC162: -0.0001218522666 | AD162: -0.0001218522521 | AE162: -0.0001218522521 | AF162: -0.0001218522521 | AG162: -0.0001218522521 | AH162: -0.0001218522521 | AI162: -0.0001218522521 | AJ162: -0.0001218522521 | AK162: -0.0001218522521 | AL162: -0.0001218522521 | AM162: -0.0001218522521 | AN162: -0.0001218522521 | AO162: -0.0001218522521 | AP162: -0.0001218522521 | AQ162: -0.0001218522521 | AR162: -0.0001218522521 | AS162: -0.0001218522521 | AT162: -0.0001218522521 | AU162: -0.0001218522521 | AV162: -0.0001218522521 | AW162: -0.0001218522521 | AX162: -0.0001218522521 | AY162: -0.0001218522521 | AZ162: =+AZ161+AY162 -> -0.0001218522521 | BA162: =+BA161+AZ162 -> -0.0001218522521 | BB162: =+BB161+BA162 -> -0.0001218522521 | BC162: =+BC161+BB162 -> -0.0001218522521 | BD162: =+BD161+BC162 -> -0.0001218522521 | BE162: =+BE161+BD162 -> -0.0001218522521 | BF162: =+BF161+BE162 -> -0.0001218522521 | BG162: =+BG161+BF162 -> -0.0001218522521 | BH162: =+BH161+BG162 -> -0.0001218522521 | BI162: =+BI161+BH162 -> -0.0001218522521 | BJ162: =+BJ161+BI162 -> -0.0001218522521 | BK162: =+BK161+BJ162 -> -0.0001218522521 | BL162: =+BL161+BK162 -> -0.0001218522521 | BM162: =+BM161+BL162 -> -0.0001218522521 | BN162: =+BN161+BM162 -> -0.0001218522521 | BO162: =+BO161+BN162 -> -0.0001218522521 | BP162: =+BP161+BO162 -> -0.0001218522521 | BQ162: =+BQ161+BP162 -> -0.0001218522521
A167: 1 | C167: Chile
C169: =+"Cash Flow "&C167&" - [000' EUR]" -> Cash Flow Chile - [000' EUR]
C170: Year | I170: =+I$12 -> 2025 | J170: 2026 | K170: 2027 | L170: 2028 | M170: 2029 | N170: 2030 | O170: 2031 | P170: 2032 | Q170: 2033 | R170: 2034 | S170: 2035 | T170: 2036 | U170: 2037 | V170: 2038 | W170: 2039 | X170: 2040 | Y170: 2041 | Z170: 2042 | AA170: 2043 | AB170: 2044 | AC170: 2045 | AD170: 2046 | AE170: 2047 | AF170: 2048 | AG170: 2049 | AH170: 2050 | AI170: 2051 | AJ170: 2052 | AK170: 2053 | AL170: 2054 | AM170: 2055 | AN170: 2056 | AO170: =+AO$12 -> 2057 | AP170: 2058 | AQ170: 2059 | AR170: 2060 | AS170: 2061 | AT170: 2062 | AU170: 2063 | AV170: 2064 | AW170: 2065 | AX170: 2066 | AY170: 2067 | AZ170: 2068 | BA170: 2069 | BB170: 2070 | BC170: 2071 | BD170: 2072 | BE170: 2073 | BF170: 2074 | BG170: 2075 | BH170: 2076 | BI170: 2077 | BJ170: 2078 | BK170: 2079 | BL170: 2080 | BM170: 2081 | BN170: 2082 | BO170: 2083 | BP170: 2084 | BQ170: 2085
C171: Income | I171: =+I172+I173+I174 -> 263036.0943 | J171: 333842.9711 | K171: 360486.8193 | L171: 388547.9335 | M171: 417864.825 | N171: 441011.428 | O171: 467930.3756 | P171: 502521.6831 | Q171: 1196034.589 | R171: 438240.3131 | S171: 324137.3595 | T171: 223264.8537 | U171: 222053.4076 | V171: 234413.3066 | W171: 247270.9693 | X171: 260203.7111 | Y171: 268306.5583 | Z171: 270798.7977 | AA171: 264264.0504 | AB171: 231078.3514 | AC171: 241961.9447 | AD171: 253711.2323 | AE171: 250883.7828 | AF171: 259537.8648 | AG171: 271914.4034 | AH171: 285360.9316 | AI171: 299183.1238 | AJ171: 306082.6122 | AK171: 314117.3456 | AL171: 329775.174 | AM171: 346418.186 | AN171: 363947.838 | AO171: 342693.3869 | AP171: 178836.4729 | AQ171: 191666.4252 | AR171: 205783.1121 | AS171: 220649.1216 | AT171: 237900.9485 | AU171: 257558.1187 | AV171: 295900 | AW171: 0 | AX171: 0 | AY171: 0 | AZ171: =+AZ172+AZ173+AZ174 -> 0 | BA171: 0 | BB171: 0 | BC171: 0 | BD171: 0 | BE171: 0 | BF171: 0 | BG171: 0 | BH171: 0 | BI171: 0 | BJ171: 0 | BK171: 0 | BL171: 0 | BM171: 0 | BN171: 0 | BO171: 0 | BP171: 0 | BQ171: 0
C172: Income with mitigated demand risk | I172: =+'INPUT DATA'!K77 -> 42416.54114 | J172: =+'INPUT DATA'!L77 -> 98212.77304 | K172: =+'INPUT DATA'!M77 -> 95747.56535 | L172: =+'INPUT DATA'!N77 -> 89671.8837 | M172: =+'INPUT DATA'!O77 -> 92460.97908 | N172: =+'INPUT DATA'!P77 -> 91978.95028 | O172: =+'INPUT DATA'!Q77 -> 92229.52562 | P172: =+'INPUT DATA'!R77 -> 96495.03469 | Q172: =+'INPUT DATA'!S77 -> 757297.7461 | R172: =+'INPUT DATA'!T77 -> 81312.59238 | S172: =+'INPUT DATA'!U77 -> 32319.7365 | T172: =+'INPUT DATA'!V77 -> 23211.41685 | U172: =+'INPUT DATA'!W77 -> 13675.51823 | V172: =+'INPUT DATA'!X77 -> 14141.73758 | W172: =+'INPUT DATA'!Y77 -> 14625.16021 | X172: =+'INPUT DATA'!Z77 -> 14287.33683 | Y172: =+'INPUT DATA'!AA77 -> 8698.398058 | Z172: =+'INPUT DATA'!AB77 -> 950.5591399 | AA172: =+'INPUT DATA'!AC77 -> 4623.342253 | AB172: =+'INPUT DATA'!AD77 -> 1009.281183 | AC172: =+'INPUT DATA'!AE77 -> 680.8829947 | AD172: =+'INPUT DATA'!AF77 -> 701.5926882 | AE172: =+'INPUT DATA'!AG77 -> 722.9323498 | AF172: =+'INPUT DATA'!AH77 -> 744.9416913 | AG172: =+'INPUT DATA'!AI77 -> 767.5785546 | AH172: =+'INPUT DATA'!AJ77 -> 790.9251696 | AI172: =+'INPUT DATA'!AK77 -> 814.9818962 | AJ172: =+'INPUT DATA'!AL77 -> 839.7935449 | AK172: =+'INPUT DATA'!AM77 -> 865.312853 | AL172: =+'INPUT DATA'!AN77 -> 891.6321021 | AM172: =+'INPUT DATA'!AO77 -> 813.6935926 | AN172: =+'INPUT DATA'!AP77 -> 946.7228748 | AO172: =+'INPUT DATA'!AQ77 -> 975.491173 | AP172: =+'INPUT DATA'!AR77 -> 0 | AQ172: =+'INPUT DATA'!AS77 -> 0 | AR172: =+'INPUT DATA'!AT77 -> 0 | AS172: =+'INPUT DATA'!AU77 -> 0 | AT172: =+'INPUT DATA'!AV77 -> 0 | AU172: =+'INPUT DATA'!AW77 -> 0 | AV172: =+'INPUT DATA'!AX77 -> 0 | AW172: =+'INPUT DATA'!AY77 -> 0 | AX172: =+'INPUT DATA'!AZ77 -> 0 | AY172: =+'INPUT DATA'!BA77 -> 0 | AZ172: =+'INPUT DATA'!BB77 -> 0 | BA172: =+'INPUT DATA'!BC77 -> 0 | BB172: =+'INPUT DATA'!BD77 -> 0 | BC172: =+'INPUT DATA'!BE77 -> 0 | BD172: =+'INPUT DATA'!BF77 -> 0 | BE172: =+'INPUT DATA'!BG77 -> 0 | BF172: =+'INPUT DATA'!BH77 -> 0 | BG172: =+'INPUT DATA'!BI77 -> 0 | BH172: =+'INPUT DATA'!BJ77 -> 0 | BI172: =+'INPUT DATA'!BK77 -> 0 | BJ172: =+'INPUT DATA'!BL77 -> 0 | BK172: =+'INPUT DATA'!BM77 -> 0 | BL172: =+'INPUT DATA'!BN77 -> 0 | BM172: =+'INPUT DATA'!BO77 -> 0 | BN172: =+'INPUT DATA'!BP77 -> 0 | BO172: =+'INPUT DATA'!BQ77 -> 0 | BP172: =+'INPUT DATA'!BR77 -> 0 | BQ172: =+'INPUT DATA'!BS77 -> 0
C173: Income with low demand risk | I173: =+'INPUT DATA'!K78 -> 203738.5498 | J173: =+'INPUT DATA'!L78 -> 218687.0903 | K173: =+'INPUT DATA'!M78 -> 246391.6483 | L173: =+'INPUT DATA'!N78 -> 274463.4231 | M173: =+'INPUT DATA'!O78 -> 299142.7189 | N173: =+'INPUT DATA'!P78 -> 321067.3408 | O173: =+'INPUT DATA'!Q78 -> 345815.1659 | P173: =+'INPUT DATA'!R78 -> 373194.185 | Q173: =+'INPUT DATA'!S78 -> 403230.9912 | R173: =+'INPUT DATA'!T78 -> 332020.6506 | S173: =+'INPUT DATA'!U78 -> 271317.9715 | T173: =+'INPUT DATA'!V78 -> 178299.9941 | U173: =+'INPUT DATA'!W78 -> 184450.7092 | V173: =+'INPUT DATA'!X78 -> 195061.7861 | W173: =+'INPUT DATA'!Y78 -> 205967.633 | X173: =+'INPUT DATA'!Z78 -> 217459.8303 | Y173: =+'INPUT DATA'!AA78 -> 228972.2093 | Z173: =+'INPUT DATA'!AB78 -> 236366.9786 | AA173: =+'INPUT DATA'!AC78 -> 225758.4295 | AB173: =+'INPUT DATA'!AD78 -> 230069.0702 | AC173: =+'INPUT DATA'!AE78 -> 241281.0617 | AD173: =+'INPUT DATA'!AF78 -> 253009.6396 | AE173: =+'INPUT DATA'!AG78 -> 250160.8504 | AF173: =+'INPUT DATA'!AH78 -> 258792.9231 | AG173: =+'INPUT DATA'!AI78 -> 271146.8248 | AH173: =+'INPUT DATA'!AJ78 -> 284570.0064 | AI173: =+'INPUT DATA'!AK78 -> 298368.1419 | AJ173: =+'INPUT DATA'!AL78 -> 305242.8186 | AK173: =+'INPUT DATA'!AM78 -> 313252.0328 | AL173: =+'INPUT DATA'!AN78 -> 328883.5419 | AM173: =+'INPUT DATA'!AO78 -> 345604.4924 | AN173: =+'INPUT DATA'!AP78 -> 363001.1151 | AO173: =+'INPUT DATA'!AQ78 -> 341717.8958 | AP173: =+'INPUT DATA'!AR78 -> 178836.4729 | AQ173: =+'INPUT DATA'!AS78 -> 191666.4252 | AR173: =+'INPUT DATA'!AT78 -> 205783.1121 | AS173: =+'INPUT DATA'!AU78 -> 220649.1216 | AT173: =+'INPUT DATA'!AV78 -> 237900.9485 | AU173: =+'INPUT DATA'!AW78 -> 257558.1187 | AV173: =+'INPUT DATA'!AX78 -> 295900 | AW173: =+'INPUT DATA'!AY78 -> 0 | AX173: =+'INPUT DATA'!AZ78 -> 0 | AY173: =+'INPUT DATA'!BA78 -> 0 | AZ173: =+'INPUT DATA'!BB78 -> 0 | BA173: =+'INPUT DATA'!BC78 -> 0 | BB173: =+'INPUT DATA'!BD78 -> 0 | BC173: =+'INPUT DATA'!BE78 -> 0 | BD173: =+'INPUT DATA'!BF78 -> 0 | BE173: =+'INPUT DATA'!BG78 -> 0 | BF173: =+'INPUT DATA'!BH78 -> 0 | BG173: =+'INPUT DATA'!BI78 -> 0 | BH173: =+'INPUT DATA'!BJ78 -> 0 | BI173: =+'INPUT DATA'!BK78 -> 0 | BJ173: =+'INPUT DATA'!BL78 -> 0 | BK173: =+'INPUT DATA'!BM78 -> 0 | BL173: =+'INPUT DATA'!BN78 -> 0 | BM173: =+'INPUT DATA'!BO78 -> 0 | BN173: =+'INPUT DATA'!BP78 -> 0 | BO173: =+'INPUT DATA'!BQ78 -> 0 | BP173: =+'INPUT DATA'!BR78 -> 0 | BQ173: =+'INPUT DATA'!BS78 -> 0
C174: Income with demand risk | I174: =+'INPUT DATA'!K79 -> 16881.00331 | J174: =+'INPUT DATA'!L79 -> 16943.10772 | K174: =+'INPUT DATA'!M79 -> 18347.60558 | L174: =+'INPUT DATA'!N79 -> 24412.62667 | M174: =+'INPUT DATA'!O79 -> 26261.12699 | N174: =+'INPUT DATA'!P79 -> 27965.13689 | O174: =+'INPUT DATA'!Q79 -> 29885.6841 | P174: =+'INPUT DATA'!R79 -> 32832.46333 | Q174: =+'INPUT DATA'!S79 -> 35505.85174 | R174: =+'INPUT DATA'!T79 -> 24907.07005 | S174: =+'INPUT DATA'!U79 -> 20499.65149 | T174: =+'INPUT DATA'!V79 -> 21753.44276 | U174: =+'INPUT DATA'!W79 -> 23927.18021 | V174: =+'INPUT DATA'!X79 -> 25209.78291 | W174: =+'INPUT DATA'!Y79 -> 26678.17611 | X174: =+'INPUT DATA'!Z79 -> 28456.54405 | Y174: =+'INPUT DATA'!AA79 -> 30635.95093 | Z174: =+'INPUT DATA'!AB79 -> 33481.26003 | AA174: =+'INPUT DATA'!AC79 -> 33882.27857 | AB174: =+'INPUT DATA'!AD79 -> 0 | AC174: =+'INPUT DATA'!AE79 -> 0 | AD174: =+'INPUT DATA'!AF79 -> 0 | AE174: =+'INPUT DATA'!AG79 -> 0 | AF174: =+'INPUT DATA'!AH79 -> 0 | AG174: =+'INPUT DATA'!AI79 -> 0 | AH174: =+'INPUT DATA'!AJ79 -> 0 | AI174: =+'INPUT DATA'!AK79 -> 0 | AJ174: =+'INPUT DATA'!AL79 -> 0 | AK174: =+'INPUT DATA'!AM79 -> 0 | AL174: =+'INPUT DATA'!AN79 -> 0 | AM174: =+'INPUT DATA'!AO79 -> 0 | AN174: =+'INPUT DATA'!AP79 -> 0 | AO174: =+'INPUT DATA'!AQ79 -> 0 | AP174: =+'INPUT DATA'!AR79 -> 0 | AQ174: =+'INPUT DATA'!AS79 -> 0 | AR174: =+'INPUT DATA'!AT79 -> 0 | AS174: =+'INPUT DATA'!AU79 -> 0 | AT174: =+'INPUT DATA'!AV79 -> 0 | AU174: =+'INPUT DATA'!AW79 -> 0 | AV174: =+'INPUT DATA'!AX79 -> 0 | AW174: =+'INPUT DATA'!AY79 -> 0 | AX174: =+'INPUT DATA'!AZ79 -> 0 | AY174: =+'INPUT DATA'!BA79 -> 0 | AZ174: =+'INPUT DATA'!BB79 -> 0 | BA174: =+'INPUT DATA'!BC79 -> 0 | BB174: =+'INPUT DATA'!BD79 -> 0 | BC174: =+'INPUT DATA'!BE79 -> 0 | BD174: =+'INPUT DATA'!BF79 -> 0 | BE174: =+'INPUT DATA'!BG79 -> 0 | BF174: =+'INPUT DATA'!BH79 -> 0 | BG174: =+'INPUT DATA'!BI79 -> 0 | BH174: =+'INPUT DATA'!BJ79 -> 0 | BI174: =+'INPUT DATA'!BK79 -> 0 | BJ174: =+'INPUT DATA'!BL79 -> 0 | BK174: =+'INPUT DATA'!BM79 -> 0 | BL174: =+'INPUT DATA'!BN79 -> 0 | BM174: =+'INPUT DATA'!BO79 -> 0 | BN174: =+'INPUT DATA'!BP79 -> 0 | BO174: =+'INPUT DATA'!BQ79 -> 0 | BP174: =+'INPUT DATA'!BR79 -> 0 | BQ174: =+'INPUT DATA'!BS79 -> 0
C175: Operating Costs | I175: =+'INPUT DATA'!K80 -> -83996.84591 | J175: =+'INPUT DATA'!L80 -> -90834.33924 | K175: =+'INPUT DATA'!M80 -> -98084.67038 | L175: =+'INPUT DATA'!N80 -> -103037.8669 | M175: =+'INPUT DATA'!O80 -> -102512.5933 | N175: =+'INPUT DATA'!P80 -> -115839.8766 | O175: =+'INPUT DATA'!Q80 -> -122484.1566 | P175: =+'INPUT DATA'!R80 -> -126106.9458 | Q175: =+'INPUT DATA'!S80 -> -215649.6551 | R175: =+'INPUT DATA'!T80 -> -98152.48564 | S175: =+'INPUT DATA'!U80 -> -53393.18434 | T175: =+'INPUT DATA'!V80 -> -48046.82767 | U175: =+'INPUT DATA'!W80 -> -49216.74052 | V175: =+'INPUT DATA'!X80 -> -50977.58154 | W175: =+'INPUT DATA'!Y80 -> -53036.94261 | X175: =+'INPUT DATA'!Z80 -> -54636.80795 | Y175: =+'INPUT DATA'!AA80 -> -48811.34591 | Z175: =+'INPUT DATA'!AB80 -> -45863.41774 | AA175: =+'INPUT DATA'!AC80 -> -48107.77176 | AB175: =+'INPUT DATA'!AD80 -> -35265.65854 | AC175: =+'INPUT DATA'!AE80 -> -36213.41767 | AD175: =+'INPUT DATA'!AF80 -> -36930.11952 | AE175: =+'INPUT DATA'!AG80 -> -35834.18246 | AF175: =+'INPUT DATA'!AH80 -> -36986.16528 | AG175: =+'INPUT DATA'!AI80 -> -38236.73629 | AH175: =+'INPUT DATA'!AJ80 -> -39369.13533 | AI175: =+'INPUT DATA'!AK80 -> -40769.97704 | AJ175: =+'INPUT DATA'!AL80 -> -41402.09243 | AK175: =+'INPUT DATA'!AM80 -> -40892.87793 | AL175: =+'INPUT DATA'!AN80 -> -42304.49664 | AM175: =+'INPUT DATA'!AO80 -> -43724.35453 | AN175: =+'INPUT DATA'!AP80 -> -45507.20485 | AO175: =+'INPUT DATA'!AQ80 -> -39935.47738 | AP175: =+'INPUT DATA'!AR80 -> -20264.47043 | AQ175: =+'INPUT DATA'!AS80 -> -21030.61981 | AR175: =+'INPUT DATA'!AT80 -> -21826.95371 | AS175: =+'INPUT DATA'!AU80 -> -22654.26044 | AT175: =+'INPUT DATA'!AV80 -> -23514.66172 | AU175: =+'INPUT DATA'!AW80 -> -24868.84257 | AV175: =+'INPUT DATA'!AX80 -> -23348.77758 | AW175: =+'INPUT DATA'!AY80 -> 0 | AX175: =+'INPUT DATA'!AZ80 -> 0 | AY175: =+'INPUT DATA'!BA80 -> 0 | AZ175: =+'INPUT DATA'!BB80 -> 0 | BA175: =+'INPUT DATA'!BC80 -> 0 | BB175: =+'INPUT DATA'!BD80 -> 0 | BC175: =+'INPUT DATA'!BE80 -> 0 | BD175: =+'INPUT DATA'!BF80 -> 0 | BE175: =+'INPUT DATA'!BG80 -> 0 | BF175: =+'INPUT DATA'!BH80 -> 0 | BG175: =+'INPUT DATA'!BI80 -> 0 | BH175: =+'INPUT DATA'!BJ80 -> 0 | BI175: =+'INPUT DATA'!BK80 -> 0 | BJ175: =+'INPUT DATA'!BL80 -> 0 | BK175: =+'INPUT DATA'!BM80 -> 0 | BL175: =+'INPUT DATA'!BN80 -> 0 | BM175: =+'INPUT DATA'!BO80 -> 0 | BN175: =+'INPUT DATA'!BP80 -> 0 | BO175: =+'INPUT DATA'!BQ80 -> 0 | BP175: =+'INPUT DATA'!BR80 -> 0 | BQ175: =+'INPUT DATA'!BS80 -> 0
C176: Investment & Capex | I176: =+'INPUT DATA'!K81 -> -267400.9738 | J176: =+'INPUT DATA'!L81 -> -470122.3424 | K176: =+'INPUT DATA'!M81 -> -507393.6788 | L176: =+'INPUT DATA'!N81 -> -214319.0253 | M176: =+'INPUT DATA'!O81 -> -25169.13871 | N176: =+'INPUT DATA'!P81 -> -50507.65999 | O176: =+'INPUT DATA'!Q81 -> -49643.37034 | P176: =+'INPUT DATA'!R81 -> -62343.21308 | Q176: =+'INPUT DATA'!S81 -> -20523.70648 | R176: =+'INPUT DATA'!T81 -> -31215.68643 | S176: =+'INPUT DATA'!U81 -> -40385.1106 | T176: =+'INPUT DATA'!V81 -> -25223.59023 | U176: =+'INPUT DATA'!W81 -> -6440.415628 | V176: =+'INPUT DATA'!X81 -> -8026.604956 | W176: =+'INPUT DATA'!Y81 -> -6594.244327 | X176: =+'INPUT DATA'!Z81 -> -7701.361693 | Y176: =+'INPUT DATA'!AA81 -> -19407.64933 | Z176: =+'INPUT DATA'!AB81 -> -8665.786287 | AA176: =+'INPUT DATA'!AC81 -> -14156.08413 | AB176: =+'INPUT DATA'!AD81 -> -4693.327815 | AC176: =+'INPUT DATA'!AE81 -> -6992.372037 | AD176: =+'INPUT DATA'!AF81 -> -11272.08352 | AE176: =+'INPUT DATA'!AG81 -> -5020.480275 | AF176: =+'INPUT DATA'!AH81 -> -20322.61854 | AG176: =+'INPUT DATA'!AI81 -> -5588.103219 | AH176: =+'INPUT DATA'!AJ81 -> -3220.859619 | AI176: =+'INPUT DATA'!AK81 -> -30040.09178 | AJ176: =+'INPUT DATA'!AL81 -> -3669.420259 | AK176: =+'INPUT DATA'!AM81 -> -3643.495807 | AL176: =+'INPUT DATA'!AN81 -> -6793.656268 | AM176: =+'INPUT DATA'!AO81 -> -8558.727523 | AN176: =+'INPUT DATA'!AP81 -> -16497.01379 | AO176: =+'INPUT DATA'!AQ81 -> -7375.636825 | AP176: =+'INPUT DATA'!AR81 -> -4986.813139 | AQ176: =+'INPUT DATA'!AS81 -> -6476.411288 | AR176: =+'INPUT DATA'!AT81 -> -21693.6387 | AS176: =+'INPUT DATA'!AU81 -> -23650.80678 | AT176: =+'INPUT DATA'!AV81 -> -3693.084075 | AU176: =+'INPUT DATA'!AW81 -> -2010.837997 | AV176: =+'INPUT DATA'!AX81 -> -2917.480018 | AW176: =+'INPUT DATA'!AY81 -> 0 | AX176: =+'INPUT DATA'!AZ81 -> 0 | AY176: =+'INPUT DATA'!BA81 -> 0 | AZ176: =+'INPUT DATA'!BB81 -> 0 | BA176: =+'INPUT DATA'!BC81 -> 0 | BB176: =+'INPUT DATA'!BD81 -> 0 | BC176: =+'INPUT DATA'!BE81 -> 0 | BD176: =+'INPUT DATA'!BF81 -> 0 | BE176: =+'INPUT DATA'!BG81 -> 0 | BF176: =+'INPUT DATA'!BH81 -> 0 | BG176: =+'INPUT DATA'!BI81 -> 0 | BH176: =+'INPUT DATA'!BJ81 -> 0 | BI176: =+'INPUT DATA'!BK81 -> 0 | BJ176: =+'INPUT DATA'!BL81 -> 0 | BK176: =+'INPUT DATA'!BM81 -> 0 | BL176: =+'INPUT DATA'!BN81 -> 0 | BM176: =+'INPUT DATA'!BO81 -> 0 | BN176: =+'INPUT DATA'!BP81 -> 0 | BO176: =+'INPUT DATA'!BQ81 -> 0 | BP176: =+'INPUT DATA'!BR81 -> 0 | BQ176: =+'INPUT DATA'!BS81 -> 0
C177: Into / Out Operating Reserve Accounts | I177: =+'INPUT DATA'!K82 -> 137.3375921 | J177: =+'INPUT DATA'!L82 -> -3038.729746 | K177: =+'INPUT DATA'!M82 -> -967.1873054 | L177: =+'INPUT DATA'!N82 -> -9034.459407 | M177: =+'INPUT DATA'!O82 -> -18251.59495 | N177: =+'INPUT DATA'!P82 -> -15975.75974 | O177: =+'INPUT DATA'!Q82 -> -6346.370898 | P177: =+'INPUT DATA'!R82 -> 2317.50736 | Q177: =+'INPUT DATA'!S82 -> 276.7770405 | R177: =+'INPUT DATA'!T82 -> 11104.08959 | S177: =+'INPUT DATA'!U82 -> 13456.21237 | T177: =+'INPUT DATA'!V82 -> 16063.73214 | U177: =+'INPUT DATA'!W82 -> -3116.965675 | V177: =+'INPUT DATA'!X82 -> -2366.395847 | W177: =+'INPUT DATA'!Y82 -> -3999.07587 | X177: =+'INPUT DATA'!Z82 -> -2927.633754 | Y177: =+'INPUT DATA'!AA82 -> 8263.218567 | Z177: =+'INPUT DATA'!AB82 -> -2100.252492 | AA177: =+'INPUT DATA'!AC82 -> 4240.220953 | AB177: =+'INPUT DATA'!AD82 -> -4404.116804 | AC177: =+'INPUT DATA'!AE82 -> -2091.249361 | AD177: =+'INPUT DATA'!AF82 -> 139.194113 | AE177: =+'INPUT DATA'!AG82 -> -5050.024075 | AF177: =+'INPUT DATA'!AH82 -> 13638.5724 | AG177: =+'INPUT DATA'!AI82 -> -386.2919376 | AH177: =+'INPUT DATA'!AJ82 -> -3355.261716 | AI177: =+'INPUT DATA'!AK82 -> 13645.34413 | AJ177: =+'INPUT DATA'!AL82 -> 449.8660681 | AK177: =+'INPUT DATA'!AM82 -> 1165.410456 | AL177: =+'INPUT DATA'!AN82 -> 5926.358129 | AM177: =+'INPUT DATA'!AO82 -> 0 | AN177: =+'INPUT DATA'!AP82 -> 0 | AO177: =+'INPUT DATA'!AQ82 -> 0 | AP177: =+'INPUT DATA'!AR82 -> 0 | AQ177: =+'INPUT DATA'!AS82 -> 0 | AR177: =+'INPUT DATA'!AT82 -> 0 | AS177: =+'INPUT DATA'!AU82 -> 0 | AT177: =+'INPUT DATA'!AV82 -> 0 | AU177: =+'INPUT DATA'!AW82 -> 0 | AV177: =+'INPUT DATA'!AX82 -> 0 | AW177: =+'INPUT DATA'!AY82 -> 0 | AX177: =+'INPUT DATA'!AZ82 -> 0 | AY177: =+'INPUT DATA'!BA82 -> 0 | AZ177: =+'INPUT DATA'!BB82 -> 0 | BA177: =+'INPUT DATA'!BC82 -> 0 | BB177: =+'INPUT DATA'!BD82 -> 0 | BC177: =+'INPUT DATA'!BE82 -> 0 | BD177: =+'INPUT DATA'!BF82 -> 0 | BE177: =+'INPUT DATA'!BG82 -> 0 | BF177: =+'INPUT DATA'!BH82 -> 0 | BG177: =+'INPUT DATA'!BI82 -> 0 | BH177: =+'INPUT DATA'!BJ82 -> 0 | BI177: =+'INPUT DATA'!BK82 -> 0 | BJ177: =+'INPUT DATA'!BL82 -> 0 | BK177: =+'INPUT DATA'!BM82 -> 0 | BL177: =+'INPUT DATA'!BN82 -> 0 | BM177: =+'INPUT DATA'!BO82 -> 0 | BN177: =+'INPUT DATA'!BP82 -> 0 | BO177: =+'INPUT DATA'!BQ82 -> 0 | BP177: =+'INPUT DATA'!BR82 -> 0 | BQ177: =+'INPUT DATA'!BS82 -> 0
C178: Operating Cash Flow | I178: =+I171+I175+I176+I177 -> -88224.38786 | J178: -230152.4403 | K178: -245958.7172 | L178: 62156.58179 | M178: 271931.498 | N178: 258688.1317 | O178: 289456.4778 | P178: 316389.0315 | Q178: 960138.0045 | R178: 319976.2306 | S178: 243815.2769 | T178: 166058.1679 | U178: 163279.2858 | V178: 173042.7242 | W178: 183640.7065 | X178: 194937.9077 | Y178: 208350.7816 | Z178: 214169.3412 | AA178: 206240.4154 | AB178: 186715.2483 | AC178: 196664.9056 | AD178: 205648.2233 | AE178: 204979.096 | AF178: 215867.6534 | AG178: 227703.2719 | AH178: 239415.6749 | AI178: 242018.3991 | AJ178: 261460.9655 | AK178: 270746.3823 | AL178: 286603.3792 | AM178: 294135.1039 | AN178: 301943.6194 | AO178: 295382.2727 | AP178: 153585.1893 | AQ178: 164159.3941 | AR178: 162262.5197 | AS178: 174344.0544 | AT178: 210693.2027 | AU178: 230678.4382 | AV178: 269633.7424 | AW178: 0 | AX178: 0 | AY178: 0 | AZ178: =+AZ171+AZ175+AZ176+AZ177 -> 0 | BA178: 0 | BB178: 0 | BC178: 0 | BD178: 0 | BE178: 0 | BF178: 0 | BG178: 0 | BH178: 0 | BI178: 0 | BJ178: 0 | BK178: 0 | BL178: 0 | BM178: 0 | BN178: 0 | BO178: 0 | BP178: 0 | BQ178: 0
C179: Taxes | I179: =+'INPUT DATA'!K84 -> -12593.76448 | J179: =+'INPUT DATA'!L84 -> -17657.14246 | K179: =+'INPUT DATA'!M84 -> -3773.184704 | L179: =+'INPUT DATA'!N84 -> 15685.39059 | M179: =+'INPUT DATA'!O84 -> -20112.48079 | N179: =+'INPUT DATA'!P84 -> -4936.710273 | O179: =+'INPUT DATA'!Q84 -> -3756.690298 | P179: =+'INPUT DATA'!R84 -> -3190.872709 | Q179: =+'INPUT DATA'!S84 -> -310.8784998 | R179: =+'INPUT DATA'!T84 -> -53981.87358 | S179: =+'INPUT DATA'!U84 -> -3657.901582 | T179: =+'INPUT DATA'!V84 -> -20339.94019 | U179: =+'INPUT DATA'!W84 -> -98.15465621 | V179: =+'INPUT DATA'!X84 -> -285.8336724 | W179: =+'INPUT DATA'!Y84 -> -6744.178557 | X179: =+'INPUT DATA'!Z84 -> -26619.87902 | Y179: =+'INPUT DATA'!AA84 -> -28634.35739 | Z179: =+'INPUT DATA'!AB84 -> -29052.95351 | AA179: =+'INPUT DATA'!AC84 -> -35352.41465 | AB179: =+'INPUT DATA'!AD84 -> -36586.20438 | AC179: =+'INPUT DATA'!AE84 -> -35543.2297 | AD179: =+'INPUT DATA'!AF84 -> -37455.01554 | AE179: =+'INPUT DATA'!AG84 -> -40473.10439 | AF179: =+'INPUT DATA'!AH84 -> -36191.25834 | AG179: =+'INPUT DATA'!AI84 -> -40423.67385 | AH179: =+'INPUT DATA'!AJ84 -> -42847.07719 | AI179: =+'INPUT DATA'!AK84 -> -44743.81641 | AJ179: =+'INPUT DATA'!AL84 -> -59822.03093 | AK179: =+'INPUT DATA'!AM84 -> -71683.92226 | AL179: =+'INPUT DATA'!AN84 -> -76705.3375 | AM179: =+'INPUT DATA'!AO84 -> -80782.70681 | AN179: =+'INPUT DATA'!AP84 -> -84796.08543 | AO179: =+'INPUT DATA'!AQ84 -> -132216.16 | AP179: =+'INPUT DATA'!AR84 -> -39122.74243 | AQ179: =+'INPUT DATA'!AS84 -> -42287.41267 | AR179: =+'INPUT DATA'!AT84 -> -45195.8704 | AS179: =+'INPUT DATA'!AU84 -> -44637.39397 | AT179: =+'INPUT DATA'!AV84 -> -47993.40318 | AU179: =+'INPUT DATA'!AW84 -> -58066.74353 | AV179: =+'INPUT DATA'!AX84 -> -126649.5285 | AW179: =+'INPUT DATA'!AY84 -> 0 | AX179: =+'INPUT DATA'!AZ84 -> 0 | AY179: =+'INPUT DATA'!BA84 -> 0 | AZ179: =+'INPUT DATA'!BB84 -> 0 | BA179: =+'INPUT DATA'!BC84 -> 0 | BB179: =+'INPUT DATA'!BD84 -> 0 | BC179: =+'INPUT DATA'!BE84 -> 0 | BD179: =+'INPUT DATA'!BF84 -> 0 | BE179: =+'INPUT DATA'!BG84 -> 0 | BF179: =+'INPUT DATA'!BH84 -> 0 | BG179: =+'INPUT DATA'!BI84 -> 0 | BH179: =+'INPUT DATA'!BJ84 -> 0 | BI179: =+'INPUT DATA'!BK84 -> 0 | BJ179: =+'INPUT DATA'!BL84 -> 0 | BK179: =+'INPUT DATA'!BM84 -> 0 | BL179: =+'INPUT DATA'!BN84 -> 0 | BM179: =+'INPUT DATA'!BO84 -> 0 | BN179: =+'INPUT DATA'!BP84 -> 0 | BO179: =+'INPUT DATA'!BQ84 -> 0 | BP179: =+'INPUT DATA'!BR84 -> 0 | BQ179: =+'INPUT DATA'!BS84 -> 0
C180: Operating Cash Flow After Tax | I180: =+I178+I179 -> -100818.1523 | J180: -247809.5827 | K180: -249731.9019 | L180: 77841.97238 | M180: 251819.0172 | N180: 253751.4214 | O180: 285699.7875 | P180: 313198.1588 | Q180: 959827.126 | R180: 265994.357 | S180: 240157.3753 | T180: 145718.2278 | U180: 163181.1311 | V180: 172756.8905 | W180: 176896.5279 | X180: 168318.0287 | Y180: 179716.4242 | Z180: 185116.3877 | AA180: 170888.0008 | AB180: 150129.0439 | AC180: 161121.6759 | AD180: 168193.2078 | AE180: 164505.9916 | AF180: 179676.395 | AG180: 187279.5981 | AH180: 196568.5977 | AI180: 197274.5827 | AJ180: 201638.9346 | AK180: 199062.4601 | AL180: 209898.0417 | AM180: 213352.3971 | AN180: 217147.534 | AO180: 163166.1127 | AP180: 114462.4469 | AQ180: 121871.9815 | AR180: 117066.6493 | AS180: 129706.6604 | AT180: 162699.7996 | AU180: 172611.6946 | AV180: 142984.2139 | AW180: 0 | AX180: 0 | AY180: 0 | AZ180: =+AZ178+AZ179 -> 0 | BA180: 0 | BB180: 0 | BC180: 0 | BD180: 0 | BE180: 0 | BF180: 0 | BG180: 0 | BH180: 0 | BI180: 0 | BJ180: 0 | BK180: 0 | BL180: 0 | BM180: 0 | BN180: 0 | BO180: 0 | BP180: 0 | BQ180: 0
C181: Debt Service | I181: =+'INPUT DATA'!K86 -> 143262.1877 | J181: =+'INPUT DATA'!L86 -> 159663.8244 | K181: =+'INPUT DATA'!M86 -> 490518.2017 | L181: =+'INPUT DATA'!N86 -> 184091.1081 | M181: =+'INPUT DATA'!O86 -> -157771.6078 | N181: =+'INPUT DATA'!P86 -> -151570.2309 | O181: =+'INPUT DATA'!Q86 -> -121261.4405 | P181: =+'INPUT DATA'!R86 -> -129484.4291 | Q181: =+'INPUT DATA'!S86 -> -734018.3293 | R181: =+'INPUT DATA'!T86 -> -92178.24543 | S181: =+'INPUT DATA'!U86 -> -86162.47835 | T181: =+'INPUT DATA'!V86 -> -88217.03378 | U181: =+'INPUT DATA'!W86 -> -83799.624 | V181: =+'INPUT DATA'!X86 -> -82322.99339 | W181: =+'INPUT DATA'!Y86 -> -82160.8226 | X181: =+'INPUT DATA'!Z86 -> -86374.57507 | Y181: =+'INPUT DATA'!AA86 -> -83353.84922 | Z181: =+'INPUT DATA'!AB86 -> -74991.04727 | AA181: =+'INPUT DATA'!AC86 -> -76441.43852 | AB181: =+'INPUT DATA'!AD86 -> -80767.15156 | AC181: =+'INPUT DATA'!AE86 -> -82565.10872 | AD181: =+'INPUT DATA'!AF86 -> -90212.41072 | AE181: =+'INPUT DATA'!AG86 -> -100397.4608 | AF181: =+'INPUT DATA'!AH86 -> -78664.64605 | AG181: =+'INPUT DATA'!AI86 -> -55996.71541 | AH181: =+'INPUT DATA'!AJ86 -> -55458.73422 | AI181: =+'INPUT DATA'!AK86 -> -64576.16858 | AJ181: =+'INPUT DATA'!AL86 -> -62259.9403 | AK181: =+'INPUT DATA'!AM86 -> -47465.27197 | AL181: =+'INPUT DATA'!AN86 -> -12227.9057 | AM181: =+'INPUT DATA'!AO86 -> -2.316522107e-15 | AN181: =+'INPUT DATA'!AP86 -> -2.386992231e-15 | AO181: =+'INPUT DATA'!AQ86 -> -2.45959161e-15 | AP181: =+'INPUT DATA'!AR86 -> -2.534410327e-15 | AQ181: =+'INPUT DATA'!AS86 -> -2.611481139e-15 | AR181: =+'INPUT DATA'!AT86 -> -2.690926889e-15 | AS181: =+'INPUT DATA'!AU86 -> -2.772763956e-15 | AT181: =+'INPUT DATA'!AV86 -> -2.857090611e-15 | AU181: =+'INPUT DATA'!AW86 -> -2.944013319e-15 | AV181: =+'INPUT DATA'!AX86 -> -3.033540269e-15 | AW181: =+'INPUT DATA'!AY86 -> -3.125810681e-15 | AX181: =+'INPUT DATA'!AZ86 -> -3.22089826e-15 | AY181: =+'INPUT DATA'!BA86 -> -3.318852142e-15 | AZ181: =+'INPUT DATA'!BB86 -> -3.419811549e-15 | BA181: =+'INPUT DATA'!BC86 -> -3.523825617e-15 | BB181: =+'INPUT DATA'!BD86 -> -3.631017187e-15 | BC181: =+'INPUT DATA'!BE86 -> 0 | BD181: =+'INPUT DATA'!BF86 -> 0 | BE181: =+'INPUT DATA'!BG86 -> 0 | BF181: =+'INPUT DATA'!BH86 -> 0 | BG181: =+'INPUT DATA'!BI86 -> 0 | BH181: =+'INPUT DATA'!BJ86 -> 0 | BI181: =+'INPUT DATA'!BK86 -> 0 | BJ181: =+'INPUT DATA'!BL86 -> 0 | BK181: =+'INPUT DATA'!BM86 -> 0 | BL181: =+'INPUT DATA'!BN86 -> 0 | BM181: =+'INPUT DATA'!BO86 -> 0 | BN181: =+'INPUT DATA'!BP86 -> 0 | BO181: =+'INPUT DATA'!BQ86 -> 0 | BP181: =+'INPUT DATA'!BR86 -> 0 | BQ181: =+'INPUT DATA'!BS86 -> 0
C182: Interest income | I182: =+'INPUT DATA'!K87 -> -40607.29175 | J182: =+'INPUT DATA'!L87 -> -43513.33685 | K182: =+'INPUT DATA'!M87 -> -51505.95031 | L182: =+'INPUT DATA'!N87 -> -58896.6315 | M182: =+'INPUT DATA'!O87 -> -55034.06703 | N182: =+'INPUT DATA'!P87 -> -52966.96357 | O182: =+'INPUT DATA'!Q87 -> -50209.55302 | P182: =+'INPUT DATA'!R87 -> -49082.67586 | Q182: =+'INPUT DATA'!S87 -> -46243.59613 | R182: =+'INPUT DATA'!T87 -> -42320.41688 | S182: =+'INPUT DATA'!U87 -> -39850.4068 | T182: =+'INPUT DATA'!V87 -> -38499.89715 | U182: =+'INPUT DATA'!W87 -> -36676.98451 | V182: =+'INPUT DATA'!X87 -> -34869.28171 | W182: =+'INPUT DATA'!Y87 -> -32969.39275 | X182: =+'INPUT DATA'!Z87 -> -31069.40492 | Y182: =+'INPUT DATA'!AA87 -> -29001.36534 | Z182: =+'INPUT DATA'!AB87 -> -26801.79321 | AA182: =+'INPUT DATA'!AC87 -> -24719.63552 | AB182: =+'INPUT DATA'!AD87 -> -22870.34512 | AC182: =+'INPUT DATA'!AE87 -> -20623.37039 | AD182: =+'INPUT DATA'!AF87 -> -18268.02967 | AE182: =+'INPUT DATA'!AG87 -> -15574.08116 | AF182: =+'INPUT DATA'!AH87 -> -12499.98133 | AG182: =+'INPUT DATA'!AI87 -> -9486.931642 | AH182: =+'INPUT DATA'!AJ87 -> -8006.449941 | AI182: =+'INPUT DATA'!AK87 -> -6297.302316 | AJ182: =+'INPUT DATA'!AL87 -> -4376.90855 | AK182: =+'INPUT DATA'!AM87 -> -2482.031974 | AL182: =+'INPUT DATA'!AN87 -> -799.2319749 | AM182: =+'INPUT DATA'!AO87 -> 1.357222737e-13 | AN182: =+'INPUT DATA'!AP87 -> 1.402321929e-13 | AO182: =+'INPUT DATA'!AQ87 -> 1.441040938e-13 | AP182: =+'INPUT DATA'!AR87 -> 1.484871549e-13 | AQ182: =+'INPUT DATA'!AS87 -> 1.530035479e-13 | AR182: =+'INPUT DATA'!AT87 -> 1.580877328e-13 | AS182: =+'INPUT DATA'!AU87 -> 1.62452602e-13 | AT182: =+'INPUT DATA'!AV87 -> 1.673937403e-13 | AU182: =+'INPUT DATA'!AW87 -> 1.724851816e-13 | AV182: =+'INPUT DATA'!AX87 -> 1.782166984e-13 | AW182: =+'INPUT DATA'!AY87 -> 1.831373378e-13 | AX182: =+'INPUT DATA'!AZ87 -> 1.887076419e-13 | AY182: =+'INPUT DATA'!BA87 -> 1.944473719e-13 | AZ182: =+'INPUT DATA'!BB87 -> 2.009086835e-13 | BA182: =+'INPUT DATA'!BC87 -> 2.064558722e-13 | BB182: =+'INPUT DATA'!BD87 -> 2.127354761e-13 | BC182: =+'INPUT DATA'!BE87 -> 0 | BD182: =+'INPUT DATA'!BF87 -> 0 | BE182: =+'INPUT DATA'!BG87 -> 0 | BF182: =+'INPUT DATA'!BH87 -> 0 | BG182: =+'INPUT DATA'!BI87 -> 0 | BH182: =+'INPUT DATA'!BJ87 -> 0 | BI182: =+'INPUT DATA'!BK87 -> 0 | BJ182: =+'INPUT DATA'!BL87 -> 0 | BK182: =+'INPUT DATA'!BM87 -> 0 | BL182: =+'INPUT DATA'!BN87 -> 0 | BM182: =+'INPUT DATA'!BO87 -> 0 | BN182: =+'INPUT DATA'!BP87 -> 0 | BO182: =+'INPUT DATA'!BQ87 -> 0 | BP182: =+'INPUT DATA'!BR87 -> 0 | BQ182: =+'INPUT DATA'!BS87 -> 0
C183: Free Cash Flow To Equity | I183: =+I180+I181+I182 -> 1836.743616 | J183: -131659.0952 | K183: 189280.3495 | L183: 203036.449 | M183: 39013.34238 | N183: 49214.22697 | O183: 114228.794 | P183: 134631.0539 | Q183: 179565.2006 | R183: 131495.6947 | S183: 114144.4901 | T183: 19001.29683 | U183: 42704.5226 | V183: 55564.61545 | W183: 61766.31255 | X183: 50874.04874 | Y183: 67361.20963 | Z183: 83323.54723 | AA183: 69726.92674 | AB183: 46491.54721 | AC183: 57933.19681 | AD183: 59712.7674 | AE183: 48534.44962 | AF183: 88511.76765 | AG183: 121795.951 | AH183: 133103.4136 | AI183: 126401.1118 | AJ183: 135002.0858 | AK183: 149115.1561 | AL183: 196870.9041 | AM183: 213352.3971 | AN183: 217147.534 | AO183: 163166.1127 | AP183: 114462.4469 | AQ183: 121871.9815 | AR183: 117066.6493 | AS183: 129706.6604 | AT183: 162699.7996 | AU183: 172611.6946 | AV183: 142984.2139 | AW183: 1.800115271e-13 | AX183: 1.854867436e-13 | AY183: 1.911285198e-13 | AZ183: =+AZ180+AZ181+AZ182 -> 1.974888719e-13 | BA183: 2.029320466e-13 | BB183: 2.091044589e-13 | BC183: 0 | BD183: 0 | BE183: 0 | BF183: 0 | BG183: 0 | BH183: 0 | BI183: 0 | BJ183: 0 | BK183: 0 | BL183: 0 | BM183: 0 | BN183: 0 | BO183: 0 | BP183: 0 | BQ183: 0
C184: Distributions to Shareholders | I184: =+'INPUT DATA'!K89 -> -18343.40744 | J184: =+'INPUT DATA'!L89 -> -7361.008559 | K184: =+'INPUT DATA'!M89 -> -120058.9684 | L184: =+'INPUT DATA'!N89 -> -200363.8342 | M184: =+'INPUT DATA'!O89 -> -126892.0956 | N184: =+'INPUT DATA'!P89 -> -76630.14381 | O184: =+'INPUT DATA'!Q89 -> -114200.5358 | P184: =+'INPUT DATA'!R89 -> -134304.1207 | Q184: =+'INPUT DATA'!S89 -> -144161.1875 | R184: =+'INPUT DATA'!T89 -> -169878.1249 | S184: =+'INPUT DATA'!U89 -> -67192.18259 | T184: =+'INPUT DATA'!V89 -> -66204.75298 | U184: =+'INPUT DATA'!W89 -> -42599.64429 | V184: =+'INPUT DATA'!X89 -> -55453.30803 | W184: =+'INPUT DATA'!Y89 -> -61725.50482 | X184: =+'INPUT DATA'!Z89 -> -50831.9999 | Y184: =+'INPUT DATA'!AA89 -> -67596.56531 | Z184: =+'INPUT DATA'!AB89 -> -82075.90079 | AA184: =+'INPUT DATA'!AC89 -> -71334.53801 | AB184: =+'INPUT DATA'!AD89 -> -46466.32612 | AC184: =+'INPUT DATA'!AE89 -> -57907.20891 | AD184: =+'INPUT DATA'!AF89 -> -59685.9889 | AE184: =+'INPUT DATA'!AG89 -> -48603.61141 | AF184: =+'INPUT DATA'!AH89 -> -88486.27843 | AG184: =+'INPUT DATA'!AI89 -> -121769.6866 | AH184: =+'INPUT DATA'!AJ89 -> -133076.3502 | AI184: =+'INPUT DATA'!AK89 -> -125921.9979 | AJ184: =+'INPUT DATA'!AL89 -> -135424.5775 | AK184: =+'INPUT DATA'!AM89 -> -149088.966 | AL184: =+'INPUT DATA'!AN89 -> -196843.9172 | AM184: =+'INPUT DATA'!AO89 -> -213324.5894 | AN184: =+'INPUT DATA'!AP89 -> -217118.8806 | AO184: =+'INPUT DATA'!AQ89 -> -163136.5893 | AP184: =+'INPUT DATA'!AR89 -> -114432.0237 | AQ184: =+'INPUT DATA'!AS89 -> -121840.6331 | AR184: =+'INPUT DATA'!AT89 -> -117034.3474 | AS184: =+'INPUT DATA'!AU89 -> -129673.3761 | AT184: =+'INPUT DATA'!AV89 -> -162665.5028 | AU184: =+'INPUT DATA'!AW89 -> -172576.3548 | AV184: =+'INPUT DATA'!AX89 -> -144181.3706 | AW184: =+'INPUT DATA'!AY89 -> 0 | AX184: =+'INPUT DATA'!AZ89 -> -0.07008319056 | AY184: =+'INPUT DATA'!BA89 -> 0 | AZ184: =+'INPUT DATA'!BB89 -> 0 | BA184: =+'INPUT DATA'!BC89 -> 0 | BB184: =+'INPUT DATA'!BD89 -> 0 | BC184: =+'INPUT DATA'!BE89 -> 0 | BD184: =+'INPUT DATA'!BF89 -> 0 | BE184: =+'INPUT DATA'!BG89 -> 0 | BF184: =+'INPUT DATA'!BH89 -> 0 | BG184: =+'INPUT DATA'!BI89 -> 0 | BH184: =+'INPUT DATA'!BJ89 -> 0 | BI184: =+'INPUT DATA'!BK89 -> 0 | BJ184: =+'INPUT DATA'!BL89 -> 0 | BK184: =+'INPUT DATA'!BM89 -> 0 | BL184: =+'INPUT DATA'!BN89 -> 0 | BM184: =+'INPUT DATA'!BO89 -> 0 | BN184: =+'INPUT DATA'!BP89 -> 0 | BO184: =+'INPUT DATA'!BQ89 -> 0 | BP184: =+'INPUT DATA'!BR89 -> 0 | BQ184: =+'INPUT DATA'!BS89 -> 0
C185: Equity | I185: =+'INPUT DATA'!K90 -> 138282.9073 | J185: =+'INPUT DATA'!L90 -> 36850.91973 | K185: =+'INPUT DATA'!M90 -> 12291.12447 | L185: =+'INPUT DATA'!N90 -> 10399.84567 | M185: =+'INPUT DATA'!O90 -> 0 | N185: =+'INPUT DATA'!P90 -> 0.1435944545 | O185: =+'INPUT DATA'!Q90 -> 0.0706111381 | P185: =+'INPUT DATA'!R90 -> 0.3563276972 | Q185: =+'INPUT DATA'!S90 -> 0 | R185: =+'INPUT DATA'!T90 -> 0 | S185: =+'INPUT DATA'!U90 -> 0 | T185: =+'INPUT DATA'!V90 -> 0 | U185: =+'INPUT DATA'!W90 -> 4.671446512e-13 | V185: =+'INPUT DATA'!X90 -> 0 | W185: =+'INPUT DATA'!Y90 -> 0 | X185: =+'INPUT DATA'!Z90 -> 0 | Y185: =+'INPUT DATA'!AA90 -> 0 | Z185: =+'INPUT DATA'!AB90 -> 0 | AA185: =+'INPUT DATA'!AC90 -> 0 | AB185: =+'INPUT DATA'!AD90 -> 0 | AC185: =+'INPUT DATA'!AE90 -> 0 | AD185: =+'INPUT DATA'!AF90 -> 0 | AE185: =+'INPUT DATA'!AG90 -> 0 | AF185: =+'INPUT DATA'!AH90 -> 0 | AG185: =+'INPUT DATA'!AI90 -> 0 | AH185: =+'INPUT DATA'!AJ90 -> 0 | AI185: =+'INPUT DATA'!AK90 -> 0 | AJ185: =+'INPUT DATA'!AL90 -> 0 | AK185: =+'INPUT DATA'!AM90 -> 0 | AL185: =+'INPUT DATA'!AN90 -> 0 | AM185: =+'INPUT DATA'!AO90 -> 0 | AN185: =+'INPUT DATA'!AP90 -> 0 | AO185: =+'INPUT DATA'!AQ90 -> 0 | AP185: =+'INPUT DATA'!AR90 -> 0 | AQ185: =+'INPUT DATA'!AS90 -> 0 | AR185: =+'INPUT DATA'!AT90 -> 0 | AS185: =+'INPUT DATA'!AU90 -> 0 | AT185: =+'INPUT DATA'!AV90 -> 0 | AU185: =+'INPUT DATA'!AW90 -> 0 | AV185: =+'INPUT DATA'!AX90 -> 0 | AW185: =+'INPUT DATA'!AY90 -> 0 | AX185: =+'INPUT DATA'!AZ90 -> 0 | AY185: =+'INPUT DATA'!BA90 -> 0 | AZ185: =+'INPUT DATA'!BB90 -> 0 | BA185: =+'INPUT DATA'!BC90 -> 0 | BB185: =+'INPUT DATA'!BD90 -> 0 | BC185: =+'INPUT DATA'!BE90 -> 0 | BD185: =+'INPUT DATA'!BF90 -> 0 | BE185: =+'INPUT DATA'!BG90 -> 0 | BF185: =+'INPUT DATA'!BH90 -> 0 | BG185: =+'INPUT DATA'!BI90 -> 0 | BH185: =+'INPUT DATA'!BJ90 -> 0 | BI185: =+'INPUT DATA'!BK90 -> 0 | BJ185: =+'INPUT DATA'!BL90 -> 0 | BK185: =+'INPUT DATA'!BM90 -> 0 | BL185: =+'INPUT DATA'!BN90 -> 0 | BM185: =+'INPUT DATA'!BO90 -> 0 | BN185: =+'INPUT DATA'!BP90 -> 0 | BO185: =+'INPUT DATA'!BQ90 -> 0 | BP185: =+'INPUT DATA'!BR90 -> 0 | BQ185: =+'INPUT DATA'!BS90 -> 0
C186: Net Cash Flow | I186: =+I183+I184+I185 -> 121776.2435 | J186: -102169.184 | K186: 81512.50558 | L186: 13072.46043 | M186: -87878.75325 | N186: -27415.77324 | O186: 28.32878727 | P186: 327.2895483 | Q186: 35404.01308 | R186: -38382.4302 | S186: 46952.30756 | T186: -47203.45615 | U186: 104.8783109 | V186: 111.3074179 | W186: 40.80772926 | X186: 42.04883977 | Y186: -235.3556761 | Z186: 1247.646446 | AA186: -1607.611267 | AB186: 25.22108317 | AC186: 25.98790033 | AD186: 26.77850026 | AE186: -69.16179481 | AF186: 25.48921916 | AG186: 26.26445013 | AH186: 27.06338555 | AI186: 479.1138925 | AJ186: -422.4917344 | AK186: 26.19008515 | AL186: 26.98683353 | AM186: 27.80772581 | AN186: 28.65335568 | AO186: 29.52348959 | AP186: 30.42318201 | AQ186: 31.34836797 | AR186: 32.30195269 | AS186: 33.28433197 | AT186: 34.29679216 | AU186: 35.33982802 | AV186: -1197.156673 | AW186: 1.800115271e-13 | AX186: -0.07008319056 | AY186: 1.911285198e-13 | AZ186: =+AZ183+AZ184+AZ185 -> 1.974888719e-13 | BA186: 2.029320466e-13 | BB186: 2.091044589e-13 | BC186: 0 | BD186: 0 | BE186: 0 | BF186: 0 | BG186: 0 | BH186: 0 | BI186: 0 | BJ186: 0 | BK186: 0 | BL186: 0 | BM186: 0 | BN186: 0 | BO186: 0 | BP186: 0 | BQ186: 0
C187: Cash EoP | H187: =+'INPUT DATA'!J92 -> 4989.462406 | I187: =+I186+H187 -> 126765.7059 | J187: 24596.52188 | K187: 106109.0275 | L187: 119181.4879 | M187: 31302.73464 | N187: 3886.961403 | O187: 3915.29019 | P187: 4242.579738 | Q187: 39646.59282 | R187: 1264.162618 | S187: 48216.47018 | T187: 1013.014026 | U187: 1117.892337 | V187: 1229.199755 | W187: 1270.007484 | X187: 1312.056324 | Y187: 1076.700648 | Z187: 2324.347093 | AA187: 716.7358265 | AB187: 741.9569097 | AC187: 767.94481 | AD187: 794.7233102 | AE187: 725.5615154 | AF187: 751.0507346 | AG187: 777.3151847 | AH187: 804.3785703 | AI187: 1283.492463 | AJ187: 861.0007284 | AK187: 887.1908135 | AL187: 914.1776471 | AM187: 941.9853729 | AN187: 970.6387286 | AO187: 1000.162218 | AP187: 1030.5854 | AQ187: 1061.933768 | AR187: 1094.235721 | AS187: 1127.520053 | AT187: 1161.816845 | AU187: 1197.156673 | AV187: 0 | AW187: 1.800115271e-13 | AX187: -0.07008319056 | AY187: -0.07008319056 | AZ187: =+AZ186+AY187 -> -0.07008319056 | BA187: =+BA186+AZ187 -> -0.07008319056 | BB187: =+BB186+BA187 -> -0.07008319056 | BC187: =+BC186+BB187 -> -0.07008319056 | BD187: =+BD186+BC187 -> -0.07008319056 | BE187: =+BE186+BD187 -> -0.07008319056 | BF187: =+BF186+BE187 -> -0.07008319056 | BG187: =+BG186+BF187 -> -0.07008319056 | BH187: =+BH186+BG187 -> -0.07008319056 | BI187: =+BI186+BH187 -> -0.07008319056 | BJ187: =+BJ186+BI187 -> -0.07008319056 | BK187: =+BK186+BJ187 -> -0.07008319056 | BL187: =+BL186+BK187 -> -0.07008319056 | BM187: =+BM186+BL187 -> -0.07008319056 | BN187: =+BN186+BM187 -> -0.07008319056 | BO187: =+BO186+BN187 -> -0.07008319056 | BP187: =+BP186+BO187 -> -0.07008319056 | BQ187: =+BQ186+BP187 -> -0.07008319056
A192: 1 | C192: Italy
C194: =+"Cash Flow "&C192&" - [000' EUR]" -> Cash Flow Italy - [000' EUR]
C195: Year | I195: =+I$12 -> 2025 | J195: 2026 | K195: 2027 | L195: 2028 | M195: 2029 | N195: 2030 | O195: 2031 | P195: 2032 | Q195: 2033 | R195: 2034 | S195: 2035 | T195: 2036 | U195: 2037 | V195: 2038 | W195: 2039 | X195: 2040 | Y195: 2041 | Z195: 2042 | AA195: 2043 | AB195: 2044 | AC195: 2045 | AD195: 2046 | AE195: 2047 | AF195: 2048 | AG195: 2049 | AH195: 2050 | AI195: 2051 | AJ195: 2052 | AK195: 2053 | AL195: 2054 | AM195: 2055 | AN195: 2056 | AO195: =+AO$12 -> 2057 | AP195: 2058 | AQ195: 2059 | AR195: 2060 | AS195: 2061 | AT195: 2062 | AU195: 2063 | AV195: 2064 | AW195: 2065 | AX195: 2066 | AY195: 2067 | AZ195: 2068 | BA195: 2069 | BB195: 2070 | BC195: 2071 | BD195: 2072 | BE195: 2073 | BF195: 2074 | BG195: 2075 | BH195: 2076 | BI195: 2077 | BJ195: 2078 | BK195: 2079 | BL195: 2080 | BM195: 2081 | BN195: 2082 | BO195: 2083 | BP195: 2084 | BQ195: 2085
C196: Income | I196: =+I197+I198+I199 -> 314894.5731 | J196: 322312.9289 | K196: 329882.5882 | L196: 348905.6438 | M196: 358396.3644 | N196: 369113.2761 | O196: 375915.7415 | P196: 382782.4468 | Q196: 389763.2262 | R196: 396917.8894 | S196: 404256.5412 | T196: 302993.3242 | U196: 235623.9414 | V196: 241830.5048 | W196: 248191.0447 | X196: 254726.3538 | Y196: 259857.9961 | Z196: 265083.2257 | AA196: 270411.4677 | AB196: 275845.724 | AC196: 281378.5831 | AD196: 282976.5709 | AE196: 237113.2385 | AF196: 226001.5284 | AG196: 230565.9185 | AH196: 235222.8141 | AI196: 239965.4008 | AJ196: 244804.7997 | AK196: 249741.3529 | AL196: 254775.0326 | AM196: 259915.1351 | AN196: 265162.751 | AO196: 270532.2102 | AP196: 276014.3466 | AQ196: 250612.5768 | AR196: 251618.2691 | AS196: 254103.9544 | AT196: 256619.5836 | AU196: 0 | AV196: 0 | AW196: 0 | AX196: 0 | AY196: 0 | AZ196: =+AZ197+AZ198+AZ199 -> 0 | BA196: 0 | BB196: 0 | BC196: 0 | BD196: 0 | BE196: 0 | BF196: 0 | BG196: 0 | BH196: 0 | BI196: 0 | BJ196: 0 | BK196: 0 | BL196: 0 | BM196: 0 | BN196: 0 | BO196: 0 | BP196: 0 | BQ196: 0
C197: Income with mitigated demand risk | I197: =+'INPUT DATA'!K102 -> 102749.4763 | J197: =+'INPUT DATA'!L102 -> 107845.4301 | K197: =+'INPUT DATA'!M102 -> 113203.1869 | L197: =+'INPUT DATA'!N102 -> 118837.7409 | M197: =+'INPUT DATA'!O102 -> 124771.2473 | N197: =+'INPUT DATA'!P102 -> 130993.8192 | O197: =+'INPUT DATA'!Q102 -> 134656.015 | P197: =+'INPUT DATA'!R102 -> 138425.0929 | Q197: =+'INPUT DATA'!S102 -> 142303.0025 | R197: =+'INPUT DATA'!T102 -> 146295.7404 | S197: =+'INPUT DATA'!U102 -> 150403.4615 | T197: =+'INPUT DATA'!V102 -> 154634.5818 | U197: =+'INPUT DATA'!W102 -> 158985.3321 | V197: =+'INPUT DATA'!X102 -> 163471.8323 | W197: =+'INPUT DATA'!Y102 -> 168084.9397 | X197: =+'INPUT DATA'!Z102 -> 172835.5391 | Y197: =+'INPUT DATA'!AA102 -> 176155.3833 | Z197: =+'INPUT DATA'!AB102 -> 179539.5533 | AA197: =+'INPUT DATA'!AC102 -> 182995.9903 | AB197: =+'INPUT DATA'!AD102 -> 186521.3971 | AC197: =+'INPUT DATA'!AE102 -> 190121.0739 | AD197: =+'INPUT DATA'!AF102 -> 193794.6631 | AE197: =+'INPUT DATA'!AG102 -> 197545.1061 | AF197: =+'INPUT DATA'!AH102 -> 201374.7406 | AG197: =+'INPUT DATA'!AI102 -> 205281.4091 | AH197: =+'INPUT DATA'!AJ102 -> 209272.8095 | AI197: =+'INPUT DATA'!AK102 -> 213341.8169 | AJ197: =+'INPUT DATA'!AL102 -> 217499.2337 | AK197: =+'INPUT DATA'!AM102 -> 221745.0758 | AL197: =+'INPUT DATA'!AN102 -> 226078.9824 | AM197: =+'INPUT DATA'!AO102 -> 230502.1596 | AN197: =+'INPUT DATA'!AP102 -> 235014.9325 | AO197: =+'INPUT DATA'!AQ102 -> 239631.1828 | AP197: =+'INPUT DATA'!AR102 -> 244341.2857 | AQ197: =+'INPUT DATA'!AS102 -> 249146.4361 | AR197: =+'INPUT DATA'!AT102 -> 251611.2747 | AS197: =+'INPUT DATA'!AU102 -> 254103.9544 | AT197: =+'INPUT DATA'!AV102 -> 256619.5836 | AU197: =+'INPUT DATA'!AW102 -> 0 | AV197: =+'INPUT DATA'!AX102 -> 0 | AW197: =+'INPUT DATA'!AY102 -> 0 | AX197: =+'INPUT DATA'!AZ102 -> 0 | AY197: =+'INPUT DATA'!BA102 -> 0 | AZ197: =+'INPUT DATA'!BB102 -> 0 | BA197: =+'INPUT DATA'!BC102 -> 0 | BB197: =+'INPUT DATA'!BD102 -> 0 | BC197: =+'INPUT DATA'!BE102 -> 0 | BD197: =+'INPUT DATA'!BF102 -> 0 | BE197: =+'INPUT DATA'!BG102 -> 0 | BF197: =+'INPUT DATA'!BH102 -> 0 | BG197: =+'INPUT DATA'!BI102 -> 0 | BH197: =+'INPUT DATA'!BJ102 -> 0 | BI197: =+'INPUT DATA'!BK102 -> 0 | BJ197: =+'INPUT DATA'!BL102 -> 0 | BK197: =+'INPUT DATA'!BM102 -> 0 | BL197: =+'INPUT DATA'!BN102 -> 0 | BM197: =+'INPUT DATA'!BO102 -> 0 | BN197: =+'INPUT DATA'!BP102 -> 0 | BO197: =+'INPUT DATA'!BQ102 -> 0 | BP197: =+'INPUT DATA'!BR102 -> 0 | BQ197: =+'INPUT DATA'!BS102 -> 0
C198: Income with low demand risk | I198: =+'INPUT DATA'!K103 -> 0 | J198: =+'INPUT DATA'!L103 -> 0 | K198: =+'INPUT DATA'!M103 -> 0 | L198: =+'INPUT DATA'!N103 -> 0 | M198: =+'INPUT DATA'!O103 -> 0 | N198: =+'INPUT DATA'!P103 -> 0 | O198: =+'INPUT DATA'!Q103 -> 0 | P198: =+'INPUT DATA'!R103 -> 0 | Q198: =+'INPUT DATA'!S103 -> 0 | R198: =+'INPUT DATA'!T103 -> 0 | S198: =+'INPUT DATA'!U103 -> 0 | T198: =+'INPUT DATA'!V103 -> 0 | U198: =+'INPUT DATA'!W103 -> 0 | V198: =+'INPUT DATA'!X103 -> 0 | W198: =+'INPUT DATA'!Y103 -> 0 | X198: =+'INPUT DATA'!Z103 -> 0 | Y198: =+'INPUT DATA'!AA103 -> 0 | Z198: =+'INPUT DATA'!AB103 -> 0 | AA198: =+'INPUT DATA'!AC103 -> 0 | AB198: =+'INPUT DATA'!AD103 -> 0 | AC198: =+'INPUT DATA'!AE103 -> 0 | AD198: =+'INPUT DATA'!AF103 -> 0 | AE198: =+'INPUT DATA'!AG103 -> 0 | AF198: =+'INPUT DATA'!AH103 -> 0 | AG198: =+'INPUT DATA'!AI103 -> 0 | AH198: =+'INPUT DATA'!AJ103 -> 0 | AI198: =+'INPUT DATA'!AK103 -> 0 | AJ198: =+'INPUT DATA'!AL103 -> 0 | AK198: =+'INPUT DATA'!AM103 -> 0 | AL198: =+'INPUT DATA'!AN103 -> 0 | AM198: =+'INPUT DATA'!AO103 -> 0 | AN198: =+'INPUT DATA'!AP103 -> 0 | AO198: =+'INPUT DATA'!AQ103 -> 0 | AP198: =+'INPUT DATA'!AR103 -> 0 | AQ198: =+'INPUT DATA'!AS103 -> 0 | AR198: =+'INPUT DATA'!AT103 -> 0 | AS198: =+'INPUT DATA'!AU103 -> 0 | AT198: =+'INPUT DATA'!AV103 -> 0 | AU198: =+'INPUT DATA'!AW103 -> 0 | AV198: =+'INPUT DATA'!AX103 -> 0 | AW198: =+'INPUT DATA'!AY103 -> 0 | AX198: =+'INPUT DATA'!AZ103 -> 0 | AY198: =+'INPUT DATA'!BA103 -> 0 | AZ198: =+'INPUT DATA'!BB103 -> 0 | BA198: =+'INPUT DATA'!BC103 -> 0 | BB198: =+'INPUT DATA'!BD103 -> 0 | BC198: =+'INPUT DATA'!BE103 -> 0 | BD198: =+'INPUT DATA'!BF103 -> 0 | BE198: =+'INPUT DATA'!BG103 -> 0 | BF198: =+'INPUT DATA'!BH103 -> 0 | BG198: =+'INPUT DATA'!BI103 -> 0 | BH198: =+'INPUT DATA'!BJ103 -> 0 | BI198: =+'INPUT DATA'!BK103 -> 0 | BJ198: =+'INPUT DATA'!BL103 -> 0 | BK198: =+'INPUT DATA'!BM103 -> 0 | BL198: =+'INPUT DATA'!BN103 -> 0 | BM198: =+'INPUT DATA'!BO103 -> 0 | BN198: =+'INPUT DATA'!BP103 -> 0 | BO198: =+'INPUT DATA'!BQ103 -> 0 | BP198: =+'INPUT DATA'!BR103 -> 0 | BQ198: =+'INPUT DATA'!BS103 -> 0
C199: Income with demand risk | I199: =+'INPUT DATA'!K104 -> 212145.0968 | J199: =+'INPUT DATA'!L104 -> 214467.4988 | K199: =+'INPUT DATA'!M104 -> 216679.4014 | L199: =+'INPUT DATA'!N104 -> 230067.9029 | M199: =+'INPUT DATA'!O104 -> 233625.1172 | N199: =+'INPUT DATA'!P104 -> 238119.4569 | O199: =+'INPUT DATA'!Q104 -> 241259.7265 | P199: =+'INPUT DATA'!R104 -> 244357.3539 | Q199: =+'INPUT DATA'!S104 -> 247460.2237 | R199: =+'INPUT DATA'!T104 -> 250622.149 | S199: =+'INPUT DATA'!U104 -> 253853.0798 | T199: =+'INPUT DATA'!V104 -> 148358.7424 | U199: =+'INPUT DATA'!W104 -> 76638.60939 | V199: =+'INPUT DATA'!X104 -> 78358.67254 | W199: =+'INPUT DATA'!Y104 -> 80106.10493 | X199: =+'INPUT DATA'!Z104 -> 81890.81466 | Y199: =+'INPUT DATA'!AA104 -> 83702.61285 | Z199: =+'INPUT DATA'!AB104 -> 85543.67241 | AA199: =+'INPUT DATA'!AC104 -> 87415.47741 | AB199: =+'INPUT DATA'!AD104 -> 89324.32692 | AC199: =+'INPUT DATA'!AE104 -> 91257.50921 | AD199: =+'INPUT DATA'!AF104 -> 89181.9078 | AE199: =+'INPUT DATA'!AG104 -> 39568.13248 | AF199: =+'INPUT DATA'!AH104 -> 24626.78779 | AG199: =+'INPUT DATA'!AI104 -> 25284.5094 | AH199: =+'INPUT DATA'!AJ104 -> 25950.00455 | AI199: =+'INPUT DATA'!AK104 -> 26623.58386 | AJ199: =+'INPUT DATA'!AL104 -> 27305.566 | AK199: =+'INPUT DATA'!AM104 -> 27996.27711 | AL199: =+'INPUT DATA'!AN104 -> 28696.05022 | AM199: =+'INPUT DATA'!AO104 -> 29412.97551 | AN199: =+'INPUT DATA'!AP104 -> 30147.81857 | AO199: =+'INPUT DATA'!AQ104 -> 30901.02733 | AP199: =+'INPUT DATA'!AR104 -> 31673.06094 | AQ199: =+'INPUT DATA'!AS104 -> 1466.140642 | AR199: =+'INPUT DATA'!AT104 -> 6.994406873 | AS199: =+'INPUT DATA'!AU104 -> 0 | AT199: =+'INPUT DATA'!AV104 -> 0 | AU199: =+'INPUT DATA'!AW104 -> 0 | AV199: =+'INPUT DATA'!AX104 -> 0 | AW199: =+'INPUT DATA'!AY104 -> 0 | AX199: =+'INPUT DATA'!AZ104 -> 0 | AY199: =+'INPUT DATA'!BA104 -> 0 | AZ199: =+'INPUT DATA'!BB104 -> 0 | BA199: =+'INPUT DATA'!BC104 -> 0 | BB199: =+'INPUT DATA'!BD104 -> 0 | BC199: =+'INPUT DATA'!BE104 -> 0 | BD199: =+'INPUT DATA'!BF104 -> 0 | BE199: =+'INPUT DATA'!BG104 -> 0 | BF199: =+'INPUT DATA'!BH104 -> 0 | BG199: =+'INPUT DATA'!BI104 -> 0 | BH199: =+'INPUT DATA'!BJ104 -> 0 | BI199: =+'INPUT DATA'!BK104 -> 0 | BJ199: =+'INPUT DATA'!BL104 -> 0 | BK199: =+'INPUT DATA'!BM104 -> 0 | BL199: =+'INPUT DATA'!BN104 -> 0 | BM199: =+'INPUT DATA'!BO104 -> 0 | BN199: =+'INPUT DATA'!BP104 -> 0 | BO199: =+'INPUT DATA'!BQ104 -> 0 | BP199: =+'INPUT DATA'!BR104 -> 0 | BQ199: =+'INPUT DATA'!BS104 -> 0
C200: Operating Costs | I200: =+'INPUT DATA'!K105 -> -97156.33549 | J200: =+'INPUT DATA'!L105 -> -105710.594 | K200: =+'INPUT DATA'!M105 -> -111856.9257 | L200: =+'INPUT DATA'!N105 -> -120964.541 | M200: =+'INPUT DATA'!O105 -> -128270.4822 | N200: =+'INPUT DATA'!P105 -> -135572.1288 | O200: =+'INPUT DATA'!Q105 -> -141696.6778 | P200: =+'INPUT DATA'!R105 -> -147756.1716 | Q200: =+'INPUT DATA'!S105 -> -153898.4912 | R200: =+'INPUT DATA'!T105 -> -160099.599 | S200: =+'INPUT DATA'!U105 -> -165775.8023 | T200: =+'INPUT DATA'!V105 -> -93987.89786 | U200: =+'INPUT DATA'!W105 -> -41057.63185 | V200: =+'INPUT DATA'!X105 -> -41784.09528 | W200: =+'INPUT DATA'!Y105 -> -42429.80991 | X200: =+'INPUT DATA'!Z105 -> -43097.93828 | Y200: =+'INPUT DATA'!AA105 -> -43717.1272 | Z200: =+'INPUT DATA'!AB105 -> -47613.12489 | AA200: =+'INPUT DATA'!AC105 -> -46331.95532 | AB200: =+'INPUT DATA'!AD105 -> -45897.27462 | AC200: =+'INPUT DATA'!AE105 -> -46654.8447 | AD200: =+'INPUT DATA'!AF105 -> -47287.21722 | AE200: =+'INPUT DATA'!AG105 -> -33907.3435 | AF200: =+'INPUT DATA'!AH105 -> -29973.64395 | AG200: =+'INPUT DATA'!AI105 -> -29104.83355 | AH200: =+'INPUT DATA'!AJ105 -> -29333.59892 | AI200: =+'INPUT DATA'!AK105 -> -29984.18272 | AJ200: =+'INPUT DATA'!AL105 -> -30415.44077 | AK200: =+'INPUT DATA'!AM105 -> -30974.92291 | AL200: =+'INPUT DATA'!AN105 -> -31592.23936 | AM200: =+'INPUT DATA'!AO105 -> -32331.34411 | AN200: =+'INPUT DATA'!AP105 -> -33069.16637 | AO200: =+'INPUT DATA'!AQ105 -> -37671.81945 | AP200: =+'INPUT DATA'!AR105 -> -35893.14143 | AQ200: =+'INPUT DATA'!AS105 -> -31384.03607 | AR200: =+'INPUT DATA'!AT105 -> -28810.19591 | AS200: =+'INPUT DATA'!AU105 -> -28501.22733 | AT200: =+'INPUT DATA'!AV105 -> -23612.60489 | AU200: =+'INPUT DATA'!AW105 -> 0 | AV200: =+'INPUT DATA'!AX105 -> 0 | AW200: =+'INPUT DATA'!AY105 -> 0 | AX200: =+'INPUT DATA'!AZ105 -> 0 | AY200: =+'INPUT DATA'!BA105 -> 0 | AZ200: =+'INPUT DATA'!BB105 -> 0 | BA200: =+'INPUT DATA'!BC105 -> 0 | BB200: =+'INPUT DATA'!BD105 -> 0 | BC200: =+'INPUT DATA'!BE105 -> 0 | BD200: =+'INPUT DATA'!BF105 -> 0 | BE200: =+'INPUT DATA'!BG105 -> 0 | BF200: =+'INPUT DATA'!BH105 -> 0 | BG200: =+'INPUT DATA'!BI105 -> 0 | BH200: =+'INPUT DATA'!BJ105 -> 0 | BI200: =+'INPUT DATA'!BK105 -> 0 | BJ200: =+'INPUT DATA'!BL105 -> 0 | BK200: =+'INPUT DATA'!BM105 -> 0 | BL200: =+'INPUT DATA'!BN105 -> 0 | BM200: =+'INPUT DATA'!BO105 -> 0 | BN200: =+'INPUT DATA'!BP105 -> 0 | BO200: =+'INPUT DATA'!BQ105 -> 0 | BP200: =+'INPUT DATA'!BR105 -> 0 | BQ200: =+'INPUT DATA'!BS105 -> 0
C201: Investment & Capex | I201: =+'INPUT DATA'!K106 -> -87686.69038 | J201: =+'INPUT DATA'!L106 -> -130250.9809 | K201: =+'INPUT DATA'!M106 -> -148674.7561 | L201: =+'INPUT DATA'!N106 -> -99185.96784 | M201: =+'INPUT DATA'!O106 -> -64138.34725 | N201: =+'INPUT DATA'!P106 -> -15726.50305 | O201: =+'INPUT DATA'!Q106 -> -17561.20335 | P201: =+'INPUT DATA'!R106 -> -18920.31104 | Q201: =+'INPUT DATA'!S106 -> -19186.00035 | R201: =+'INPUT DATA'!T106 -> -16397.15026 | S201: =+'INPUT DATA'!U106 -> -15907.38029 | T201: =+'INPUT DATA'!V106 -> -12721.53755 | U201: =+'INPUT DATA'!W106 -> -11395.8691 | V201: =+'INPUT DATA'!X106 -> -14127.26909 | W201: =+'INPUT DATA'!Y106 -> -10236.08036 | X201: =+'INPUT DATA'!Z106 -> -10252.6258 | Y201: =+'INPUT DATA'!AA106 -> -8214.825921 | Z201: =+'INPUT DATA'!AB106 -> -8738.644585 | AA201: =+'INPUT DATA'!AC106 -> -8901.907793 | AB201: =+'INPUT DATA'!AD106 -> -9068.403612 | AC201: =+'INPUT DATA'!AE106 -> -9238.196048 | AD201: =+'INPUT DATA'!AF106 -> -8331.825819 | AE201: =+'INPUT DATA'!AG106 -> -6991.441285 | AF201: =+'INPUT DATA'!AH106 -> -7047.895193 | AG201: =+'INPUT DATA'!AI106 -> -7187.443518 | AH201: =+'INPUT DATA'!AJ106 -> -7329.7549 | AI201: =+'INPUT DATA'!AK106 -> -8809.960567 | AJ201: =+'INPUT DATA'!AL106 -> -10323.71027 | AK201: =+'INPUT DATA'!AM106 -> -10528.11973 | AL201: =+'INPUT DATA'!AN106 -> -10736.57651 | AM201: =+'INPUT DATA'!AO106 -> -10949.16072 | AN201: =+'INPUT DATA'!AP106 -> -9697.389773 | AO201: =+'INPUT DATA'!AQ106 -> -8408.034904 | AP201: =+'INPUT DATA'!AR106 -> -8574.513995 | AQ201: =+'INPUT DATA'!AS106 -> -8744.289372 | AR201: =+'INPUT DATA'!AT106 -> -8917.426302 | AS201: =+'INPUT DATA'!AU106 -> -9093.991342 | AT201: =+'INPUT DATA'!AV106 -> -9274.052371 | AU201: =+'INPUT DATA'!AW106 -> 0 | AV201: =+'INPUT DATA'!AX106 -> 0 | AW201: =+'INPUT DATA'!AY106 -> 0 | AX201: =+'INPUT DATA'!AZ106 -> 0 | AY201: =+'INPUT DATA'!BA106 -> 0 | AZ201: =+'INPUT DATA'!BB106 -> 0 | BA201: =+'INPUT DATA'!BC106 -> 0 | BB201: =+'INPUT DATA'!BD106 -> 0 | BC201: =+'INPUT DATA'!BE106 -> 0 | BD201: =+'INPUT DATA'!BF106 -> 0 | BE201: =+'INPUT DATA'!BG106 -> 0 | BF201: =+'INPUT DATA'!BH106 -> 0 | BG201: =+'INPUT DATA'!BI106 -> 0 | BH201: =+'INPUT DATA'!BJ106 -> 0 | BI201: =+'INPUT DATA'!BK106 -> 0 | BJ201: =+'INPUT DATA'!BL106 -> 0 | BK201: =+'INPUT DATA'!BM106 -> 0 | BL201: =+'INPUT DATA'!BN106 -> 0 | BM201: =+'INPUT DATA'!BO106 -> 0 | BN201: =+'INPUT DATA'!BP106 -> 0 | BO201: =+'INPUT DATA'!BQ106 -> 0 | BP201: =+'INPUT DATA'!BR106 -> 0 | BQ201: =+'INPUT DATA'!BS106 -> 0
C202: Into / Out Operating Reserve Accounts | I202: =+'INPUT DATA'!K107 -> -640.2117131 | J202: =+'INPUT DATA'!L107 -> -364.9588799 | K202: =+'INPUT DATA'!M107 -> 4051.230468 | L202: =+'INPUT DATA'!N107 -> 7417.324909 | M202: =+'INPUT DATA'!O107 -> 22982.64237 | N202: =+'INPUT DATA'!P107 -> -3396.852352 | O202: =+'INPUT DATA'!Q107 -> -2187.242337 | P202: =+'INPUT DATA'!R107 -> -306.8654662 | Q202: =+'INPUT DATA'!S107 -> -401.6239286 | R202: =+'INPUT DATA'!T107 -> -589.0662328 | S202: =+'INPUT DATA'!U107 -> 13702.27301 | T202: =+'INPUT DATA'!V107 -> -499.1852967 | U202: =+'INPUT DATA'!W107 -> -236.6682845 | V202: =+'INPUT DATA'!X107 -> -528.0116565 | W202: =+'INPUT DATA'!Y107 -> -1112.776487 | X202: =+'INPUT DATA'!Z107 -> -1709.119934 | Y202: =+'INPUT DATA'!AA107 -> -1170.469337 | Z202: =+'INPUT DATA'!AB107 -> -330.8577893 | AA202: =+'INPUT DATA'!AC107 -> 22.39676089 | AB202: =+'INPUT DATA'!AD107 -> 3302.097977 | AC202: =+'INPUT DATA'!AE107 -> 8460.605622 | AD202: =+'INPUT DATA'!AF107 -> 12265.64107 | AE202: =+'INPUT DATA'!AG107 -> 4956.598385 | AF202: =+'INPUT DATA'!AH107 -> 0 | AG202: =+'INPUT DATA'!AI107 -> 0 | AH202: =+'INPUT DATA'!AJ107 -> 0 | AI202: =+'INPUT DATA'!AK107 -> 0 | AJ202: =+'INPUT DATA'!AL107 -> 0 | AK202: =+'INPUT DATA'!AM107 -> 0 | AL202: =+'INPUT DATA'!AN107 -> 0 | AM202: =+'INPUT DATA'!AO107 -> 0 | AN202: =+'INPUT DATA'!AP107 -> 0 | AO202: =+'INPUT DATA'!AQ107 -> 0 | AP202: =+'INPUT DATA'!AR107 -> 0 | AQ202: =+'INPUT DATA'!AS107 -> 0 | AR202: =+'INPUT DATA'!AT107 -> 0 | AS202: =+'INPUT DATA'!AU107 -> 0 | AT202: =+'INPUT DATA'!AV107 -> 0 | AU202: =+'INPUT DATA'!AW107 -> 0 | AV202: =+'INPUT DATA'!AX107 -> 0 | AW202: =+'INPUT DATA'!AY107 -> 0 | AX202: =+'INPUT DATA'!AZ107 -> 0 | AY202: =+'INPUT DATA'!BA107 -> 0 | AZ202: =+'INPUT DATA'!BB107 -> 0 | BA202: =+'INPUT DATA'!BC107 -> 0 | BB202: =+'INPUT DATA'!BD107 -> 0 | BC202: =+'INPUT DATA'!BE107 -> 0 | BD202: =+'INPUT DATA'!BF107 -> 0 | BE202: =+'INPUT DATA'!BG107 -> 0 | BF202: =+'INPUT DATA'!BH107 -> 0 | BG202: =+'INPUT DATA'!BI107 -> 0 | BH202: =+'INPUT DATA'!BJ107 -> 0 | BI202: =+'INPUT DATA'!BK107 -> 0 | BJ202: =+'INPUT DATA'!BL107 -> 0 | BK202: =+'INPUT DATA'!BM107 -> 0 | BL202: =+'INPUT DATA'!BN107 -> 0 | BM202: =+'INPUT DATA'!BO107 -> 0 | BN202: =+'INPUT DATA'!BP107 -> 0 | BO202: =+'INPUT DATA'!BQ107 -> 0 | BP202: =+'INPUT DATA'!BR107 -> 0 | BQ202: =+'INPUT DATA'!BS107 -> 0
C203: Operating Cash Flow | I203: =+I196+I200+I201+I202 -> 129411.3355 | J203: 85986.39514 | K203: 73402.13698 | L203: 136172.4599 | M203: 188970.1773 | N203: 214417.7919 | O203: 214470.618 | P203: 215799.0987 | Q203: 216277.1108 | R203: 219832.0739 | S203: 236275.6317 | T203: 195784.7035 | U203: 182933.7722 | V203: 185391.1288 | W203: 194412.3779 | X203: 199666.6698 | Y203: 206755.5737 | Z203: 208400.5985 | AA203: 215200.0013 | AB203: 224182.1437 | AC203: 233946.148 | AD203: 239623.1689 | AE203: 201171.0521 | AF203: 188979.9893 | AG203: 194273.6415 | AH203: 198559.4602 | AI203: 201171.2575 | AJ203: 204065.6487 | AK203: 208238.3103 | AL203: 212446.2168 | AM203: 216634.6303 | AN203: 222396.1949 | AO203: 224452.3558 | AP203: 231546.6912 | AQ203: 210484.2514 | AR203: 213890.6469 | AS203: 216508.7358 | AT203: 223732.9263 | AU203: 0 | AV203: 0 | AW203: 0 | AX203: 0 | AY203: 0 | AZ203: =+AZ196+AZ200+AZ201+AZ202 -> 0 | BA203: 0 | BB203: 0 | BC203: 0 | BD203: 0 | BE203: 0 | BF203: 0 | BG203: 0 | BH203: 0 | BI203: 0 | BJ203: 0 | BK203: 0 | BL203: 0 | BM203: 0 | BN203: 0 | BO203: 0 | BP203: 0 | BQ203: 0
C204: Taxes | I204: =+'INPUT DATA'!K109 -> 21182.70752 | J204: =+'INPUT DATA'!L109 -> -24900.52194 | K204: =+'INPUT DATA'!M109 -> -18167.80863 | L204: =+'INPUT DATA'!N109 -> 698.2088271 | M204: =+'INPUT DATA'!O109 -> -1268.599591 | N204: =+'INPUT DATA'!P109 -> -8686.571203 | O204: =+'INPUT DATA'!Q109 -> -9926.290889 | P204: =+'INPUT DATA'!R109 -> -9858.552055 | Q204: =+'INPUT DATA'!S109 -> -10047.47902 | R204: =+'INPUT DATA'!T109 -> -10216.65929 | S204: =+'INPUT DATA'!U109 -> -11116.96864 | T204: =+'INPUT DATA'!V109 -> -21986.03981 | U204: =+'INPUT DATA'!W109 -> -20651.25649 | V204: =+'INPUT DATA'!X109 -> -21869.17777 | W204: =+'INPUT DATA'!Y109 -> -23722.50733 | X204: =+'INPUT DATA'!Z109 -> -25966.69764 | Y204: =+'INPUT DATA'!AA109 -> -28165.38587 | Z204: =+'INPUT DATA'!AB109 -> -29920.58144 | AA204: =+'INPUT DATA'!AC109 -> -29373.67332 | AB204: =+'INPUT DATA'!AD109 -> -35357.53636 | AC204: =+'INPUT DATA'!AE109 -> -36525.29506 | AD204: =+'INPUT DATA'!AF109 -> -38777.49225 | AE204: =+'INPUT DATA'!AG109 -> -35765.83818 | AF204: =+'INPUT DATA'!AH109 -> -37603.59725 | AG204: =+'INPUT DATA'!AI109 -> -40491.1793 | AH204: =+'INPUT DATA'!AJ109 -> -43996.49331 | AI204: =+'INPUT DATA'!AK109 -> -45628.15668 | AJ204: =+'INPUT DATA'!AL109 -> -48087.49529 | AK204: =+'INPUT DATA'!AM109 -> -50673.37737 | AL204: =+'INPUT DATA'!AN109 -> -51139.65054 | AM204: =+'INPUT DATA'!AO109 -> -51510.23311 | AN204: =+'INPUT DATA'!AP109 -> -52378.63485 | AO204: =+'INPUT DATA'!AQ109 -> -53226.9745 | AP204: =+'INPUT DATA'!AR109 -> -50932.77473 | AQ204: =+'INPUT DATA'!AS109 -> -50068.64975 | AR204: =+'INPUT DATA'!AT109 -> -48865.84076 | AS204: =+'INPUT DATA'!AU109 -> -47841.83393 | AT204: =+'INPUT DATA'!AV109 -> -40248.14465 | AU204: =+'INPUT DATA'!AW109 -> 0 | AV204: =+'INPUT DATA'!AX109 -> 0 | AW204: =+'INPUT DATA'!AY109 -> 0 | AX204: =+'INPUT DATA'!AZ109 -> 0 | AY204: =+'INPUT DATA'!BA109 -> 0 | AZ204: =+'INPUT DATA'!BB109 -> 0 | BA204: =+'INPUT DATA'!BC109 -> 0 | BB204: =+'INPUT DATA'!BD109 -> 0 | BC204: =+'INPUT DATA'!BE109 -> 0 | BD204: =+'INPUT DATA'!BF109 -> 0 | BE204: =+'INPUT DATA'!BG109 -> 0 | BF204: =+'INPUT DATA'!BH109 -> 0 | BG204: =+'INPUT DATA'!BI109 -> 0 | BH204: =+'INPUT DATA'!BJ109 -> 0 | BI204: =+'INPUT DATA'!BK109 -> 0 | BJ204: =+'INPUT DATA'!BL109 -> 0 | BK204: =+'INPUT DATA'!BM109 -> 0 | BL204: =+'INPUT DATA'!BN109 -> 0 | BM204: =+'INPUT DATA'!BO109 -> 0 | BN204: =+'INPUT DATA'!BP109 -> 0 | BO204: =+'INPUT DATA'!BQ109 -> 0 | BP204: =+'INPUT DATA'!BR109 -> 0 | BQ204: =+'INPUT DATA'!BS109 -> 0
C205: Operating Cash Flow After Tax | I205: =+I203+I204 -> 150594.043 | J205: 61085.8732 | K205: 55234.32836 | L205: 136870.6687 | M205: 187701.5777 | N205: 205731.2207 | O205: 204544.3271 | P205: 205940.5466 | Q205: 206229.6317 | R205: 209615.4146 | S205: 225158.663 | T205: 173798.6637 | U205: 162282.5157 | V205: 163521.951 | W205: 170689.8706 | X205: 173699.9721 | Y205: 178590.1878 | Z205: 178480.017 | AA205: 185826.328 | AB205: 188824.6074 | AC205: 197420.8529 | AD205: 200845.6766 | AE205: 165405.214 | AF205: 151376.392 | AG205: 153782.4622 | AH205: 154562.9669 | AI205: 155543.1008 | AJ205: 155978.1534 | AK205: 157564.9329 | AL205: 161306.5662 | AM205: 165124.3972 | AN205: 170017.56 | AO205: 171225.3813 | AP205: 180613.9164 | AQ205: 160415.6016 | AR205: 165024.8061 | AS205: 168666.9018 | AT205: 183484.7817 | AU205: 0 | AV205: 0 | AW205: 0 | AX205: 0 | AY205: 0 | AZ205: =+AZ203+AZ204 -> 0 | BA205: 0 | BB205: 0 | BC205: 0 | BD205: 0 | BE205: 0 | BF205: 0 | BG205: 0 | BH205: 0 | BI205: 0 | BJ205: 0 | BK205: 0 | BL205: 0 | BM205: 0 | BN205: 0 | BO205: 0 | BP205: 0 | BQ205: 0
C206: Debt Service | I206: =+'INPUT DATA'!K111 -> -100686.3312 | J206: =+'INPUT DATA'!L111 -> 347325.5167 | K206: =+'INPUT DATA'!M111 -> 27656.74625 | L206: =+'INPUT DATA'!N111 -> -22006.33907 | M206: =+'INPUT DATA'!O111 -> -61666.26113 | N206: =+'INPUT DATA'!P111 -> -57486.04624 | O206: =+'INPUT DATA'!Q111 -> -61482.69101 | P206: =+'INPUT DATA'!R111 -> -65498.45191 | Q206: =+'INPUT DATA'!S111 -> -69651.12248 | R206: =+'INPUT DATA'!T111 -> -75584.45185 | S206: =+'INPUT DATA'!U111 -> -65527.25255 | T206: =+'INPUT DATA'!V111 -> -47632.17411 | U206: =+'INPUT DATA'!W111 -> -55800.95953 | V206: =+'INPUT DATA'!X111 -> -61583.56835 | W206: =+'INPUT DATA'!Y111 -> -67114.10628 | X206: =+'INPUT DATA'!Z111 -> -72978.63854 | Y206: =+'INPUT DATA'!AA111 -> -78037.99475 | Z206: =+'INPUT DATA'!AB111 -> -84046.74115 | AA206: =+'INPUT DATA'!AC111 -> -91086.23856 | AB206: =+'INPUT DATA'!AD111 -> -95574.6615 | AC206: =+'INPUT DATA'!AE111 -> -80714.35019 | AD206: =+'INPUT DATA'!AF111 -> -88636.11166 | AE206: =+'INPUT DATA'!AG111 -> -88188.3712 | AF206: =+'INPUT DATA'!AH111 -> -94790.39901 | AG206: =+'INPUT DATA'!AI111 -> -97617.63398 | AH206: =+'INPUT DATA'!AJ111 -> -103187.9592 | AI206: =+'INPUT DATA'!AK111 -> -108902.9993 | AJ206: =+'INPUT DATA'!AL111 -> -71057.06803 | AK206: =+'INPUT DATA'!AM111 -> 0 | AL206: =+'INPUT DATA'!AN111 -> 0 | AM206: =+'INPUT DATA'!AO111 -> 0 | AN206: =+'INPUT DATA'!AP111 -> 0 | AO206: =+'INPUT DATA'!AQ111 -> 0 | AP206: =+'INPUT DATA'!AR111 -> 0 | AQ206: =+'INPUT DATA'!AS111 -> 0 | AR206: =+'INPUT DATA'!AT111 -> 0 | AS206: =+'INPUT DATA'!AU111 -> 0 | AT206: =+'INPUT DATA'!AV111 -> 0 | AU206: =+'INPUT DATA'!AW111 -> 0 | AV206: =+'INPUT DATA'!AX111 -> 0 | AW206: =+'INPUT DATA'!AY111 -> 0 | AX206: =+'INPUT DATA'!AZ111 -> 0 | AY206: =+'INPUT DATA'!BA111 -> 0 | AZ206: =+'INPUT DATA'!BB111 -> 0 | BA206: =+'INPUT DATA'!BC111 -> 0 | BB206: =+'INPUT DATA'!BD111 -> 0 | BC206: =+'INPUT DATA'!BE111 -> 0 | BD206: =+'INPUT DATA'!BF111 -> 0 | BE206: =+'INPUT DATA'!BG111 -> 0 | BF206: =+'INPUT DATA'!BH111 -> 0 | BG206: =+'INPUT DATA'!BI111 -> 0 | BH206: =+'INPUT DATA'!BJ111 -> 0 | BI206: =+'INPUT DATA'!BK111 -> 0 | BJ206: =+'INPUT DATA'!BL111 -> 0 | BK206: =+'INPUT DATA'!BM111 -> 0 | BL206: =+'INPUT DATA'!BN111 -> 0 | BM206: =+'INPUT DATA'!BO111 -> 0 | BN206: =+'INPUT DATA'!BP111 -> 0 | BO206: =+'INPUT DATA'!BQ111 -> 0 | BP206: =+'INPUT DATA'!BR111 -> 0 | BQ206: =+'INPUT DATA'!BS111 -> 0
C207: Interest income | I207: =+'INPUT DATA'!K112 -> -69181.48732 | J207: =+'INPUT DATA'!L112 -> -179700.0068 | K207: =+'INPUT DATA'!M112 -> -95830.87107 | L207: =+'INPUT DATA'!N112 -> -96490.1754 | M207: =+'INPUT DATA'!O112 -> -95467.37803 | N207: =+'INPUT DATA'!P112 -> -93158.83826 | O207: =+'INPUT DATA'!Q112 -> -90228.68088 | P207: =+'INPUT DATA'!R112 -> -87178.83774 | Q207: =+'INPUT DATA'!S112 -> -83839.34114 | R207: =+'INPUT DATA'!T112 -> -80320.22479 | S207: =+'INPUT DATA'!U112 -> -76485.60052 | T207: =+'INPUT DATA'!V112 -> -73095.22579 | U207: =+'INPUT DATA'!W112 -> -70751.19302 | V207: =+'INPUT DATA'!X112 -> -68074.75045 | W207: =+'INPUT DATA'!Y112 -> -65130.13865 | X207: =+'INPUT DATA'!Z112 -> -61914.77865 | Y207: =+'INPUT DATA'!AA112 -> -58413.67594 | Z207: =+'INPUT DATA'!AB112 -> -54625.49369 | AA207: =+'INPUT DATA'!AC112 -> -50651.24807 | AB207: =+'INPUT DATA'!AD112 -> -46196.4712 | AC207: =+'INPUT DATA'!AE112 -> -41445.57429 | AD207: =+'INPUT DATA'!AF112 -> -36752.58324 | AE207: =+'INPUT DATA'!AG112 -> -31094.89768 | AF207: =+'INPUT DATA'!AH112 -> -25201.94789 | AG207: =+'INPUT DATA'!AI112 -> -19712.43933 | AH207: =+'INPUT DATA'!AJ112 -> -14137.44625 | AI207: =+'INPUT DATA'!AK112 -> -8366.189593 | AJ207: =+'INPUT DATA'!AL112 -> -2301.166095 | AK207: =+'INPUT DATA'!AM112 -> 0 | AL207: =+'INPUT DATA'!AN112 -> 0 | AM207: =+'INPUT DATA'!AO112 -> 0 | AN207: =+'INPUT DATA'!AP112 -> 0 | AO207: =+'INPUT DATA'!AQ112 -> 0 | AP207: =+'INPUT DATA'!AR112 -> 0 | AQ207: =+'INPUT DATA'!AS112 -> 0 | AR207: =+'INPUT DATA'!AT112 -> 0 | AS207: =+'INPUT DATA'!AU112 -> 0 | AT207: =+'INPUT DATA'!AV112 -> 0 | AU207: =+'INPUT DATA'!AW112 -> 0 | AV207: =+'INPUT DATA'!AX112 -> 0 | AW207: =+'INPUT DATA'!AY112 -> 0 | AX207: =+'INPUT DATA'!AZ112 -> 0 | AY207: =+'INPUT DATA'!BA112 -> 0 | AZ207: =+'INPUT DATA'!BB112 -> 0 | BA207: =+'INPUT DATA'!BC112 -> 0 | BB207: =+'INPUT DATA'!BD112 -> 0 | BC207: =+'INPUT DATA'!BE112 -> 0 | BD207: =+'INPUT DATA'!BF112 -> 0 | BE207: =+'INPUT DATA'!BG112 -> 0 | BF207: =+'INPUT DATA'!BH112 -> 0 | BG207: =+'INPUT DATA'!BI112 -> 0 | BH207: =+'INPUT DATA'!BJ112 -> 0 | BI207: =+'INPUT DATA'!BK112 -> 0 | BJ207: =+'INPUT DATA'!BL112 -> 0 | BK207: =+'INPUT DATA'!BM112 -> 0 | BL207: =+'INPUT DATA'!BN112 -> 0 | BM207: =+'INPUT DATA'!BO112 -> 0 | BN207: =+'INPUT DATA'!BP112 -> 0 | BO207: =+'INPUT DATA'!BQ112 -> 0 | BP207: =+'INPUT DATA'!BR112 -> 0 | BQ207: =+'INPUT DATA'!BS112 -> 0
C208: Free Cash Flow To Equity | I208: =+I205+I206+I207 -> -19273.77549 | J208: 228711.3831 | K208: -12939.79647 | L208: 18374.15424 | M208: 30567.93858 | N208: 55086.33618 | O208: 52832.95525 | P208: 53263.25697 | Q208: 52739.16812 | R208: 53710.73797 | S208: 83145.80996 | T208: 53071.26382 | U208: 35730.36317 | V208: 33863.63224 | W208: 38445.62565 | X208: 38806.55495 | Y208: 42138.51711 | Z208: 39807.78217 | AA208: 44088.84139 | AB208: 47053.47466 | AC208: 75260.92845 | AD208: 75456.98175 | AE208: 46121.94508 | AF208: 31384.04511 | AG208: 36452.38887 | AH208: 37237.56151 | AI208: 38273.9119 | AJ208: 82619.91928 | AK208: 157564.9329 | AL208: 161306.5662 | AM208: 165124.3972 | AN208: 170017.56 | AO208: 171225.3813 | AP208: 180613.9164 | AQ208: 160415.6016 | AR208: 165024.8061 | AS208: 168666.9018 | AT208: 183484.7817 | AU208: 0 | AV208: 0 | AW208: 0 | AX208: 0 | AY208: 0 | AZ208: =+AZ205+AZ206+AZ207 -> 0 | BA208: 0 | BB208: 0 | BC208: 0 | BD208: 0 | BE208: 0 | BF208: 0 | BG208: 0 | BH208: 0 | BI208: 0 | BJ208: 0 | BK208: 0 | BL208: 0 | BM208: 0 | BN208: 0 | BO208: 0 | BP208: 0 | BQ208: 0
C209: Distributions to Shareholders | I209: =+'INPUT DATA'!K114 -> -18024.37427 | J209: =+'INPUT DATA'!L114 -> -125213.1046 | K209: =+'INPUT DATA'!M114 -> -151208.6108 | L209: =+'INPUT DATA'!N114 -> -20409.23496 | M209: =+'INPUT DATA'!O114 -> -50075.28534 | N209: =+'INPUT DATA'!P114 -> -52200.42333 | O209: =+'INPUT DATA'!Q114 -> -51109.04217 | P209: =+'INPUT DATA'!R114 -> -51411.32269 | Q209: =+'INPUT DATA'!S114 -> -50516.39976 | R209: =+'INPUT DATA'!T114 -> -51141.08692 | S209: =+'INPUT DATA'!U114 -> -80733.25228 | T209: =+'INPUT DATA'!V114 -> -51488.89878 | U209: =+'INPUT DATA'!W114 -> -33994.26222 | V209: =+'INPUT DATA'!X114 -> -32310.98144 | W209: =+'INPUT DATA'!Y114 -> -37182.36838 | X209: =+'INPUT DATA'!Z114 -> -37898.84844 | Y209: =+'INPUT DATA'!AA114 -> -40663.66853 | Z209: =+'INPUT DATA'!AB114 -> -39524.54941 | AA209: =+'INPUT DATA'!AC114 -> -42635.76398 | AB209: =+'INPUT DATA'!AD114 -> -48369.83973 | AC209: =+'INPUT DATA'!AE114 -> -76173.0299 | AD209: =+'INPUT DATA'!AF114 -> -61561.40162 | AE209: =+'INPUT DATA'!AG114 -> -61317.65855 | AF209: =+'INPUT DATA'!AH114 -> -30113.824 | AG209: =+'INPUT DATA'!AI114 -> -32208.81727 | AH209: =+'INPUT DATA'!AJ114 -> -32787.01649 | AI209: =+'INPUT DATA'!AK114 -> -33126.53536 | AJ209: =+'INPUT DATA'!AL114 -> -74872.37397 | AK209: =+'INPUT DATA'!AM114 -> -146190.2286 | AL209: =+'INPUT DATA'!AN114 -> -158077.2994 | AM209: =+'INPUT DATA'!AO114 -> -161917.6815 | AN209: =+'INPUT DATA'!AP114 -> -166753.7734 | AO209: =+'INPUT DATA'!AQ114 -> -168329.1438 | AP209: =+'INPUT DATA'!AR114 -> -175426.6225 | AQ209: =+'INPUT DATA'!AS114 -> -164658.1208 | AR209: =+'INPUT DATA'!AT114 -> -203780.5252 | AS209: =+'INPUT DATA'!AU114 -> -168666.9018 | AT209: =+'INPUT DATA'!AV114 -> -184464.7817 | AU209: =+'INPUT DATA'!AW114 -> 0 | AV209: =+'INPUT DATA'!AX114 -> 0 | AW209: =+'INPUT DATA'!AY114 -> 0 | AX209: =+'INPUT DATA'!AZ114 -> 0 | AY209: =+'INPUT DATA'!BA114 -> 0 | AZ209: =+'INPUT DATA'!BB114 -> 0 | BA209: =+'INPUT DATA'!BC114 -> 0 | BB209: =+'INPUT DATA'!BD114 -> 0 | BC209: =+'INPUT DATA'!BE114 -> 0 | BD209: =+'INPUT DATA'!BF114 -> 0 | BE209: =+'INPUT DATA'!BG114 -> 0 | BF209: =+'INPUT DATA'!BH114 -> 0 | BG209: =+'INPUT DATA'!BI114 -> 0 | BH209: =+'INPUT DATA'!BJ114 -> 0 | BI209: =+'INPUT DATA'!BK114 -> 0 | BJ209: =+'INPUT DATA'!BL114 -> 0 | BK209: =+'INPUT DATA'!BM114 -> 0 | BL209: =+'INPUT DATA'!BN114 -> 0 | BM209: =+'INPUT DATA'!BO114 -> 0 | BN209: =+'INPUT DATA'!BP114 -> 0 | BO209: =+'INPUT DATA'!BQ114 -> 0 | BP209: =+'INPUT DATA'!BR114 -> 0 | BQ209: =+'INPUT DATA'!BS114 -> 0
C210: Equity | I210: =+'INPUT DATA'!K115 -> 7086.039643 | J210: =+'INPUT DATA'!L115 -> 13439.47886 | K210: =+'INPUT DATA'!M115 -> 16473.74175 | L210: =+'INPUT DATA'!N115 -> 0 | M210: =+'INPUT DATA'!O115 -> 0 | N210: =+'INPUT DATA'!P115 -> 0 | O210: =+'INPUT DATA'!Q115 -> 0 | P210: =+'INPUT DATA'!R115 -> 0 | Q210: =+'INPUT DATA'!S115 -> 0 | R210: =+'INPUT DATA'!T115 -> 0 | S210: =+'INPUT DATA'!U115 -> 0 | T210: =+'INPUT DATA'!V115 -> 0 | U210: =+'INPUT DATA'!W115 -> 0 | V210: =+'INPUT DATA'!X115 -> 0 | W210: =+'INPUT DATA'!Y115 -> 0 | X210: =+'INPUT DATA'!Z115 -> 0 | Y210: =+'INPUT DATA'!AA115 -> 0 | Z210: =+'INPUT DATA'!AB115 -> 0 | AA210: =+'INPUT DATA'!AC115 -> 0 | AB210: =+'INPUT DATA'!AD115 -> 0 | AC210: =+'INPUT DATA'!AE115 -> 0 | AD210: =+'INPUT DATA'!AF115 -> 0 | AE210: =+'INPUT DATA'!AG115 -> 0 | AF210: =+'INPUT DATA'!AH115 -> 0 | AG210: =+'INPUT DATA'!AI115 -> 0 | AH210: =+'INPUT DATA'!AJ115 -> 0 | AI210: =+'INPUT DATA'!AK115 -> 0 | AJ210: =+'INPUT DATA'!AL115 -> 0 | AK210: =+'INPUT DATA'!AM115 -> 0 | AL210: =+'INPUT DATA'!AN115 -> 0 | AM210: =+'INPUT DATA'!AO115 -> 0 | AN210: =+'INPUT DATA'!AP115 -> 0 | AO210: =+'INPUT DATA'!AQ115 -> 0 | AP210: =+'INPUT DATA'!AR115 -> 0 | AQ210: =+'INPUT DATA'!AS115 -> 0 | AR210: =+'INPUT DATA'!AT115 -> 0 | AS210: =+'INPUT DATA'!AU115 -> 0 | AT210: =+'INPUT DATA'!AV115 -> 0 | AU210: =+'INPUT DATA'!AW115 -> 0 | AV210: =+'INPUT DATA'!AX115 -> 0 | AW210: =+'INPUT DATA'!AY115 -> 0 | AX210: =+'INPUT DATA'!AZ115 -> 0 | AY210: =+'INPUT DATA'!BA115 -> 0 | AZ210: =+'INPUT DATA'!BB115 -> 0 | BA210: =+'INPUT DATA'!BC115 -> 0 | BB210: =+'INPUT DATA'!BD115 -> 0 | BC210: =+'INPUT DATA'!BE115 -> 0 | BD210: =+'INPUT DATA'!BF115 -> 0 | BE210: =+'INPUT DATA'!BG115 -> 0 | BF210: =+'INPUT DATA'!BH115 -> 0 | BG210: =+'INPUT DATA'!BI115 -> 0 | BH210: =+'INPUT DATA'!BJ115 -> 0 | BI210: =+'INPUT DATA'!BK115 -> 0 | BJ210: =+'INPUT DATA'!BL115 -> 0 | BK210: =+'INPUT DATA'!BM115 -> 0 | BL210: =+'INPUT DATA'!BN115 -> 0 | BM210: =+'INPUT DATA'!BO115 -> 0 | BN210: =+'INPUT DATA'!BP115 -> 0 | BO210: =+'INPUT DATA'!BQ115 -> 0 | BP210: =+'INPUT DATA'!BR115 -> 0 | BQ210: =+'INPUT DATA'!BS115 -> 0
C211: Other | I211: =+'INPUT DATA'!K116 -> 0 | J211: =+'INPUT DATA'!L116 -> 0 | K211: =+'INPUT DATA'!M116 -> 0 | L211: =+'INPUT DATA'!N116 -> 0 | M211: =+'INPUT DATA'!O116 -> 0 | N211: =+'INPUT DATA'!P116 -> 0 | O211: =+'INPUT DATA'!Q116 -> 0 | P211: =+'INPUT DATA'!R116 -> 0 | Q211: =+'INPUT DATA'!S116 -> -545.3398338 | R211: =+'INPUT DATA'!T116 -> -1141.131473 | S211: =+'INPUT DATA'!U116 -> -1161.574869 | T211: =+'INPUT DATA'!V116 -> -1085.466058 | U211: =+'INPUT DATA'!W116 -> -1142.098906 | V211: =+'INPUT DATA'!X116 -> -1168.821902 | W211: =+'INPUT DATA'!Y116 -> -1185.649125 | X211: =+'INPUT DATA'!Z116 -> -1208.034143 | Y211: =+'INPUT DATA'!AA116 -> -1212.529433 | Z211: =+'INPUT DATA'!AB116 -> -1233.155582 | AA211: =+'INPUT DATA'!AC116 -> -1249.467051 | AB211: =+'INPUT DATA'!AD116 -> -1278.697659 | AC211: =+'INPUT DATA'!AE116 -> -1322.013853 | AD211: =+'INPUT DATA'!AF116 -> -1360.679498 | AE211: =+'INPUT DATA'!AG116 -> -1657.133665 | AF211: =+'INPUT DATA'!AH116 -> -1334.708682 | AG211: =+'INPUT DATA'!AI116 -> -1346.432841 | AH211: =+'INPUT DATA'!AJ116 -> -1360.681013 | AI211: =+'INPUT DATA'!AK116 -> -1360.029042 | AJ211: =+'INPUT DATA'!AL116 -> -3899.475464 | AK211: =+'INPUT DATA'!AM116 -> -8230.293899 | AL211: =+'INPUT DATA'!AN116 -> 0 | AM211: =+'INPUT DATA'!AO116 -> 0 | AN211: =+'INPUT DATA'!AP116 -> 0 | AO211: =+'INPUT DATA'!AQ116 -> 0 | AP211: =+'INPUT DATA'!AR116 -> 0 | AQ211: =+'INPUT DATA'!AS116 -> 0 | AR211: =+'INPUT DATA'!AT116 -> 0 | AS211: =+'INPUT DATA'!AU116 -> 0 | AT211: =+'INPUT DATA'!AV116 -> 0 | AU211: =+'INPUT DATA'!AW116 -> 0 | AV211: =+'INPUT DATA'!AX116 -> 0 | AW211: =+'INPUT DATA'!AY116 -> 0 | AX211: =+'INPUT DATA'!AZ116 -> 0 | AY211: =+'INPUT DATA'!BA116 -> 0 | AZ211: =+'INPUT DATA'!BB116 -> 0 | BA211: =+'INPUT DATA'!BC116 -> 0 | BB211: =+'INPUT DATA'!BD116 -> 0 | BC211: =+'INPUT DATA'!BE116 -> 0 | BD211: =+'INPUT DATA'!BF116 -> 0 | BE211: =+'INPUT DATA'!BG116 -> 0 | BF211: =+'INPUT DATA'!BH116 -> 0 | BG211: =+'INPUT DATA'!BI116 -> 0 | BH211: =+'INPUT DATA'!BJ116 -> 0 | BI211: =+'INPUT DATA'!BK116 -> 0 | BJ211: =+'INPUT DATA'!BL116 -> 0 | BK211: =+'INPUT DATA'!BM116 -> 0 | BL211: =+'INPUT DATA'!BN116 -> 0 | BM211: =+'INPUT DATA'!BO116 -> 0 | BN211: =+'INPUT DATA'!BP116 -> 0 | BO211: =+'INPUT DATA'!BQ116 -> 0 | BP211: =+'INPUT DATA'!BR116 -> 0 | BQ211: =+'INPUT DATA'!BS116 -> 0
C212: Net Cash Flow | I212: =+I208+I209+I210+I211 -> -30212.11012 | J212: 116937.7573 | K212: -147674.6655 | L212: -2035.080727 | M212: -19507.34675 | N212: 2885.912853 | O212: 1723.913085 | P212: 1851.934281 | Q212: 1677.428527 | R212: 1428.519581 | S212: 1250.982816 | T212: 496.8989867 | U212: 594.0020425 | V212: 383.8288999 | W212: 77.6081513 | X212: -300.3276328 | Y212: 262.3191409 | Z212: -949.9228161 | AA212: 203.6103541 | AB212: -2595.062733 | AC212: -2234.115304 | AD212: 12534.90063 | AE212: -16852.84714 | AF212: -64.48757173 | AG212: 2897.138759 | AH212: 3089.864001 | AI212: 3787.347501 | AJ212: 3848.069843 | AK212: 3144.410354 | AL212: 3229.266859 | AM212: 3206.715703 | AN212: 3263.786655 | AO212: =+AO208+AO209+AO210+AO211 -> 2896.237495 | AP212: 5187.293935 | AQ212: -4242.519152 | AR212: -38755.71909 | AS212: 0 | AT212: -980 | AU212: 0 | AV212: 0 | AW212: 0 | AX212: 0 | AY212: 0 | AZ212: 0 | BA212: 0 | BB212: 0 | BC212: 0 | BD212: 0 | BE212: 0 | BF212: 0 | BG212: 0 | BH212: 0 | BI212: 0 | BJ212: 0 | BK212: 0 | BL212: 0 | BM212: 0 | BN212: 0 | BO212: 0 | BP212: 0 | BQ212: 0
C213: Cash EoP | H213: =+'INPUT DATA'!J118 -> 89544.4568 | I213: =+I212+H213 -> 59332.34669 | J213: 176270.104 | K213: 28595.43847 | L213: 26560.35774 | M213: 7053.01099 | N213: 9938.923843 | O213: 11662.83693 | P213: 13514.77121 | Q213: 15192.19974 | R213: 16620.71932 | S213: 17871.70213 | T213: 18368.60112 | U213: 18962.60316 | V213: 19346.43206 | W213: 19424.04021 | X213: 19123.71258 | Y213: 19386.03172 | Z213: 18436.1089 | AA213: 18639.71926 | AB213: 16044.65653 | AC213: 13810.54122 | AD213: 26345.44185 | AE213: 9492.594709 | AF213: 9428.107137 | AG213: 12325.2459 | AH213: 15415.1099 | AI213: 19202.4574 | AJ213: 23050.52724 | AK213: 26194.9376 | AL213: 29424.20445 | AM213: 32630.92016 | AN213: 35894.70681 | AO213: 38790.94431 | AP213: 43978.23824 | AQ213: 39735.71909 | AR213: 980 | AS213: 980 | AT213: 0 | AU213: 0 | AV213: 0 | AW213: 0 | AX213: 0 | AY213: 0 | AZ213: =+AZ212+AY213 -> 0 | BA213: =+BA212+AZ213 -> 0 | BB213: =+BB212+BA213 -> 0 | BC213: =+BC212+BB213 -> 0 | BD213: =+BD212+BC213 -> 0 | BE213: =+BE212+BD213 -> 0 | BF213: =+BF212+BE213 -> 0 | BG213: =+BG212+BF213 -> 0 | BH213: =+BH212+BG213 -> 0 | BI213: =+BI212+BH213 -> 0 | BJ213: =+BJ212+BI213 -> 0 | BK213: =+BK212+BJ213 -> 0 | BL213: =+BL212+BK213 -> 0 | BM213: =+BM212+BL213 -> 0 | BN213: =+BN212+BM213 -> 0 | BO213: =+BO212+BN213 -> 0 | BP213: =+BP212+BO213 -> 0 | BQ213: =+BQ212+BP213 -> 0
A218: 1 | C218: Uruguay
C220: =+"Cash Flow "&C218&" - [000' EUR]" -> Cash Flow Uruguay - [000' EUR]
C221: Year | I221: =+I$12 -> 2025 | J221: 2026 | K221: 2027 | L221: 2028 | M221: 2029 | N221: 2030 | O221: 2031 | P221: 2032 | Q221: 2033 | R221: 2034 | S221: 2035 | T221: 2036 | U221: 2037 | V221: 2038 | W221: 2039 | X221: 2040 | Y221: 2041 | Z221: 2042 | AA221: 2043 | AB221: 2044 | AC221: 2045 | AD221: 2046 | AE221: 2047 | AF221: 2048 | AG221: 2049 | AH221: 2050 | AI221: 2051 | AJ221: 2052 | AK221: 2053 | AL221: 2054 | AM221: 2055 | AN221: 2056 | AO221: =+AO$12 -> 2057 | AP221: 2058 | AQ221: 2059 | AR221: 2060 | AS221: 2061 | AT221: 2062 | AU221: 2063 | AV221: 2064 | AW221: 2065 | AX221: 2066 | AY221: 2067 | AZ221: 2068 | BA221: 2069 | BB221: 2070 | BC221: 2071 | BD221: 2072 | BE221: 2073 | BF221: 2074 | BG221: 2075 | BH221: 2076 | BI221: 2077 | BJ221: 2078 | BK221: 2079 | BL221: 2080 | BM221: 2081 | BN221: 2082 | BO221: 2083 | BP221: 2084 | BQ221: 2085
C222: Income | I222: =+I223+I224+I225 -> 70921.48684 | J222: 71496.97 | K222: 72099.51554 | L222: 72799.05401 | M222: 73161.78928 | N222: 73748.96705 | O222: 74348.19708 | P222: 75138.2027 | Q222: 75585.46028 | R222: 76222.40538 | S222: 76872.43851 | T222: 77721.03798 | U222: 78214.63878 | V222: 78905.63081 | W222: 75736.27138 | X222: 10290.35259 | Y222: 12098.25244 | Z222: 0 | AA222: 0 | AB222: 0 | AC222: 0 | AD222: 0 | AE222: 0 | AF222: 0 | AG222: 0 | AH222: 0 | AI222: 0 | AJ222: 0 | AK222: 0 | AL222: 0 | AM222: 0 | AN222: 0 | AO222: 0 | AP222: 0 | AQ222: 0 | AR222: 0 | AS222: 0 | AT222: 0 | AU222: 0 | AV222: 0 | AW222: 0 | AX222: 0 | AY222: 0 | AZ222: =+AZ223+AZ224+AZ225 -> 0 | BA222: 0 | BB222: 0 | BC222: 0 | BD222: 0 | BE222: 0 | BF222: 0 | BG222: 0 | BH222: 0 | BI222: 0 | BJ222: 0 | BK222: 0 | BL222: 0 | BM222: 0 | BN222: 0 | BO222: 0 | BP222: 0 | BQ222: 0
C223: Income with mitigated demand risk | I223: =+'INPUT DATA'!K128 -> 70921.48684 | J223: =+'INPUT DATA'!L128 -> 71496.97 | K223: =+'INPUT DATA'!M128 -> 72099.51554 | L223: =+'INPUT DATA'!N128 -> 72799.05401 | M223: =+'INPUT DATA'!O128 -> 73161.78928 | N223: =+'INPUT DATA'!P128 -> 73748.96705 | O223: =+'INPUT DATA'!Q128 -> 74348.19708 | P223: =+'INPUT DATA'!R128 -> 75138.2027 | Q223: =+'INPUT DATA'!S128 -> 75585.46028 | R223: =+'INPUT DATA'!T128 -> 76222.40538 | S223: =+'INPUT DATA'!U128 -> 76872.43851 | T223: =+'INPUT DATA'!V128 -> 77721.03798 | U223: =+'INPUT DATA'!W128 -> 78214.63878 | V223: =+'INPUT DATA'!X128 -> 78905.63081 | W223: =+'INPUT DATA'!Y128 -> 75736.27138 | X223: =+'INPUT DATA'!Z128 -> 10290.35259 | Y223: =+'INPUT DATA'!AA128 -> 12098.25244 | Z223: =+'INPUT DATA'!AB128 -> 0 | AA223: =+'INPUT DATA'!AC128 -> 0 | AB223: =+'INPUT DATA'!AD128 -> 0 | AC223: =+'INPUT DATA'!AE128 -> 0 | AD223: =+'INPUT DATA'!AF128 -> 0 | AE223: =+'INPUT DATA'!AG128 -> 0 | AF223: =+'INPUT DATA'!AH128 -> 0 | AG223: =+'INPUT DATA'!AI128 -> 0 | AH223: =+'INPUT DATA'!AJ128 -> 0 | AI223: =+'INPUT DATA'!AK128 -> 0 | AJ223: =+'INPUT DATA'!AL128 -> 0 | AK223: =+'INPUT DATA'!AM128 -> 0 | AL223: =+'INPUT DATA'!AN128 -> 0 | AM223: =+'INPUT DATA'!AO128 -> 0 | AN223: =+'INPUT DATA'!AP128 -> 0 | AO223: =+'INPUT DATA'!AQ128 -> 0 | AP223: =+'INPUT DATA'!AR128 -> 0 | AQ223: =+'INPUT DATA'!AS128 -> 0 | AR223: =+'INPUT DATA'!AT128 -> 0 | AS223: =+'INPUT DATA'!AU128 -> 0 | AT223: =+'INPUT DATA'!AV128 -> 0 | AU223: =+'INPUT DATA'!AW128 -> 0 | AV223: =+'INPUT DATA'!AX128 -> 0 | AW223: =+'INPUT DATA'!AY128 -> 0 | AX223: =+'INPUT DATA'!AZ128 -> 0 | AY223: =+'INPUT DATA'!BA128 -> 0 | AZ223: =+'INPUT DATA'!BB128 -> 0 | BA223: =+'INPUT DATA'!BC128 -> 0 | BB223: =+'INPUT DATA'!BD128 -> 0 | BC223: =+'INPUT DATA'!BE128 -> 0 | BD223: =+'INPUT DATA'!BF128 -> 0 | BE223: =+'INPUT DATA'!BG128 -> 0 | BF223: =+'INPUT DATA'!BH128 -> 0 | BG223: =+'INPUT DATA'!BI128 -> 0 | BH223: =+'INPUT DATA'!BJ128 -> 0 | BI223: =+'INPUT DATA'!BK128 -> 0 | BJ223: =+'INPUT DATA'!BL128 -> 0 | BK223: =+'INPUT DATA'!BM128 -> 0 | BL223: =+'INPUT DATA'!BN128 -> 0 | BM223: =+'INPUT DATA'!BO128 -> 0 | BN223: =+'INPUT DATA'!BP128 -> 0 | BO223: =+'INPUT DATA'!BQ128 -> 0 | BP223: =+'INPUT DATA'!BR128 -> 0 | BQ223: =+'INPUT DATA'!BS128 -> 0
C224: Income with low demand risk | I224: =+'INPUT DATA'!K129 -> 0 | J224: =+'INPUT DATA'!L129 -> 0 | K224: =+'INPUT DATA'!M129 -> 0 | L224: =+'INPUT DATA'!N129 -> 0 | M224: =+'INPUT DATA'!O129 -> 0 | N224: =+'INPUT DATA'!P129 -> 0 | O224: =+'INPUT DATA'!Q129 -> 0 | P224: =+'INPUT DATA'!R129 -> 0 | Q224: =+'INPUT DATA'!S129 -> 0 | R224: =+'INPUT DATA'!T129 -> 0 | S224: =+'INPUT DATA'!U129 -> 0 | T224: =+'INPUT DATA'!V129 -> 0 | U224: =+'INPUT DATA'!W129 -> 0 | V224: =+'INPUT DATA'!X129 -> 0 | W224: =+'INPUT DATA'!Y129 -> 0 | X224: =+'INPUT DATA'!Z129 -> 0 | Y224: =+'INPUT DATA'!AA129 -> 0 | Z224: =+'INPUT DATA'!AB129 -> 0 | AA224: =+'INPUT DATA'!AC129 -> 0 | AB224: =+'INPUT DATA'!AD129 -> 0 | AC224: =+'INPUT DATA'!AE129 -> 0 | AD224: =+'INPUT DATA'!AF129 -> 0 | AE224: =+'INPUT DATA'!AG129 -> 0 | AF224: =+'INPUT DATA'!AH129 -> 0 | AG224: =+'INPUT DATA'!AI129 -> 0 | AH224: =+'INPUT DATA'!AJ129 -> 0 | AI224: =+'INPUT DATA'!AK129 -> 0 | AJ224: =+'INPUT DATA'!AL129 -> 0 | AK224: =+'INPUT DATA'!AM129 -> 0 | AL224: =+'INPUT DATA'!AN129 -> 0 | AM224: =+'INPUT DATA'!AO129 -> 0 | AN224: =+'INPUT DATA'!AP129 -> 0 | AO224: =+'INPUT DATA'!AQ129 -> 0 | AP224: =+'INPUT DATA'!AR129 -> 0 | AQ224: =+'INPUT DATA'!AS129 -> 0 | AR224: =+'INPUT DATA'!AT129 -> 0 | AS224: =+'INPUT DATA'!AU129 -> 0 | AT224: =+'INPUT DATA'!AV129 -> 0 | AU224: =+'INPUT DATA'!AW129 -> 0 | AV224: =+'INPUT DATA'!AX129 -> 0 | AW224: =+'INPUT DATA'!AY129 -> 0 | AX224: =+'INPUT DATA'!AZ129 -> 0 | AY224: =+'INPUT DATA'!BA129 -> 0 | AZ224: =+'INPUT DATA'!BB129 -> 0 | BA224: =+'INPUT DATA'!BC129 -> 0 | BB224: =+'INPUT DATA'!BD129 -> 0 | BC224: =+'INPUT DATA'!BE129 -> 0 | BD224: =+'INPUT DATA'!BF129 -> 0 | BE224: =+'INPUT DATA'!BG129 -> 0 | BF224: =+'INPUT DATA'!BH129 -> 0 | BG224: =+'INPUT DATA'!BI129 -> 0 | BH224: =+'INPUT DATA'!BJ129 -> 0 | BI224: =+'INPUT DATA'!BK129 -> 0 | BJ224: =+'INPUT DATA'!BL129 -> 0 | BK224: =+'INPUT DATA'!BM129 -> 0 | BL224: =+'INPUT DATA'!BN129 -> 0 | BM224: =+'INPUT DATA'!BO129 -> 0 | BN224: =+'INPUT DATA'!BP129 -> 0 | BO224: =+'INPUT DATA'!BQ129 -> 0 | BP224: =+'INPUT DATA'!BR129 -> 0 | BQ224: =+'INPUT DATA'!BS129 -> 0
C225: Income with demand risk | I225: =+'INPUT DATA'!K130 -> 0 | J225: =+'INPUT DATA'!L130 -> 0 | K225: =+'INPUT DATA'!M130 -> 0 | L225: =+'INPUT DATA'!N130 -> 0 | M225: =+'INPUT DATA'!O130 -> 0 | N225: =+'INPUT DATA'!P130 -> 0 | O225: =+'INPUT DATA'!Q130 -> 0 | P225: =+'INPUT DATA'!R130 -> 0 | Q225: =+'INPUT DATA'!S130 -> 0 | R225: =+'INPUT DATA'!T130 -> 0 | S225: =+'INPUT DATA'!U130 -> 0 | T225: =+'INPUT DATA'!V130 -> 0 | U225: =+'INPUT DATA'!W130 -> 0 | V225: =+'INPUT DATA'!X130 -> 0 | W225: =+'INPUT DATA'!Y130 -> 0 | X225: =+'INPUT DATA'!Z130 -> 0 | Y225: =+'INPUT DATA'!AA130 -> 0 | Z225: =+'INPUT DATA'!AB130 -> 0 | AA225: =+'INPUT DATA'!AC130 -> 0 | AB225: =+'INPUT DATA'!AD130 -> 0 | AC225: =+'INPUT DATA'!AE130 -> 0 | AD225: =+'INPUT DATA'!AF130 -> 0 | AE225: =+'INPUT DATA'!AG130 -> 0 | AF225: =+'INPUT DATA'!AH130 -> 0 | AG225: =+'INPUT DATA'!AI130 -> 0 | AH225: =+'INPUT DATA'!AJ130 -> 0 | AI225: =+'INPUT DATA'!AK130 -> 0 | AJ225: =+'INPUT DATA'!AL130 -> 0 | AK225: =+'INPUT DATA'!AM130 -> 0 | AL225: =+'INPUT DATA'!AN130 -> 0 | AM225: =+'INPUT DATA'!AO130 -> 0 | AN225: =+'INPUT DATA'!AP130 -> 0 | AO225: =+'INPUT DATA'!AQ130 -> 0 | AP225: =+'INPUT DATA'!AR130 -> 0 | AQ225: =+'INPUT DATA'!AS130 -> 0 | AR225: =+'INPUT DATA'!AT130 -> 0 | AS225: =+'INPUT DATA'!AU130 -> 0 | AT225: =+'INPUT DATA'!AV130 -> 0 | AU225: =+'INPUT DATA'!AW130 -> 0 | AV225: =+'INPUT DATA'!AX130 -> 0 | AW225: =+'INPUT DATA'!AY130 -> 0 | AX225: =+'INPUT DATA'!AZ130 -> 0 | AY225: =+'INPUT DATA'!BA130 -> 0 | AZ225: =+'INPUT DATA'!BB130 -> 0 | BA225: =+'INPUT DATA'!BC130 -> 0 | BB225: =+'INPUT DATA'!BD130 -> 0 | BC225: =+'INPUT DATA'!BE130 -> 0 | BD225: =+'INPUT DATA'!BF130 -> 0 | BE225: =+'INPUT DATA'!BG130 -> 0 | BF225: =+'INPUT DATA'!BH130 -> 0 | BG225: =+'INPUT DATA'!BI130 -> 0 | BH225: =+'INPUT DATA'!BJ130 -> 0 | BI225: =+'INPUT DATA'!BK130 -> 0 | BJ225: =+'INPUT DATA'!BL130 -> 0 | BK225: =+'INPUT DATA'!BM130 -> 0 | BL225: =+'INPUT DATA'!BN130 -> 0 | BM225: =+'INPUT DATA'!BO130 -> 0 | BN225: =+'INPUT DATA'!BP130 -> 0 | BO225: =+'INPUT DATA'!BQ130 -> 0 | BP225: =+'INPUT DATA'!BR130 -> 0 | BQ225: =+'INPUT DATA'!BS130 -> 0
C226: Operating Costs | I226: =+'INPUT DATA'!K131 -> -9056.563909 | J226: =+'INPUT DATA'!L131 -> -9347.130318 | K226: =+'INPUT DATA'!M131 -> -9526.057964 | L226: =+'INPUT DATA'!N131 -> -9695.876323 | M226: =+'INPUT DATA'!O131 -> -9855.525765 | N226: =+'INPUT DATA'!P131 -> -10045.3559 | O226: =+'INPUT DATA'!Q131 -> -10237.31689 | P226: =+'INPUT DATA'!R131 -> -10488.20066 | Q226: =+'INPUT DATA'!S131 -> -10709.20103 | R226: =+'INPUT DATA'!T131 -> -11355.46957 | S226: =+'INPUT DATA'!U131 -> -12482.02401 | T226: =+'INPUT DATA'!V131 -> -12786.63142 | U226: =+'INPUT DATA'!W131 -> -13117.90943 | V226: =+'INPUT DATA'!X131 -> -13408.41794 | W226: =+'INPUT DATA'!Y131 -> -8253.804237 | X226: =+'INPUT DATA'!Z131 -> 808.8039794 | Y226: =+'INPUT DATA'!AA131 -> 11531.82139 | Z226: =+'INPUT DATA'!AB131 -> 0 | AA226: =+'INPUT DATA'!AC131 -> 0 | AB226: =+'INPUT DATA'!AD131 -> 0 | AC226: =+'INPUT DATA'!AE131 -> 0 | AD226: =+'INPUT DATA'!AF131 -> 0 | AE226: =+'INPUT DATA'!AG131 -> 0 | AF226: =+'INPUT DATA'!AH131 -> 0 | AG226: =+'INPUT DATA'!AI131 -> 0 | AH226: =+'INPUT DATA'!AJ131 -> 0 | AI226: =+'INPUT DATA'!AK131 -> 0 | AJ226: =+'INPUT DATA'!AL131 -> 0 | AK226: =+'INPUT DATA'!AM131 -> 0 | AL226: =+'INPUT DATA'!AN131 -> 0 | AM226: =+'INPUT DATA'!AO131 -> 0 | AN226: =+'INPUT DATA'!AP131 -> 0 | AO226: =+'INPUT DATA'!AQ131 -> 0 | AP226: =+'INPUT DATA'!AR131 -> 0 | AQ226: =+'INPUT DATA'!AS131 -> 0 | AR226: =+'INPUT DATA'!AT131 -> 0 | AS226: =+'INPUT DATA'!AU131 -> 0 | AT226: =+'INPUT DATA'!AV131 -> 0 | AU226: =+'INPUT DATA'!AW131 -> 0 | AV226: =+'INPUT DATA'!AX131 -> 0 | AW226: =+'INPUT DATA'!AY131 -> 0 | AX226: =+'INPUT DATA'!AZ131 -> 0 | AY226: =+'INPUT DATA'!BA131 -> 0 | AZ226: =+'INPUT DATA'!BB131 -> 0 | BA226: =+'INPUT DATA'!BC131 -> 0 | BB226: =+'INPUT DATA'!BD131 -> 0 | BC226: =+'INPUT DATA'!BE131 -> 0 | BD226: =+'INPUT DATA'!BF131 -> 0 | BE226: =+'INPUT DATA'!BG131 -> 0 | BF226: =+'INPUT DATA'!BH131 -> 0 | BG226: =+'INPUT DATA'!BI131 -> 0 | BH226: =+'INPUT DATA'!BJ131 -> 0 | BI226: =+'INPUT DATA'!BK131 -> 0 | BJ226: =+'INPUT DATA'!BL131 -> 0 | BK226: =+'INPUT DATA'!BM131 -> 0 | BL226: =+'INPUT DATA'!BN131 -> 0 | BM226: =+'INPUT DATA'!BO131 -> 0 | BN226: =+'INPUT DATA'!BP131 -> 0 | BO226: =+'INPUT DATA'!BQ131 -> 0 | BP226: =+'INPUT DATA'!BR131 -> 0 | BQ226: =+'INPUT DATA'!BS131 -> 0
C227: Investment & Capex | I227: =+'INPUT DATA'!K132 -> -694.1338086 | J227: =+'INPUT DATA'!L132 -> -176.3011827 | K227: =+'INPUT DATA'!M132 -> -273.7901959 | L227: =+'INPUT DATA'!N132 -> -2157.541449 | M227: =+'INPUT DATA'!O132 -> -1715.558263 | N227: =+'INPUT DATA'!P132 -> -418.5738157 | O227: =+'INPUT DATA'!Q132 -> -4683.351726 | P227: =+'INPUT DATA'!R132 -> -651.434692 | Q227: =+'INPUT DATA'!S132 -> -1183.977279 | R227: =+'INPUT DATA'!T132 -> -4927.046959 | S227: =+'INPUT DATA'!U132 -> -453.5886904 | T227: =+'INPUT DATA'!V132 -> -4655.966206 | U227: =+'INPUT DATA'!W132 -> -945.3382539 | V227: =+'INPUT DATA'!X132 -> -2117.879733 | W227: =+'INPUT DATA'!Y132 -> -754.8847671 | X227: =+'INPUT DATA'!Z132 -> -1057.888115 | Y227: =+'INPUT DATA'!AA132 -> -446.7372654 | Z227: =+'INPUT DATA'!AB132 -> 0 | AA227: =+'INPUT DATA'!AC132 -> 0 | AB227: =+'INPUT DATA'!AD132 -> 0 | AC227: =+'INPUT DATA'!AE132 -> 0 | AD227: =+'INPUT DATA'!AF132 -> 0 | AE227: =+'INPUT DATA'!AG132 -> 0 | AF227: =+'INPUT DATA'!AH132 -> 0 | AG227: =+'INPUT DATA'!AI132 -> 0 | AH227: =+'INPUT DATA'!AJ132 -> 0 | AI227: =+'INPUT DATA'!AK132 -> 0 | AJ227: =+'INPUT DATA'!AL132 -> 0 | AK227: =+'INPUT DATA'!AM132 -> 0 | AL227: =+'INPUT DATA'!AN132 -> 0 | AM227: =+'INPUT DATA'!AO132 -> 0 | AN227: =+'INPUT DATA'!AP132 -> 0 | AO227: =+'INPUT DATA'!AQ132 -> 0 | AP227: =+'INPUT DATA'!AR132 -> 0 | AQ227: =+'INPUT DATA'!AS132 -> 0 | AR227: =+'INPUT DATA'!AT132 -> 0 | AS227: =+'INPUT DATA'!AU132 -> 0 | AT227: =+'INPUT DATA'!AV132 -> 0 | AU227: =+'INPUT DATA'!AW132 -> 0 | AV227: =+'INPUT DATA'!AX132 -> 0 | AW227: =+'INPUT DATA'!AY132 -> 0 | AX227: =+'INPUT DATA'!AZ132 -> 0 | AY227: =+'INPUT DATA'!BA132 -> 0 | AZ227: =+'INPUT DATA'!BB132 -> 0 | BA227: =+'INPUT DATA'!BC132 -> 0 | BB227: =+'INPUT DATA'!BD132 -> 0 | BC227: =+'INPUT DATA'!BE132 -> 0 | BD227: =+'INPUT DATA'!BF132 -> 0 | BE227: =+'INPUT DATA'!BG132 -> 0 | BF227: =+'INPUT DATA'!BH132 -> 0 | BG227: =+'INPUT DATA'!BI132 -> 0 | BH227: =+'INPUT DATA'!BJ132 -> 0 | BI227: =+'INPUT DATA'!BK132 -> 0 | BJ227: =+'INPUT DATA'!BL132 -> 0 | BK227: =+'INPUT DATA'!BM132 -> 0 | BL227: =+'INPUT DATA'!BN132 -> 0 | BM227: =+'INPUT DATA'!BO132 -> 0 | BN227: =+'INPUT DATA'!BP132 -> 0 | BO227: =+'INPUT DATA'!BQ132 -> 0 | BP227: =+'INPUT DATA'!BR132 -> 0 | BQ227: =+'INPUT DATA'!BS132 -> 0
C228: Into / Out Operating Reserve Accounts | I228: =+'INPUT DATA'!K133 -> -1193.738643 | J228: =+'INPUT DATA'!L133 -> -2507.36465 | K228: =+'INPUT DATA'!M133 -> -2143.772241 | L228: =+'INPUT DATA'!N133 -> 729.6138861 | M228: =+'INPUT DATA'!O133 -> -161.1737311 | N228: =+'INPUT DATA'!P133 -> -1094.979682 | O228: =+'INPUT DATA'!Q133 -> 3681.280397 | P228: =+'INPUT DATA'!R133 -> 77.15036575 | Q228: =+'INPUT DATA'!S133 -> -590.8570102 | R228: =+'INPUT DATA'!T133 -> -5741.9888 | S228: =+'INPUT DATA'!U133 -> 6423.171943 | T228: =+'INPUT DATA'!V133 -> 1965.23401 | U228: =+'INPUT DATA'!W133 -> -461.0871796 | V228: =+'INPUT DATA'!X133 -> 6448.302342 | W228: =+'INPUT DATA'!Y133 -> 148.0651572 | X228: =+'INPUT DATA'!Z133 -> 2639.262242 | Y228: =+'INPUT DATA'!AA133 -> 0 | Z228: =+'INPUT DATA'!AB133 -> 0 | AA228: =+'INPUT DATA'!AC133 -> 0 | AB228: =+'INPUT DATA'!AD133 -> 0 | AC228: =+'INPUT DATA'!AE133 -> 0 | AD228: =+'INPUT DATA'!AF133 -> 0 | AE228: =+'INPUT DATA'!AG133 -> 0 | AF228: =+'INPUT DATA'!AH133 -> 0 | AG228: =+'INPUT DATA'!AI133 -> 0 | AH228: =+'INPUT DATA'!AJ133 -> 0 | AI228: =+'INPUT DATA'!AK133 -> 0 | AJ228: =+'INPUT DATA'!AL133 -> 0 | AK228: =+'INPUT DATA'!AM133 -> 0 | AL228: =+'INPUT DATA'!AN133 -> 0 | AM228: =+'INPUT DATA'!AO133 -> 0 | AN228: =+'INPUT DATA'!AP133 -> 0 | AO228: =+'INPUT DATA'!AQ133 -> 0 | AP228: =+'INPUT DATA'!AR133 -> 0 | AQ228: =+'INPUT DATA'!AS133 -> 0 | AR228: =+'INPUT DATA'!AT133 -> 0 | AS228: =+'INPUT DATA'!AU133 -> 0 | AT228: =+'INPUT DATA'!AV133 -> 0 | AU228: =+'INPUT DATA'!AW133 -> 0 | AV228: =+'INPUT DATA'!AX133 -> 0 | AW228: =+'INPUT DATA'!AY133 -> 0 | AX228: =+'INPUT DATA'!AZ133 -> 0 | AY228: =+'INPUT DATA'!BA133 -> 0 | AZ228: =+'INPUT DATA'!BB133 -> 0 | BA228: =+'INPUT DATA'!BC133 -> 0 | BB228: =+'INPUT DATA'!BD133 -> 0 | BC228: =+'INPUT DATA'!BE133 -> 0 | BD228: =+'INPUT DATA'!BF133 -> 0 | BE228: =+'INPUT DATA'!BG133 -> 0 | BF228: =+'INPUT DATA'!BH133 -> 0 | BG228: =+'INPUT DATA'!BI133 -> 0 | BH228: =+'INPUT DATA'!BJ133 -> 0 | BI228: =+'INPUT DATA'!BK133 -> 0 | BJ228: =+'INPUT DATA'!BL133 -> 0 | BK228: =+'INPUT DATA'!BM133 -> 0 | BL228: =+'INPUT DATA'!BN133 -> 0 | BM228: =+'INPUT DATA'!BO133 -> 0 | BN228: =+'INPUT DATA'!BP133 -> 0 | BO228: =+'INPUT DATA'!BQ133 -> 0 | BP228: =+'INPUT DATA'!BR133 -> 0 | BQ228: =+'INPUT DATA'!BS133 -> 0
C229: Operating Cash Flow | I229: =+I222+I226+I227+I228 -> 59977.05048 | J229: 59466.17385 | K229: 60155.89514 | L229: 61675.25012 | M229: 61429.53152 | N229: 62190.05766 | O229: 63108.80886 | P229: 64075.71772 | Q229: 63101.42497 | R229: 54197.90005 | S229: 70359.99775 | T229: 62243.67436 | U229: 63690.30392 | V229: 69827.63548 | W229: 66875.64754 | X229: 12680.5307 | Y229: 23183.33656 | Z229: 0 | AA229: 0 | AB229: 0 | AC229: 0 | AD229: 0 | AE229: 0 | AF229: 0 | AG229: 0 | AH229: 0 | AI229: 0 | AJ229: 0 | AK229: 0 | AL229: 0 | AM229: 0 | AN229: 0 | AO229: 0 | AP229: 0 | AQ229: 0 | AR229: 0 | AS229: 0 | AT229: 0 | AU229: 0 | AV229: 0 | AW229: 0 | AX229: 0 | AY229: 0 | AZ229: =+AZ222+AZ226+AZ227+AZ228 -> 0 | BA229: 0 | BB229: 0 | BC229: 0 | BD229: 0 | BE229: 0 | BF229: 0 | BG229: 0 | BH229: 0 | BI229: 0 | BJ229: 0 | BK229: 0 | BL229: 0 | BM229: 0 | BN229: 0 | BO229: 0 | BP229: 0 | BQ229: 0
C230: Taxes | I230: =+'INPUT DATA'!K135 -> -66.23586948 | J230: =+'INPUT DATA'!L135 -> -179.674721 | K230: =+'INPUT DATA'!M135 -> -639.6671595 | L230: =+'INPUT DATA'!N135 -> -423.1626149 | M230: =+'INPUT DATA'!O135 -> -539.4659053 | N230: =+'INPUT DATA'!P135 -> -631.6583042 | O230: =+'INPUT DATA'!Q135 -> -704.2681938 | P230: =+'INPUT DATA'!R135 -> -848.2482032 | Q230: =+'INPUT DATA'!S135 -> -972.0478347 | R230: =+'INPUT DATA'!T135 -> -3478.850795 | S230: =+'INPUT DATA'!U135 -> -21531.99131 | T230: =+'INPUT DATA'!V135 -> -13509.06767 | U230: =+'INPUT DATA'!W135 -> -14629.99302 | V230: =+'INPUT DATA'!X135 -> -15590.97214 | W230: =+'INPUT DATA'!Y135 -> -14333.33526 | X230: =+'INPUT DATA'!Z135 -> -1530.864148 | Y230: =+'INPUT DATA'!AA135 -> -2362.580933 | Z230: =+'INPUT DATA'!AB135 -> -9.232852908e-05 | AA230: =+'INPUT DATA'!AC135 -> 0 | AB230: =+'INPUT DATA'!AD135 -> 0 | AC230: =+'INPUT DATA'!AE135 -> 0 | AD230: =+'INPUT DATA'!AF135 -> 0 | AE230: =+'INPUT DATA'!AG135 -> 0 | AF230: =+'INPUT DATA'!AH135 -> 0 | AG230: =+'INPUT DATA'!AI135 -> 0 | AH230: =+'INPUT DATA'!AJ135 -> 0 | AI230: =+'INPUT DATA'!AK135 -> 0 | AJ230: =+'INPUT DATA'!AL135 -> 0 | AK230: =+'INPUT DATA'!AM135 -> 0 | AL230: =+'INPUT DATA'!AN135 -> 0 | AM230: =+'INPUT DATA'!AO135 -> 0 | AN230: =+'INPUT DATA'!AP135 -> 0 | AO230: =+'INPUT DATA'!AQ135 -> 0 | AP230: =+'INPUT DATA'!AR135 -> 0 | AQ230: =+'INPUT DATA'!AS135 -> 0 | AR230: =+'INPUT DATA'!AT135 -> 0 | AS230: =+'INPUT DATA'!AU135 -> 0 | AT230: =+'INPUT DATA'!AV135 -> 0 | AU230: =+'INPUT DATA'!AW135 -> 0 | AV230: =+'INPUT DATA'!AX135 -> 0 | AW230: =+'INPUT DATA'!AY135 -> 0 | AX230: =+'INPUT DATA'!AZ135 -> 0 | AY230: =+'INPUT DATA'!BA135 -> 0 | AZ230: =+'INPUT DATA'!BB135 -> 0 | BA230: =+'INPUT DATA'!BC135 -> 0 | BB230: =+'INPUT DATA'!BD135 -> 0 | BC230: =+'INPUT DATA'!BE135 -> 0 | BD230: =+'INPUT DATA'!BF135 -> 0 | BE230: =+'INPUT DATA'!BG135 -> 0 | BF230: =+'INPUT DATA'!BH135 -> 0 | BG230: =+'INPUT DATA'!BI135 -> 0 | BH230: =+'INPUT DATA'!BJ135 -> 0 | BI230: =+'INPUT DATA'!BK135 -> 0 | BJ230: =+'INPUT DATA'!BL135 -> 0 | BK230: =+'INPUT DATA'!BM135 -> 0 | BL230: =+'INPUT DATA'!BN135 -> 0 | BM230: =+'INPUT DATA'!BO135 -> 0 | BN230: =+'INPUT DATA'!BP135 -> 0 | BO230: =+'INPUT DATA'!BQ135 -> 0 | BP230: =+'INPUT DATA'!BR135 -> 0 | BQ230: =+'INPUT DATA'!BS135 -> 0
C231: Operating Cash Flow After Tax | I231: =+I229+I230 -> 59910.81461 | J231: 59286.49913 | K231: 59516.22798 | L231: 61252.08751 | M231: 60890.06561 | N231: 61558.39935 | O231: 62404.54067 | P231: 63227.46952 | Q231: 62129.37713 | R231: 50719.04925 | S231: 48828.00644 | T231: 48734.60669 | U231: 49060.3109 | V231: 54236.66333 | W231: 52542.31228 | X231: 11149.66655 | Y231: 20820.75563 | Z231: -9.232852908e-05 | AA231: 0 | AB231: 0 | AC231: 0 | AD231: 0 | AE231: 0 | AF231: 0 | AG231: 0 | AH231: 0 | AI231: 0 | AJ231: 0 | AK231: 0 | AL231: 0 | AM231: 0 | AN231: 0 | AO231: 0 | AP231: 0 | AQ231: 0 | AR231: 0 | AS231: 0 | AT231: 0 | AU231: 0 | AV231: 0 | AW231: 0 | AX231: 0 | AY231: 0 | AZ231: =+AZ229+AZ230 -> 0 | BA231: 0 | BB231: 0 | BC231: 0 | BD231: 0 | BE231: 0 | BF231: 0 | BG231: 0 | BH231: 0 | BI231: 0 | BJ231: 0 | BK231: 0 | BL231: 0 | BM231: 0 | BN231: 0 | BO231: 0 | BP231: 0 | BQ231: 0
C232: Debt Service | I232: =+'INPUT DATA'!K137 -> -32813.33583 | J232: =+'INPUT DATA'!L137 -> -35324.94726 | K232: =+'INPUT DATA'!M137 -> -28121.11452 | L232: =+'INPUT DATA'!N137 -> -27418.36681 | M232: =+'INPUT DATA'!O137 -> -30515.5268 | N232: =+'INPUT DATA'!P137 -> -31522.74897 | O232: =+'INPUT DATA'!Q137 -> -34482.87849 | P232: =+'INPUT DATA'!R137 -> -35958.13233 | Q232: =+'INPUT DATA'!S137 -> -37127.89548 | R232: =+'INPUT DATA'!T137 -> -27339.11523 | S232: =+'INPUT DATA'!U137 -> -30874.74868 | T232: =+'INPUT DATA'!V137 -> -33669.50939 | U232: =+'INPUT DATA'!W137 -> -33161.89398 | V232: =+'INPUT DATA'!X137 -> -11085.10232 | W232: =+'INPUT DATA'!Y137 -> -1072.263671 | X232: =+'INPUT DATA'!Z137 -> 484.3167385 | Y232: =+'INPUT DATA'!AA137 -> 3.2916725 | Z232: =+'INPUT DATA'!AB137 -> 0 | AA232: =+'INPUT DATA'!AC137 -> 0 | AB232: =+'INPUT DATA'!AD137 -> 0 | AC232: =+'INPUT DATA'!AE137 -> 0 | AD232: =+'INPUT DATA'!AF137 -> 0 | AE232: =+'INPUT DATA'!AG137 -> 0 | AF232: =+'INPUT DATA'!AH137 -> 0 | AG232: =+'INPUT DATA'!AI137 -> 0 | AH232: =+'INPUT DATA'!AJ137 -> 0 | AI232: =+'INPUT DATA'!AK137 -> 0 | AJ232: =+'INPUT DATA'!AL137 -> 0 | AK232: =+'INPUT DATA'!AM137 -> 0 | AL232: =+'INPUT DATA'!AN137 -> 0 | AM232: =+'INPUT DATA'!AO137 -> 0 | AN232: =+'INPUT DATA'!AP137 -> 0 | AO232: =+'INPUT DATA'!AQ137 -> 0 | AP232: =+'INPUT DATA'!AR137 -> 0 | AQ232: =+'INPUT DATA'!AS137 -> 0 | AR232: =+'INPUT DATA'!AT137 -> 0 | AS232: =+'INPUT DATA'!AU137 -> 0 | AT232: =+'INPUT DATA'!AV137 -> 0 | AU232: =+'INPUT DATA'!AW137 -> 0 | AV232: =+'INPUT DATA'!AX137 -> 0 | AW232: =+'INPUT DATA'!AY137 -> 0 | AX232: =+'INPUT DATA'!AZ137 -> 0 | AY232: =+'INPUT DATA'!BA137 -> 0 | AZ232: =+'INPUT DATA'!BB137 -> 0 | BA232: =+'INPUT DATA'!BC137 -> 0 | BB232: =+'INPUT DATA'!BD137 -> 0 | BC232: =+'INPUT DATA'!BE137 -> 0 | BD232: =+'INPUT DATA'!BF137 -> 0 | BE232: =+'INPUT DATA'!BG137 -> 0 | BF232: =+'INPUT DATA'!BH137 -> 0 | BG232: =+'INPUT DATA'!BI137 -> 0 | BH232: =+'INPUT DATA'!BJ137 -> 0 | BI232: =+'INPUT DATA'!BK137 -> 0 | BJ232: =+'INPUT DATA'!BL137 -> 0 | BK232: =+'INPUT DATA'!BM137 -> 0 | BL232: =+'INPUT DATA'!BN137 -> 0 | BM232: =+'INPUT DATA'!BO137 -> 0 | BN232: =+'INPUT DATA'!BP137 -> 0 | BO232: =+'INPUT DATA'!BQ137 -> 0 | BP232: =+'INPUT DATA'!BR137 -> 0 | BQ232: =+'INPUT DATA'!BS137 -> 0
C233: Interest income | I233: =+'INPUT DATA'!K138 -> -26313.20462 | J233: =+'INPUT DATA'!L138 -> -23962.14103 | K233: =+'INPUT DATA'!M138 -> -22267.09772 | L233: =+'INPUT DATA'!N138 -> -20913.66507 | M233: =+'INPUT DATA'!O138 -> -19284.01098 | N233: =+'INPUT DATA'!P138 -> -17625.89047 | O233: =+'INPUT DATA'!Q138 -> -15847.62607 | P233: =+'INPUT DATA'!R138 -> -13883.88925 | Q233: =+'INPUT DATA'!S138 -> -11683.9088 | R233: =+'INPUT DATA'!T138 -> -9595.087688 | S233: =+'INPUT DATA'!U138 -> -7756.744406 | T233: =+'INPUT DATA'!V138 -> -5878.823674 | U233: =+'INPUT DATA'!W138 -> -3899.432291 | V233: =+'INPUT DATA'!X138 -> -1751.934274 | W233: =+'INPUT DATA'!Y138 -> -616.8763873 | X233: =+'INPUT DATA'!Z138 -> -358.7186081 | Y233: =+'INPUT DATA'!AA138 -> 0 | Z233: =+'INPUT DATA'!AB138 -> 0 | AA233: =+'INPUT DATA'!AC138 -> 0 | AB233: =+'INPUT DATA'!AD138 -> 0 | AC233: =+'INPUT DATA'!AE138 -> 0 | AD233: =+'INPUT DATA'!AF138 -> 0 | AE233: =+'INPUT DATA'!AG138 -> 0 | AF233: =+'INPUT DATA'!AH138 -> 0 | AG233: =+'INPUT DATA'!AI138 -> 0 | AH233: =+'INPUT DATA'!AJ138 -> 0 | AI233: =+'INPUT DATA'!AK138 -> 0 | AJ233: =+'INPUT DATA'!AL138 -> 0 | AK233: =+'INPUT DATA'!AM138 -> 0 | AL233: =+'INPUT DATA'!AN138 -> 0 | AM233: =+'INPUT DATA'!AO138 -> 0 | AN233: =+'INPUT DATA'!AP138 -> 0 | AO233: =+'INPUT DATA'!AQ138 -> 0 | AP233: =+'INPUT DATA'!AR138 -> 0 | AQ233: =+'INPUT DATA'!AS138 -> 0 | AR233: =+'INPUT DATA'!AT138 -> 0 | AS233: =+'INPUT DATA'!AU138 -> 0 | AT233: =+'INPUT DATA'!AV138 -> 0 | AU233: =+'INPUT DATA'!AW138 -> 0 | AV233: =+'INPUT DATA'!AX138 -> 0 | AW233: =+'INPUT DATA'!AY138 -> 0 | AX233: =+'INPUT DATA'!AZ138 -> 0 | AY233: =+'INPUT DATA'!BA138 -> 0 | AZ233: =+'INPUT DATA'!BB138 -> 0 | BA233: =+'INPUT DATA'!BC138 -> 0 | BB233: =+'INPUT DATA'!BD138 -> 0 | BC233: =+'INPUT DATA'!BE138 -> 0 | BD233: =+'INPUT DATA'!BF138 -> 0 | BE233: =+'INPUT DATA'!BG138 -> 0 | BF233: =+'INPUT DATA'!BH138 -> 0 | BG233: =+'INPUT DATA'!BI138 -> 0 | BH233: =+'INPUT DATA'!BJ138 -> 0 | BI233: =+'INPUT DATA'!BK138 -> 0 | BJ233: =+'INPUT DATA'!BL138 -> 0 | BK233: =+'INPUT DATA'!BM138 -> 0 | BL233: =+'INPUT DATA'!BN138 -> 0 | BM233: =+'INPUT DATA'!BO138 -> 0 | BN233: =+'INPUT DATA'!BP138 -> 0 | BO233: =+'INPUT DATA'!BQ138 -> 0 | BP233: =+'INPUT DATA'!BR138 -> 0 | BQ233: =+'INPUT DATA'!BS138 -> 0
C234: Free Cash Flow To Equity | I234: =+I231+I232+I233 -> 784.2741654 | J234: -0.5891678045 | K234: 9128.015736 | L234: 12920.05563 | M234: 11090.52783 | N234: 12409.75991 | O234: 12074.03611 | P234: 13385.44794 | Q234: 13317.57285 | R234: 13784.84634 | S234: 10196.51336 | T234: 9186.273627 | U234: 11998.98463 | V234: 41399.62674 | W234: 50853.17222 | X234: 11275.26468 | Y234: 20824.0473 | Z234: -9.232852908e-05 | AA234: 0 | AB234: 0 | AC234: 0 | AD234: 0 | AE234: 0 | AF234: 0 | AG234: 0 | AH234: 0 | AI234: 0 | AJ234: 0 | AK234: 0 | AL234: 0 | AM234: 0 | AN234: 0 | AO234: 0 | AP234: 0 | AQ234: 0 | AR234: 0 | AS234: 0 | AT234: 0 | AU234: 0 | AV234: 0 | AW234: 0 | AX234: 0 | AY234: 0 | AZ234: =+AZ231+AZ232+AZ233 -> 0 | BA234: 0 | BB234: 0 | BC234: 0 | BD234: 0 | BE234: 0 | BF234: 0 | BG234: 0 | BH234: 0 | BI234: 0 | BJ234: 0 | BK234: 0 | BL234: 0 | BM234: 0 | BN234: 0 | BO234: 0 | BP234: 0 | BQ234: 0
C235: Distributions to Shareholders | I235: =+'INPUT DATA'!K140 -> -474.3350969 | J235: =+'INPUT DATA'!L140 -> -6.575413869e-14 | K235: =+'INPUT DATA'!M140 -> -9425.999665 | L235: =+'INPUT DATA'!N140 -> -12619.90239 | M235: =+'INPUT DATA'!O140 -> -11087.76931 | N235: =+'INPUT DATA'!P140 -> -12410.32738 | O235: =+'INPUT DATA'!Q140 -> -12072.93236 | P235: =+'INPUT DATA'!R140 -> -13384.33867 | Q235: =+'INPUT DATA'!S140 -> -13314.7923 | R235: =+'INPUT DATA'!T140 -> -13785.39168 | S235: =+'INPUT DATA'!U140 -> -10195.38737 | T235: =+'INPUT DATA'!V140 -> -9185.142006 | U235: =+'INPUT DATA'!W140 -> -11996.18162 | V235: =+'INPUT DATA'!X140 -> -41400.14955 | W235: =+'INPUT DATA'!Y140 -> -50852.02349 | X235: =+'INPUT DATA'!Z140 -> -11213.4344 | Y235: =+'INPUT DATA'!AA140 -> -14230.2879 | Z235: =+'INPUT DATA'!AB140 -> -6969.950633 | AA235: =+'INPUT DATA'!AC140 -> 0 | AB235: =+'INPUT DATA'!AD140 -> 0 | AC235: =+'INPUT DATA'!AE140 -> 0 | AD235: =+'INPUT DATA'!AF140 -> 0 | AE235: =+'INPUT DATA'!AG140 -> 0 | AF235: =+'INPUT DATA'!AH140 -> 0 | AG235: =+'INPUT DATA'!AI140 -> 0 | AH235: =+'INPUT DATA'!AJ140 -> 0 | AI235: =+'INPUT DATA'!AK140 -> 0 | AJ235: =+'INPUT DATA'!AL140 -> 0 | AK235: =+'INPUT DATA'!AM140 -> 0 | AL235: =+'INPUT DATA'!AN140 -> 0 | AM235: =+'INPUT DATA'!AO140 -> 0 | AN235: =+'INPUT DATA'!AP140 -> 0 | AO235: =+'INPUT DATA'!AQ140 -> 0 | AP235: =+'INPUT DATA'!AR140 -> 0 | AQ235: =+'INPUT DATA'!AS140 -> 0 | AR235: =+'INPUT DATA'!AT140 -> 0 | AS235: =+'INPUT DATA'!AU140 -> 0 | AT235: =+'INPUT DATA'!AV140 -> 0 | AU235: =+'INPUT DATA'!AW140 -> 0 | AV235: =+'INPUT DATA'!AX140 -> 0 | AW235: =+'INPUT DATA'!AY140 -> 0 | AX235: =+'INPUT DATA'!AZ140 -> 0 | AY235: =+'INPUT DATA'!BA140 -> 0 | AZ235: =+'INPUT DATA'!BB140 -> 0 | BA235: =+'INPUT DATA'!BC140 -> 0 | BB235: =+'INPUT DATA'!BD140 -> 0 | BC235: =+'INPUT DATA'!BE140 -> 0 | BD235: =+'INPUT DATA'!BF140 -> 0 | BE235: =+'INPUT DATA'!BG140 -> 0 | BF235: =+'INPUT DATA'!BH140 -> 0 | BG235: =+'INPUT DATA'!BI140 -> 0 | BH235: =+'INPUT DATA'!BJ140 -> 0 | BI235: =+'INPUT DATA'!BK140 -> 0 | BJ235: =+'INPUT DATA'!BL140 -> 0 | BK235: =+'INPUT DATA'!BM140 -> 0 | BL235: =+'INPUT DATA'!BN140 -> 0 | BM235: =+'INPUT DATA'!BO140 -> 0 | BN235: =+'INPUT DATA'!BP140 -> 0 | BO235: =+'INPUT DATA'!BQ140 -> 0 | BP235: =+'INPUT DATA'!BR140 -> 0 | BQ235: =+'INPUT DATA'!BS140 -> 0
C236: Equity | I236: =+'INPUT DATA'!K141 -> 0 | J236: =+'INPUT DATA'!L141 -> 0 | K236: =+'INPUT DATA'!M141 -> 0 | L236: =+'INPUT DATA'!N141 -> 0 | M236: =+'INPUT DATA'!O141 -> 0 | N236: =+'INPUT DATA'!P141 -> 0 | O236: =+'INPUT DATA'!Q141 -> 0 | P236: =+'INPUT DATA'!R141 -> 0 | Q236: =+'INPUT DATA'!S141 -> 0 | R236: =+'INPUT DATA'!T141 -> 0 | S236: =+'INPUT DATA'!U141 -> 0 | T236: =+'INPUT DATA'!V141 -> 0 | U236: =+'INPUT DATA'!W141 -> 0 | V236: =+'INPUT DATA'!X141 -> 0 | W236: =+'INPUT DATA'!Y141 -> 0 | X236: =+'INPUT DATA'!Z141 -> 0 | Y236: =+'INPUT DATA'!AA141 -> 0 | Z236: =+'INPUT DATA'!AB141 -> 0 | AA236: =+'INPUT DATA'!AC141 -> 0 | AB236: =+'INPUT DATA'!AD141 -> 0 | AC236: =+'INPUT DATA'!AE141 -> 0 | AD236: =+'INPUT DATA'!AF141 -> 0 | AE236: =+'INPUT DATA'!AG141 -> 0 | AF236: =+'INPUT DATA'!AH141 -> 0 | AG236: =+'INPUT DATA'!AI141 -> 0 | AH236: =+'INPUT DATA'!AJ141 -> 0 | AI236: =+'INPUT DATA'!AK141 -> 0 | AJ236: =+'INPUT DATA'!AL141 -> 0 | AK236: =+'INPUT DATA'!AM141 -> 0 | AL236: =+'INPUT DATA'!AN141 -> 0 | AM236: =+'INPUT DATA'!AO141 -> 0 | AN236: =+'INPUT DATA'!AP141 -> 0 | AO236: =+'INPUT DATA'!AQ141 -> 0 | AP236: =+'INPUT DATA'!AR141 -> 0 | AQ236: =+'INPUT DATA'!AS141 -> 0 | AR236: =+'INPUT DATA'!AT141 -> 0 | AS236: =+'INPUT DATA'!AU141 -> 0 | AT236: =+'INPUT DATA'!AV141 -> 0 | AU236: =+'INPUT DATA'!AW141 -> 0 | AV236: =+'INPUT DATA'!AX141 -> 0 | AW236: =+'INPUT DATA'!AY141 -> 0 | AX236: =+'INPUT DATA'!AZ141 -> 0 | AY236: =+'INPUT DATA'!BA141 -> 0 | AZ236: =+'INPUT DATA'!BB141 -> 0 | BA236: =+'INPUT DATA'!BC141 -> 0 | BB236: =+'INPUT DATA'!BD141 -> 0 | BC236: =+'INPUT DATA'!BE141 -> 0 | BD236: =+'INPUT DATA'!BF141 -> 0 | BE236: =+'INPUT DATA'!BG141 -> 0 | BF236: =+'INPUT DATA'!BH141 -> 0 | BG236: =+'INPUT DATA'!BI141 -> 0 | BH236: =+'INPUT DATA'!BJ141 -> 0 | BI236: =+'INPUT DATA'!BK141 -> 0 | BJ236: =+'INPUT DATA'!BL141 -> 0 | BK236: =+'INPUT DATA'!BM141 -> 0 | BL236: =+'INPUT DATA'!BN141 -> 0 | BM236: =+'INPUT DATA'!BO141 -> 0 | BN236: =+'INPUT DATA'!BP141 -> 0 | BO236: =+'INPUT DATA'!BQ141 -> 0 | BP236: =+'INPUT DATA'!BR141 -> 0 | BQ236: =+'INPUT DATA'!BS141 -> 0
C237: Net Cash Flow | I237: =+I234+I235+I236 -> 309.9390685 | J237: -0.5891678045 | K237: -297.9839295 | L237: 300.1532353 | M237: 2.758527589 | N237: -0.5674744764 | O237: 1.103749835 | P237: 1.109268584 | Q237: 2.780547946 | R237: -0.545344017 | S237: 1.125990947 | T237: 1.131620902 | U237: 2.803012025 | V237: -0.5228147945 | W237: 1.148726438 | X237: 61.8302745 | Y237: 6593.759396 | Z237: -6969.950726 | AA237: 0 | AB237: 0 | AC237: 0 | AD237: 0 | AE237: 0 | AF237: 0 | AG237: 0 | AH237: 0 | AI237: 0 | AJ237: 0 | AK237: 0 | AL237: 0 | AM237: 0 | AN237: 0 | AO237: 0 | AP237: 0 | AQ237: 0 | AR237: 0 | AS237: 0 | AT237: 0 | AU237: 0 | AV237: 0 | AW237: 0 | AX237: 0 | AY237: 0 | AZ237: =+AZ234+AZ235+AZ236 -> 0 | BA237: 0 | BB237: 0 | BC237: 0 | BD237: 0 | BE237: 0 | BF237: 0 | BG237: 0 | BH237: 0 | BI237: 0 | BJ237: 0 | BK237: 0 | BL237: 0 | BM237: 0 | BN237: 0 | BO237: 0 | BP237: 0 | BQ237: 0
C238: Cash EoP | H238: =+'INPUT DATA'!J143 -> -9.484244709 | I238: =+I237+H238 -> 300.4548237 | J238: 299.8656559 | K238: 1.881726476 | L238: 302.0349618 | M238: 304.7934894 | N238: 304.2260149 | O238: 305.3297647 | P238: 306.4390333 | Q238: 309.2195812 | R238: 308.6742372 | S238: 309.8002282 | T238: 310.9318491 | U238: 313.7348611 | V238: 313.2120463 | W238: 314.3607727 | X238: 376.1910472 | Y238: 6969.950443 | Z238: -0.0002824101539 | AA238: -0.0002824101539 | AB238: -0.0002824101539 | AC238: -0.0002824101539 | AD238: -0.0002824101539 | AE238: -0.0002824101539 | AF238: -0.0002824101539 | AG238: -0.0002824101539 | AH238: -0.0002824101539 | AI238: -0.0002824101539 | AJ238: -0.0002824101539 | AK238: -0.0002824101539 | AL238: -0.0002824101539 | AM238: -0.0002824101539 | AN238: -0.0002824101539 | AO238: -0.0002824101539 | AP238: -0.0002824101539 | AQ238: -0.0002824101539 | AR238: -0.0002824101539 | AS238: -0.0002824101539 | AT238: -0.0002824101539 | AU238: -0.0002824101539 | AV238: -0.0002824101539 | AW238: -0.0002824101539 | AX238: -0.0002824101539 | AY238: -0.0002824101539 | AZ238: =+AZ237+AY238 -> -0.0002824101539 | BA238: =+BA237+AZ238 -> -0.0002824101539 | BB238: =+BB237+BA238 -> -0.0002824101539 | BC238: =+BC237+BB238 -> -0.0002824101539 | BD238: =+BD237+BC238 -> -0.0002824101539 | BE238: =+BE237+BD238 -> -0.0002824101539 | BF238: =+BF237+BE238 -> -0.0002824101539 | BG238: =+BG237+BF238 -> -0.0002824101539 | BH238: =+BH237+BG238 -> -0.0002824101539 | BI238: =+BI237+BH238 -> -0.0002824101539 | BJ238: =+BJ237+BI238 -> -0.0002824101539 | BK238: =+BK237+BJ238 -> -0.0002824101539 | BL238: =+BL237+BK238 -> -0.0002824101539 | BM238: =+BM237+BL238 -> -0.0002824101539 | BN238: =+BN237+BM238 -> -0.0002824101539 | BO238: =+BO237+BN238 -> -0.0002824101539 | BP238: =+BP237+BO238 -> -0.0002824101539 | BQ238: =+BQ237+BP238 -> -0.0002824101539
A243: 1 | C243: Paraguay
C245: =+"Cash Flow "&C243&" - [000' EUR]" -> Cash Flow Paraguay - [000' EUR]
C246: Year | I246: =+I$12 -> 2025 | J246: 2026 | K246: 2027 | L246: 2028 | M246: 2029 | N246: 2030 | O246: 2031 | P246: 2032 | Q246: 2033 | R246: 2034 | S246: 2035 | T246: 2036 | U246: 2037 | V246: 2038 | W246: 2039 | X246: 2040 | Y246: 2041 | Z246: 2042 | AA246: 2043 | AB246: 2044 | AC246: 2045 | AD246: 2046 | AE246: 2047 | AF246: 2048 | AG246: 2049 | AH246: 2050 | AI246: 2051 | AJ246: 2052 | AK246: 2053 | AL246: 2054 | AM246: 2055 | AN246: 2056 | AO246: =+AO$12 -> 2057 | AP246: 2058 | AQ246: 2059 | AR246: 2060 | AS246: 2061 | AT246: 2062 | AU246: 2063 | AV246: 2064 | AW246: 2065 | AX246: 2066 | AY246: 2067 | AZ246: 2068 | BA246: 2069 | BB246: 2070 | BC246: 2071 | BD246: 2072 | BE246: 2073 | BF246: 2074 | BG246: 2075 | BH246: 2076 | BI246: 2077 | BJ246: 2078 | BK246: 2079 | BL246: 2080 | BM246: 2081 | BN246: 2082 | BO246: 2083 | BP246: 2084 | BQ246: 2085
C247: Income | I247: =+I248+I249+I250 -> 18515.26828 | J247: 19259.90212 | K247: 20033.24424 | L247: 20894.73359 | M247: 21840.58669 | N247: 21950.34565 | O247: 22816.13483 | P247: 23557.57994 | Q247: 24625.90056 | R247: 25653.36915 | S247: 26744.5818 | T247: 27733.48418 | U247: 28935.36407 | V247: 30267.58827 | W247: 31576.13394 | X247: 32936.49394 | Y247: 34139.92735 | Z247: 35550.59726 | AA247: 37392.67447 | AB247: 39277.90474 | AC247: 41217.74321 | AD247: 42011.02897 | AE247: 18807.38887 | AF247: 0 | AG247: 0 | AH247: 0 | AI247: 0 | AJ247: 0 | AK247: 0 | AL247: 0 | AM247: 0 | AN247: 0 | AO247: 0 | AP247: 0 | AQ247: 0 | AR247: 0 | AS247: 0 | AT247: 0 | AU247: 0 | AV247: 0 | AW247: 0 | AX247: 0 | AY247: 0 | AZ247: =+AZ248+AZ249+AZ250 -> 0 | BA247: 0 | BB247: 0 | BC247: 0 | BD247: 0 | BE247: 0 | BF247: 0 | BG247: 0 | BH247: 0 | BI247: 0 | BJ247: 0 | BK247: 0 | BL247: 0 | BM247: 0 | BN247: 0 | BO247: 0 | BP247: 0 | BQ247: 0
C248: Income with mitigated demand risk | I248: =+'INPUT DATA'!K153 -> 14865.31466 | J248: =+'INPUT DATA'!L153 -> 15459.92725 | K248: =+'INPUT DATA'!M153 -> 16078.32434 | L248: =+'INPUT DATA'!N153 -> 16721.45731 | M248: =+'INPUT DATA'!O153 -> 17390.31561 | N248: =+'INPUT DATA'!P153 -> 18085.92823 | O248: =+'INPUT DATA'!Q153 -> 18809.36536 | P248: =+'INPUT DATA'!R153 -> 19561.73997 | Q248: =+'INPUT DATA'!S153 -> 20344.20957 | R248: =+'INPUT DATA'!T153 -> 21157.97796 | S248: =+'INPUT DATA'!U153 -> 22004.29707 | T248: =+'INPUT DATA'!V153 -> 22884.46896 | U248: =+'INPUT DATA'!W153 -> 23799.84772 | V248: =+'INPUT DATA'!X153 -> 24751.84162 | W248: =+'INPUT DATA'!Y153 -> 25741.91529 | X248: =+'INPUT DATA'!Z153 -> 26771.5919 | Y248: =+'INPUT DATA'!AA153 -> 27842.45558 | Z248: =+'INPUT DATA'!AB153 -> 28956.1538 | AA248: =+'INPUT DATA'!AC153 -> 30114.39995 | AB248: =+'INPUT DATA'!AD153 -> 31318.97595 | AC248: =+'INPUT DATA'!AE153 -> 32571.73499 | AD248: =+'INPUT DATA'!AF153 -> 33874.60439 | AE248: =+'INPUT DATA'!AG153 -> 17443.77686 | AF248: =+'INPUT DATA'!AH153 -> 0 | AG248: =+'INPUT DATA'!AI153 -> 0 | AH248: =+'INPUT DATA'!AJ153 -> 0 | AI248: =+'INPUT DATA'!AK153 -> 0 | AJ248: =+'INPUT DATA'!AL153 -> 0 | AK248: =+'INPUT DATA'!AM153 -> 0 | AL248: =+'INPUT DATA'!AN153 -> 0 | AM248: =+'INPUT DATA'!AO153 -> 0 | AN248: =+'INPUT DATA'!AP153 -> 0 | AO248: =+'INPUT DATA'!AQ153 -> 0 | AP248: =+'INPUT DATA'!AR153 -> 0 | AQ248: =+'INPUT DATA'!AS153 -> 0 | AR248: =+'INPUT DATA'!AT153 -> 0 | AS248: =+'INPUT DATA'!AU153 -> 0 | AT248: =+'INPUT DATA'!AV153 -> 0 | AU248: =+'INPUT DATA'!AW153 -> 0 | AV248: =+'INPUT DATA'!AX153 -> 0 | AW248: =+'INPUT DATA'!AY153 -> 0 | AX248: =+'INPUT DATA'!AZ153 -> 0 | AY248: =+'INPUT DATA'!BA153 -> 0 | AZ248: =+'INPUT DATA'!BB153 -> 0 | BA248: =+'INPUT DATA'!BC153 -> 0 | BB248: =+'INPUT DATA'!BD153 -> 0 | BC248: =+'INPUT DATA'!BE153 -> 0 | BD248: =+'INPUT DATA'!BF153 -> 0 | BE248: =+'INPUT DATA'!BG153 -> 0 | BF248: =+'INPUT DATA'!BH153 -> 0 | BG248: =+'INPUT DATA'!BI153 -> 0 | BH248: =+'INPUT DATA'!BJ153 -> 0 | BI248: =+'INPUT DATA'!BK153 -> 0 | BJ248: =+'INPUT DATA'!BL153 -> 0 | BK248: =+'INPUT DATA'!BM153 -> 0 | BL248: =+'INPUT DATA'!BN153 -> 0 | BM248: =+'INPUT DATA'!BO153 -> 0 | BN248: =+'INPUT DATA'!BP153 -> 0 | BO248: =+'INPUT DATA'!BQ153 -> 0 | BP248: =+'INPUT DATA'!BR153 -> 0 | BQ248: =+'INPUT DATA'!BS153 -> 0
C249: Income with low demand risk | I249: =+'INPUT DATA'!K154 -> 0 | J249: =+'INPUT DATA'!L154 -> 0 | K249: =+'INPUT DATA'!M154 -> 0 | L249: =+'INPUT DATA'!N154 -> 0 | M249: =+'INPUT DATA'!O154 -> 0 | N249: =+'INPUT DATA'!P154 -> 0 | O249: =+'INPUT DATA'!Q154 -> 0 | P249: =+'INPUT DATA'!R154 -> 0 | Q249: =+'INPUT DATA'!S154 -> 0 | R249: =+'INPUT DATA'!T154 -> 0 | S249: =+'INPUT DATA'!U154 -> 0 | T249: =+'INPUT DATA'!V154 -> 0 | U249: =+'INPUT DATA'!W154 -> 0 | V249: =+'INPUT DATA'!X154 -> 0 | W249: =+'INPUT DATA'!Y154 -> 0 | X249: =+'INPUT DATA'!Z154 -> 0 | Y249: =+'INPUT DATA'!AA154 -> 0 | Z249: =+'INPUT DATA'!AB154 -> 0 | AA249: =+'INPUT DATA'!AC154 -> 0 | AB249: =+'INPUT DATA'!AD154 -> 0 | AC249: =+'INPUT DATA'!AE154 -> 0 | AD249: =+'INPUT DATA'!AF154 -> 0 | AE249: =+'INPUT DATA'!AG154 -> 0 | AF249: =+'INPUT DATA'!AH154 -> 0 | AG249: =+'INPUT DATA'!AI154 -> 0 | AH249: =+'INPUT DATA'!AJ154 -> 0 | AI249: =+'INPUT DATA'!AK154 -> 0 | AJ249: =+'INPUT DATA'!AL154 -> 0 | AK249: =+'INPUT DATA'!AM154 -> 0 | AL249: =+'INPUT DATA'!AN154 -> 0 | AM249: =+'INPUT DATA'!AO154 -> 0 | AN249: =+'INPUT DATA'!AP154 -> 0 | AO249: =+'INPUT DATA'!AQ154 -> 0 | AP249: =+'INPUT DATA'!AR154 -> 0 | AQ249: =+'INPUT DATA'!AS154 -> 0 | AR249: =+'INPUT DATA'!AT154 -> 0 | AS249: =+'INPUT DATA'!AU154 -> 0 | AT249: =+'INPUT DATA'!AV154 -> 0 | AU249: =+'INPUT DATA'!AW154 -> 0 | AV249: =+'INPUT DATA'!AX154 -> 0 | AW249: =+'INPUT DATA'!AY154 -> 0 | AX249: =+'INPUT DATA'!AZ154 -> 0 | AY249: =+'INPUT DATA'!BA154 -> 0 | AZ249: =+'INPUT DATA'!BB154 -> 0 | BA249: =+'INPUT DATA'!BC154 -> 0 | BB249: =+'INPUT DATA'!BD154 -> 0 | BC249: =+'INPUT DATA'!BE154 -> 0 | BD249: =+'INPUT DATA'!BF154 -> 0 | BE249: =+'INPUT DATA'!BG154 -> 0 | BF249: =+'INPUT DATA'!BH154 -> 0 | BG249: =+'INPUT DATA'!BI154 -> 0 | BH249: =+'INPUT DATA'!BJ154 -> 0 | BI249: =+'INPUT DATA'!BK154 -> 0 | BJ249: =+'INPUT DATA'!BL154 -> 0 | BK249: =+'INPUT DATA'!BM154 -> 0 | BL249: =+'INPUT DATA'!BN154 -> 0 | BM249: =+'INPUT DATA'!BO154 -> 0 | BN249: =+'INPUT DATA'!BP154 -> 0 | BO249: =+'INPUT DATA'!BQ154 -> 0 | BP249: =+'INPUT DATA'!BR154 -> 0 | BQ249: =+'INPUT DATA'!BS154 -> 0
C250: Income with demand risk | I250: =+'INPUT DATA'!K155 -> 3649.953613 | J250: =+'INPUT DATA'!L155 -> 3799.974869 | K250: =+'INPUT DATA'!M155 -> 3954.919899 | L250: =+'INPUT DATA'!N155 -> 4173.276277 | M250: =+'INPUT DATA'!O155 -> 4450.271078 | N250: =+'INPUT DATA'!P155 -> 3864.41742 | O250: =+'INPUT DATA'!Q155 -> 4006.769465 | P250: =+'INPUT DATA'!R155 -> 3995.839966 | Q250: =+'INPUT DATA'!S155 -> 4281.690985 | R250: =+'INPUT DATA'!T155 -> 4495.391197 | S250: =+'INPUT DATA'!U155 -> 4740.284727 | T250: =+'INPUT DATA'!V155 -> 4849.015219 | U250: =+'INPUT DATA'!W155 -> 5135.516355 | V250: =+'INPUT DATA'!X155 -> 5515.74665 | W250: =+'INPUT DATA'!Y155 -> 5834.218647 | X250: =+'INPUT DATA'!Z155 -> 6164.902039 | Y250: =+'INPUT DATA'!AA155 -> 6297.471772 | Z250: =+'INPUT DATA'!AB155 -> 6594.443457 | AA250: =+'INPUT DATA'!AC155 -> 7278.274518 | AB250: =+'INPUT DATA'!AD155 -> 7958.928787 | AC250: =+'INPUT DATA'!AE155 -> 8646.008226 | AD250: =+'INPUT DATA'!AF155 -> 8136.42458 | AE250: =+'INPUT DATA'!AG155 -> 1363.612006 | AF250: =+'INPUT DATA'!AH155 -> 0 | AG250: =+'INPUT DATA'!AI155 -> 0 | AH250: =+'INPUT DATA'!AJ155 -> 0 | AI250: =+'INPUT DATA'!AK155 -> 0 | AJ250: =+'INPUT DATA'!AL155 -> 0 | AK250: =+'INPUT DATA'!AM155 -> 0 | AL250: =+'INPUT DATA'!AN155 -> 0 | AM250: =+'INPUT DATA'!AO155 -> 0 | AN250: =+'INPUT DATA'!AP155 -> 0 | AO250: =+'INPUT DATA'!AQ155 -> 0 | AP250: =+'INPUT DATA'!AR155 -> 0 | AQ250: =+'INPUT DATA'!AS155 -> 0 | AR250: =+'INPUT DATA'!AT155 -> 0 | AS250: =+'INPUT DATA'!AU155 -> 0 | AT250: =+'INPUT DATA'!AV155 -> 0 | AU250: =+'INPUT DATA'!AW155 -> 0 | AV250: =+'INPUT DATA'!AX155 -> 0 | AW250: =+'INPUT DATA'!AY155 -> 0 | AX250: =+'INPUT DATA'!AZ155 -> 0 | AY250: =+'INPUT DATA'!BA155 -> 0 | AZ250: =+'INPUT DATA'!BB155 -> 0 | BA250: =+'INPUT DATA'!BC155 -> 0 | BB250: =+'INPUT DATA'!BD155 -> 0 | BC250: =+'INPUT DATA'!BE155 -> 0 | BD250: =+'INPUT DATA'!BF155 -> 0 | BE250: =+'INPUT DATA'!BG155 -> 0 | BF250: =+'INPUT DATA'!BH155 -> 0 | BG250: =+'INPUT DATA'!BI155 -> 0 | BH250: =+'INPUT DATA'!BJ155 -> 0 | BI250: =+'INPUT DATA'!BK155 -> 0 | BJ250: =+'INPUT DATA'!BL155 -> 0 | BK250: =+'INPUT DATA'!BM155 -> 0 | BL250: =+'INPUT DATA'!BN155 -> 0 | BM250: =+'INPUT DATA'!BO155 -> 0 | BN250: =+'INPUT DATA'!BP155 -> 0 | BO250: =+'INPUT DATA'!BQ155 -> 0 | BP250: =+'INPUT DATA'!BR155 -> 0 | BQ250: =+'INPUT DATA'!BS155 -> 0
C251: Operating Costs | I251: =+'INPUT DATA'!K156 -> -6073.71404 | J251: =+'INPUT DATA'!L156 -> -5917.093508 | K251: =+'INPUT DATA'!M156 -> -6164.312628 | L251: =+'INPUT DATA'!N156 -> -6410.07894 | M251: =+'INPUT DATA'!O156 -> -6647.809734 | N251: =+'INPUT DATA'!P156 -> -6915.386315 | O251: =+'INPUT DATA'!Q156 -> -7184.53436 | P251: =+'INPUT DATA'!R156 -> -7472.02308 | Q251: =+'INPUT DATA'!S156 -> -7750.185314 | R251: =+'INPUT DATA'!T156 -> -8063.179721 | S251: =+'INPUT DATA'!U156 -> -8378.049487 | T251: =+'INPUT DATA'!V156 -> -8714.347522 | U251: =+'INPUT DATA'!W156 -> -9039.808823 | V251: =+'INPUT DATA'!X156 -> -9405.935663 | W251: =+'INPUT DATA'!Y156 -> -9774.293375 | X251: =+'INPUT DATA'!Z156 -> -10167.6914 | Y251: =+'INPUT DATA'!AA156 -> -10548.48592 | Z251: =+'INPUT DATA'!AB156 -> -10976.7702 | AA251: =+'INPUT DATA'!AC156 -> -12976.15957 | AB251: =+'INPUT DATA'!AD156 -> -13499.09485 | AC251: =+'INPUT DATA'!AE156 -> -14009.86928 | AD251: =+'INPUT DATA'!AF156 -> -14578.72673 | AE251: =+'INPUT DATA'!AG156 -> -3155.260405 | AF251: =+'INPUT DATA'!AH156 -> 0 | AG251: =+'INPUT DATA'!AI156 -> 0 | AH251: =+'INPUT DATA'!AJ156 -> 0 | AI251: =+'INPUT DATA'!AK156 -> 0 | AJ251: =+'INPUT DATA'!AL156 -> 0 | AK251: =+'INPUT DATA'!AM156 -> 0 | AL251: =+'INPUT DATA'!AN156 -> 0 | AM251: =+'INPUT DATA'!AO156 -> 0 | AN251: =+'INPUT DATA'!AP156 -> 0 | AO251: =+'INPUT DATA'!AQ156 -> 0 | AP251: =+'INPUT DATA'!AR156 -> 0 | AQ251: =+'INPUT DATA'!AS156 -> 0 | AR251: =+'INPUT DATA'!AT156 -> 0 | AS251: =+'INPUT DATA'!AU156 -> 0 | AT251: =+'INPUT DATA'!AV156 -> 0 | AU251: =+'INPUT DATA'!AW156 -> 0 | AV251: =+'INPUT DATA'!AX156 -> 0 | AW251: =+'INPUT DATA'!AY156 -> 0 | AX251: =+'INPUT DATA'!AZ156 -> 0 | AY251: =+'INPUT DATA'!BA156 -> 0 | AZ251: =+'INPUT DATA'!BB156 -> 0 | BA251: =+'INPUT DATA'!BC156 -> 0 | BB251: =+'INPUT DATA'!BD156 -> 0 | BC251: =+'INPUT DATA'!BE156 -> 0 | BD251: =+'INPUT DATA'!BF156 -> 0 | BE251: =+'INPUT DATA'!BG156 -> 0 | BF251: =+'INPUT DATA'!BH156 -> 0 | BG251: =+'INPUT DATA'!BI156 -> 0 | BH251: =+'INPUT DATA'!BJ156 -> 0 | BI251: =+'INPUT DATA'!BK156 -> 0 | BJ251: =+'INPUT DATA'!BL156 -> 0 | BK251: =+'INPUT DATA'!BM156 -> 0 | BL251: =+'INPUT DATA'!BN156 -> 0 | BM251: =+'INPUT DATA'!BO156 -> 0 | BN251: =+'INPUT DATA'!BP156 -> 0 | BO251: =+'INPUT DATA'!BQ156 -> 0 | BP251: =+'INPUT DATA'!BR156 -> 0 | BQ251: =+'INPUT DATA'!BS156 -> 0
C252: Investment & Capex | I252: =+'INPUT DATA'!K157 -> -376.5640476 | J252: =+'INPUT DATA'!L157 -> -501.0878838 | K252: =+'INPUT DATA'!M157 -> -537.1590802 | L252: =+'INPUT DATA'!N157 -> -1427.903682 | M252: =+'INPUT DATA'!O157 -> -1576.883464 | N252: =+'INPUT DATA'!P157 -> -8322.042249 | O252: =+'INPUT DATA'!Q157 -> -13310.28877 | P252: =+'INPUT DATA'!R157 -> -1056.746944 | Q252: =+'INPUT DATA'!S157 -> -4431.60828 | R252: =+'INPUT DATA'!T157 -> -2839.156429 | S252: =+'INPUT DATA'!U157 -> -9142.895752 | T252: =+'INPUT DATA'!V157 -> -1126.403395 | U252: =+'INPUT DATA'!W157 -> -971.8031464 | V252: =+'INPUT DATA'!X157 -> -4568.481771 | W252: =+'INPUT DATA'!Y157 -> -4195.262257 | X252: =+'INPUT DATA'!Z157 -> -11301.03736 | Y252: =+'INPUT DATA'!AA157 -> -3893.570161 | Z252: =+'INPUT DATA'!AB157 -> -1069.79678 | AA252: =+'INPUT DATA'!AC157 -> -3515.844267 | AB252: =+'INPUT DATA'!AD157 -> -2236.391849 | AC252: =+'INPUT DATA'!AE157 -> -47885.46979 | AD252: =+'INPUT DATA'!AF157 -> -858.1021276 | AE252: =+'INPUT DATA'!AG157 -> 0 | AF252: =+'INPUT DATA'!AH157 -> 0 | AG252: =+'INPUT DATA'!AI157 -> 0 | AH252: =+'INPUT DATA'!AJ157 -> 0 | AI252: =+'INPUT DATA'!AK157 -> 0 | AJ252: =+'INPUT DATA'!AL157 -> 0 | AK252: =+'INPUT DATA'!AM157 -> 0 | AL252: =+'INPUT DATA'!AN157 -> 0 | AM252: =+'INPUT DATA'!AO157 -> 0 | AN252: =+'INPUT DATA'!AP157 -> 0 | AO252: =+'INPUT DATA'!AQ157 -> 0 | AP252: =+'INPUT DATA'!AR157 -> 0 | AQ252: =+'INPUT DATA'!AS157 -> 0 | AR252: =+'INPUT DATA'!AT157 -> 0 | AS252: =+'INPUT DATA'!AU157 -> 0 | AT252: =+'INPUT DATA'!AV157 -> 0 | AU252: =+'INPUT DATA'!AW157 -> 0 | AV252: =+'INPUT DATA'!AX157 -> 0 | AW252: =+'INPUT DATA'!AY157 -> 0 | AX252: =+'INPUT DATA'!AZ157 -> 0 | AY252: =+'INPUT DATA'!BA157 -> 0 | AZ252: =+'INPUT DATA'!BB157 -> 0 | BA252: =+'INPUT DATA'!BC157 -> 0 | BB252: =+'INPUT DATA'!BD157 -> 0 | BC252: =+'INPUT DATA'!BE157 -> 0 | BD252: =+'INPUT DATA'!BF157 -> 0 | BE252: =+'INPUT DATA'!BG157 -> 0 | BF252: =+'INPUT DATA'!BH157 -> 0 | BG252: =+'INPUT DATA'!BI157 -> 0 | BH252: =+'INPUT DATA'!BJ157 -> 0 | BI252: =+'INPUT DATA'!BK157 -> 0 | BJ252: =+'INPUT DATA'!BL157 -> 0 | BK252: =+'INPUT DATA'!BM157 -> 0 | BL252: =+'INPUT DATA'!BN157 -> 0 | BM252: =+'INPUT DATA'!BO157 -> 0 | BN252: =+'INPUT DATA'!BP157 -> 0 | BO252: =+'INPUT DATA'!BQ157 -> 0 | BP252: =+'INPUT DATA'!BR157 -> 0 | BQ252: =+'INPUT DATA'!BS157 -> 0
C253: Into / Out Operating Reserve Accounts | I253: =+'INPUT DATA'!K158 -> -445.4861676 | J253: =+'INPUT DATA'!L158 -> -679.5608581 | K253: =+'INPUT DATA'!M158 -> -3238.450718 | L253: =+'INPUT DATA'!N158 -> -6308.501144 | M253: =+'INPUT DATA'!O158 -> -5986.142522 | N253: =+'INPUT DATA'!P158 -> 2055.827586 | O253: =+'INPUT DATA'!Q158 -> 10534.45155 | P253: =+'INPUT DATA'!R158 -> -4414.47321 | Q253: =+'INPUT DATA'!S158 -> 62.12308821 | R253: =+'INPUT DATA'!T158 -> -907.8776688 | S253: =+'INPUT DATA'!U158 -> 6920.666315 | T253: =+'INPUT DATA'!V158 -> -2118.778996 | U253: =+'INPUT DATA'!W158 -> -5716.457316 | V253: =+'INPUT DATA'!X158 -> -1894.808155 | W253: =+'INPUT DATA'!Y158 -> -1226.205842 | X253: =+'INPUT DATA'!Z158 -> 8474.633622 | Y253: =+'INPUT DATA'!AA158 -> 1619.559196 | Z253: =+'INPUT DATA'!AB158 -> -16809.43852 | AA253: =+'INPUT DATA'!AC158 -> -13477.47699 | AB253: =+'INPUT DATA'!AD158 -> -14011.46546 | AC253: =+'INPUT DATA'!AE158 -> 47599.43574 | AD253: =+'INPUT DATA'!AF158 -> 858.1021276 | AE253: =+'INPUT DATA'!AG158 -> 0 | AF253: =+'INPUT DATA'!AH158 -> 0 | AG253: =+'INPUT DATA'!AI158 -> 0 | AH253: =+'INPUT DATA'!AJ158 -> 0 | AI253: =+'INPUT DATA'!AK158 -> 0 | AJ253: =+'INPUT DATA'!AL158 -> 0 | AK253: =+'INPUT DATA'!AM158 -> 0 | AL253: =+'INPUT DATA'!AN158 -> 0 | AM253: =+'INPUT DATA'!AO158 -> 0 | AN253: =+'INPUT DATA'!AP158 -> 0 | AO253: =+'INPUT DATA'!AQ158 -> 0 | AP253: =+'INPUT DATA'!AR158 -> 0 | AQ253: =+'INPUT DATA'!AS158 -> 0 | AR253: =+'INPUT DATA'!AT158 -> 0 | AS253: =+'INPUT DATA'!AU158 -> 0 | AT253: =+'INPUT DATA'!AV158 -> 0 | AU253: =+'INPUT DATA'!AW158 -> 0 | AV253: =+'INPUT DATA'!AX158 -> 0 | AW253: =+'INPUT DATA'!AY158 -> 0 | AX253: =+'INPUT DATA'!AZ158 -> 0 | AY253: =+'INPUT DATA'!BA158 -> 0 | AZ253: =+'INPUT DATA'!BB158 -> 0 | BA253: =+'INPUT DATA'!BC158 -> 0 | BB253: =+'INPUT DATA'!BD158 -> 0 | BC253: =+'INPUT DATA'!BE158 -> 0 | BD253: =+'INPUT DATA'!BF158 -> 0 | BE253: =+'INPUT DATA'!BG158 -> 0 | BF253: =+'INPUT DATA'!BH158 -> 0 | BG253: =+'INPUT DATA'!BI158 -> 0 | BH253: =+'INPUT DATA'!BJ158 -> 0 | BI253: =+'INPUT DATA'!BK158 -> 0 | BJ253: =+'INPUT DATA'!BL158 -> 0 | BK253: =+'INPUT DATA'!BM158 -> 0 | BL253: =+'INPUT DATA'!BN158 -> 0 | BM253: =+'INPUT DATA'!BO158 -> 0 | BN253: =+'INPUT DATA'!BP158 -> 0 | BO253: =+'INPUT DATA'!BQ158 -> 0 | BP253: =+'INPUT DATA'!BR158 -> 0 | BQ253: =+'INPUT DATA'!BS158 -> 0
C254: Operating Cash Flow | I254: =+I247+I251+I252+I253 -> 11619.50402 | J254: 12162.15987 | K254: 10093.32181 | L254: 6748.249825 | M254: 7629.750965 | N254: 8768.744673 | O254: 12855.76325 | P254: 10614.33671 | Q254: 12506.23005 | R254: 13843.15533 | S254: 16144.30288 | T254: 15773.95426 | U254: 13207.29479 | V254: 14398.36269 | W254: 16380.37246 | X254: 19942.3988 | Y254: 21317.43046 | Z254: 6694.59176 | AA254: 7423.193647 | AB254: 9530.952582 | AC254: 26921.8399 | AD254: 27432.30224 | AE254: 15652.12846 | AF254: 0 | AG254: 0 | AH254: 0 | AI254: 0 | AJ254: 0 | AK254: 0 | AL254: 0 | AM254: 0 | AN254: 0 | AO254: 0 | AP254: 0 | AQ254: 0 | AR254: 0 | AS254: 0 | AT254: 0 | AU254: 0 | AV254: 0 | AW254: 0 | AX254: 0 | AY254: 0 | AZ254: =+AZ247+AZ251+AZ252+AZ253 -> 0 | BA254: 0 | BB254: 0 | BC254: 0 | BD254: 0 | BE254: 0 | BF254: 0 | BG254: 0 | BH254: 0 | BI254: 0 | BJ254: 0 | BK254: 0 | BL254: 0 | BM254: 0 | BN254: 0 | BO254: 0 | BP254: 0 | BQ254: 0
C255: Taxes | I255: =+'INPUT DATA'!K160 -> -2152.320882 | J255: =+'INPUT DATA'!L160 -> -2118.553523 | K255: =+'INPUT DATA'!M160 -> -1866.632563 | L255: =+'INPUT DATA'!N160 -> -1589.77669 | M255: =+'INPUT DATA'!O160 -> -1396.204606 | N255: =+'INPUT DATA'!P160 -> -1923.964136 | O255: =+'INPUT DATA'!Q160 -> -2471.062982 | P255: =+'INPUT DATA'!R160 -> -968.3423705 | Q255: =+'INPUT DATA'!S160 -> -1099.266058 | R255: =+'INPUT DATA'!T160 -> -763.6680573 | S255: =+'INPUT DATA'!U160 -> -1154.908825 | T255: =+'INPUT DATA'!V160 -> -56.83110919 | U255: =+'INPUT DATA'!W160 -> 284.2739406 | V255: =+'INPUT DATA'!X160 -> 26.13181636 | W255: =+'INPUT DATA'!Y160 -> 20.32888391 | X255: =+'INPUT DATA'!Z160 -> -891.149769 | Y255: =+'INPUT DATA'!AA160 -> -948.1051319 | Z255: =+'INPUT DATA'!AB160 -> -336.6909135 | AA255: =+'INPUT DATA'!AC160 -> -372.1022747 | AB255: =+'INPUT DATA'!AD160 -> -473.9942769 | AC255: =+'INPUT DATA'!AE160 -> -4158.454029 | AD255: =+'INPUT DATA'!AF160 -> 1418.214124 | AE255: =+'INPUT DATA'!AG160 -> 1894.743363 | AF255: =+'INPUT DATA'!AH160 -> 0 | AG255: =+'INPUT DATA'!AI160 -> 0 | AH255: =+'INPUT DATA'!AJ160 -> 0 | AI255: =+'INPUT DATA'!AK160 -> 0 | AJ255: =+'INPUT DATA'!AL160 -> 0 | AK255: =+'INPUT DATA'!AM160 -> 0 | AL255: =+'INPUT DATA'!AN160 -> 0 | AM255: =+'INPUT DATA'!AO160 -> 0 | AN255: =+'INPUT DATA'!AP160 -> 0 | AO255: =+'INPUT DATA'!AQ160 -> 0 | AP255: =+'INPUT DATA'!AR160 -> 0 | AQ255: =+'INPUT DATA'!AS160 -> 0 | AR255: =+'INPUT DATA'!AT160 -> 0 | AS255: =+'INPUT DATA'!AU160 -> 0 | AT255: =+'INPUT DATA'!AV160 -> 0 | AU255: =+'INPUT DATA'!AW160 -> 0 | AV255: =+'INPUT DATA'!AX160 -> 0 | AW255: =+'INPUT DATA'!AY160 -> 0 | AX255: =+'INPUT DATA'!AZ160 -> 0 | AY255: =+'INPUT DATA'!BA160 -> 0 | AZ255: =+'INPUT DATA'!BB160 -> 0 | BA255: =+'INPUT DATA'!BC160 -> 0 | BB255: =+'INPUT DATA'!BD160 -> 0 | BC255: =+'INPUT DATA'!BE160 -> 0 | BD255: =+'INPUT DATA'!BF160 -> 0 | BE255: =+'INPUT DATA'!BG160 -> 0 | BF255: =+'INPUT DATA'!BH160 -> 0 | BG255: =+'INPUT DATA'!BI160 -> 0 | BH255: =+'INPUT DATA'!BJ160 -> 0 | BI255: =+'INPUT DATA'!BK160 -> 0 | BJ255: =+'INPUT DATA'!BL160 -> 0 | BK255: =+'INPUT DATA'!BM160 -> 0 | BL255: =+'INPUT DATA'!BN160 -> 0 | BM255: =+'INPUT DATA'!BO160 -> 0 | BN255: =+'INPUT DATA'!BP160 -> 0 | BO255: =+'INPUT DATA'!BQ160 -> 0 | BP255: =+'INPUT DATA'!BR160 -> 0 | BQ255: =+'INPUT DATA'!BS160 -> 0
C256: Operating Cash Flow After Tax | I256: =+I254+I255 -> 9467.18314 | J256: 10043.60635 | K256: 8226.68925 | L256: 5158.473136 | M256: 6233.546359 | N256: 6844.780537 | O256: 10384.70027 | P256: 9645.994336 | Q256: 11406.96399 | R256: 13079.48728 | S256: 14989.39405 | T256: 15717.12315 | U256: 13491.56873 | V256: 14424.4945 | W256: 16400.70135 | X256: 19051.24903 | Y256: 20369.32533 | Z256: 6357.900847 | AA256: 7051.091372 | AB256: 9056.958305 | AC256: 22763.38587 | AD256: 28850.51636 | AE256: 17546.87183 | AF256: 0 | AG256: 0 | AH256: 0 | AI256: 0 | AJ256: 0 | AK256: 0 | AL256: 0 | AM256: 0 | AN256: 0 | AO256: 0 | AP256: 0 | AQ256: 0 | AR256: 0 | AS256: 0 | AT256: 0 | AU256: 0 | AV256: 0 | AW256: 0 | AX256: 0 | AY256: 0 | AZ256: =+AZ254+AZ255 -> 0 | BA256: 0 | BB256: 0 | BC256: 0 | BD256: 0 | BE256: 0 | BF256: 0 | BG256: 0 | BH256: 0 | BI256: 0 | BJ256: 0 | BK256: 0 | BL256: 0 | BM256: 0 | BN256: 0 | BO256: 0 | BP256: 0 | BQ256: 0
... 151 more rows

Sheet Future Investments Valuation
C4: Future Investments - Integrated approach to maximize value creation
C6: Investment [000' EUR]
C7: Total Investment | D7: =+D43 -> 600000 | H7: Stage | J7: EqV (€m) | K7: Multiple | L7: Increase (€m)
C8: Equity | D8: =+D44 -> 120000 | I8: Bidding | J8: =+D38/1000 -> 119.971166
C9: Debt - Pre refinancing | D9: =+D45 -> 480000 | I9: Financial Close | J9: =+D63/1000 -> 168.4041275 | K9: =+J9/J8 -> 1.403705016 | L9: =+J9-J8 -> 48.43296152
C10: Leverage | D10: =+D9/SUM(D8:D9) -> 0.8 | H10: Asset Management | I10: Comissioning | J10: =+$D$88/1000 -> 337.3488904 | K10: =+(J10-L9)/J8 -> 2.408211393 | L10: =+J10-J9 -> 168.9447628
I11: Refinancing
C12: Operating Free cash flow [000' EUR]
C13: Operating FCF | D13: 55900 | J13: Initial Eq | L13: Return o Value
C14: Optimized Operating FCF | D14: 62820 | I14: Optimized | J14: =(+J8) -> 119.971166 | K14: =L14/J14 -> 2.81191641 | L14: =+J10 -> 337.3488904
C15: FCF Growth | D15: 0.02
I16: Rotation
C17: Debt | D17: Pre - Refinancing | E17: Post- Refinancing
C18: All in cost | D18: 0.07 | E18: 0.0575
C19: DSCR | D19: 1.5 | E19: 1.35
C20: New debt [000' EUR] | D20: 0 | E20: 109358.6012
B34: Stage
B35: A | C35: Valuation at Bidding
C37: Valuation
C38: EqV | D38: =+NPV(11%,I51:AG51)+$D$8 -> 119971.166
C41: Simplified Projections - Future Project
C42: Year | I42: -5 | J42: -4 | K42: -3 | L42: -2 | M42: -1 | N42: 1 | O42: 2 | P42: 3 | Q42: 4 | R42: 5 | S42: 6 | T42: 7 | U42: 8 | V42: 9 | W42: 10 | X42: 11 | Y42: 12 | Z42: 13 | AA42: 14 | AB42: 15 | AC42: 16 | AD42: 17 | AE42: 18 | AF42: 19 | AG42: 20
C43: Investment | D43: =+SUM(I43:AG43) -> 600000 | I43: 50000 | J43: 50000 | K43: 100000 | L43: 200000 | M43: 200000
C44: Equity | D44: 120000 | I44: 50000 | J44: 50000 | K44: 20000 | L44: 0 | M44: 0
C45: Debt | D45: =+SUM(I45:AG45) -> 480000 | I45: 0 | J45: 0 | K45: 80000 | L45: 200000 | M45: 200000 | N45: 0
C46: Operating FCF | N46: =+$D$13 -> 55900 | O46: =+N46*(1+$D$15) -> 57018 | P46: =+O46*(1+$D15) -> 58158.36 | Q46: 59321.5272 | R46: 60507.95774 | S46: 61718.1169 | T46: 62952.47924 | U46: 64211.52882 | V46: 65495.7594 | W46: 66805.67459 | X46: 68141.78808 | Y46: 69504.62384 | Z46: 70894.71632 | AA46: 72312.61064 | AB46: 73758.86286 | AC46: 75234.04011 | AD46: 76738.72091 | AE46: 78273.49533 | AF46: 79838.96524 | AG46: 81435.74454
C47: FCSD | N47: =+N46/$D$19 -> 37266.66667 | O47: 38012 | P47: 38772.24 | Q47: 39547.6848 | R47: 40338.6385 | S47: 41145.41127 | T47: 41968.31949 | U47: 42807.68588 | V47: 43663.8396 | W47: 44537.11639 | X47: 45427.85872 | Y47: 46336.41589 | Z47: 47263.14421 | AA47: 48208.40709 | AB47: 49172.57524 | AC47: 50156.02674 | AD47: 51159.14728 | AE47: 52182.33022 | AF47: 53225.97683 | AG47: 54290.49636
C48: Interest | N48: =-M53*$D$18 -> -33600 | O48: -33600 | P48: -33291.16 | Q48: -32907.4844 | R48: -32442.67037 | S48: -31889.9526 | T48: -31242.0705 | U48: -30491.23307 | V48: -29629.08137 | W48: -28646.64829 | X48: -27534.31553 | Y48: -26281.7675 | Z48: -24877.94212 | AA48: -23310.97797 | AB48: -21568.15793 | AC48: -19635.84872 | AD48: -17499.43626 | AE48: -15143.25649 | AF48: -12550.52133 | AG48: -9703.239441
C49: Principal | O49: =IF(SUM(O47:O48)<N53,-SUM(O47:O48),-N53) -> -4412 | P49: -5481.08 | Q49: -6640.2004 | R49: -7895.968124 | S49: -9255.458663 | T49: -10726.24899 | U49: -12316.45281 | V49: -14034.75823 | W49: -15890.4681 | X49: -17893.54319 | Y49: -20054.64839 | Z49: -22385.20209 | AA49: -24897.42912 | AB49: -27604.4173 | AC49: -30520.17802 | AD49: -33659.71102 | AE49: -37039.07373 | AF49: -40675.4555 | AG49: -44587.25692
C50: Cash + DSRA | N50: =IF(SUM(N47:N48)<N53,-SUM(N47:N48),-N53) -> -3666.666667 | O50: =IF(SUM($N55:O$55)=1,-$N$50,0) -> 0 | P50: =IF(SUM($N55:P$55)=1,-$N$50,0) -> 0 | Q50: =IF(SUM($N55:Q$55)=1,-$N$50,0) -> 0 | R50: =IF(SUM($N55:R$55)=1,-$N$50,0) -> 0 | S50: =IF(SUM($N55:S$55)=1,-$N$50,0) -> 0 | T50: =IF(SUM($N55:T$55)=1,-$N$50,0) -> 0 | U50: =IF(SUM($N55:U$55)=1,-$N$50,0) -> 0 | V50: =IF(SUM($N55:V$55)=1,-$N$50,0) -> 0 | W50: =IF(SUM($N55:W$55)=1,-$N$50,0) -> 0 | X50: =IF(SUM($N55:X$55)=1,-$N$50,0) -> 0 | Y50: =IF(SUM($N55:Y$55)=1,-$N$50,0) -> 0 | Z50: =IF(SUM($N55:Z$55)=1,-$N$50,0) -> 0 | AA50: =IF(SUM($N55:AA$55)=1,-$N$50,0) -> 0 | AB50: =IF(SUM($N55:AB$55)=1,-$N$50,0) -> 0 | AC50: =IF(SUM($N55:AC$55)=1,-$N$50,0) -> 0 | AD50: =IF(SUM($N55:AD$55)=1,-$N$50,0) -> 0 | AE50: =IF(SUM($N55:AE$55)=1,-$N$50,0) -> 0 | AF50: =IF(SUM($N55:AF$55)=1,-$N$50,0) -> 0 | AG50: =IF(SUM($N55:AG$55)=1,-$N$50,0) -> 0
C51: CF Equity | I51: =-I44 -> -50000 | J51: =-J44 -> -50000 | K51: =-K44 -> -20000 | L51: =-L44 -> 0 | M51: =-M44 -> 0 | N51: =N45+N46+N48+N49+N50 -> 18633.33333 | O51: 19006 | P51: 19386.12 | Q51: 19773.8424 | R51: 20169.31925 | S51: 20572.70563 | T51: 20984.15975 | U51: 21403.84294 | V51: 21831.9198 | W51: 22268.5582 | X51: 22713.92936 | Y51: 23168.20795 | Z51: 23631.57211 | AA51: 24104.20355 | AB51: 24586.28762 | AC51: 25078.01337 | AD51: 25579.57364 | AE51: 26091.16511 | AF51: 26612.98841 | AG51: 27145.24818
C52: DSCR | O52: =IFERROR(-O46/SUM(O48:O49),0) -> 1.5 | P52: 1.5 | Q52: 1.5 | R52: 1.5 | S52: 1.5 | T52: 1.5 | U52: 1.5 | V52: 1.5 | W52: 1.5 | X52: 1.5 | Y52: 1.5 | Z52: 1.5 | AA52: 1.5 | AB52: 1.5 | AC52: 1.5 | AD52: 1.5 | AE52: 1.5 | AF52: 1.5 | AG52: 1.5
C53: Outstanding Debt | I53: =I45+I49 -> 0 | J53: 0 | K53: 80000 | L53: =L45+L49+K53 -> 280000 | M53: 480000 | N53: 480000 | O53: 475588 | P53: 470106.92 | Q53: 463466.7196 | R53: 455570.7515 | S53: 446315.2928 | T53: 435589.0438 | U53: 423272.591 | V53: 409237.8328 | W53: 393347.3647 | X53: 375453.8215 | Y53: 355399.1731 | Z53: 333013.971 | AA53: 308116.5419 | AB53: 280512.1246 | AC53: 249991.9466 | AD53: 216332.2355 | AE53: 179293.1618 | AF53: 138617.7063 | AG53: 94030.44938
C55: Debt repayment flag | N55: =+IF(ROUND(N53,2)=0,1,0) -> 0 | O55: 0 | P55: 0 | Q55: 0 | R55: 0 | S55: 0 | T55: 0 | U55: 0 | V55: 0 | W55: 0 | X55: 0 | Y55: 0 | Z55: 0 | AA55: 0 | AB55: 0 | AC55: 0 | AD55: 0 | AE55: 0 | AF55: 0 | AG55: 0
B59: Stage
B60: B | C60: Valuation at Financial Closing
C62: Valuation
C63: EqV | D63: =+NPV(10%,K76:AG76)+$D$8+SUM(I76:J76) -> 168404.1275
C66: Simplified Projections - Future Project
C67: Year | I67: -5 | J67: -4 | K67: -3 | L67: -2 | M67: -1 | N67: 1 | O67: 2 | P67: 3 | Q67: 4 | R67: 5 | S67: 6 | T67: 7 | U67: 8 | V67: 9 | W67: 10 | X67: 11 | Y67: 12 | Z67: 13 | AA67: 14 | AB67: 15 | AC67: 16 | AD67: 17 | AE67: 18 | AF67: 19 | AG67: 20
C68: Investment | D68: =+SUM(I68:AG68) -> 600000 | I68: 50000 | J68: 50000 | K68: 100000 | L68: 200000 | M68: 200000
C69: Equity | D69: 120000 | I69: 50000 | J69: 50000 | K69: 20000 | L69: 0 | M69: 0
C70: Debt | D70: =+SUM(I70:AG70) -> 480000 | I70: 0 | J70: 0 | K70: 80000 | L70: 200000 | M70: 200000 | N70: 0
C71: Operating FCF | N71: =+$D$14 -> 62820 | O71: =+N71*(1+$D$15) -> 64076.4 | P71: 65357.928 | Q71: 66665.08656 | R71: 67998.38829 | S71: 69358.35606 | T71: 70745.52318 | U71: 72160.43364 | V71: 73603.64231 | W71: 75075.71516 | X71: 76577.22946 | Y71: 78108.77405 | Z71: 79670.94953 | AA71: 81264.36853 | AB71: 82889.6559 | AC71: 84547.44901 | AD71: 86238.39799 | AE71: 87963.16595 | AF71: 89722.42927 | AG71: 91516.87786
C72: FCSD | N72: =+N71/$D$19 -> 41880 | O72: 42717.6 | P72: 43571.952 | Q72: 44443.39104 | R72: 45332.25886 | S72: 46238.90404 | T72: 47163.68212 | U72: 48106.95576 | V72: 49069.09488 | W72: 50050.47677 | X72: 51051.48631 | Y72: 52072.51604 | Z72: 53113.96636 | AA72: 54176.24568 | AB72: 55259.7706 | AC72: 56364.96601 | AD72: 57492.26533 | AE72: 58642.11064 | AF72: 59814.95285 | AG72: 61011.25191
C73: Interest | N73: =-M78*$D$18 -> -33600 | O73: -33600 | P73: -32961.768 | Q73: -32219.05512 | R73: -31363.35161 | S73: -30385.5281 | T73: -29275.79178 | U73: -28023.63946 | V73: -26617.80732 | W73: -25046.21719 | X73: -23295.91902 | Y73: -21353.02931 | Z73: -19202.66524 | AA73: -16828.87416 | AB73: -14214.55815 | AC73: -11341.39328 | AD73: -8189.743188 | AE73: -4738.566638 | AF73: -965.318558 | AG73: 0
C74: Principal | O74: =IF(SUM(O72:O73)<N78,-SUM(O72:O73),-N78) -> -9117.6 | P74: =IF(SUM(P72:P73)<O78,-SUM(P72:P73),-O78) -> -10610.184 | Q74: -12224.33592 | R74: -13968.90726 | S74: -15853.37594 | T74: -17887.89034 | U74: -20083.3163 | V74: -22451.28756 | W74: -25004.25959 | X74: -27755.56729 | Y74: -30719.48673 | Z74: -33911.30112 | AA74: -37347.37153 | AB74: -41045.21245 | AC74: -45023.57273 | AD74: -49302.52214 | AE74: -53903.544 | AF74: -13790.26511 | AG74: 0
C75: Cash + DSRA | N75: =IF(SUM(N72:N73)<N78,-SUM(N72:N73),-N78) -> -8280 | O75: =IF(SUM($N$80:O80)=1,-$N$75,0) -> 0 | P75: =IF(SUM($N$80:P80)=1,-$N$75,0) -> 0 | Q75: =IF(SUM($N$80:Q80)=1,-$N$75,0) -> 0 | R75: =IF(SUM($N$80:R80)=1,-$N$75,0) -> 0 | S75: =IF(SUM($N$80:S80)=1,-$N$75,0) -> 0 | T75: =IF(SUM($N$80:T80)=1,-$N$75,0) -> 0 | U75: =IF(SUM($N$80:U80)=1,-$N$75,0) -> 0 | V75: =IF(SUM($N$80:V80)=1,-$N$75,0) -> 0 | W75: =IF(SUM($N$80:W80)=1,-$N$75,0) -> 0 | X75: =IF(SUM($N$80:X80)=1,-$N$75,0) -> 0 | Y75: =IF(SUM($N$80:Y80)=1,-$N$75,0) -> 0 | Z75: =IF(SUM($N$80:Z80)=1,-$N$75,0) -> 0 | AA75: =IF(SUM($N$80:AA80)=1,-$N$75,0) -> 0 | AB75: =IF(SUM($N$80:AB80)=1,-$N$75,0) -> 0 | AC75: =IF(SUM($N$80:AC80)=1,-$N$75,0) -> 0 | AD75: =IF(SUM($N$80:AD80)=1,-$N$75,0) -> 0 | AE75: =IF(SUM($N$80:AE80)=1,-$N$75,0) -> 0 | AF75: =IF(SUM($N$80:AF80)=1,-$N$75,0) -> 8280 | AG75: =IF(SUM($N$80:AG80)=1,-$N$75,0) -> 0
C76: CF Equity | I76: =-I69 -> -50000 | J76: =-J69 -> -50000 | K76: =-K69 -> -20000 | L76: =-L69 -> 0 | M76: =-M69 -> 0 | N76: =N70+N71+N73+N74+N75 -> 20940 | O76: 21358.8 | P76: 21785.976 | Q76: 22221.69552 | R76: 22666.12943 | S76: 23119.45202 | T76: 23581.84106 | U76: 24053.47788 | V76: 24534.54744 | W76: 25025.23839 | X76: 25525.74315 | Y76: 26036.25802 | Z76: 26556.98318 | AA76: 27088.12284 | AB76: 27629.8853 | AC76: 28182.483 | AD76: 28746.13266 | AE76: 29321.05532 | AF76: 83246.8456 | AG76: 91516.87786
C77: DSCR | O77: =IFERROR(-O71/SUM(O73:O74),0) -> 1.5 | P77: 1.5 | Q77: 1.5 | R77: 1.5 | S77: 1.5 | T77: 1.5 | U77: 1.5 | V77: 1.5 | W77: 1.5 | X77: 1.5 | Y77: 1.5 | Z77: 1.5 | AA77: 1.5 | AB77: 1.5 | AC77: 1.5 | AD77: 1.5 | AE77: 1.5 | AF77: 6.080574734 | AG77: 0
C78: Outstanding Debt | I78: =I70+I74 -> 0 | J78: 0 | K78: 80000 | L78: =L70+L74+K78 -> 280000 | M78: 480000 | N78: 480000 | O78: 470882.4 | P78: 460272.216 | Q78: 448047.8801 | R78: 434078.9728 | S78: 418225.5969 | T78: 400337.7065 | U78: 380254.3902 | V78: 357803.1027 | W78: 332798.8431 | X78: 305043.2758 | Y78: 274323.7891 | Z78: 240412.488 | AA78: 203065.1164 | AB78: 162019.904 | AC78: 116996.3313 | AD78: 67693.80911 | AE78: 13790.26511 | AF78: 0 | AG78: 0
C80: Debt repayment flag | N80: =+IF(ROUND(N78,2)=0,1,0) -> 0 | O80: 0 | P80: 0 | Q80: 0 | R80: 0 | S80: 0 | T80: 0 | U80: 0 | V80: 0 | W80: 0 | X80: 0 | Y80: 0 | Z80: 0 | AA80: 0 | AB80: 0 | AC80: 0 | AD80: 0 | AE80: 0 | AF80: 1 | AG80: 1
B84: Stage
B85: C | C85: Valuation after Refinancing
C87: Valuation
C88: EqV | D88: =+NPV(7%,N101:AG101)+$D$8+SUM(I101:M101) -> 337348.8904
C91: Simplified Projections - Future Project
C92: Year | I92: -5 | J92: -4 | K92: -3 | L92: -2 | M92: -1 | N92: 1 | O92: 2 | P92: 3 | Q92: 4 | R92: 5 | S92: 6 | T92: 7 | U92: 8 | V92: 9 | W92: 10 | X92: 11 | Y92: 12 | Z92: 13 | AA92: 14 | AB92: 15 | AC92: 16 | AD92: 17 | AE92: 18 | AF92: 19 | AG92: 20
C93: Investment | D93: =+SUM(I93:AG93) -> 600000 | I93: 50000 | J93: 50000 | K93: 100000 | L93: 200000 | M93: 200000
C94: Equity | D94: 120000 | I94: 50000 | J94: 50000 | K94: 20000 | L94: 0 | M94: 0
C95: Debt | D95: =+SUM(I95:AG95) -> 589358.6012 | I95: 0 | J95: 0 | K95: 80000 | L95: 200000 | M95: 200000 | N95: =+E20 -> 109358.6012
C96: Operating FCF | N96: =+$D$14 -> 62820 | O96: =+N96*(1+$D$15) -> 64076.4 | P96: 65357.928 | Q96: 66665.08656 | R96: 67998.38829 | S96: 69358.35606 | T96: 70745.52318 | U96: 72160.43364 | V96: 73603.64231 | W96: 75075.71516 | X96: 76577.22946 | Y96: 78108.77405 | Z96: 79670.94953 | AA96: 81264.36853 | AB96: 82889.6559 | AC96: 84547.44901 | AD96: 86238.39799 | AE96: 87963.16595 | AF96: 89722.42927 | AG96: 91516.87786
C97: FCSD | N97: =+N96/$E$19 -> 46533.33333 | O97: 47464 | P97: 48413.28 | Q97: 49381.5456 | R97: 50369.17651 | S97: 51376.56004 | T97: 52404.09124 | U97: 53452.17307 | V97: 54521.21653 | W97: 55611.64086 | X97: 56723.87368 | Y97: 57858.35115 | Z97: 59015.51817 | AA97: 60195.82854 | AB97: 61399.74511 | AC97: 62627.74001 | AD97: 63880.29481 | AE97: 65157.90071 | AF97: 66461.05872 | AG97: 67790.27989
C98: Interest | N98: =-M103*$E$18 -> -27600 | O98: -33888.11957 | P98: -33107.50645 | Q98: -32227.42447 | R98: -31241.0625 | S98: -30141.19595 | T98: -28920.16251 | U98: -27569.83661 | V98: -26081.60226 | W98: -24446.32444 | X98: -22654.31875 | Y98: -20695.31934 | Z98: -18558.44501 | AA98: -16232.1633 | AB98: -13704.25255 | AC98: -10961.76173 | AD98: -7990.967979 | AE98: -4777.331686 | AF98: -1305.448967 | AG98: 0
C99: Principal | O99: =IF(SUM(O97:O98)<N103,-SUM(O97:O98),-N103) -> -13575.88043 | P99: =IF(SUM(P97:P98)<O103,-SUM(P97:P98),-O103) -> -15305.77355 | Q99: -17154.12113 | R99: -19128.11401 | S99: -21235.3641 | T99: -23483.92873 | U99: -25882.33646 | V99: -28439.61427 | W99: -31165.31642 | X99: -34069.55493 | Y99: -37163.03181 | Z99: -40457.07316 | AA99: -43963.66523 | AB99: -47695.49256 | AC99: -51665.97828 | AD99: -55889.32683 | AE99: -60380.56902 | AF99: -22703.4603 | AG99: 0
C100: Cash + DSRA | N100: =IF(SUM(N97:N98)<N103,-SUM(N97:N98),-N103) -> -18933.33333 | O100: =IF(SUM($N$105:O105)=1,-$N$100,0) -> 0 | P100: =IF(SUM($N$105:P105)=1,-$N$100,0) -> 0 | Q100: =IF(SUM($N$105:Q105)=1,-$N$100,0) -> 0 | R100: =IF(SUM($N$105:R105)=1,-$N$100,0) -> 0 | S100: =IF(SUM($N$105:S105)=1,-$N$100,0) -> 0 | T100: =IF(SUM($N$105:T105)=1,-$N$100,0) -> 0 | U100: =IF(SUM($N$105:U105)=1,-$N$100,0) -> 0 | V100: =IF(SUM($N$105:V105)=1,-$N$100,0) -> 0 | W100: =IF(SUM($N$105:W105)=1,-$N$100,0) -> 0 | X100: =IF(SUM($N$105:X105)=1,-$N$100,0) -> 0 | Y100: =IF(SUM($N$105:Y105)=1,-$N$100,0) -> 0 | Z100: =IF(SUM($N$105:Z105)=1,-$N$100,0) -> 0 | AA100: =IF(SUM($N$105:AA105)=1,-$N$100,0) -> 0 | AB100: =IF(SUM($N$105:AB105)=1,-$N$100,0) -> 0 | AC100: =IF(SUM($N$105:AC105)=1,-$N$100,0) -> 0 | AD100: =IF(SUM($N$105:AD105)=1,-$N$100,0) -> 0 | AE100: =IF(SUM($N$105:AE105)=1,-$N$100,0) -> 0 | AF100: =IF(SUM($N$105:AF105)=1,-$N$100,0) -> 18933.33333 | AG100: =IF(SUM($N$105:AG105)=1,-$N$100,0) -> 0
C101: CF Equity | F101: =+IRR(I101:AG101) -> 0.1699643111 | I101: =-I94 -> -50000 | J101: =-J94 -> -50000 | K101: =-K94 -> -20000 | L101: =-L94 -> 0 | M101: =-M94 -> 0 | N101: =N95+N96+N98+N99+N100 -> 125645.2679 | O101: 16612.4 | P101: 16944.648 | Q101: 17283.54096 | R101: 17629.21178 | S101: 17981.79601 | T101: 18341.43194 | U101: 18708.26057 | V101: 19082.42579 | W101: 19464.0743 | X101: 19853.35579 | Y101: 20250.4229 | Z101: 20655.43136 | AA101: 21068.53999 | AB101: 21489.91079 | AC101: 21919.709 | AD101: 22358.10318 | AE101: 22805.26525 | AF101: 84646.85334 | AG101: 91516.87786
C102: DSCR | O102: =IFERROR(-O96/SUM(O98:O99),0) -> 1.35 | P102: 1.35 | Q102: 1.35 | R102: 1.35 | S102: 1.35 | T102: 1.35 | U102: 1.35 | V102: 1.35 | W102: 1.35 | X102: 1.35 | Y102: 1.35 | Z102: 1.35 | AA102: 1.35 | AB102: 1.35 | AC102: 1.35 | AD102: 1.35 | AE102: 1.35 | AF102: 3.737047289 | AG102: 0
C103: Outstanding Debt | I103: =I95+I99 -> 0 | J103: 0 | K103: 80000 | L103: =L95+L99+K103 -> 280000 | M103: 480000 | N103: 589358.6012 | O103: 575782.7208 | P103: 560476.9472 | Q103: 543322.8261 | R103: 524194.7121 | S103: 502959.348 | T103: 479475.4193 | U103: 453593.0828 | V103: 425153.4685 | W103: 393988.1521 | X103: 359918.5972 | Y103: 322755.5654 | Z103: 282298.4922 | AA103: 238334.827 | AB103: 190639.3344 | AC103: 138973.3562 | AD103: 83084.02932 | AE103: 22703.4603 | AF103: 0 | AG103: 0
C105: Debt repayment flag | N105: =+IF(ROUND(N103,2)=0,1,0) -> 0 | O105: 0 | P105: 0 | Q105: 0 | R105: 0 | S105: 0 | T105: 0 | U105: 0 | V105: 0 | W105: 0 | X105: 0 | Y105: 0 | Z105: 0 | AA105: 0 | AB105: 0 | AC105: 0 | AD105: 0 | AE105: 0 | AF105: 1 | AG105: 1
C109: Future investments Cash Flows - Assuming Long-Term New Awards
C113: Future investments Cash Flows - [Long-Term New Awards]
D114: Project size factor | G114: 2024 | H114: =G114+1 -> 2025 | I114: 2026 | J114: 2027 | K114: 2028 | L114: 2029 | M114: 2030 | N114: 2031 | O114: 2032 | P114: 2033 | Q114: 2034 | R114: 2035 | S114: 2036 | T114: 2037 | U114: 2038 | V114: 2039 | W114: 2040 | X114: 2041 | Y114: 2042 | Z114: 2043 | AA114: 2044 | AB114: 2045 | AC114: 2046 | AD114: 2047 | AE114: 2048 | AF114: 2049 | AG114: 2050 | AH114: 2051 | AI114: 2052 | AJ114: 2053 | AK114: 2054 | AL114: 2055 | AM114: 2056 | AN114: 2057 | AO114: 2058 | AP114: 2059 | AQ114: 2060 | AR114: 2061 | AS114: 2062 | AT114: 2063 | AU114: 2064 | AV114: 2065 | AW114: 2066 | AX114: 2067 | AY114: 2068 | AZ114: =AY114+1 -> 2069 | BA114: =AZ114+1 -> 2070 | BB114: =BA114+1 -> 2071 | BC114: =BB114+1 -> 2072 | BD114: =BC114+1 -> 2073 | BE114: =BD114+1 -> 2074 | BF114: =BE114+1 -> 2075 | BG114: =BF114+1 -> 2076 | BH114: =BG114+1 -> 2077 | BI114: =BH114+1 -> 2078 | BJ114: =BI114+1 -> 2079 | BK114: =BJ114+1 -> 2080 | BL114: =BK114+1 -> 2081 | BM114: =BL114+1 -> 2082 | BN114: =BM114+1 -> 2083 | BO114: =BN114+1 -> 2084 | BP114: =BO114+1 -> 2085 | BQ114: Future Investments Perpetuity
C115: 2025 | D115: 0 | G115: =+OFFSET(G$101,,MAX(2026-$C115,2024-G$114))*$B114 -> 0 | H115: 0 | I115: =+OFFSET(I$101,,MAX(2026-$C115,2024-I$114))*$D115 -> 0 | J115: 0 | K115: 0 | L115: 0 | M115: 0 | N115: 0 | O115: 0 | P115: 0 | Q115: 0 | R115: 0 | S115: =+OFFSET(S$101,,MAX(2026-$C115,2024-S$114))*$D115 -> 0 | T115: 0 | U115: 0 | V115: 0 | W115: 0 | X115: 0 | Y115: 0 | Z115: 0 | AA115: 0 | AB115: 0 | AC115: =+OFFSET(AC$101,,MAX(2026-$C115,2024-AC$114))*$D115 -> 0 | AD115: 0 | AE115: 0 | AF115: 0 | AG115: 0 | AH115: 0 | AI115: 0 | AJ115: 0 | AK115: 0 | AL115: 0 | AM115: =+OFFSET(AM$101,,MAX(2026-$C115,2024-AM$114))*$D115 -> 0 | AN115: 0 | AO115: 0 | AP115: 0 | AQ115: 0 | AR115: 0 | AS115: 0 | AT115: 0 | AU115: 0 | AV115: 0 | AW115: =+OFFSET(AW$101,,MAX(2026-$C115,2024-AW$114))*$D115 -> 0 | AX115: 0 | AY115: 0 | AZ115: 0 | BA115: 0 | BB115: 0
C116: =C115+1 -> 2026 | D116: 2.626157208 | G116: =+OFFSET(G$101,,MAX(2026-$C116,2024-G$114))*$D115 -> 0 | H116: =+OFFSET(H$101,,MAX(2026-$C116,2024-H$114))*$D115 -> 0 | I116: -131307.8604 | J116: -131307.8604 | K116: -52523.14415 | L116: 0 | M116: 0 | N116: 329964.2259 | O116: 43626.774 | P116: 44499.30948 | Q116: 45389.29567 | R116: 46297.08158 | S116: 47223.02321 | T116: 48167.48368 | U116: 49130.83335 | V116: 50113.45002 | W116: 51115.71902 | X116: 52138.0334 | Y116: 53180.79407 | Z116: 54244.40995 | AA116: 55329.29815 | AB116: 56435.88411 | AC116: 57564.60179 | AD116: 58715.89383 | AE116: 59890.2117 | AF116: 222295.944 | AG116: 240337.7084 | AH116: 0 | AI116: 0 | AJ116: 0 | AK116: 0 | AL116: 0 | AM116: 0 | AN116: 0 | AO116: 0 | AP116: 0 | AQ116: 0 | AR116: 0 | AS116: 0 | AT116: 0 | AU116: 0 | AV116: 0 | AW116: 0 | AX116: 0 | AY116: 0 | AZ116: 0 | BA116: 0 | BB116: 0
C117: =C116+1 -> 2027 | D117: 0.8134445765 | G117: 0 | H117: 0 | I117: 0 | J117: -40672.22883 | K117: -40672.22883 | L117: -16268.89153 | M117: 0 | N117: 0 | O117: 102205.4617 | P117: 13513.26668 | Q117: 13783.53202 | R117: 14059.20266 | S117: 14340.38671 | T117: 14627.19444 | U117: 14919.73833 | V117: 15218.1331 | W117: 15522.49576 | X117: 15832.94568 | Y117: 16149.60459 | Z117: 16472.59668 | AA117: 16802.04862 | AB117: 17138.08959 | AC117: 17480.85138 | AD117: 17830.46841 | AE117: 18187.07778 | AF117: 18550.81933 | AG117: 68855.52377 | AH117: 74443.90795 | AI117: 0 | AJ117: 0 | AK117: 0 | AL117: 0 | AM117: 0 | AN117: 0 | AO117: 0 | AP117: 0 | AQ117: 0 | AR117: 0 | AS117: 0 | AT117: 0 | AU117: 0 | AV117: 0 | AW117: 0 | AX117: 0 | AY117: 0 | AZ117: 0 | BA117: 0 | BB117: 0
C118: =C117+1 -> 2028 | D118: 4.628068437 | G118: 0 | H118: 0 | I118: 0 | J118: 0 | K118: -231403.4219 | L118: -231403.4219 | M118: -92561.36874 | N118: 0 | O118: 0 | P118: 581494.8986 | Q118: 76883.32411 | R118: 78420.99059 | S118: 79989.4104 | T118: 81589.19861 | U118: 83220.98258 | V118: 84885.40223 | W118: 86583.11028 | X118: 88314.77248 | Y118: 90081.06793 | Z118: 91882.68929 | AA118: 93720.34308 | AB118: 95594.74994 | AC118: 97506.64494 | AD118: 99456.77783 | AE118: 101445.9134 | AF118: 103474.8317 | AG118: 105544.3283 | AH118: 391751.4303 | AI118: 423546.3739 | AJ118: 0 | AK118: 0 | AL118: 0 | AM118: 0 | AN118: 0 | AO118: 0 | AP118: 0 | AQ118: 0 | AR118: 0 | AS118: 0 | AT118: 0 | AU118: 0 | AV118: 0 | AW118: 0 | AX118: 0 | AY118: 0 | AZ118: 0 | BA118: 0 | BB118: 0
C119: =C118+1 -> 2029 | D119: 2.361417762 | G119: 0 | H119: 0 | I119: 0 | J119: 0 | K119: 0 | L119: -118070.8881 | M119: -118070.8881 | N119: -47228.35523 | O119: 0 | P119: 0 | Q119: 296700.9673 | R119: 39228.81642 | S119: 40013.39275 | T119: 40813.66061 | U119: 41629.93382 | V119: 42462.53249 | W119: 43311.78314 | X119: 44178.01881 | Y119: 45061.57918 | Z119: 45962.81077 | AA119: 46882.06698 | AB119: 47819.70832 | AC119: 48776.10249 | AD119: 49751.62454 | AE119: 50746.65703 | AF119: 51761.59017 | AG119: 52796.82197 | AH119: 53852.75841 | AI119: 199886.5829 | AJ119: 216109.5809 | AK119: 0 | AL119: 0 | AM119: 0 | AN119: 0 | AO119: 0 | AP119: 0 | AQ119: 0 | AR119: 0 | AS119: 0 | AT119: 0 | AU119: 0 | AV119: 0 | AW119: 0 | AX119: 0 | AY119: 0 | AZ119: 0 | BA119: 0 | BB119: 0
C120: =C119+1 -> 2030 | D120: 2.669724382 | G120: 0 | H120: 0 | I120: 0 | J120: 0 | K120: 0 | L120: 0 | M120: -133486.2191 | N120: -133486.2191 | O120: -53394.48764 | P120: 0 | Q120: 0 | R120: 335438.2352 | S120: 44350.52932 | T120: 45237.53991 | U120: 46142.29071 | V120: 47065.13652 | W120: 48006.43925 | X120: 48966.56803 | Y120: 49945.8994 | Z120: 50944.81738 | AA120: 51963.71373 | AB120: 53002.98801 | AC120: 54063.04777 | AD120: 55144.30872 | AE120: 56247.1949 | AF120: 57372.13879 | AG120: 58519.58157 | AH120: 59689.9732 | AI120: 60883.77266 | AJ120: 225983.7682 | AK120: 244324.8402 | AL120: 0 | AM120: 0 | AN120: 0 | AO120: 0 | AP120: 0 | AQ120: 0 | AR120: 0 | AS120: 0 | AT120: 0 | AU120: 0 | AV120: 0 | AW120: 0 | AX120: 0 | AY120: 0 | AZ120: 0 | BA120: 0 | BB120: 0
C121: 2031 | D121: 2.763855142 | G121: 0 | H121: 0 | I121: 0 | J121: 0 | K121: 0 | L121: 0 | M121: 0 | N121: -138192.7571 | O121: -138192.7571 | P121: -55277.10284 | Q121: 0 | R121: 0 | S121: 347265.3197 | T121: 45914.26716 | U121: 46832.5525 | V121: 47769.20355 | W121: 48724.58762 | X121: 49699.07937 | Y121: 50693.06096 | Z121: 51706.92218 | AA121: 52741.06062 | AB121: 53795.88184 | AC121: 54871.79947 | AD121: 55969.23546 | AE121: 57088.62017 | AF121: 58230.39258 | AG121: 59395.00043 | AH121: 60582.90044 | AI121: 61794.55844 | AJ121: 63030.44961 | AK121: 233951.6408 | AL121: 252939.3934 | AM121: 0 | AN121: 0 | AO121: 0 | AP121: 0 | AQ121: 0 | AR121: 0 | AS121: 0 | AT121: 0 | AU121: 0 | AV121: 0 | AW121: 0 | AX121: 0 | AY121: 0 | AZ121: 0 | BA121: 0 | BB121: 0
C122: 2032 | D122: 4.091581386 | G122: 0 | H122: 0 | I122: 0 | J122: 0 | K122: 0 | L122: 0 | M122: 0 | N122: 0 | O122: -204579.0693 | P122: -204579.0693 | Q122: -81831.62772 | R122: 0 | S122: 0 | T122: 514087.8394 | U122: 67970.98662 | V122: 69330.40635 | W122: 70717.01448 | X122: 72131.35477 | Y122: 73573.98186 | Z122: 75045.4615 | AA122: 76546.37073 | AB122: 78077.29814 | AC122: 79638.84411 | AD122: 81231.62099 | AE122: 82856.25341 | AF122: 84513.37848 | AG122: 86203.64605 | AH122: 87927.71897 | AI122: 89686.27335 | AJ122: 91479.99881 | AK122: 93309.59879 | AL122: 346339.4895 | AM122: 374448.7539 | AN122: 0 | AO122: 0 | AP122: 0 | AQ122: 0 | AR122: 0 | AS122: 0 | AT122: 0 | AU122: 0 | AV122: 0 | AW122: 0 | AX122: 0 | AY122: 0 | AZ122: 0 | BA122: 0 | BB122: 0
C123: 2033 | D123: 2.726209891 | G123: 0 | H123: 0 | I123: 0 | J123: 0 | K123: 0 | L123: 0 | M123: 0 | N123: 0 | O123: 0 | P123: -136310.4945 | Q123: -136310.4945 | R123: -54524.19781 | S123: 0 | T123: 0 | U123: 342535.372 | V123: 45288.88919 | W123: 46194.66697 | X123: 47118.56031 | Y123: 48060.93152 | Z123: 49022.15015 | AA123: 50002.59315 | AB123: 51002.64501 | AC123: 52022.69791 | AD123: 53063.15187 | AE123: 54124.41491 | AF123: 55206.90321 | AG123: 56311.04127 | AH123: 57437.2621 | AI123: 58586.00734 | AJ123: 59757.72748 | AK123: 60952.88203 | AL123: 62171.93968 | AM123: 230765.0888 | AN123: 249494.2176 | AO123: 0 | AP123: 0 | AQ123: 0 | AR123: 0 | AS123: 0 | AT123: 0 | AU123: 0 | AV123: 0 | AW123: 0 | AX123: 0 | AY123: 0 | AZ123: 0 | BA123: 0 | BB123: 0
C124: 2034 | D124: 2.637157555 | G124: 0 | H124: 0 | I124: 0 | J124: 0 | K124: 0 | L124: 0 | M124: 0 | N124: 0 | O124: 0 | P124: 0 | Q124: -131857.8777 | R124: -131857.8777 | S124: -52743.1511 | T124: 0 | U124: 0 | V124: 331346.3675 | W124: 43809.51617 | X124: 44685.70649 | Y124: 45579.42062 | Z124: 46491.00903 | AA124: 47420.82921 | AB124: 48369.2458 | AC124: 49336.63071 | AD124: 50323.36333 | AE124: 51329.83059 | AF124: 52356.42721 | AG124: 53403.55575 | AH124: 54471.62686 | AI124: 55561.0594 | AJ124: 56672.28059 | AK124: 57805.7262 | AL124: 58961.84073 | AM124: 60141.07754 | AN124: 223227.0888 | AO124: 241344.4259 | AP124: 0 | AQ124: 0 | AR124: 0 | AS124: 0 | AT124: 0 | AU124: 0 | AV124: 0 | AW124: 0 | AX124: 0 | AY124: 0 | AZ124: 0 | BA124: 0 | BB124: 0
C125: 2035 | D125: 3.272358489 | G125: 0 | H125: 0 | I125: =+OFFSET(I$101,,MAX(2026-$C125,2024-I$114))*$D125 -> 0 | J125: 0 | K125: 0 | L125: 0 | M125: 0 | N125: 0 | O125: 0 | P125: 0 | Q125: 0 | R125: -163617.9244 | S125: =+OFFSET(S$101,,MAX(2026-$C125,2024-S$114))*$D125 -> -163617.9244 | T125: -65447.16978 | U125: 0 | V125: 0 | W125: 411156.359 | X125: 54361.72816 | Y125: 55448.96272 | Z125: 56557.94198 | AA125: 57689.10082 | AB125: 58842.88283 | AC125: =+OFFSET(AC$101,,MAX(2026-$C125,2024-AC$114))*$D125 -> 60019.74049 | AD125: 61220.1353 | AE125: 62444.538 | AF125: 63693.42876 | AG125: 64967.29734 | AH125: 66266.64329 | AI125: 67591.97615 | AJ125: 68943.81568 | AK125: 70322.69199 | AL125: 71729.14583 | AM125: =+OFFSET(AM$101,,MAX(2026-$C125,2024-AM$114))*$D125 -> 73163.72875 | AN125: 74627.00332 | AO125: 276994.8491 | AP125: 299476.0321 | AQ125: 0 | AR125: 0 | AS125: 0 | AT125: 0 | AU125: 0 | AV125: 0 | AW125: =+OFFSET(AW$101,,MAX(2026-$C125,2024-AW$114))*$D125 -> 0 | AX125: 0 | AY125: 0 | AZ125: 0 | BA125: 0 | BB125: 0
C126: 2036 | D126: 2.672778489 | G126: 0 | H126: 0 | I126: 0 | J126: 0 | K126: 0 | L126: 0 | M126: 0 | N126: 0 | O126: 0 | P126: 0 | Q126: 0 | R126: 0 | S126: -133638.9245 | T126: -133638.9245 | U126: -53455.56978 | V126: 0 | W126: 0 | X126: 335821.9693 | Y126: 44401.26537 | Z126: 45289.29068 | AA126: 46195.0765 | AB126: 47118.97803 | AC126: 48061.35759 | AD126: 49022.58474 | AE126: 50003.03643 | AF126: 51003.09716 | AG126: 52023.1591 | AH126: 53063.62229 | AI126: 54124.89473 | AJ126: 55207.39263 | AK126: 56311.54048 | AL126: 57437.77129 | AM126: 58586.52671 | AN126: 59758.25725 | AO126: 60953.42239 | AP126: 226242.2888 | AQ126: 244604.3425 | AR126: 0 | AS126: 0 | AT126: 0 | AU126: 0 | AV126: 0 | AW126: 0 | AX126: 0 | AY126: 0 | AZ126: 0 | BA126: 0 | BB126: 0
C127: 2037 | D127: 3.018278115 | G127: 0 | H127: 0 | I127: 0 | J127: 0 | K127: 0 | L127: 0 | M127: 0 | N127: 0 | O127: 0 | P127: 0 | Q127: 0 | R127: 0 | S127: 0 | T127: -150913.9058 | U127: -150913.9058 | V127: -60365.56231 | W127: 0 | X127: 0 | Y127: 379232.3624 | Z127: 50140.84336 | AA127: 51143.66023 | AB127: 52166.53343 | AC127: 53209.8641 | AD127: 54274.06138 | AE127: 55359.54261 | AF127: 56466.73346 | AG127: 57596.06813 | AH127: 58747.9895 | AI127: 59922.94929 | AJ127: 61121.40827 | AK127: 62343.83644 | AL127: 63590.71317 | AM127: 64862.52743 | AN127: 66159.77798 | AO127: 67482.97354 | AP127: 68832.63301 | AQ127: 255487.745 | AR127: 276223.3896 | AS127: 0 | AT127: 0 | AU127: 0 | AV127: 0 | AW127: 0 | AX127: 0 | AY127: 0 | AZ127: 0 | BA127: 0 | BB127: 0
C128: 2038 | D128: 2.912610489 | G128: 0 | H128: 0 | I128: 0 | J128: 0 | K128: 0 | L128: 0 | M128: 0 | N128: 0 | O128: 0 | P128: 0 | Q128: 0 | R128: 0 | S128: 0 | T128: 0 | U128: -145630.5245 | V128: -145630.5245 | W128: -58252.20978 | X128: 0 | Y128: 0 | Z128: 365955.7252 | AA128: 48385.45049 | AB128: 49353.1595 | AC128: 50340.22269 | AD128: 51347.02714 | AE128: 52373.96768 | AF128: 53421.44704 | AG128: 54489.87598 | AH128: 55579.6735 | AI128: 56691.26697 | AJ128: 57825.09231 | AK128: 58981.59415 | AL128: 60161.22604 | AM128: 61364.45056 | AN128: 62591.73957 | AO128: 63843.57436 | AP128: 65120.44585 | AQ128: 66422.85476 | AR128: 246543.3129 | AS128: 266553.0184 | AT128: 0 | AU128: 0 | AV128: 0 | AW128: 0 | AX128: 0 | AY128: 0 | AZ128: 0 | BA128: 0 | BB128: 0
C129: 2039 | D129: 2.880078265 | G129: 0 | H129: 0 | I129: 0 | J129: 0 | K129: 0 | L129: 0 | M129: 0 | N129: 0 | O129: 0 | P129: 0 | Q129: 0 | R129: 0 | S129: 0 | T129: 0 | U129: 0 | V129: -144003.9132 | W129: -144003.9132 | X129: -57601.5653 | Y129: 0 | Z129: 0 | AA129: 361868.2051 | AB129: 47845.01217 | AC129: 48801.91241 | AD129: 49777.95066 | AE129: 50773.50967 | AF129: 51788.97987 | AG129: 52824.75946 | AH129: 53881.25465 | AI129: 54958.87974 | AJ129: 56058.05734 | AK129: 57179.21849 | AL129: 58322.80286 | AM129: 59489.25891 | AN129: 60679.04409 | AO129: 61892.62497 | AP129: 63130.47747 | AQ129: 64393.08702 | AR129: 65680.94876 | AS129: 243789.5625 | AT129: 263575.7708 | AU129: 0 | AV129: 0 | AW129: 0 | AX129: 0 | AY129: 0 | AZ129: 0 | BA129: 0 | BB129: 0
C130: 2040 | D130: 2.95487754 | G130: 0 | H130: 0 | I130: 0 | J130: 0 | K130: 0 | L130: 0 | M130: 0 | N130: 0 | O130: 0 | P130: 0 | Q130: 0 | R130: 0 | S130: 0 | T130: 0 | U130: 0 | V130: 0 | W130: -147743.877 | X130: -147743.877 | Y130: -59097.55079 | Z130: 0 | AA130: 0 | AB130: 371266.3801 | AC130: 49087.60764 | AD130: 50069.35979 | AE130: 51070.74699 | AF130: 52092.16193 | AG130: 53134.00516 | AH130: 54196.68527 | AI130: 55280.61897 | AJ130: 56386.23135 | AK130: 57513.95598 | AL130: 58664.2351 | AM130: 59837.5198 | AN130: 61034.2702 | AO130: 62254.9556 | AP130: 63500.05471 | AQ130: 64770.05581 | AR130: 66065.45692 | AS130: 67386.76606 | AT130: 250121.0857 | AU130: 270421.1669 | AV130: 0 | AW130: 0 | AX130: 0 | AY130: 0 | AZ130: 0 | BA130: 0 | BB130: 0
C131: 2041 | D131: 2.893091155 | G131: 0 | H131: 0 | I131: 0 | J131: 0 | K131: 0 | L131: 0 | M131: 0 | N131: 0 | O131: 0 | P131: 0 | Q131: 0 | R131: 0 | S131: 0 | T131: 0 | U131: 0 | V131: 0 | W131: 0 | X131: -144654.5577 | Y131: -144654.5577 | Z131: -57861.82309 | AA131: 0 | AB131: 0 | AC131: 363503.2132 | AD131: 48061.1875 | AE131: 49022.41125 | AF131: 50002.85947 | AG131: 51002.91666 | AH131: 52022.97499 | AI131: 53063.43449 | AJ131: 54124.70318 | AK131: 55207.19725 | AL131: 56311.34119 | AM131: 57437.56802 | AN131: 58586.31938 | AO131: 59758.04576 | AP131: 60953.20668 | AQ131: 62172.27081 | AR131: 63415.71623 | AS131: 64684.03055 | AT131: 65977.71116 | AU131: 244891.0627 | AV131: 264766.6698 | AW131: 0 | AX131: 0 | AY131: 0 | AZ131: 0 | BA131: 0 | BB131: 0
C132: 2042 | D132: 2.92495783 | G132: 0 | H132: 0 | I132: 0 | J132: 0 | K132: 0 | L132: 0 | M132: 0 | N132: 0 | O132: 0 | P132: 0 | Q132: 0 | R132: 0 | S132: 0 | T132: 0 | U132: 0 | V132: 0 | W132: 0 | X132: 0 | Y132: -146247.8915 | Z132: -146247.8915 | AA132: -58499.15659 | AB132: 0 | AC132: 0 | AD132: 367507.1101 | AE132: 48590.56945 | AF132: 49562.38084 | AG132: 50553.62846 | AH132: 51564.70102 | AI132: 52595.99504 | AJ132: 53647.91495 | AK132: 54720.87324 | AL132: 55815.29071 | AM132: 56931.59652 | AN132: 58070.22845 | AO132: 59231.63302 | AP132: 60416.26568 | AQ132: 61624.591 | AR132: 62857.08282 | AS132: 64114.22447 | AT132: 65396.50896 | AU132: 66704.43914 | AV132: 247588.4764 | AW132: 267683.0084 | AX132: 0 | AY132: 0 | AZ132: 0 | BA132: 0 | BB132: 0
C133: 2043 | D133: 2.917805709 | G133: 0 | H133: 0 | I133: 0 | J133: 0 | K133: 0 | L133: 0 | M133: 0 | N133: 0 | O133: 0 | P133: 0 | Q133: 0 | R133: 0 | S133: 0 | T133: 0 | U133: 0 | V133: 0 | W133: 0 | X133: 0 | Y133: 0 | Z133: -145890.2854 | AA133: -145890.2854 | AB133: -58356.11417 | AC133: 0 | AD133: 0 | AE133: 366608.4799 | AF133: 48471.75555 | AG133: 49441.19066 | AH133: 50430.01448 | AI133: 51438.61477 | AJ133: 52467.38706 | AK133: 53516.7348 | AL133: 54587.0695 | AM133: 55678.81089 | AN133: 56792.38711 | AO133: 57928.23485 | AP133: 59086.79955 | AQ133: 60268.53554 | AR133: 61473.90625 | AS133: 62703.38437 | AT133: 63957.45206 | AU133: 65236.6011 | AV133: 66541.33312 | AW133: 246983.0719 | AX133: 267028.4686 | AY133: 0 | AZ133: 0 | BA133: 0 | BB133: 0
